Workbook

Sheet FERC_IS1
A1: %,LACTUALS,SBAL | B1: %,ATF,FACCOUNT | C1: %,ATT,FDESCR,UDESCR | F1: %,LACTUALS,SPER | G1: %,LACTUALS,SPER-1YR | H1: %,C | I1: %,C | K1: %,LACTUALS,SYTD | L1: %,LACTUALS,SYTD-1YR | M1: %,C | N1: %,C | Q1: %,LACTUALS,SQTR | R1: %,LACTUALS,SQTR-1YR | S1: %,C | T1: %,C | V1: %,LACTUALS,SROLLING12 | W1: %,LACTUALS,SROLNG12-1Y | X1: %,C | Y1: %,C | AA1: %,LACTUALS,SPER12-2Y | AC1: %,LACTUALS,SPER1-1YR | AD1: %,LACTUALS,SPER2-1YR | AE1: %,LACTUALS,SPER3-1YR | AF1: %,LACTUALS,SPER4-1YR | AG1: %,LACTUALS,SPER5-1YR | AH1: %,LACTUALS,SPER6-1YR | AI1: %,LACTUALS,SPER7-1YR | AJ1: %,LACTUALS,SPER8-1YR | AK1: %,LACTUALS,SPER9-1YR | AL1: %,LACTUALS,SPER10-1YR | AM1: %,LACTUALS,SPER11-1YR | AN1: %,LACTUALS,SPER12-YR | AP1: %,LACTUALS,SPER1 | AQ1: %,LACTUALS,SPER2 | AR1: %,LACTUALS,SPER3 | AS1: %,LACTUALS,SPER4
C2: =IF($C$707="Error",$C$712,IF($C$713="Error",$C$709&" - "&$C$708,IF($C$713 = $C$712, "BU"& $C$713&" -" & $C$707,$C$713&" - "&$C$712))) -> Kentucky Power Corp Consol | G2: =+C2 -> Kentucky Power Corp Consol | L2: =+G2 -> Kentucky Power Corp Consol | R2: =+L2 -> Kentucky Power Corp Consol | W2: =+R2 -> Kentucky Power Corp Consol | AA2: =+C2 -> Kentucky Power Corp Consol | AP2: =+C2 -> Kentucky Power Corp Consol
C3: =TEXT(+$C$697,"MMMM YYYY") -> April 2026 | G3: =+"As of: "& TEXT(+$C$697,"MMM YYYY") -> As of: Apr 2026 | L3: =+G3 -> As of: Apr 2026 | R3: =+L3 -> As of: Apr 2026 | W3: =+R3 -> As of: Apr 2026 | AA3: =+G3 -> As of: Apr 2026
B4: ="Run Date: "& TEXT(NvsEndTime,"MM/DD/YYYY hh:mm AM/PM;@") -> Run Date: 05/08/2026 06:47 AM | AP4: =+AA4 -> 0
B5: =IF(C710<>"Error",C710,"") -> GLR6283P | C5: ="Rpt ID: "& C705& " Layout: "&C706 -> Rpt ID: FERC_IS1 Layout: FERC_IS1 | F5: ONE MONTH ENDED | H5: Variance | K5: YEAR TO DATE | M5: Variance | Q5: THREE MONTHS ENDED | S5: Variance | V5: TWELVE MONTHS ENDED | X5: Variance
B6: =IF(C707="Error",""&C713,IF(C713= "Error","" & C709,"" &C713)) -> KYP_CORP_CONSOL | C6: =IF($C$707="Error",NvsTreeASD & " Acct: GL_FERC_ACCT BU: "&+$C$714,IF(C713="Error",NvsTreeASD & " Acct: GL_FERC_ACCT BU: "&+$C$709,NvsTreeASD & " Acct: GL_FERC_ACCT BU: "&+$C$713)) -> V2099-01-01 Acct: GL_FERC_ACCT BU: GL_PRPT_CONS | F6: =TEXT($C$697,"YYYY") -> 2026 | G6: =+F6-1 -> 2025 | H6: $ | I6: % | K6: =TEXT($C$697,"YYYY") -> 2026 | L6: =+K6-1 -> 2025 | M6: $ | N6: % | O6: Explanation | Q6: =TEXT($C$697,"YYYY") -> 2026 | R6: =+Q6-1 -> 2025 | S6: $ | T6: % | V6: =TEXT($C$697,"YYYY") -> 2026 | W6: =+V6-1 -> 2025 | X6: $ | Y6: % | AA6: ="Dec "&TEXT($C$697,"YYYY") - 2 -> Dec 2024 | AC6: ="Jan "&TEXT($C$697,"YYYY")-1 -> Jan 2025 | AD6: ="Feb "&TEXT($C$697,"YYYY") - 1 -> Feb 2025 | AE6: ="Mar "&TEXT($C$697,"YYYY") - 1 -> Mar 2025 | AF6: ="Apr "&TEXT($C$697,"YYYY") - 1 -> Apr 2025 | AG6: ="May "&TEXT($C$697,"YYYY") - 1 -> May 2025 | AH6: ="Jun "&TEXT($C$697,"YYYY") - 1 -> Jun 2025 | AI6: ="Jul "&TEXT($C$697,"YYYY") - 1 -> Jul 2025 | AJ6: ="Aug "&TEXT($C$697,"YYYY") - 1 -> Aug 2025 | AK6: ="Sep "&TEXT($C$697,"YYYY") - 1 -> Sep 2025 | AL6: ="Oct "&TEXT($C$697,"YYYY") - 1 -> Oct 2025 | AM6: ="Nov "&TEXT($C$697,"YYYY") - 1 -> Nov 2025 | AN6: ="Dec "&TEXT($C$697,"YYYY") - 1 -> Dec 2025 | AP6: ="Jan "&TEXT($C$697,"YYYY") -> Jan 2026 | AQ6: ="Feb "&TEXT($C$697,"YYYY") -> Feb 2026 | AR6: ="Mar "&TEXT($C$697,"YYYY") -> Mar 2026 | AS6: ="Apr "&TEXT($C$697,"YYYY") -> Apr 2026
B7: FERC Form | C7: INCOME STATEMENT
B9: Line 1 | C9: Utility Operating Income
A11: %,V4400001 | B11: 4400001 | C11: Residential Sales-W/Space Htg | F11: 10286745.71 | G11: 10394968.61 | H11: =+F11-G11 -> -108222.899 | I11: =IF(G11<0,IF(H11=0,0,IF(OR(G11=0,F11=0),"N.M.",IF(ABS(H11/G11)>=10,"N.M.",H11/(-G11)))),IF(H11=0,0,IF(OR(G11=0,F11=0),"N.M.",IF(ABS(H11/G11)>=10,"N.M.",H11/G11)))) -> -0.01041108473 | K11: 62161861.67 | L11: 63973663.15 | Q11: 42243838.01 | R11: 42074541.59 | V11: 155038057.9 | W11: 156558959.9 | X11: =+V11-W11 -> -1520902.029 | Y11: =IF(W11<0,IF(X11=0,0,IF(OR(W11=0,V11=0),"N.M.",IF(ABS(X11/W11)>=10,"N.M.",X11/(-W11)))),IF(X11=0,0,IF(OR(W11=0,V11=0),"N.M.",IF(ABS(X11/W11)>=10,"N.M.",X11/W11)))) -> -0.009714563956 | AA11: 18551170.45 | AC11: 21899121.56 | AD11: 16684360.74 | AE11: 14995212.24 | AF11: 10394968.61 | AG11: 7731231.34 | AH11: 10518841.64 | AI11: 12905113.72 | AJ11: 11599370.53 | AK11: 8472583.75 | AL11: 9871189.17 | AM11: 12490967.45 | AN11: 19286898.62 | AP11: 19918023.67 | AQ11: 18625352.19 | AR11: 13331740.11 | AS11: 10286745.71
A12: %,V4400002 | B12: 4400002 | C12: Residential Sales-W/O Space Ht | F12: 5259274.674 | G12: 4806574.39 | H12: =+F12-G12 -> 452700.284 | I12: =IF(G12<0,IF(H12=0,0,IF(OR(G12=0,F12=0),"N.M.",IF(ABS(H12/G12)>=10,"N.M.",H12/(-G12)))),IF(H12=0,0,IF(OR(G12=0,F12=0),"N.M.",IF(ABS(H12/G12)>=10,"N.M.",H12/G12)))) -> 0.09418355928 | K12: 24919862.71 | L12: 24333065.26 | Q12: 17956622.32 | R12: 16534251.53 | V12: 72243201.46 | W12: 69049926.82 | X12: =+V12-W12 -> 3193274.638 | Y12: =IF(W12<0,IF(X12=0,0,IF(OR(W12=0,V12=0),"N.M.",IF(ABS(X12/W12)>=10,"N.M.",X12/(-W12)))),IF(X12=0,0,IF(OR(W12=0,V12=0),"N.M.",IF(ABS(X12/W12)>=10,"N.M.",X12/W12)))) -> 0.04624588012 | AA12: 6080220.07 | AC12: 7798813.73 | AD12: 5861368.47 | AE12: 5866308.67 | AF12: 4806574.39 | AG12: 3968953.45 | AH12: 5838656.28 | AI12: 7940424.53 | AJ12: 6607786.695 | AK12: 4750570.07 | AL12: 5193758.17 | AM12: 5035844.717 | AN12: 7987344.84 | AP12: 6963240.391 | AQ12: 6938335.191 | AR12: 5759012.45 | AS12: 5259274.674
A13: %,V4400005 | B13: 4400005 | C13: Residential Fuel Rev | F13: 4100083.22 | G13: 3185157.45 | H13: =+F13-G13 -> 914925.77 | I13: =IF(G13<0,IF(H13=0,0,IF(OR(G13=0,F13=0),"N.M.",IF(ABS(H13/G13)>=10,"N.M.",H13/(-G13)))),IF(H13=0,0,IF(OR(G13=0,F13=0),"N.M.",IF(ABS(H13/G13)>=10,"N.M.",H13/G13)))) -> 0.2872466383 | K13: 30164070.63 | L13: 27832992.22 | Q13: 20384509.97 | R13: 16383040.5 | V13: 81893384.72 | W13: 71293142.21 | X13: =+V13-W13 -> 10600242.51 | Y13: =IF(W13<0,IF(X13=0,0,IF(OR(W13=0,V13=0),"N.M.",IF(ABS(X13/W13)>=10,"N.M.",X13/(-W13)))),IF(X13=0,0,IF(OR(W13=0,V13=0),"N.M.",IF(ABS(X13/W13)>=10,"N.M.",X13/W13)))) -> 0.1486853038 | AA13: 7956303.42 | AC13: 11449951.72 | AD13: 6075362.78 | AE13: 7122520.27 | AF13: 3185157.45 | AG13: 3153512.74 | AH13: 12113659.34 | AI13: 8097863.13 | AJ13: 7131606.14 | AK13: 4108160.79 | AL13: 4270224.06 | AM13: 5723763.91 | AN13: 7130523.98 | AP13: 9779560.66 | AQ13: 9513473.14 | AR13: 6770953.61 | AS13: 4100083.22
A14: %,R,FACCOUNT,TGL_FERC_ACCT,XDYYNNY01,N4400 | C14: Residential Sales | F14: 19646103.6 | G14: 18386700.45 | H14: =+F14-G14 -> 1259403.155 | I14: =IF(G14<0,IF(H14=0,0,IF(OR(G14=0,F14=0),"N.M.",IF(ABS(H14/G14)>=10,"N.M.",H14/(-G14)))),IF(H14=0,0,IF(OR(G14=0,F14=0),"N.M.",IF(ABS(H14/G14)>=10,"N.M.",H14/G14)))) -> 0.06849533218 | K14: 117245795 | L14: 116139720.6 | Q14: 80584970.29 | R14: 74991833.62 | V14: 309174644.1 | W14: 296902029 | X14: =+V14-W14 -> 12272615.12 | Y14: =IF(W14<0,IF(X14=0,0,IF(OR(W14=0,V14=0),"N.M.",IF(ABS(X14/W14)>=10,"N.M.",X14/(-W14)))),IF(X14=0,0,IF(OR(W14=0,V14=0),"N.M.",IF(ABS(X14/W14)>=10,"N.M.",X14/W14)))) -> 0.04133557175 | AA14: 32587693.94 | AC14: 41147887.01 | AD14: 28621091.99 | AE14: 27984041.18 | AF14: 18386700.45 | AG14: 14853697.53 | AH14: 28471157.26 | AI14: 28943401.38 | AJ14: 25338763.37 | AK14: 17331314.61 | AL14: 19335171.4 | AM14: 23250576.07 | AN14: 34404767.44 | AP14: 36660824.72 | AQ14: 35077160.52 | AR14: 25861706.17 | AS14: 19646103.6
A16: %,V4420001 | B16: 4420001 | C16: Commercial Sales | F16: 8701658.36 | G16: 7636183.85 | H16: =+F16-G16 -> 1065474.51 | I16: =IF(G16<0,IF(H16=0,0,IF(OR(G16=0,F16=0),"N.M.",IF(ABS(H16/G16)>=10,"N.M.",H16/(-G16)))),IF(H16=0,0,IF(OR(G16=0,F16=0),"N.M.",IF(ABS(H16/G16)>=10,"N.M.",H16/G16)))) -> 0.1395297089 | K16: 32185987.11 | L16: 34391063.95 | Q16: 23623512.66 | R16: 24634731.97 | V16: 98574171.27 | W16: 103738511.8 | X16: =+V16-W16 -> -5164340.565 | Y16: =IF(W16<0,IF(X16=0,0,IF(OR(W16=0,V16=0),"N.M.",IF(ABS(X16/W16)>=10,"N.M.",X16/(-W16)))),IF(X16=0,0,IF(OR(W16=0,V16=0),"N.M.",IF(ABS(X16/W16)>=10,"N.M.",X16/W16)))) -> -0.04978228889 | AA16: 9983320.76 | AC16: 9756331.98 | AD16: 8300398.38 | AE16: 8698149.74 | AF16: 7636183.85 | AG16: 6724174.25 | AH16: 8621358.89 | AI16: 8896994.41 | AJ16: 8200358.925 | AK16: 7178826.69 | AL16: 8866081.53 | AM16: 7681838.358 | AN16: 10218551.1 | AP16: 8562474.459 | AQ16: 7282768.849 | AR16: 7639085.446 | AS16: 8701658.36
A17: %,V4420002 | B17: 4420002 | C17: Industrial Sales (Excl Mines) | F17: 5130336.107 | G17: 6439848.92 | H17: -1309512.813 | I17: -0.2033452693 | K17: 26429703.91 | L17: 25768179.15 | Q17: 16895780.5 | R17: 19782761.28 | V17: 66611390.54 | W17: 77239230.66 | X17: -10627840.12 | Y17: -0.1375964005 | AA17: 7319084.09 | AC17: 5985417.87 | AD17: 6026809.65 | AE17: 7316102.71 | AF17: 6439848.92 | AG17: 6842201.07 | AH17: 2312197.92 | AI17: 6195767.86 | AJ17: 5372986.274 | AK17: 4824240.96 | AL17: 6684660.79 | AM17: 4458868.872 | AN17: 3490762.88 | AP17: 9533923.41 | AQ17: 4470737.686 | AR17: 7294706.712 | AS17: 5130336.107
A18: %,V4420004 | B18: 4420004 | C18: Ind Sales-NonAffil(Incl Mines) | F18: 1153784.238 | G18: 1412047.01 | H18: -258262.772 | I18: -0.1828995566 | K18: 4467383.358 | L18: 5826863.63 | Q18: 3131427.621 | R18: 4278673.37 | V18: 13563601.18 | W18: 17323351.51 | X18: -3759750.328 | Y18: -0.2170336569 | AA18: 1331746.31 | AC18: 1548190.26 | AD18: 1401376 | AE18: 1465250.36 | AF18: 1412047.01 | AG18: 1131525.36 | AH18: 1112011.19 | AI18: 1039373.23 | AJ18: 1160625.513 | AK18: 1120136.81 | AL18: 1290874.68 | AM18: 1027786.731 | AN18: 1213884.31 | AP18: 1335955.737 | AQ18: 829699.723 | AR18: 1147943.66 | AS18: 1153784.238
A19: %,V4420006 | B19: 4420006 | C19: Sales to Pub Auth - Schools | F19: 1318953.092 | G19: 1297881.81 | H19: 21071.282 | I19: 0.01623513161 | K19: 5336744.12 | L19: 5822316.79 | Q19: 3852964.221 | R19: 4213387.93 | V19: 15868561.59 | W19: 16564228.02 | X19: -695666.432 | Y19: -0.04199811975 | AA19: 1424105.15 | AC19: 1608928.86 | AD19: 1407960.65 | AE19: 1507545.47 | AF19: 1297881.81 | AG19: 1136607.26 | AH19: 1463355.15 | AI19: 1052794.29 | AJ19: 1264744.116 | AK19: 1284043.61 | AL19: 1461433.71 | AM19: 1287909.375 | AN19: 1580929.957 | AP19: 1483779.899 | AQ19: 1226017.045 | AR19: 1307994.084 | AS19: 1318953.092
A20: %,V4420007 | B20: 4420007 | C20: Sales to Pub Auth - Ex Schools | F20: 1740066.857 | G20: 1578642.63 | H20: 161424.227 | I20: 0.1022550791 | K20: 6531199.671 | L20: 6818903.61 | Q20: 4713111.263 | R20: 4863838.38 | V20: 19543701.55 | W20: 20712338.72 | X20: -1168637.173 | Y20: -0.05642227026 | AA20: 2087668.21 | AC20: 1955065.23 | AD20: 1547060.4 | AE20: 1738135.35 | AF20: 1578642.63 | AG20: 1332337.03 | AH20: 1945278.57 | AI20: 1543791.29 | AJ20: 1545420.074 | AK20: 1344232.94 | AL20: 1744257.49 | AM20: 1608562.127 | AN20: 1948622.355 | AP20: 1818088.408 | AQ20: 1351714.257 | AR20: 1621330.149 | AS20: 1740066.857
A21: %,V4420013 | B21: 4420013 | C21: Commercial Fuel Rev | F21: 4480640.15 | G21: 3232459.78 | H21: 1248180.37 | I21: 0.3861394897 | K21: 19683213.31 | L21: 17235577.47 | Q21: 13988253.58 | R21: 11372634.49 | V21: 61132767.54 | W21: 53728319.3 | X21: 7404448.24 | Y21: 0.137812765 | AA21: 4554313.04 | AC21: 5862942.98 | AD21: 3298032.85 | AE21: 4842141.86 | AF21: 3232459.78 | AG21: 3670709.4 | AH21: 9559013.53 | AI21: 5979493.24 | AJ21: 5382681.54 | AK21: 4019913.93 | AL21: 4136817.01 | AM21: 4800937.7 | AN21: 3899987.88 | AP21: 5694959.73 | AQ21: 4377807.23 | AR21: 5129806.2 | AS21: 4480640.15
A22: %,V4420016 | B22: 4420016 | C22: Industrial Fuel Rev | F22: 6968017.7 | G22: 5314347.11 | H22: 1653670.59 | I22: 0.3111709784 | K22: 22076238.26 | L22: 22971738.95 | Q22: 19059936.2 | R22: 16410331.73 | V22: 80160943.1 | W22: 73121168.83 | X22: 7039774.27 | Y22: 0.09627546144 | AA22: 6156036.22 | AC22: 6561407.22 | AD22: 5302396.38 | AE22: 5793588.24 | AF22: 5314347.11 | AG22: 6534812.22 | AH22: 12406794.84 | AI22: 6821319.9 | AJ22: 6975137.68 | AK22: 6526079.14 | AL22: 4454003.08 | AM22: 7013721.08 | AN22: 7352836.9 | AP22: 3016302.06 | AQ22: 4981197.76 | AR22: 7110720.74 | AS22: 6968017.7
A23: %,R,FACCOUNT,TGL_FERC_ACCT,XDYYNNY01,N4420 | C23: Commercial Sales | F23: 29493456.5 | G23: 26911411.11 | H23: 2582045.394 | I23: 0.09594611681 | K23: 116710469.7 | L23: 118834643.6 | Q23: 85264986.05 | R23: 85556359.15 | V23: 355455136.8 | W23: 362427148.9 | X23: -6972012.107 | Y23: -0.01923700288 | AA23: 32856273.78 | AC23: 33278284.4 | AD23: 27284034.31 | AE23: 31360913.73 | AF23: 26911411.11 | AG23: 27372366.59 | AH23: 37420010.09 | AI23: 31529534.22 | AJ23: 29901954.12 | AK23: 26297474.08 | AL23: 28638128.29 | AM23: 27879624.24 | AN23: 29705575.38 | AP23: 31445483.7 | AQ23: 24519942.55 | AR23: 31251586.99 | AS23: 29493456.5
A25: %,V4440000 | B25: 4440000 | C25: Public Street/Highway Lighting | F25: 169345.181 | G25: 156242.37 | H25: =+F25-G25 -> 13102.811 | I25: =IF(G25<0,IF(H25=0,0,IF(OR(G25=0,F25=0),"N.M.",IF(ABS(H25/G25)>=10,"N.M.",H25/(-G25)))),IF(H25=0,0,IF(OR(G25=0,F25=0),"N.M.",IF(ABS(H25/G25)>=10,"N.M.",H25/G25)))) -> 0.08386208555 | K25: 765036.649 | L25: 627480.66 | Q25: 477285.65 | R25: 469002.71 | V25: 1849275.505 | W25: 1838879.12 | X25: =+V25-W25 -> 10396.385 | Y25: =IF(W25<0,IF(X25=0,0,IF(OR(W25=0,V25=0),"N.M.",IF(ABS(X25/W25)>=10,"N.M.",X25/(-W25)))),IF(X25=0,0,IF(OR(W25=0,V25=0),"N.M.",IF(ABS(X25/W25)>=10,"N.M.",X25/W25)))) -> 0.005653653297 | AA25: 153504.45 | AC25: 158477.95 | AD25: 161221.96 | AE25: 151538.38 | AF25: 156242.37 | AG25: 151371.38 | AH25: 144242.97 | AI25: 151057.82 | AJ25: 151856.169 | AK25: 150194.75 | AL25: 154153.05 | AM25: 158430.905 | AN25: 22931.812 | AP25: 287750.999 | AQ25: 149132.438 | AR25: 158808.031 | AS25: 169345.181
A26: %,V4440002 | B26: 4440002 | C26: Public St & Hwy Light Fuel Rev | F26: 27025.04 | G26: 17960.67 | H26: =+F26-G26 -> 9064.37 | I26: =IF(G26<0,IF(H26=0,0,IF(OR(G26=0,F26=0),"N.M.",IF(ABS(H26/G26)>=10,"N.M.",H26/(-G26)))),IF(H26=0,0,IF(OR(G26=0,F26=0),"N.M.",IF(ABS(H26/G26)>=10,"N.M.",H26/G26)))) -> 0.5046788344 | K26: 143661.61 | L26: 107121.88 | Q26: 88792.34 | R26: 70529.33 | V26: 353540.06 | W26: 321151.07 | X26: =+V26-W26 -> 32388.99 | Y26: =IF(W26<0,IF(X26=0,0,IF(OR(W26=0,V26=0),"N.M.",IF(ABS(X26/W26)>=10,"N.M.",X26/(-W26)))),IF(X26=0,0,IF(OR(W26=0,V26=0),"N.M.",IF(ABS(X26/W26)>=10,"N.M.",X26/W26)))) -> 0.1008528167 | AA26: 34491.81 | AC26: 36592.55 | AD26: 21359.11 | AE26: 31209.55 | AF26: 17960.67 | AG26: 22593.3 | AH26: 43292.14 | AI26: 23661.31 | AJ26: 28446.05 | AK26: 28992.25 | AL26: 23033.25 | AM26: 37177.3 | AN26: 2682.85 | AP26: 54869.27 | AQ26: 26189.29 | AR26: 35578.01 | AS26: 27025.04
A27: %,R,FACCOUNT,TGL_FERC_ACCT,XDYYNNY01,N4440,N4450,N4460,N4480 | C27: Public Streets and Highway Lighting | F27: 196370.221 | G27: 174203.04 | H27: =+F27-G27 -> 22167.181 | I27: =IF(G27<0,IF(H27=0,0,IF(OR(G27=0,F27=0),"N.M.",IF(ABS(H27/G27)>=10,"N.M.",H27/(-G27)))),IF(H27=0,0,IF(OR(G27=0,F27=0),"N.M.",IF(ABS(H27/G27)>=10,"N.M.",H27/G27)))) -> 0.1272491054 | K27: 908698.259 | L27: 734602.54 | Q27: 566077.99 | R27: 539532.04 | V27: 2202815.565 | W27: 2160030.19 | X27: =+V27-W27 -> 42785.375 | Y27: =IF(W27<0,IF(X27=0,0,IF(OR(W27=0,V27=0),"N.M.",IF(ABS(X27/W27)>=10,"N.M.",X27/(-W27)))),IF(X27=0,0,IF(OR(W27=0,V27=0),"N.M.",IF(ABS(X27/W27)>=10,"N.M.",X27/W27)))) -> 0.01980776713 | AA27: 187996.26 | AC27: 195070.5 | AD27: 182581.07 | AE27: 182747.93 | AF27: 174203.04 | AG27: 173964.68 | AH27: 187535.11 | AI27: 174719.13 | AJ27: 180302.219 | AK27: 179187 | AL27: 177186.3 | AM27: 195608.205 | AN27: 25614.662 | AP27: 342620.269 | AQ27: 175321.728 | AR27: 194386.041 | AS27: 196370.221
A29: %,V4470006 | B29: 4470006 | C29: Sales for Resale-Bookout Sales | F29: 0 | G29: 0 | H29: =+F29-G29 -> 0 | I29: =IF(G29<0,IF(H29=0,0,IF(OR(G29=0,F29=0),"N.M.",IF(ABS(H29/G29)>=10,"N.M.",H29/(-G29)))),IF(H29=0,0,IF(OR(G29=0,F29=0),"N.M.",IF(ABS(H29/G29)>=10,"N.M.",H29/G29)))) -> 0 | K29: 0 | L29: 0 | Q29: 0 | R29: 0 | V29: 0.2 | W29: 0 | X29: =+V29-W29 -> 0.2 | Y29: =IF(W29<0,IF(X29=0,0,IF(OR(W29=0,V29=0),"N.M.",IF(ABS(X29/W29)>=10,"N.M.",X29/(-W29)))),IF(X29=0,0,IF(OR(W29=0,V29=0),"N.M.",IF(ABS(X29/W29)>=10,"N.M.",X29/W29)))) -> N.M. | AA29: 0 | AC29: 0 | AD29: 0 | AE29: 0 | AF29: 0 | AG29: 0 | AH29: 0 | AI29: 0 | AJ29: 0 | AK29: 0 | AL29: 0 | AM29: 0 | AN29: 0.2 | AP29: 0 | AQ29: 0 | AR29: 0 | AS29: 0
A30: %,V4470010 | B30: 4470010 | C30: Sales for Resale-Bookout Purch | F30: 0 | G30: 0 | H30: 0 | I30: 0 | K30: -12.02 | L30: 0 | Q30: 12.18 | R30: 0 | V30: 34.63 | W30: 6.84 | X30: 27.79 | Y30: 4.062865497 | AA30: 0 | AC30: 0 | AD30: 0 | AE30: 0 | AF30: 0 | AG30: 0 | AH30: 0 | AI30: 0 | AJ30: 0 | AK30: 0 | AL30: 0 | AM30: 0 | AN30: 46.65 | AP30: -24.2 | AQ30: 12.18 | AR30: 0 | AS30: 0
A31: %,V4470027 | B31: 4470027 | C31: Whsal/Muni/Pb Ath Fuel Rev | F31: 0 | G31: 301957.53 | H31: -301957.53 | I31: N.M. | K31: 0 | L31: 1224389.47 | Q31: 0 | R31: 846618.36 | V31: 337179.19 | W31: 2842812.06 | X31: -2505632.87 | Y31: -0.8813923739 | AA31: 302675.32 | AC31: 377771.11 | AD31: 262886.07 | AE31: 281774.76 | AF31: 301957.53 | AG31: 290721.96 | AH31: 3490.5 | AI31: 42966.73 | AJ31: 0 | AK31: 0 | AL31: 0 | AM31: 0 | AN31: 0 | AP31: 0 | AQ31: 0 | AR31: 0 | AS31: 0
A32: %,V4470033 | B32: 4470033 | C32: Whsal/Muni/Pub Auth Base Rev | F32: 0 | G32: 153614.26 | H32: -153614.26 | I32: N.M. | K32: 0 | L32: 808800.71 | Q32: 0 | R32: 538292.99 | V32: 516253.98 | W32: 1808905.14 | X32: -1292651.16 | Y32: -0.7146041721 | AA32: 208511.64 | AC32: 270507.72 | AD32: 208315.58 | AE32: 176363.15 | AF32: 153614.26 | AG32: 516121.55 | AH32: 132.43 | AI32: 0 | AJ32: 0 | AK32: 0 | AL32: 0 | AM32: 0 | AN32: 0 | AP32: 0 | AQ32: 0 | AR32: 0 | AS32: 0
A33: %,V4470074 | B33: 4470074 | C33: Sale for Resale-Aff-Trnf Price | F33: 0 | G33: 0 | H33: 0 | I33: 0 | K33: 0 | L33: 0 | Q33: 0 | R33: 0 | V33: 0 | W33: 0 | X33: 0 | Y33: 0 | AA33: 0 | AC33: 0 | AD33: 0 | AE33: 0 | AF33: 0 | AG33: 0 | AH33: 0 | AI33: 0 | AJ33: 0 | AK33: 0 | AL33: 0 | AM33: 0 | AN33: 0 | AP33: 0 | AQ33: 0 | AR33: 0 | AS33: 0
A34: %,V4470082 | B34: 4470082 | C34: Financial Electric Realized | F34: -268.47 | G34: -498.85 | H34: 230.38 | I34: 0.461822191 | K34: -645.65 | L34: -1867.8 | Q34: -400.03 | R34: -1667.27 | V34: -2483.2 | W34: -7112.59 | X34: 4629.39 | Y34: 0.6508726076 | AA34: -338.99 | AC34: -200.53 | AD34: -956.48 | AE34: -211.94 | AF34: -498.85 | AG34: -158.6 | AH34: -220.65 | AI34: -297.09 | AJ34: -207.38 | AK34: -294.09 | AL34: -290.98 | AM34: -228.38 | AN34: -140.38 | AP34: -245.62 | AQ34: -131.56 | AR34: 0 | AS34: -268.47
A35: %,V4470089 | B35: 4470089 | C35: PJM Energy Sales Margin | F35: -63234.03 | G35: -25948.59 | H35: -37285.44 | I35: -1.436896571 | K35: 1274391.04 | L35: 261852.64 | Q35: -480291.75 | R35: 46795.45 | V35: 3452575.02 | W35: 277192.33 | X35: 3175382.69 | Y35: N.M. | AA35: -163952.38 | AC35: 215057.19 | AD35: 177310.55 | AE35: -104566.51 | AF35: -25948.59 | AG35: 81981.73 | AH35: 1140661.57 | AI35: -593030.27 | AJ35: 260906.18 | AK35: 72820.4 | AL35: 150746.48 | AM35: 916866.79 | AN35: 147231.1 | AP35: 1754682.79 | AQ35: 127941.83 | AR35: -544999.55 | AS35: -63234.03
A36: %,V4470098 | B36: 4470098 | C36: PJM Oper.Reserve Rev-OSS | F36: -1991.94 | G36: -6103.18 | H36: 4111.24 | I36: 0.6736226033 | K36: -443215.59 | L36: -25915.5 | Q36: -390814.39 | R36: -18971.86 | V36: -516408.77 | W36: -70411.75 | X36: -445997.02 | Y36: -6.334127756 | AA36: -5128.19 | AC36: -6943.64 | AD36: -8921.61 | AE36: -3947.07 | AF36: -6103.18 | AG36: -8662.52 | AH36: 1589.11 | AI36: -14240.69 | AJ36: -14683.02 | AK36: -7762.45 | AL36: -4685.51 | AM36: -4575.42 | AN36: -20172.68 | AP36: -52401.2 | AQ36: -366210.92 | AR36: -22611.53 | AS36: -1991.94
A37: %,V4470099 | B37: 4470099 | C37: Capacity Cr. Net Sales | F37: 0 | G37: -10108.8 | H37: 10108.8 | I37: N.M. | K37: 0 | L37: -40435.23 | Q37: 0 | R37: -29989.44 | V37: -10445.76 | W37: -112476.35 | X37: 102030.59 | Y37: 0.9071292765 | AA37: -10782.72 | AC37: -10445.79 | AD37: -9434.88 | AE37: -10445.76 | AF37: -10108.8 | AG37: -10445.76 | AH37: 0 | AI37: 0 | AJ37: 0 | AK37: 0 | AL37: 0 | AM37: 0 | AN37: 0 | AP37: 0 | AQ37: 0 | AR37: 0 | AS37: 0
A38: %,V4470100 | B38: 4470100 | C38: PJM FTR Revenue-OSS | F38: 26906.68 | G38: 10033.5 | H38: 16873.18 | I38: 1.681684357 | K38: 301578.46 | L38: 47047.48 | Q38: 137328.47 | R38: 22167.69 | V38: 475479.35 | W38: 241706.15 | X38: 233773.2 | Y38: 0.9671793622 | AA38: 34721.73 | AC38: 24879.79 | AD38: 11932.16 | AE38: 202.03 | AF38: 10033.5 | AG38: 30678.54 | AH38: -26837.99 | AI38: 5023.71 | AJ38: -18991.87 | AK38: 13000.11 | AL38: 13167.68 | AM38: 140115.16 | AN38: 17745.55 | AP38: 164249.99 | AQ38: 106897.86 | AR38: 3523.93 | AS38: 26906.68
A39: %,V4470103 | B39: 4470103 | C39: PJM Energy Sales Cost | F39: 1068207.76 | G39: 1081945.58 | H39: -13737.82 | I39: -0.01269732993 | K39: 10756276.15 | L39: 4062882.97 | Q39: 5513696.94 | R39: 2768470.05 | V39: 34385278.62 | W39: 16710695.73 | X39: 17674582.89 | Y39: 1.057680852 | AA39: 1350615.96 | AC39: 1294412.92 | AD39: 757948 | AE39: 928576.47 | AF39: 1081945.58 | AG39: 879855.67 | AH39: 4740913.12 | AI39: 2877833.29 | AJ39: 2304763.97 | AK39: 1187201.28 | AL39: 2962191.55 | AM39: 6336301.06 | AN39: 2339942.53 | AP39: 5242579.21 | AQ39: 3057408.55 | AR39: 1388080.63 | AS39: 1068207.76
A40: %,V4470115 | B40: 4470115 | C40: PJM Meter Corrections-OSS | F40: 25.8 | G40: -107.51 | H40: 133.31 | I40: 1.239977676 | K40: -2316.09 | L40: -9969.69 | Q40: -1107.85 | R40: -9044.04 | V40: -276548.76 | W40: 34651.49 | X40: -311200.25 | Y40: -8.980862006 | AA40: -533.96 | AC40: -925.65 | AD40: 356.22 | AE40: -9292.75 | AF40: -107.51 | AG40: 12.76 | AH40: 6201.32 | AI40: -248051.39 | AJ40: 3102.43 | AK40: -20912.7 | AL40: -5647.24 | AM40: -3391.35 | AN40: -5546.5 | AP40: -1208.24 | AQ40: -1165.25 | AR40: 31.6 | AS40: 25.8
A41: %,V4470116 | B41: 4470116 | C41: PJM Meter Corrections-LSE | F41: 124289.46 | G41: -17930.13 | H41: 142219.59 | I41: 7.931877237 | K41: 101868.24 | L41: -166313.32 | Q41: 130440.4 | R41: -149193.6 | V41: -1330215.39 | W41: 199927.85 | X41: -1530143.24 | Y41: -7.653477192 | AA41: -12638.19 | AC41: -17119.72 | AD41: 21912.53 | AE41: -153176 | AF41: -17930.13 | AG41: 249.32 | AH41: -672953.05 | AI41: -1339418.95 | AJ41: 834884.08 | AK41: -168695.96 | AL41: -65059.98 | AM41: 2239.27 | AN41: -23328.36 | AP41: -28572.16 | AQ41: 23746.44 | AR41: -17595.5 | AS41: 124289.46
A42: %,V4470126 | B42: 4470126 | C42: PJM Incremental Imp Cong-OSS | F42: 25733.11 | G42: -228.34 | H42: 25961.45 | I42: N.M. | K42: -364219.85 | L42: -42504.7 | Q42: -78628.66 | R42: -29369.38 | V42: -969727.99 | W42: -345082.32 | X42: -624645.67 | Y42: -1.810135245 | AA42: -15805.07 | AC42: -13135.32 | AD42: -22116.36 | AE42: -7024.68 | AF42: -228.34 | AG42: -3811.11 | AH42: -272561.5 | AI42: -52487.18 | AJ42: -18041.02 | AK42: -28080.53 | AL42: -42945.85 | AM42: 12576.61 | AN42: -200157.56 | AP42: -285591.19 | AQ42: -129380.45 | AR42: 25018.68 | AS42: 25733.11
A43: %,V4470150 | B43: 4470150 | C43: Transm. Rev.-Dedic. Whlsl/Muni | F43: -3816 | G43: -1157.1 | H43: -2658.9 | I43: -2.297899922 | K43: -15259 | L43: -6964.34 | Q43: -11445 | R43: -4486.94 | V43: -65175.65 | W43: 151881.01 | X43: -217056.66 | Y43: -1.429123101 | AA43: 50521.33 | AC43: -2477.4 | AD43: -3440.73 | AE43: 110.89 | AF43: -1157.1 | AG43: -3175.94 | AH43: 390.14 | AI43: -8329 | AJ43: -5429.75 | AK43: -8262 | AL43: -8313 | AM43: -8311 | AN43: -8486.1 | AP43: -3814 | AQ43: -3815 | AR43: -3814 | AS43: -3816
A44: %,V4470175 | B44: 4470175 | C44: OSS Sharing Reclass - Retail | F44: 549579.47 | G44: 559141.1 | H44: -9561.63 | I44: -0.01710056728 | K44: 1993651.89 | L44: 2170713.79 | Q44: 374768.58 | R44: 2770052.37 | V44: 5270845.11 | W44: 5283483.71 | X44: -12638.6 | Y44: -0.002392095953 | AA44: 205508.11 | AC44: -599338.58 | AD44: 1815828.59 | AE44: 395082.68 | AF44: 559141.1 | AG44: 502089.86 | AH44: 928453.77 | AI44: -503833.15 | AJ44: 485975.18 | AK44: 197510.04 | AL44: 205864.92 | AM44: 1618461.4 | AN44: -157328.8 | AP44: 1618883.31 | AQ44: -488203.2 | AR44: 313392.31 | AS44: 549579.47
A45: %,V4470176 | B45: 4470176 | C45: OSS Sharing Reclass-Reduction | F45: -549579.47 | G45: -559141.1 | H45: 9561.63 | I45: 0.01710056728 | K45: -1993651.89 | L45: -2170713.79 | Q45: -374768.58 | R45: -2770052.37 | V45: -5270845.11 | W45: -5283483.71 | X45: 12638.6 | Y45: 0.002392095953 | AA45: -205508.11 | AC45: 599338.58 | AD45: -1815828.59 | AE45: -395082.68 | AF45: -559141.1 | AG45: -502089.86 | AH45: -928453.77 | AI45: 503833.15 | AJ45: -485975.18 | AK45: -197510.04 | AL45: -205864.92 | AM45: -1618461.4 | AN45: 157328.8 | AP45: -1618883.31 | AQ45: 488203.2 | AR45: -313392.31 | AS45: -549579.47
A46: %,V4470206 | B46: 4470206 | C46: PJM Trans loss credits-OSS | F46: 11999.13 | G46: 3139.08 | H46: 8860.05 | I46: 2.822498949 | K46: 130685.67 | L46: 46274.04 | Q46: 82718.61 | R46: 35730.97 | V46: 295402.69 | W46: 116578.68 | X46: 178824.01 | Y46: 1.533934078 | AA46: 16454.41 | AC46: 10543.07 | AD46: 21824.75 | AE46: 10767.14 | AF46: 3139.08 | AG46: 2024.79 | AH46: 39713.92 | AI46: 16496.54 | AJ46: 1483.34 | AK46: 13170.7 | AL46: 21409.43 | AM46: 50808.03 | AN46: 19610.27 | AP46: 47967.06 | AQ46: 53933.03 | AR46: 16786.45 | AS46: 11999.13
A47: %,V4470209 | B47: 4470209 | C47: PJM transm loss charges-OSS | F47: -17554.99 | G47: -5500.54 | H47: -12054.45 | I47: -2.191503016 | K47: -254214.81 | L47: -72252.52 | Q47: -142993.6 | R47: -53639.13 | V47: -616225.64 | W47: -245410.07 | X47: -370815.57 | Y47: -1.511003888 | AA47: -29652.64 | AC47: -18613.39 | AD47: -31490.14 | AE47: -16648.45 | AF47: -5500.54 | AG47: -2680.15 | AH47: -88606.82 | AI47: -59176.36 | AJ47: -3677.22 | AK47: -47243.9 | AL47: -18092.59 | AM47: -107406.04 | AN47: -35127.75 | AP47: -111221.21 | AQ47: -88340.76 | AR47: -37097.85 | AS47: -17554.99
A48: %,V4470220 | B48: 4470220 | C48: PJM Regulation - OSS | F48: 554322.2 | G48: 586031.62 | H48: -31709.42 | I48: -0.05410871857 | K48: 1253537.03 | L48: 1987479.74 | Q48: 1182451.58 | R48: 1360353.16 | V48: 3183056.81 | W48: 5347567.19 | X48: -2164510.38 | Y48: -0.4047654388 | AA48: 372449.64 | AC48: 627126.58 | AD48: 232646.66 | AE48: 541674.88 | AF48: 586031.62 | AG48: 410211.49 | AH48: 114346.43 | AI48: 389802.64 | AJ48: 273252.59 | AK48: 193400.45 | AL48: 63996.65 | AM48: 569814.29 | AN48: -85304.76 | AP48: 71085.45 | AQ48: -207904.77 | AR48: 836034.15 | AS48: 554322.2
A49: %,V4470221 | B49: 4470221 | C49: PJM Spinning Reserve - OSS | F49: 15001.84 | G49: 13366.32 | H49: 1635.52 | I49: 0.1223612782 | K49: 102934.01 | L49: 42057.96 | Q49: 68645.74 | R49: 33238.93 | V49: 264096.35 | W49: 105105.62 | X49: 158990.73 | Y49: 1.512675821 | AA49: 9679.91 | AC49: 8819.03 | AD49: 21730.89 | AE49: -1858.28 | AF49: 13366.32 | AG49: 7290.19 | AH49: 15059.88 | AI49: 52051.47 | AJ49: 3497.27 | AK49: 9133.65 | AL49: 27213.73 | AM49: 43826.34 | AN49: 3089.81 | AP49: 34288.27 | AQ49: 17581.06 | AR49: 36062.84 | AS49: 15001.84
A50: %,R,FACCOUNT,TGL_FERC_ACCT,XDYYNNY01,N4470 | C50: Sales for Resale | F50: 1739620.55 | G50: 2082504.85 | H50: -342884.3 | I50: -0.1646499407 | K50: 12841387.59 | L50: 8114561.91 | Q50: 6009612.64 | R50: 5355305.94 | V50: 39122125.68 | W50: 27056537.01 | X50: 12065588.67 | Y50: 0.4459398727 | AA50: 2106797.8 | AC50: 2759255.97 | AD50: 1640503.21 | AE50: 1632297.88 | AF50: 2082504.85 | AG50: 2190213.92 | AH50: 5001318.41 | AI50: 1069143.45 | AJ50: 3620859.6 | AK50: 1207474.96 | AL50: 3093690.37 | AM50: 7948635.36 | AN50: 2149402.02 | AP50: 6831774.95 | AQ50: 2590572.24 | AR50: 1679419.85 | AS50: 1739620.55
C51: Sales of Electricity | F51: =+F50+F27+#REF!+F23 ->  | G51: =+G50+G27+#REF!+G23 ->  | K51: =+K50+K27+#REF!+K23 ->  | L51: =+L50+L27+#REF!+L23 ->  | M51: =+K51-L51 ->  | N51: =IF(L51<0,IF(M51=0,0,IF(OR(L51=0,K51=0),"N.M.",IF(ABS(M51/L51)>=10,"N.M.",M51/(-L51)))),IF(M51=0,0,IF(OR(L51=0,K51=0),"N.M.",IF(ABS(M51/L51)>=10,"N.M.",M51/L51)))) ->  | Q51: =+Q50+Q27+#REF!+Q23 ->  | R51: =+R50+R27+#REF!+R23 ->  | S51: =+Q51-R51 ->  | T51: =IF(R51<0,IF(S51=0,0,IF(OR(R51=0,Q51=0),"N.M.",IF(ABS(S51/R51)>=10,"N.M.",S51/(-R51)))),IF(S51=0,0,IF(OR(R51=0,Q51=0),"N.M.",IF(ABS(S51/R51)>=10,"N.M.",S51/R51)))) ->  | V51: =+V50+V27+#REF!+V23 ->  | W51: =+W50+W27+#REF!+W23 ->  | AA51: =+AA50+AA27+#REF!+AA23 ->  | AC51: =+AC50+AC27+#REF!+AC23 ->  | AD51: =+AD50+AD27+#REF!+AD23 ->  | AE51: =+AE50+AE27+#REF!+AE23 ->  | AF51: =+AF50+AF27+#REF!+AF23 ->  | AG51: =+AG50+AG27+#REF!+AG23 ->  | AH51: =+AH50+AH27+#REF!+AH23 ->  | AI51: =+AI50+AI27+#REF!+AI23 ->  | AJ51: =+AJ50+AJ27+#REF!+AJ23 ->  | AK51: =+AK50+AK27+#REF!+AK23 ->  | AL51: =+AL50+AL27+#REF!+AL23 ->  | AM51: =+AM50+AM27+#REF!+AM23 ->  | AN51: =+AN50+AN27+#REF!+AN23 ->  | AP51: =+AP50+AP27+#REF!+AP23 ->  | AQ51: =+AQ50+AQ27+#REF!+AQ23 ->  | AR51: =+AR50+AR27+#REF!+AR23 ->  | AS51: =+AS50+AS27+#REF!+AS23 -> 
A52: %,V4491002 | B52: 4491002 | C52: Non-Tran Prov Rate Ref Whlsale | F52: 0 | G52: 0 | H52: 0 | I52: 0 | K52: 0 | L52: 0 | M52: 0 | N52: 0 | Q52: 0 | R52: 15607 | S52: -15607 | T52: N.M. | V52: 0 | W52: -770764 | X52: 770764 | Y52: N.M. | AA52: -700994 | AC52: -15607 | AD52: -24369 | AE52: 39976 | AF52: 0 | AG52: 0 | AH52: 0 | AI52: 0 | AJ52: 0 | AK52: 0 | AL52: 0 | AM52: 0 | AN52: 0 | AP52: 0 | AQ52: 0 | AR52: 0 | AS52: 0
A53: %,V4491003 | B53: 4491003 | C53: Non-Tran Prov Rate Ref Retail | F53: 0 | G53: 0 | H53: 0 | I53: 0 | K53: 0 | L53: 0 | M53: 0 | N53: 0 | Q53: 0 | R53: 3541 | S53: -3541 | T53: N.M. | V53: 0 | W53: -170094 | X53: 170094 | Y53: N.M. | AA53: -154733 | AC53: -3541 | AD53: -5497 | AE53: 9038 | AF53: 0 | AG53: 0 | AH53: 0 | AI53: 0 | AJ53: 0 | AK53: 0 | AL53: 0 | AM53: 0 | AN53: 0 | AP53: 0 | AQ53: 0 | AR53: 0 | AS53: 0
A54: %,V4491004 | B54: 4491004 | C54: Prov Rate Refund - Affiliated | F54: 0 | G54: 0 | H54: 0 | I54: 0 | K54: 0 | L54: 0 | M54: 0 | N54: 0 | Q54: 0 | R54: 104520 | S54: -104520 | T54: N.M. | V54: 0 | W54: -5109051 | X54: 5109051 | Y54: N.M. | AA54: -4662950 | AC54: -104520 | AD54: -162857 | AE54: 267377 | AF54: 0 | AG54: 0 | AH54: 0 | AI54: 0 | AJ54: 0 | AK54: 0 | AL54: 0 | AM54: 0 | AN54: 0 | AP54: 0 | AQ54: 0 | AR54: 0 | AS54: 0
A55: %,V4491005 | B55: 4491005 | C55: Tran Prov Trans Ref NonAffil | F55: -115 | G55: -20067 | H55: 19952 | I55: 0.9942691982 | K55: -459 | L55: -80394 | M55: 79935 | N55: 0.9942906187 | Q55: -343 | R55: -80394 | S55: 80051 | T55: 0.9957335125 | V55: -137785 | W55: -80394 | X55: -57391 | Y55: -0.713871682 | AA55: 0 | AC55: 0 | AD55: 0 | AE55: -60327 | AF55: -20067 | AG55: -20302 | AH55: 625314 | AI55: -101 | AJ55: -101 | AK55: -866 | AL55: -107 | AM55: -107 | AN55: -741056 | AP55: -116 | AQ55: -114 | AR55: -114 | AS55: -115
A56: %,V4491006 | B56: 4491006 | C56: Tran Prov Trans Ref Frml Rate | F56: -28 | G56: -4535 | H56: 4507 | I56: 0.9938257993 | K56: -115 | L56: -18178 | M56: 18063 | N56: 0.9936736715 | Q56: -87 | R56: -18178 | S56: 18091 | T56: 0.9952139949 | V56: -58431 | W56: -18178 | X56: -40253 | Y56: -2.21438002 | AA56: 0 | AC56: 0 | AD56: 0 | AE56: -13643 | AF56: -4535 | AG56: -4589 | AH56: 124062 | AI56: -25 | AJ56: -25 | AK56: -219 | AL56: -27 | AM56: -27 | AN56: -177466 | AP56: -28 | AQ56: -29 | AR56: -30 | AS56: -28
A57: %,V4491007 | B57: 4491007 | C57: Trans Prov Trans Refunds Affil | F57: -851 | G57: -134198 | H57: 133347 | I57: 0.9936586238 | K57: -3411 | L57: -537711 | M57: 534300 | N57: 0.9936564437 | Q57: -2558 | R57: -537711 | S57: 535153 | T57: 0.9952427977 | V57: -1984582 | W57: -537711 | X57: -1446871 | Y57: -2.690796729 | AA57: 0 | AC57: 0 | AD57: 0 | AE57: -403513 | AF57: -134198 | AG57: -135775 | AH57: 3623431 | AI57: -750 | AJ57: -750 | AK57: -6444 | AL57: -797 | AM57: -793 | AN57: -5459293 | AP57: -853 | AQ57: -851 | AR57: -856 | AS57: -851
A58: %,R,FACCOUNT,TGL_FERC_ACCT,XDYYNNY01,N449 | C58: Less Rate Refund Provision | F58: -994 | G58: -158800 | H58: 157806 | I58: 0.9937405542 | K58: -3985 | L58: -636283 | M58: 632298 | N58: 0.9937370635 | Q58: -2988 | R58: -512615 | S58: 509627 | T58: 0.9941710641 | V58: -2180798 | W58: -6686192 | X58: 4505394 | Y58: 0.6738355704 | AA58: -5518677 | AC58: -123668 | AD58: -192723 | AE58: -161092 | AF58: -158800 | AG58: -160666 | AH58: 4372807 | AI58: -876 | AJ58: -876 | AK58: -7529 | AL58: -931 | AM58: -927 | AN58: -6377815 | AP58: -997 | AQ58: -994 | AR58: -1000 | AS58: -994
A60: %,V4500000 | B60: 4500000 | C60: Forfeited Discounts | F60: 117613.16 | G60: 102579.11 | H60: =+F60-G60 -> 15034.05 | I60: =IF(G60<0,IF(H60=0,0,IF(OR(G60=0,F60=0),"N.M.",IF(ABS(H60/G60)>=10,"N.M.",H60/(-G60)))),IF(H60=0,0,IF(OR(G60=0,F60=0),"N.M.",IF(ABS(H60/G60)>=10,"N.M.",H60/G60)))) -> 0.1465605424 | K60: 487166.59 | L60: 436717.69 | M60: =+K60-L60 -> 50448.9 | N60: =IF(L60<0,IF(M60=0,0,IF(OR(L60=0,K60=0),"N.M.",IF(ABS(M60/L60)>=10,"N.M.",M60/(-L60)))),IF(M60=0,0,IF(OR(L60=0,K60=0),"N.M.",IF(ABS(M60/L60)>=10,"N.M.",M60/L60)))) -> 0.1155183341 | Q60: 349392.57 | R60: 318027.25 | S60: =+Q60-R60 -> 31365.32 | T60: =IF(R60<0,IF(S60=0,0,IF(OR(R60=0,Q60=0),"N.M.",IF(ABS(S60/R60)>=10,"N.M.",S60/(-R60)))),IF(S60=0,0,IF(OR(R60=0,Q60=0),"N.M.",IF(ABS(S60/R60)>=10,"N.M.",S60/R60)))) -> 0.09862463044 | V60: 1505340.55 | W60: 1013304.84 | X60: =+V60-W60 -> 492035.71 | Y60: =IF(W60<0,IF(X60=0,0,IF(OR(W60=0,V60=0),"N.M.",IF(ABS(X60/W60)>=10,"N.M.",X60/(-W60)))),IF(X60=0,0,IF(OR(W60=0,V60=0),"N.M.",IF(ABS(X60/W60)>=10,"N.M.",X60/W60)))) -> 0.4855752095 | AA60: 77402.33 | AC60: 118690.44 | AD60: 105048.23 | AE60: 110399.91 | AF60: 102579.11 | AG60: 119621.94 | AH60: 124423.59 | AI60: 131497.47 | AJ60: 149009.76 | AK60: 99721.87 | AL60: 143924.36 | AM60: 68553.24 | AN60: 181421.73 | AP60: 137774.02 | AQ60: 126414.54 | AR60: 105364.87 | AS60: 117613.16
A61: %,V4510001 | B61: 4510001 | C61: Misc Service Rev - Nonaffil | F61: 18632.43 | G61: 4911.74 | H61: 13720.69 | I61: 2.793447943 | K61: 52442.89 | L61: 27295.59 | M61: 25147.3 | N61: 0.9212953448 | Q61: 44427.81 | R61: 20628.22 | S61: 23799.59 | T61: 1.153739392 | V61: 100197.59 | W61: 97509.92 | X61: 2687.67 | Y61: 0.02756304179 | AA61: 9229.44 | AC61: 6667.37 | AD61: 2008.69 | AE61: 13707.79 | AF61: 4911.74 | AG61: 11573.02 | AH61: 9475.14 | AI61: 12751.5 | AJ61: 10697.33 | AK61: -1673.42 | AL61: 7727.85 | AM61: -4947.64 | AN61: 2150.92 | AP61: 8015.08 | AQ61: 7092.56 | AR61: 18702.82 | AS61: 18632.43
A62: %,V4540001 | B62: 4540001 | C62: Rent From Elect Property - Af | F62: 76927.357 | G62: 148739.795 | H62: -71812.438 | I62: -0.4828058154 | K62: 472973.31 | L62: 633188.98 | M62: -160215.67 | N62: -0.2530297827 | Q62: 340837.531 | R62: 446451.735 | S62: -105614.204 | T62: -0.2365635425 | V62: 1673956.16 | W62: 1467488.37 | X62: 206467.79 | Y62: 0.1406946687 | AA62: 129786.675 | AC62: 186737.245 | AD62: 148899.075 | AE62: 148812.865 | AF62: 148739.795 | AG62: 148748.575 | AH62: 121231.235 | AI62: 117095.985 | AJ62: 226451.425 | AK62: 148076.755 | AL62: 149022.995 | AM62: 145198.985 | AN62: 145156.895 | AP62: 132135.779 | AQ62: 170723.242 | AR62: 93186.932 | AS62: 76927.357
A63: %,V4540002 | B63: 4540002 | C63: Rent From Elect Property-NAC | F63: 199744.74 | G63: 298994.46 | H63: -99249.72 | I63: -0.3319450133 | K63: 737813.39 | L63: 1004166.95 | M63: -266353.56 | N63: -0.2652482837 | Q63: 578373.78 | R63: 792838.56 | S63: -214464.78 | T63: -0.2705024589 | V63: 2007191.79 | W63: 2764890.91 | X63: -757699.12 | Y63: -0.2740430435 | AA63: 186246.39 | AC63: 211328.39 | AD63: 175 | AE63: 493669.1 | AF63: 298994.46 | AG63: 175 | AH63: 261124.27 | AI63: 175 | AJ63: 375839.37 | AK63: 161760.34 | AL63: 176972.26 | AM63: 156931.32 | AN63: 136400.84 | AP63: 159439.61 | AQ63: 182892.87 | AR63: 195736.17 | AS63: 199744.74
A64: %,V4540004 | B64: 4540004 | C64: Rent From Elect Prop-ABD-Nonaf | F64: 0 | G64: 0 | H64: 0 | I64: 0 | K64: 0 | L64: 0 | M64: 0 | N64: 0 | Q64: 0 | R64: 0 | S64: 0 | T64: 0 | V64: -8941.71 | W64: 18000 | X64: -26941.71 | Y64: -1.496761667 | AA64: 0 | AC64: 0 | AD64: 0 | AE64: 0 | AF64: 0 | AG64: 0 | AH64: 0 | AI64: -8941.71 | AJ64: 0 | AK64: 0 | AL64: 0 | AM64: 0 | AN64: 0 | AP64: 0 | AQ64: 0 | AR64: 0 | AS64: 0
A65: %,V4540005 | B65: 4540005 | C65: Rent from Elec Prop-Pole Attch | F65: 435079.85 | G65: 395084.32 | H65: 39995.53 | I65: 0.1012328963 | K65: 1743184.1 | L65: 1578829.05 | M65: 164355.05 | N65: 0.1040993324 | Q65: 1308114.78 | R65: 1183642.07 | S65: 124472.71 | T65: 0.1051607687 | V65: 5800043.35 | W65: 5126585.62 | X65: 673457.73 | Y65: 0.1313657432 | AA65: 418284.44 | AC65: 395186.98 | AD65: 393462.25 | AE65: 395095.5 | AF65: 395084.32 | AG65: 395084.32 | AH65: 819804.66 | AI65: 473887.79 | AJ65: 473759.75 | AK65: 473043.44 | AL65: 473759.75 | AM65: 473759.75 | AN65: 473759.79 | AP65: 435069.32 | AQ65: 438156.38 | AR65: 434878.55 | AS65: 435079.85
A66: %,V4560001 | B66: 4560001 | C66: Oth Elect Rev - Affiliated | F66: 24072.88 | G66: 0 | H66: 24072.88 | I66: N.M. | K66: 96291.52 | L66: 0 | M66: 96291.52 | N66: N.M. | Q66: 72218.64 | R66: 0 | S66: 72218.64 | T66: N.M. | V66: 255172.53 | W66: 0 | X66: 255172.53 | Y66: N.M. | AA66: 0 | AC66: 0 | AD66: 0 | AE66: 0 | AF66: 0 | AG66: 0 | AH66: 14443.73 | AI66: 24072.88 | AJ66: 24072.88 | AK66: 24072.88 | AL66: 24072.88 | AM66: 24072.88 | AN66: 24072.88 | AP66: 24072.88 | AQ66: 24072.88 | AR66: 24072.88 | AS66: 24072.88
A67: %,V4560007 | B67: 4560007 | C67: Oth Elect Rev - DSM Program | F67: 132700.42 | G67: 126267.94 | H67: 6432.48 | I67: 0.05094309767 | K67: 688665.64 | L67: 315627.28 | M67: 373038.36 | N67: 1.181895177 | Q67: 507896.07 | R67: 280071.19 | S67: 227824.88 | T67: 0.8134534652 | V67: 1765611.12 | W67: 473572.47 | X67: 1292038.65 | Y67: 2.728280742 | AA67: 26218.95 | AC67: 35556.09 | AD67: 34155.5 | AE67: 119647.75 | AF67: 126267.94 | AG67: 114648.56 | AH67: 120168.05 | AI67: 161639.16 | AJ67: 160297.7 | AK67: 135960.73 | AL67: 115032.11 | AM67: 117476.85 | AN67: 151722.32 | AP67: 180769.57 | AQ67: 210829.64 | AR67: 164366.01 | AS67: 132700.42
A68: %,V4560012 | B68: 4560012 | C68: Oth Elect Rev - Nonaffiliated | F68: 0 | G68: 0 | H68: 0 | I68: 0 | K68: 0 | L68: 0 | M68: 0 | N68: 0 | Q68: 0 | R68: 0 | S68: 0 | T68: 0 | V68: 100000 | W68: 0 | X68: 100000 | Y68: N.M. | AA68: 0 | AC68: 0 | AD68: 0 | AE68: 0 | AF68: 0 | AG68: 0 | AH68: 0 | AI68: 0 | AJ68: 0 | AK68: 0 | AL68: 100000 | AM68: 0 | AN68: 0 | AP68: 0 | AQ68: 0 | AR68: 0 | AS68: 0
A69: %,V4560015 | B69: 4560015 | C69: Other Electric Revenues - ABD | F69: 9100.94 | G69: 10196.64 | H69: -1095.7 | I69: -0.1074569662 | K69: 94435.16 | L69: 152844.9 | M69: -58409.74 | N69: -0.3821504021 | Q69: 70646.6 | R69: 91144.15 | S69: -20497.55 | T69: -0.2248915591 | V69: 427121.44 | W69: 501206.87 | X69: -74085.43 | Y69: -0.1478140753 | AA69: 58780.02 | AC69: 61700.75 | AD69: 38014 | AE69: 42933.51 | AF69: 10196.64 | AG69: 36018.98 | AH69: 16488.22 | AI69: 24375.43 | AJ69: 88451.69 | AK69: 39920.57 | AL69: 16020.2 | AM69: 23745.53 | AN69: 87665.66 | AP69: 23788.56 | AQ69: 45840.48 | AR69: 15705.18 | AS69: 9100.94
A70: %,V4560041 | B70: 4560041 | C70: Miscellaneous Revenue-NonAffil | F70: 0 | G70: 0 | H70: 0 | I70: 0 | K70: 376.75 | L70: 0 | M70: 376.75 | N70: N.M. | Q70: 235.75 | R70: 0 | S70: 235.75 | T70: N.M. | V70: 2601.14 | W70: 0 | X70: 2601.14 | Y70: N.M. | AA70: 0 | AC70: 0 | AD70: 0 | AE70: 0 | AF70: 0 | AG70: 0 | AH70: 1881.94 | AI70: 242.45 | AJ70: 0 | AK70: 0 | AL70: 100 | AM70: 0 | AN70: 0 | AP70: 141 | AQ70: 0 | AR70: 235.75 | AS70: 0
A71: %,V4560043 | B71: 4560043 | C71: Oth Elec Rv-Trn-Aff-Trnf Price | F71: 0 | G71: 0 | H71: 0 | I71: 0 | K71: 0 | L71: 0 | M71: 0 | N71: 0 | Q71: 0 | R71: 0 | S71: 0 | T71: 0 | V71: 0 | W71: 0 | X71: 0 | Y71: 0 | AA71: 0 | AC71: 0 | AD71: 0 | AE71: 0 | AF71: 0 | AG71: 0 | AH71: 0 | AI71: 0 | AJ71: 0 | AK71: 0 | AL71: 0 | AM71: 0 | AN71: 0 | AP71: 0 | AQ71: 0 | AR71: 0 | AS71: 0
A72: %,V4560180 | B72: 4560180 | C72: Amort of Defer Equity Inc | F72: 39503.52 | G72: 0 | H72: 39503.52 | I72: N.M. | K72: 154875.02 | L72: 0 | M72: 154875.02 | N72: N.M. | Q72: 116941.03 | R72: 0 | S72: 116941.03 | T72: N.M. | V72: 382478.96 | W72: 0 | X72: 382478.96 | Y72: N.M. | AA72: 0 | AC72: 0 | AD72: 0 | AE72: 0 | AF72: 0 | AG72: 0 | AH72: 0 | AI72: 37933.99 | AJ72: 37933.99 | AK72: 37933.99 | AL72: 37933.99 | AM72: 37933.99 | AN72: 37933.99 | AP72: 37933.99 | AQ72: 37933.99 | AR72: 39503.52 | AS72: 39503.52
A73: %,V4561005 | B73: 4561005 | C73: PJM Point to Point Trans Svc | F73: 230774.12 | G73: 225133.31 | H73: 5640.81 | I73: 0.02505542161 | K73: 1061900.08 | L73: 880485.16 | M73: 181414.92 | N73: 0.2060397247 | Q73: 708886.05 | R73: 541679.1 | S73: 167206.95 | T73: 0.3086826684 | V73: 2763677.19 | W73: 2148297.83 | X73: 615379.36 | Y73: 0.2864497424 | AA73: 190746.49 | AC73: 338806.06 | AD73: 190931.29 | AE73: 125614.5 | AF73: 225133.31 | AG73: 177108.09 | AH73: -22977.47 | AI73: 488031.28 | AJ73: 234203.96 | AK73: 202344.45 | AL73: 221770.7 | AM73: 179532.01 | AN73: 221764.09 | AP73: 353014.03 | AQ73: 269977.65 | AR73: 208134.28 | AS73: 230774.12
A74: %,V4561006 | B74: 4561006 | C74: PJM Trans Owner Admin Rev | F74: 8958.45 | G74: 6471.39 | H74: 2487.06 | I74: 0.3843161979 | K74: 43539.87 | L74: 32136.57 | M74: 11403.3 | N74: 0.3548387398 | Q74: 29968.08 | R74: 22375.06 | S74: 7593.02 | T74: 0.3393519392 | V74: 105999.09 | W74: 89629.33 | X74: 16369.76 | Y74: 0.1826384287 | AA74: 7817.02 | AC74: 9761.51 | AD74: 8208.91 | AE74: 7694.76 | AF74: 6471.39 | AG74: 7045.6 | AH74: 8103.53 | AI74: 8408.83 | AJ74: 10925.78 | AK74: 8386.91 | AL74: 5324 | AM74: 5864.08 | AN74: 8400.49 | AP74: 13571.79 | AQ74: 10933.22 | AR74: 10076.41 | AS74: 8958.45
A75: %,V4561007 | B75: 4561007 | C75: PJM Network Integ Trans Svc | F75: 955321.53 | G75: 980820.86 | H75: -25499.33 | I75: -0.02599794829 | K75: 3821538.71 | L75: 3922710.39 | M75: -101171.68 | N75: -0.02579126929 | Q75: 2834160.32 | R75: 2906467.69 | S75: -72307.37 | T75: -0.0248780918 | V75: 11903597.57 | W75: 11321873.89 | X75: 581723.68 | Y75: 0.05138051224 | AA75: 922837.26 | AC75: 1016242.7 | AD75: 916971.66 | AE75: 1008675.17 | AF75: 980820.86 | AG75: 1013080.51 | AH75: 990773.91 | AI75: 1024240.15 | AJ75: 1024058.98 | AK75: 990797.71 | AL75: 1024149.55 | AM75: 990785.76 | AN75: 1024172.29 | AP75: 987378.39 | AQ75: 891035.29 | AR75: 987803.5 | AS75: 955321.53
A76: %,V4561019 | B76: 4561019 | C76: Oth Elec Rev Trans Non Affil | F76: 3417 | G76: 3643.5 | H76: -226.5 | I76: -0.06216550021 | K76: 19260 | L76: 20401.5 | M76: -1141.5 | N76: -0.05595176825 | Q76: 12645 | R76: 13209 | S76: -564 | T76: -0.04269816035 | V76: 54138 | W76: 54742.5 | X76: -604.5 | Y76: -0.01104260858 | AA76: 5500.5 | AC76: 7192.5 | AD76: 5176.5 | AE76: 4389 | AF76: 3643.5 | AG76: 3448.5 | AH76: 4519.5 | AI76: 5172 | AJ76: 4468.5 | AK76: 3537 | AL76: 3639 | AM76: 4299 | AN76: 5794.5 | AP76: 6615 | AQ76: 5275.5 | AR76: 3952.5 | AS76: 3417
A77: %,V4561027 | B77: 4561027 | C77: PJM Transm Dist/Meter - NonAff | F77: 6492 | G77: 0 | H77: 6492 | I77: N.M. | K77: 25968 | L77: 0 | M77: 25968 | N77: N.M. | Q77: 19476 | R77: 0 | S77: 19476 | T77: N.M. | V77: 71412 | W77: 0 | X77: 71412 | Y77: N.M. | AA77: 0 | AC77: 0 | AD77: 0 | AE77: 0 | AF77: 0 | AG77: 0 | AH77: 0 | AI77: 6492 | AJ77: 12984 | AK77: 6492 | AL77: 6492 | AM77: 6492 | AN77: 6492 | AP77: 6492 | AQ77: 6492 | AR77: 6492 | AS77: 6492
A78: %,V4561028 | B78: 4561028 | C78: PJM Pow Fac Cre Rev Whsl Cu-NA | F78: 0 | G78: 409.02 | H78: -409.02 | I78: N.M. | K78: 0 | L78: 443.91 | M78: -443.91 | N78: N.M. | Q78: 0 | R78: 421.98 | S78: -421.98 | T78: N.M. | V78: 511.78 | W78: 4599.88 | X78: -4088.1 | Y78: -0.8887405758 | AA78: 117.26 | AC78: 21.93 | AD78: 31.26 | AE78: -18.3 | AF78: 409.02 | AG78: 399.95 | AH78: 111.83 | AI78: 0 | AJ78: 0 | AK78: 0 | AL78: 0 | AM78: 0 | AN78: 0 | AP78: 0 | AQ78: 0 | AR78: 0 | AS78: 0
A79: %,V4561029 | B79: 4561029 | C79: PJM NITS Revenue Whsl Cus-NAff | F79: 213176.26 | G79: 247940 | H79: -34763.74 | I79: -0.1402102928 | K79: 852705.04 | L79: 991059.03 | M79: -138353.99 | N79: -0.1396021688 | Q79: 632358.55 | R79: 734418.6 | S79: -102060.05 | T79: -0.1389671367 | V79: 2801675.15 | W79: 2648677.58 | X79: 152997.57 | Y79: 0.05776375772 | AA79: 209524.06 | AC79: 256640.43 | AD79: 231590.6 | AE79: 254888 | AF79: 247940 | AG79: 256289.95 | AH79: 237243.05 | AI79: 245232.76 | AJ79: 245238.46 | AK79: 237248.76 | AL79: 245235.61 | AM79: 237245.91 | AN79: 245235.61 | AP79: 220346.49 | AQ79: 198835.8 | AR79: 220346.49 | AS79: 213176.26
A80: %,V4561030 | B80: 4561030 | C80: PJM TO Serv Rev Whls Cus-NAff | F80: 932.12 | G80: 533.61 | H80: 398.51 | I80: 0.7468188377 | K80: 4039.85 | L80: 2301.61 | M80: 1738.24 | N80: 0.7552278622 | Q80: 2914.61 | R80: 1654.58 | S80: 1260.03 | T80: 0.7615406931 | V80: 8599.63 | W80: 8539.5 | X80: 60.13 | Y80: 0.007041395866 | AA80: 807.31 | AC80: 647.03 | AD80: 557.63 | AE80: 563.34 | AF80: 533.61 | AG80: 531.68 | AH80: 570.03 | AI80: 654.49 | AJ80: 592.44 | AK80: 533.72 | AL80: 523.76 | AM80: 537.39 | AN80: 616.27 | AP80: 1125.24 | AQ80: 1006.66 | AR80: 975.83 | AS80: 932.12
A81: %,V4561033 | B81: 4561033 | C81: PJM NITS Revenue - Affiliated | F81: 6957700.73 | G81: 7297555.39 | H81: -339854.66 | I81: -0.04657102849 | K81: 27830550.32 | L81: 29167390.36 | M81: -1336840.04 | N81: -0.04583337842 | Q81: 20638752.53 | R81: 21614764.31 | S81: -976011.78 | T81: -0.04515486572 | V81: 87446470.26 | W81: 78513084.97 | X81: 8933385.29 | Y81: 0.1137821204 | AA81: 6237327.7 | AC81: 7552626.05 | AD81: 6815525.85 | AE81: 7501683.07 | AF81: 7297555.39 | AG81: 7544086.16 | AH81: 7298299.27 | AI81: 7544086.16 | AJ81: 7544261.62 | AK81: 7298474.72 | AL81: 7544173.89 | AM81: 7298386.99 | AN81: 7544151.13 | AP81: 7191797.79 | AQ81: 6489679.12 | AR81: 7191372.68 | AS81: 6957700.73
A82: %,V4561034 | B82: 4561034 | C82: PJM TO Adm. Serv Rev - Aff | F82: 28902.52 | G82: 14333.09 | H82: 14569.43 | I82: 1.016489117 | K82: 130063.92 | L82: 65374.09 | M82: 64689.83 | N82: 0.9895331621 | Q82: 93092.78 | R82: 45940.89 | S82: 47151.89 | T82: 1.02635996 | V82: 266617.45 | W82: 234498.64 | X82: 32118.81 | Y82: 0.1369680012 | AA82: 22919.84 | AC82: 19433.2 | AD82: 16031.13 | AE82: 15576.67 | AF82: 14333.09 | AG82: 14568.46 | AH82: 17174.5 | AI82: 19212.59 | AJ82: 18120.42 | AK82: 15845.23 | AL82: 15869.93 | AM82: 16456.01 | AN82: 19306.39 | AP82: 36971.14 | AQ82: 32937.59 | AR82: 31252.67 | AS82: 28902.52
A83: %,V4561035 | B83: 4561035 | C83: PJM Affiliated Trans NITS Cost | F83: -5126574.77 | G83: -4749763.69 | H83: -376811.08 | I83: -0.07933259518 | K83: -20506299.07 | L83: -18985626.34 | M83: -1520672.73 | N83: -0.08009600014 | Q83: -15207290.81 | R83: -14069189.29 | S83: -1138101.52 | T83: -0.08089318414 | V83: -59305207.14 | W83: -59660665.22 | X83: 355458.08 | Y83: 0.005957997261 | AA83: -5141351.21 | AC83: -4916437.05 | AD83: -4436559.62 | AE83: -4882865.98 | AF83: -4749763.69 | AG83: -4909722.83 | AH83: -4749763.69 | AI83: -4909722.83 | AJ83: -4909837.02 | AK83: -4749877.89 | AL83: -4909779.93 | AM83: -4750220.69 | AN83: -4909983.19 | AP83: -5299008.26 | AQ83: -4781707.78 | AR83: -5299008.26 | AS83: -5126574.77
A84: %,V4561036 | B84: 4561036 | C84: PJM Affiliated Trans TO Cost | F84: -9008.72 | G84: -7031.69 | H84: -1977.03 | I84: -0.2811600056 | K84: -45011.42 | L84: -34789.69 | M84: -10221.73 | N84: -0.2938149205 | Q84: -31068.22 | R84: -23572.99 | S84: -7495.23 | T84: -0.3179583922 | V84: -107278.4 | W84: -142942.21 | X84: 35663.81 | Y84: 0.2494981014 | AA84: -15781.37 | AC84: -11216.7 | AD84: -8542.78 | AE84: -7998.52 | AF84: -7031.69 | AG84: -6746.27 | AH84: -7968.23 | AI84: -9072.99 | AJ84: -8058.55 | AK84: -6737.24 | AL84: -6626.47 | AM84: -7602.9 | AN84: -9454.33 | AP84: -13943.2 | AQ84: -12006.21 | AR84: -10053.29 | AS84: -9008.72
A85: %,V4561045 | B85: 4561045 | C85: PJM Non-Aff Gen IPP Rev | F85: 1727.99 | G85: 1994 | H85: -266.01 | I85: -0.1334052156 | K85: 6911.98 | L85: 7976 | M85: -1064.02 | N85: -0.1334027081 | Q85: 5183.98 | R85: 5982 | S85: -798.02 | T85: -0.133403544 | V85: 21267.98 | W85: 19940 | X85: 1327.98 | Y85: 0.06659879639 | AA85: 1994 | AC85: 1994 | AD85: 1994 | AE85: 1994 | AF85: 1994 | AG85: 1994 | AH85: 1994 | AI85: 1728 | AJ85: 1728 | AK85: 1728.01 | AL85: 1728 | AM85: 1727.99 | AN85: 1728 | AP85: 1728 | AQ85: 1728 | AR85: 1727.99 | AS85: 1727.99
A86: %,V4561058 | B86: 4561058 | C86: NonAffil PJM Trans Enhncmt Rev | F86: 135494.25 | G86: 157686.63 | H86: -22192.38 | I86: -0.1407372331 | K86: 550479.88 | L86: 630788.2 | M86: -80308.32 | N86: -0.1273142395 | Q86: 411799.88 | R86: 473083.3 | S86: -61283.42 | T86: -0.1295404425 | V86: 1813270.72 | W86: 1776224.76 | X86: 37045.96 | Y86: 0.02085657223 | AA86: 143179.57 | AC86: 157704.9 | AD86: 157703.19 | AE86: 157693.48 | AF86: 157686.63 | AG86: 157672.63 | AH86: 157873.97 | AI86: 157873.97 | AJ86: 157873.97 | AK86: 157873.97 | AL86: 157873.97 | AM86: 157873.97 | AN86: 157874.39 | AP86: 138680 | AQ86: 138680.68 | AR86: 137624.95 | AS86: 135494.25
A87: %,V4561059 | B87: 4561059 | C87: Affil PJM Trans Enhancmnt Rev | F87: 126236.17 | G87: 137357.08 | H87: -11120.91 | I87: -0.08096350039 | K87: 496694.53 | L87: 549386.6 | M87: -52692.07 | N87: -0.09591073026 | Q87: 373549.29 | R87: 412047.83 | S87: -38498.54 | T87: -0.0934322115 | V87: 1595662.75 | W87: 1591358.76 | X87: 4303.99 | Y87: 0.00270460069 | AA87: 130246.52 | AC87: 137338.77 | AD87: 137340.52 | AE87: 137350.23 | AF87: 137357.08 | AG87: 137371.08 | AH87: 137371.08 | AI87: 137371.08 | AJ87: 137371.08 | AK87: 137371.08 | AL87: 137371.08 | AM87: 137371.08 | AN87: 137370.66 | AP87: 123145.24 | AQ87: 123144.48 | AR87: 124168.64 | AS87: 126236.17
A88: %,V4561060 | B88: 4561060 | C88: Affil PJM Trans Enhancmnt Cost | F88: -93013.36 | G88: -89401.67 | H88: -3611.69 | I88: -0.04039846236 | K88: -365977.76 | L88: -357606.68 | M88: -8371.08 | N88: -0.02340862313 | Q88: -275242.78 | R88: -268205.01 | S88: -7037.77 | T88: -0.026240263 | V88: -1081202.22 | W88: -1216491.32 | X88: 135289.1 | Y88: 0.1112125486 | AA88: -107360.58 | AC88: -89401.67 | AD88: -89401.67 | AE88: -89401.67 | AF88: -89401.67 | AG88: -89401.67 | AH88: -89401.67 | AI88: -89401.67 | AJ88: -89401.67 | AK88: -89401.67 | AL88: -89401.67 | AM88: -89409.07 | AN88: -89405.37 | AP88: -90734.98 | AQ88: -90734.98 | AR88: -91494.44 | AS88: -93013.36
A89: %,V4561061 | B89: 4561061 | C89: NAff PJM RTEP Rev for Whsl-FR | F89: 3867.74 | G89: 4666.81 | H89: -799.07 | I89: -0.1712240267 | K89: 15218.32 | L89: 18667.24 | M89: -3448.92 | N89: -0.1847578967 | Q89: 11445.32 | R89: 14000.43 | S89: -2555.11 | T89: -0.1825022517 | V89: 51143.42 | W89: 53669.15 | X89: -2525.73 | Y89: -0.04706111425 | AA89: 4375.24 | AC89: 4666.81 | AD89: 4666.81 | AE89: 4666.81 | AF89: 4666.81 | AG89: 4666.81 | AH89: 4465.47 | AI89: 4465.47 | AJ89: 4465.47 | AK89: 4465.47 | AL89: 4465.47 | AM89: 4465.47 | AN89: 4465.47 | AP89: 3773 | AQ89: 3773 | AR89: 3804.58 | AS89: 3867.74
A90: %,V4561062 | B90: 4561062 | C90: PROVISION RTO Tran Cost Affi | F90: -107157 | G90: 132925 | H90: -240082 | I90: -1.806146323 | K90: -751473 | L90: 532212 | M90: -1283685 | N90: -2.411980564 | Q90: -673073 | R90: 393597 | S90: -1066670 | T90: -2.710056225 | V90: -1344772 | W90: 2007876 | X90: -3352648 | Y90: -1.66974853 | AA90: 1065652 | AC90: 138615 | AD90: 129352 | AE90: 131320 | AF90: 132925 | AG90: 133368 | AH90: -1469769 | AI90: 32474 | AJ90: 95918 | AK90: 84626 | AL90: 94426 | AM90: 94423 | AN90: 341235 | AP90: -78400 | AQ90: -107159 | AR90: -458757 | AS90: -107157
A91: %,V4561063 | B91: 4561063 | C91: PROVISION RTO Tran Rev Aff | F91: 492376 | G91: -27389 | H91: 519765 | I91: N.M. | K91: 2633200 | L91: -109556 | M91: 2742756 | N91: N.M. | Q91: 2140824 | R91: -82167 | S91: 2222991 | T91: N.M. | V91: 3217210 | W91: 2383468 | X91: 833742 | Y91: 0.3498020531 | AA91: 226375 | AC91: -27389 | AD91: -27389 | AE91: -27389 | AF91: -27389 | AG91: -27389 | AH91: 689219 | AI91: -21015 | AJ91: -21015 | AK91: 15188 | AL91: -16993 | AM91: -16992 | AN91: -16993 | AP91: 492376 | AQ91: 492375 | AR91: 1156073 | AS91: 492376
A92: %,V4561064 | B92: 4561064 | C92: PROVISION RTO Tran Rv Frml Rts | F92: 16728 | G92: -920 | H92: 17648 | I92: N.M. | K92: 66916 | L92: -3680 | M92: 70596 | N92: N.M. | Q92: 50187 | R92: -2760 | S92: 52947 | T92: N.M. | V92: 87102 | W92: 80171 | X92: 6931 | Y92: 0.08645270734 | AA92: 7642 | AC92: -920 | AD92: -920 | AE92: -920 | AF92: -920 | AG92: -920 | AH92: 23428 | AI92: -661 | AJ92: -660 | AK92: 569 | AL92: -522 | AM92: -524 | AN92: -524 | AP92: 16729 | AQ92: 16730 | AR92: 16729 | AS92: 16728
A93: %,V4561065 | B93: 4561065 | C93: PROVISION RTO Tran Rev NonAff | F93: 66171 | G93: -4115 | H93: 70286 | I93: N.M. | K93: 376132 | L93: -16460 | M93: 392592 | N93: N.M. | Q93: 309962 | R93: -12345 | S93: 322307 | T93: N.M. | V93: 440405 | W93: 349749 | X93: 90656 | Y93: 0.2592030285 | AA93: 31918 | AC93: -4115 | AD93: -4115 | AE93: -4115 | AF93: -4115 | AG93: -4115 | AH93: 92190 | AI93: -5048 | AJ93: -5049 | AK93: -182 | AL93: -4508 | AM93: -4508 | AN93: -4507 | AP93: 66170 | AQ93: 66170 | AR93: 177621 | AS93: 66171
A94: %,V4561075 | B94: 4561075 | C94: PJM-Nonaff Power Factor Credit | F94: 416.34 | G94: 0 | H94: 416.34 | I94: N.M. | K94: 1137.77 | L94: 0 | M94: 1137.77 | N94: N.M. | Q94: 941.64 | R94: 0 | S94: 941.64 | T94: N.M. | V94: 5032.76 | W94: 0 | X94: 5032.76 | Y94: N.M. | AA94: 0 | AC94: 0 | AD94: 0 | AE94: 0 | AF94: 0 | AG94: 0 | AH94: 421.26 | AI94: 1393.48 | AJ94: 620.05 | AK94: 802.89 | AL94: 349.98 | AM94: 236.4 | AN94: 70.93 | AP94: 196.13 | AQ94: 237.41 | AR94: 287.89 | AS94: 416.34
A95: %,R,FACCOUNT,TGL_FERC_ACCT,XDYYNNY01,NOTHER_OPER_REVENUES | C95: Other Operating Revenues | F95: 4966313.667 | G95: 5419622.645 | H95: -453308.978 | I95: -0.0836421662 | K95: 20795719.39 | L95: 21462284.39 | M95: -666565 | N95: -0.03105750478 | Q95: 15478556.78 | R95: 15854205.65 | S95: -375648.874 | T95: -0.02369395744 | V95: 64826105.91 | W95: 53728861.04 | X95: 11097244.87 | Y95: 0.206541599 | AA95: 4850434.855 | AC95: 5608078.735 | AD95: 4770916.025 | AE95: 5663666.985 | AF95: 5419622.645 | AG95: 5239207.045 | AH95: 4812919.175 | AI95: 5616644.715 | AJ95: 6005323.385 | AK95: 5438903.275 | AL95: 5680128.265 | AM95: 5309165.305 | AN95: 5928095.355 | AP95: 5317162.609 | AQ95: 5001360.012 | AR95: 5510883.102 | AS95: 4966313.667
B96: Line 2 | C96: Operating Revenues (400) | F96: =+F14+F23+F27+F50+F58+F95 -> 56040870.55 | G96: =+G14+G23+G27+G50+G58+G95 -> 52815642.09 | H96: 3225228.452 | I96: 0.06106578135 | K96: =+K14+K23+K27+K50+K58+K95 -> 268498085 | L96: =+L14+L23+L27+L50+L58+L95 -> 264649530 | M96: 3848554.978 | N96: 0.01454208129 | Q96: =+Q14+Q23+Q27+Q50+Q58+Q95 -> 187901215.8 | R96: =+R14+R23+R27+R50+R58+R95 -> 181784621.4 | S96: 6116594.345 | T96: 0.03364747963 | V96: =+V14+V23+V27+V50+V58+V95 -> 768600030 | W96: =+W14+W23+W27+W50+W58+W95 -> 735588414.1 | X96: 33011615.93 | Y96: 0.04487783562 | AA96: =+AA14+AA23+AA27+AA50+AA58+AA95 -> 67070519.64 | AC96: =+AC14+AC23+AC27+AC50+AC58+AC95 -> 82864908.61 | AD96: 62306403.6 | AE96: 66662575.7 | AF96: 52815642.09 | AG96: 49668783.77 | AH96: 80265747.05 | AI96: 67332566.89 | AJ96: 65046326.7 | AK96: 50446824.92 | AL96: 56923373.62 | AM96: 64582682.18 | AN96: 65835639.85 | AP96: =+AP14+AP23+AP27+AP50+AP58+AP95 -> 80596869.25 | AQ96: 67363363.05 | AR96: 64496982.15 | AS96: 56040870.55
B97: Line 3 | C97: Operating Expenses
A99: %,V5010000 | B99: 5010000 | C99: Fuel | F99: 589775.53 | G99: 422235.9 | H99: =+F99-G99 -> 167539.63 | I99: =IF(G99<0,IF(H99=0,0,IF(OR(G99=0,F99=0),"N.M.",IF(ABS(H99/G99)>=10,"N.M.",H99/(-G99)))),IF(H99=0,0,IF(OR(G99=0,F99=0),"N.M.",IF(ABS(H99/G99)>=10,"N.M.",H99/G99)))) -> 0.3967915329 | K99: 2031788.09 | L99: 3124507.2 | M99: =+K99-L99 -> -1092719.11 | N99: =IF(L99<0,IF(M99=0,0,IF(OR(L99=0,K99=0),"N.M.",IF(ABS(M99/L99)>=10,"N.M.",M99/(-L99)))),IF(M99=0,0,IF(OR(L99=0,K99=0),"N.M.",IF(ABS(M99/L99)>=10,"N.M.",M99/L99)))) -> -0.3497252655 | Q99: 1676392.4 | R99: 2506208.94 | S99: =+Q99-R99 -> -829816.54 | T99: =IF(R99<0,IF(S99=0,0,IF(OR(R99=0,Q99=0),"N.M.",IF(ABS(S99/R99)>=10,"N.M.",S99/(-R99)))),IF(S99=0,0,IF(OR(R99=0,Q99=0),"N.M.",IF(ABS(S99/R99)>=10,"N.M.",S99/R99)))) -> -0.3311042933 | V99: 6657746.4 | W99: 7282807.98 | X99: =+V99-W99 -> -625061.58 | Y99: =IF(W99<0,IF(X99=0,0,IF(OR(W99=0,V99=0),"N.M.",IF(ABS(X99/W99)>=10,"N.M.",X99/(-W99)))),IF(X99=0,0,IF(OR(W99=0,V99=0),"N.M.",IF(ABS(X99/W99)>=10,"N.M.",X99/W99)))) -> -0.08582700268 | AA99: 468044.21 | AC99: 618298.26 | AD99: 692259.2 | AE99: 1391713.84 | AF99: 422235.9 | AG99: 536336.11 | AH99: 438840.56 | AI99: 671120.34 | AJ99: 615530.47 | AK99: 667204.1 | AL99: 534269.35 | AM99: 469001.09 | AN99: 693656.29 | AP99: 355395.69 | AQ99: 676522.13 | AR99: 410094.74 | AS99: 589775.53
A100: %,V5010001 | B100: 5010001 | C100: Fuel Consumed | F100: 3523402.44 | G100: 5166295.41 | H100: -1642892.97 | I100: -0.3180021349 | K100: 23114816.98 | L100: 22161229.33 | M100: 953587.65 | N100: 0.04302954659 | Q100: 13762909.64 | R100: 9870836.04 | S100: 3892073.6 | T100: 0.3943002988 | V100: 75263327.59 | W100: 77978435.31 | X100: -2715107.72 | Y100: -0.03481869967 | AA100: 10015105.62 | AC100: 12290393.29 | AD100: 3464421.5 | AE100: 1240119.13 | AF100: 5166295.41 | AG100: 1362557.52 | AH100: 5465171.12 | AI100: 9639698.94 | AJ100: 7211243.8 | AK100: 2473641.01 | AL100: 9776000.93 | AM100: 8735699.02 | AN100: 7484498.27 | AP100: 9351907.34 | AQ100: 7322476.54 | AR100: 2917030.66 | AS100: 3523402.44
A101: %,V5010003 | B101: 5010003 | C101: Fuel - Procure Unload & Handle | F101: 204531.57 | G101: 309300.95 | H101: -104769.38 | I101: -0.3387295771 | K101: 1222274.23 | L101: 1167878.59 | M101: 54395.64 | N101: 0.04657645107 | Q101: 747074.92 | R101: 550493.27 | S101: 196581.65 | T101: 0.3571009142 | V101: 4126027.77 | W101: 3775840.6 | X101: 350187.17 | Y101: 0.09274416139 | AA101: 482065.47 | AC101: 617385.32 | AD101: 176267.9 | AE101: 64924.42 | AF101: 309300.95 | AG101: 80402.99 | AH101: 500918.55 | AI101: 519917.36 | AJ101: 387404.5 | AK101: 132593.12 | AL101: 464300.85 | AM101: 429668.03 | AN101: 388548.14 | AP101: 475199.31 | AQ101: 378748.5 | AR101: 163794.85 | AS101: 204531.57
A102: %,V5010005 | B102: 5010005 | C102: Fuel - Deferred | F102: 1602469.104 | G102: 1044760.324 | H102: 557708.78 | I102: 0.5338150456 | K102: -8290210.398 | L102: 478065.715 | M102: -8768276.113 | N102: N.M. | Q102: 9722244.975 | R102: 5601384.615 | S102: 4120860.36 | T102: 0.7356860211 | V102: -3631129.28 | W102: -921670.525 | X102: -2709458.755 | Y102: -2.939725945 | AA102: -1673812.24 | AC102: -5123318.9 | AD102: 2751467.731 | AE102: 1805156.56 | AF102: 1044760.324 | AG102: 4417871.505 | AH102: -3340582.92 | AI102: -1315935.06 | AJ102: 6623129 | AK102: 802175.391 | AL102: -4067343.391 | AM102: 2201282 | AN102: -661515.407 | AP102: -18012455.37 | AQ102: -298532.515 | AR102: 8418308.386 | AS102: 1602469.104
A103: %,V5010012 | B103: 5010012 | C103: Ash Sales Proceeds | F103: 424.81 | G103: -1356.98 | H103: 1781.79 | I103: 1.313055461 | K103: 2221.3 | L103: 1977.98 | M103: 243.32 | N103: 0.1230143884 | Q103: 1269.85 | R103: 985.03 | S103: 284.82 | T103: 0.2891485539 | V103: 7518.26 | W103: 18336.55 | X103: -10818.29 | Y103: -0.5899850299 | AA103: 1236.31 | AC103: 992.95 | AD103: 2082.52 | AE103: 259.49 | AF103: -1356.98 | AG103: 1777.24 | AH103: -1796.76 | AI103: 1061.09 | AJ103: 489.78 | AK103: 719.77 | AL103: 880.4 | AM103: 916.08 | AN103: 1249.36 | AP103: 951.45 | AQ103: 397.78 | AR103: 447.26 | AS103: 424.81
A104: %,V5010013 | B104: 5010013 | C104: Fuel Survey Activity | F104: 0 | G104: 0 | H104: 0 | I104: 0 | K104: 0 | L104: 0 | M104: 0 | N104: 0 | Q104: 0 | R104: 0 | S104: 0 | T104: 0 | V104: 3906533.13 | W104: 49281.13 | X104: 3857252 | Y104: N.M. | AA104: 0 | AC104: 0 | AD104: 0 | AE104: 0 | AF104: 0 | AG104: 0 | AH104: 4136038.43 | AI104: 0 | AJ104: 0 | AK104: 0 | AL104: 0 | AM104: -229505.3 | AN104: 0 | AP104: 0 | AQ104: 0 | AR104: 0 | AS104: 0
A105: %,V5010019 | B105: 5010019 | C105: Fuel Oil Consumed | F105: 289928.46 | G105: 96647.53 | H105: 193280.93 | I105: 1.999853799 | K105: 1129597.64 | L105: 1202645.55 | M105: -73047.91 | N105: -0.06073935084 | Q105: 788798.91 | R105: 1032588.18 | S105: -243789.27 | T105: -0.2360953522 | V105: 4065280.17 | W105: 3809517.62 | X105: 255762.55 | Y105: 0.06713777846 | AA105: 159819.37 | AC105: 170057.37 | AD105: 269009.72 | AE105: 666930.93 | AF105: 96647.53 | AG105: 160652.59 | AH105: 1026257.44 | AI105: 310596.72 | AJ105: 229206.49 | AK105: 191928.15 | AL105: 299158.57 | AM105: 295059.16 | AN105: 422823.41 | AP105: 340798.73 | AQ105: 199795.38 | AR105: 299075.07 | AS105: 289928.46
A106: %,V5010020 | B106: 5010020 | C106: Nat Gas Consumed Steam | F106: 1416565.56 | G106: 1956384.15 | H106: -539818.59 | I106: -0.2759266834 | K106: 21846847.67 | L106: 14869388.61 | M106: 6977459.06 | N106: 0.4692498961 | Q106: 14585122.53 | R106: 10053840.98 | S106: 4531281.55 | T106: 0.4507015338 | V106: 45853654.99 | W106: 30601272.22 | X106: 15252382.77 | Y106: 0.498423159 | AA106: 3177051.68 | AC106: 4815547.63 | AD106: 5005197.61 | AE106: 3092259.22 | AF106: 1956384.15 | AG106: 2453953.33 | AH106: 3625585.34 | AI106: 4467847.34 | AJ106: 3920242.98 | AK106: 1578750.06 | AL106: 10346.29 | AM106: 3365399.16 | AN106: 4584682.82 | AP106: 7261725.14 | AQ106: 8840767.36 | AR106: 4327789.61 | AS106: 1416565.56
A107: %,V5010021 | B107: 5010021 | C107: Transp Gas Consumed Steam | F107: 51176.2 | G107: 44452.54 | H107: 6723.66 | I107: 0.1512547989 | K107: 228309.81 | L107: 153497.93 | M107: 74811.88 | N107: 0.4873803836 | Q107: 157847.66 | R107: 126483.83 | S107: 31363.83 | T107: 0.2479671117 | V107: 575584.17 | W107: 287356.56 | X107: 288227.61 | Y107: 1.003031251 | AA107: -40356.87 | AC107: 27014.1 | AD107: 40059.22 | AE107: 41972.07 | AF107: 44452.54 | AG107: 40535.42 | AH107: 86157.96 | AI107: 34941.63 | AJ107: 55139.12 | AK107: 69469.33 | AL107: 105032.69 | AM107: -75991.46 | AN107: 31989.67 | AP107: 70462.15 | AQ107: 48177.21 | AR107: 58494.25 | AS107: 51176.2
A108: %,V5010027 | B108: 5010027 | C108: Gypsum handling/disposal costs | F108: 134774.73 | G108: 106262.46 | H108: 28512.27 | I108: 0.2683193105 | K108: 562461.09 | L108: 473925.43 | M108: 88535.66 | N108: 0.1868134825 | Q108: 482647.14 | R108: 407956.74 | S108: 74690.4 | T108: 0.1830841182 | V108: 1480883.31 | W108: 1562267.35 | X108: -81384.04 | Y108: -0.05209354212 | AA108: 127705.35 | AC108: 65968.69 | AD108: 149021.03 | AE108: 152673.25 | AF108: 106262.46 | AG108: 52426.61 | AH108: 119621.95 | AI108: 123628.91 | AJ108: 175772.97 | AK108: 91408.13 | AL108: 136617.8 | AM108: 102005.9 | AN108: 116939.95 | AP108: 79813.95 | AQ108: 147777.64 | AR108: 200094.77 | AS108: 134774.73
A109: %,V5010028 | B109: 5010028 | C109: Gypsum Sales Proceeds | F109: -69247.85 | G109: -55250.53 | H109: -13997.32 | I109: -0.2533427281 | K109: -427297.51 | L109: -454696.12 | M109: 27398.61 | N109: 0.06025696898 | Q109: -342155.18 | R109: -212608.95 | S109: -129546.23 | T109: -0.6093169173 | V109: -1195043.56 | W109: -1200101.73 | X109: 5058.17 | Y109: 0.004214784358 | AA109: -90075.39 | AC109: -242087.17 | AD109: -120703.2 | AE109: -36655.22 | AF109: -55250.53 | AG109: -96967.84 | AH109: -57542.76 | AI109: -90539.53 | AJ109: -126577.74 | AK109: -116907.68 | AL109: -100916.97 | AM109: 0 | AN109: -178293.53 | AP109: -85142.33 | AQ109: -74338.35 | AR109: -198568.98 | AS109: -69247.85
A110: %,V5010033 | B110: 5010033 | C110: Coal Procurement Sales Net-NA | F110: 150302.14 | G110: 0 | H110: 150302.14 | I110: N.M. | K110: 281689.3 | L110: 0 | M110: 281689.3 | N110: N.M. | Q110: 281689.3 | R110: 0 | S110: 281689.3 | T110: N.M. | V110: 281689.3 | W110: 0 | X110: 281689.3 | Y110: N.M. | AA110: 0 | AC110: 0 | AD110: 0 | AE110: 0 | AF110: 0 | AG110: 0 | AH110: 0 | AI110: 0 | AJ110: 0 | AK110: 0 | AL110: 0 | AM110: 0 | AN110: 0 | AP110: 0 | AQ110: 0 | AR110: 131387.16 | AS110: 150302.14
A111: %,V5010034 | B111: 5010034 | C111: Gas Transp Res Fees-Steam | F111: 489451.68 | G111: 537775.2 | H111: -48323.52 | I111: -0.08985821585 | K111: 1958467.68 | L111: 2153339.28 | M111: -194871.6 | N111: -0.09049739714 | Q111: 1453963.68 | R111: 1598925.6 | S111: -144961.92 | T111: -0.09066207959 | V111: 5908334.46 | W111: 6369158.36 | X111: -460823.9 | Y111: -0.07235240105 | AA111: 461278.8 | AC111: 554413.68 | AD111: 508975.2 | AE111: 552175.2 | AF111: 537775.2 | AG111: 455968.8 | AH111: 487940.4 | AI111: 503208 | AJ111: 503204.39 | AK111: 488804.4 | AL111: 503208 | AM111: 488804.4 | AN111: 518728.39 | AP111: 504504 | AQ111: 460656 | AR111: 503856 | AS111: 489451.68
A112: %,V5010040 | B112: 5010040 | C112: Gas Procuremnt Sales Net | F112: 150274.98 | G112: -219487.01 | H112: 369761.99 | I112: 1.684664573 | K112: 150275.11 | L112: 233801.18 | M112: -83526.07 | N112: -0.3572525596 | Q112: 150275.09 | R112: 110822.264 | S112: 39452.826 | T112: 0.3560009025 | V112: 540765.83 | W112: 1873294.21 | X112: -1332528.38 | Y112: -0.7113289375 | AA112: 0.21 | AC112: 122978.916 | AD112: 172291.543 | AE112: 158017.731 | AF112: -219487.01 | AG112: 4182.54 | AH112: -0.045 | AI112: 0.075 | AJ112: -0.11 | AK112: 109220.12 | AL112: 312992.9 | AM112: -35903.75 | AN112: -1.01 | AP112: 0.02 | AQ112: -0.18 | AR112: 0.29 | AS112: 150274.98
A113: %,FACCOUNT,TGL_FERC_ACCT,XDYYNNY01,N5010 | C113: Fuel Expense | F113: 8533829.354 | G113: 9408019.944 | H113: -874190.59 | I113: -0.09291972117 | K113: 43811240.99 | L113: 45565560.67 | M113: -1754319.683 | N113: -0.03850100069 | Q113: 43468080.91 | R113: 31647916.54 | S113: 11820164.38 | T113: 0.3734894953 | V113: 143841172.5 | W113: 131485795.6 | X113: 12355376.91 | Y113: 0.09396738899 | AA113: 13088062.52 | AC113: 13917644.14 | AD113: 13110349.97 | AE113: 9129546.621 | AF113: 9408019.944 | AG113: 9469696.815 | AH113: 12486609.27 | AI113: 14865545.81 | AJ113: 19594785.65 | AK113: 6489005.901 | AL113: 7974547.419 | AM113: 15746434.33 | AN113: 13403306.35 | AP113: 343160.077 | AQ113: 17702447.5 | AR113: 17231804.07 | AS113: 8533829.354
A115: %,V5000000 | B115: 5000000 | C115: Oper Supervision & Engineering | F115: 336128.68 | G115: 318921.29 | H115: =+F115-G115 -> 17207.39 | I115: =IF(G115<0,IF(H115=0,0,IF(OR(G115=0,F115=0),"N.M.",IF(ABS(H115/G115)>=10,"N.M.",H115/(-G115)))),IF(H115=0,0,IF(OR(G115=0,F115=0),"N.M.",IF(ABS(H115/G115)>=10,"N.M.",H115/G115)))) -> 0.05395497428 | K115: 1527687.01 | L115: 1306410.01 | M115: =+K115-L115 -> 221277 | N115: =IF(L115<0,IF(M115=0,0,IF(OR(L115=0,K115=0),"N.M.",IF(ABS(M115/L115)>=10,"N.M.",M115/(-L115)))),IF(M115=0,0,IF(OR(L115=0,K115=0),"N.M.",IF(ABS(M115/L115)>=10,"N.M.",M115/L115)))) -> 0.1693779122 | Q115: 1151946.84 | R115: 969869.68 | S115: =+Q115-R115 -> 182077.16 | T115: =IF(R115<0,IF(S115=0,0,IF(OR(R115=0,Q115=0),"N.M.",IF(ABS(S115/R115)>=10,"N.M.",S115/(-R115)))),IF(S115=0,0,IF(OR(R115=0,Q115=0),"N.M.",IF(ABS(S115/R115)>=10,"N.M.",S115/R115)))) -> 0.1877336345 | V115: 4724349.59 | W115: 4190481.68 | X115: =+V115-W115 -> 533867.91 | Y115: =IF(W115<0,IF(X115=0,0,IF(OR(W115=0,V115=0),"N.M.",IF(ABS(X115/W115)>=10,"N.M.",X115/(-W115)))),IF(X115=0,0,IF(OR(W115=0,V115=0),"N.M.",IF(ABS(X115/W115)>=10,"N.M.",X115/W115)))) -> 0.1274001298 | AA115: 327253.38 | AC115: 336540.33 | AD115: 344075.13 | AE115: 306873.26 | AF115: 318921.29 | AG115: 304828.88 | AH115: 340471.02 | AI115: 441077.5 | AJ115: 405316.32 | AK115: 374330.16 | AL115: 366881.03 | AM115: 428464.07 | AN115: 535293.6 | AP115: 375740.17 | AQ115: 396945.03 | AR115: 418873.13 | AS115: 336128.68
A116: %,V5000002 | B116: 5000002 | C116: Dresden Oper Supervision & Eng | F116: 0 | G116: 0 | H116: 0 | I116: 0 | K116: 0 | L116: 0 | M116: 0 | N116: 0 | Q116: 0 | R116: 0 | S116: 0 | T116: 0 | V116: -33.12 | W116: 0 | X116: -33.12 | Y116: N.M. | AA116: 0 | AC116: 0 | AD116: 0 | AE116: 0 | AF116: 0 | AG116: 0 | AH116: 0 | AI116: 0 | AJ116: 0 | AK116: 0 | AL116: 0 | AM116: 41.08 | AN116: -74.2 | AP116: 0 | AQ116: 0 | AR116: 0 | AS116: 0
A117: %,V5000003 | B117: 5000003 | C117: Cnstr Srchrge Op Sup & Eng Exp | F117: 0 | G117: 0 | H117: 0 | I117: 0 | K117: 0 | L117: 0 | M117: 0 | N117: 0 | Q117: 0 | R117: 0 | S117: 0 | T117: 0 | V117: 64.34 | W117: 0 | X117: 64.34 | Y117: N.M. | AA117: 0 | AC117: 0 | AD117: 0 | AE117: 0 | AF117: 0 | AG117: 0 | AH117: 0 | AI117: 0 | AJ117: 64.34 | AK117: 0 | AL117: 0 | AM117: 0 | AN117: 0 | AP117: 0 | AQ117: 0 | AR117: 0 | AS117: 0
A118: %,V5000005 | B118: 5000005 | C118: Deferred OM - 20% Non FMR | F118: 0 | G118: 0 | H118: 0 | I118: 0 | K118: 0 | L118: 0 | M118: 0 | N118: 0 | Q118: 0 | R118: 0 | S118: 0 | T118: 0 | V118: 0 | W118: -17.08 | X118: 17.08 | Y118: N.M. | AA118: 0 | AC118: 0 | AD118: 0 | AE118: 0 | AF118: 0 | AG118: 0 | AH118: 0 | AI118: 0 | AJ118: 0 | AK118: 0 | AL118: 0 | AM118: 0 | AN118: 0 | AP118: 0 | AQ118: 0 | AR118: 0 | AS118: 0
A119: %,V5020000 | B119: 5020000 | C119: Steam Expenses | F119: 143316.68 | G119: 183480.07 | H119: -40163.39 | I119: -0.2188978345 | K119: 677081.43 | L119: 679055.93 | M119: -1974.5 | N119: -0.00290771336 | Q119: 526739.36 | R119: 415303.89 | S119: 111435.47 | T119: 0.2683227215 | V119: 2014462.83 | W119: 1685337.29 | X119: 329125.54 | Y119: 0.1952876388 | AA119: 102563.19 | AC119: 263752.04 | AD119: 99111.26 | AE119: 132712.56 | AF119: 183480.07 | AG119: 147448.07 | AH119: 161081.79 | AI119: 202681.56 | AJ119: 163552.9 | AK119: 154617.86 | AL119: 168965.39 | AM119: 104244.74 | AN119: 234789.09 | AP119: 150342.07 | AQ119: 190864.22 | AR119: 192558.46 | AS119: 143316.68
A120: %,V5020002 | B120: 5020002 | C120: Urea Expense | F120: 53168.22 | G120: 73029.31 | H120: -19861.09 | I120: -0.271960532 | K120: 349954.83 | L120: 306265.27 | M120: 43689.56 | N120: 0.1426526749 | Q120: 209612.26 | R120: 127452.74 | S120: 82159.52 | T120: 0.644627334 | V120: 958179.14 | W120: 1137502.43 | X120: -179323.29 | Y120: -0.1576465116 | AA120: 158103.85 | AC120: 178812.53 | AD120: 40869.72 | AE120: 13553.71 | AF120: 73029.31 | AG120: 1813.2 | AH120: 82902.21 | AI120: 89646.41 | AJ120: 88624.99 | AK120: 22135.35 | AL120: 137585.53 | AM120: 82892.35 | AN120: 102624.27 | AP120: 140342.57 | AQ120: 104775.44 | AR120: 51668.6 | AS120: 53168.22
A121: %,V5020004 | B121: 5020004 | C121: Lime-Related Expenses | F121: 112931.6 | G121: 201531.73 | H121: -88600.13 | I121: -0.4396336497 | K121: 795716.66 | L121: 631585.79 | M121: 164130.87 | N121: 0.259871062 | Q121: 473806.44 | R121: 337911.78 | S121: 135894.66 | T121: 0.4021601733 | V121: 2574164.17 | W121: 2355834.24 | X121: 218329.93 | Y121: 0.09267626996 | AA121: 320071.87 | AC121: 293674.01 | AD121: 108042.89 | AE121: 28337.16 | AF121: 201531.73 | AG121: 56715.14 | AH121: 92368.08 | AI121: 379391.47 | AJ121: 285011.39 | AK121: 73936.82 | AL121: 358832.84 | AM121: 260340.62 | AN121: 271851.15 | AP121: 321910.22 | AQ121: 242251.29 | AR121: 118623.55 | AS121: 112931.6
A122: %,V5050000 | B122: 5050000 | C122: Electric Expenses | F122: 14860.84 | G122: 16578.74 | H122: -1717.9 | I122: -0.1036206612 | K122: 29573.97 | L122: 19390.82 | M122: 10183.15 | N122: 0.5251531395 | Q122: 23432.14 | R122: 17946.44 | S122: 5485.7 | T122: 0.3056706511 | V122: 85226.54 | W122: 51815.25 | X122: 33411.29 | Y122: 0.6448157637 | AA122: -773.37 | AC122: 1444.38 | AD122: -433.93 | AE122: 1801.63 | AF122: 16578.74 | AG122: 6537.93 | AH122: 13658.29 | AI122: 6851.37 | AJ122: 12544.92 | AK122: 4144.83 | AL122: 4963.2 | AM122: 4182.45 | AN122: 2769.58 | AP122: 6141.83 | AQ122: 1143.4 | AR122: 7427.9 | AS122: 14860.84
A123: %,V5060000 | B123: 5060000 | C123: Misc Steam Power Expenses | F123: 438281.02 | G123: 374041.75 | H123: 64239.27 | I123: 0.1717435821 | K123: 2019061.84 | L123: 1525965.076 | M123: 493096.764 | N123: 0.323137647 | Q123: 1541766.76 | R123: 1108123.566 | S123: 433643.194 | T123: 0.3913310819 | V123: 5502768.19 | W123: 5904605.516 | X123: -401837.326 | Y123: -0.06805489798 | AA123: 444638.68 | AC123: 417841.51 | AD123: 352355.376 | AE123: 381726.44 | AF123: 374041.75 | AG123: 455065.62 | AH123: 412492.9 | AI123: 448311.9 | AJ123: 264385.36 | AK123: 343775.758 | AL123: 402701.312 | AM123: 443736.08 | AN123: 713237.42 | AP123: 477295.08 | AQ123: 587253.12 | AR123: 516232.62 | AS123: 438281.02
A124: %,V5060002 | B124: 5060002 | C124: Misc Steam Power Exp-Assoc | F124: 4687.48 | G124: 4662.2 | H124: 25.28 | I124: 0.005422332804 | K124: 19564.02 | L124: 19046.43 | M124: 517.59 | N124: 0.02717517141 | Q124: 14661.24 | R124: 14079.02 | S124: 582.22 | T124: 0.04135373059 | V124: 48516.9 | W124: 53508.64 | X124: -4991.74 | Y124: -0.09328848575 | AA124: 5032.84 | AC124: 4967.41 | AD124: 5161.98 | AE124: 4254.84 | AF124: 4662.2 | AG124: 3472.2 | AH124: 3074.38 | AI124: 4032.86 | AJ124: 3702.6 | AK124: 3908.36 | AL124: 3162.2 | AM124: 3688.78 | AN124: 3911.5 | AP124: 4902.78 | AQ124: 4795.7 | AR124: 5178.06 | AS124: 4687.48
A125: %,V5060011 | B125: 5060011 | C125: BSRR O/U Recovery-Oper Costs | F125: 6157.14 | G125: 0 | H125: 6157.14 | I125: N.M. | K125: 6157.14 | L125: 0 | M125: 6157.14 | N125: N.M. | Q125: 6157.14 | R125: 0 | S125: 6157.14 | T125: N.M. | V125: 6157.14 | W125: 213.85 | X125: 5943.29 | Y125: N.M. | AA125: 0 | AC125: 0 | AD125: 0 | AE125: 0 | AF125: 0 | AG125: 0 | AH125: 0 | AI125: 0 | AJ125: 0 | AK125: 0 | AL125: 0 | AM125: 0 | AN125: 0 | AP125: 0 | AQ125: 0 | AR125: 0 | AS125: 6157.14
A126: %,V5070006 | B126: 5070006 | C126: Rents - Associated | F126: 127.56 | G126: 193.17 | H126: -65.61 | I126: -0.3396490138 | K126: 510.23 | L126: 772.68 | M126: -262.45 | N126: -0.3396619558 | Q126: 387.98 | R126: 579.51 | S126: -191.53 | T126: -0.3305033563 | V126: 2055.59 | W126: 772.68 | X126: 1282.91 | Y126: 1.660338044 | AA126: 0 | AC126: 193.17 | AD126: 193.17 | AE126: 193.17 | AF126: 193.17 | AG126: 193.17 | AH126: 193.17 | AI126: 193.17 | AJ126: 193.17 | AK126: 193.17 | AL126: 193.17 | AM126: 193.17 | AN126: 193.17 | AP126: 122.25 | AQ126: 131.83 | AR126: 128.59 | AS126: 127.56
A127: %,V5090000 | B127: 5090000 | C127: Allow Consum Title IV SO2 | F127: 1557.29 | G127: 944.17 | H127: 613.12 | I127: 0.649374583 | K127: 4851.22 | L127: 6199.19 | M127: -1347.97 | N127: -0.217442924 | Q127: 3046.18 | R127: 3285.72 | S127: -239.54 | T127: -0.07290335147 | V127: 15350.43 | W127: 37649.41 | X127: -22298.98 | Y127: -0.5922796665 | AA127: 3197.64 | AC127: 2913.47 | AD127: 2114.95 | AE127: 226.6 | AF127: 944.17 | AG127: 339.9 | AH127: 1321.84 | AI127: 2266.02 | AJ127: 1548.45 | AK127: 566.51 | AL127: 1737.28 | AM127: 1586.21 | AN127: 1133 | AP127: 1805.04 | AQ127: 958 | AR127: 530.89 | AS127: 1557.29
A128: %,V5090001 | B128: 5090001 | C128: Allowance Consumption - NOx | F128: 0 | G128: 0 | H128: 0 | I128: 0 | K128: 0 | L128: 0 | M128: 0 | N128: 0 | Q128: 0 | R128: 0 | S128: 0 | T128: 0 | V128: -157142.86 | W128: 42857.15 | X128: -200000.01 | Y128: -4.666666122 | AA128: 0 | AC128: 0 | AD128: 0 | AE128: 0 | AF128: 0 | AG128: 0 | AH128: 0 | AI128: 0 | AJ128: 0 | AK128: -157142.86 | AL128: 0 | AM128: 0 | AN128: 0 | AP128: 0 | AQ128: 0 | AR128: 0 | AS128: 0
A129: %,V5090009 | B129: 5090009 | C129: Allow Consumpt CSAPR SO2 | F129: 7.64 | G129: 4.62 | H129: 3.02 | I129: 0.6536796537 | K129: 23.79 | L129: 30.28 | M129: -6.49 | N129: -0.214332893 | Q129: 14.93 | R129: 16.06 | S129: -1.13 | T129: -0.0703611457 | V129: 74.53 | W129: 181.01 | X129: -106.48 | Y129: -0.5882547926 | AA129: 15.32 | AC129: 14.22 | AD129: 10.33 | AE129: 1.11 | AF129: 4.62 | AG129: 1.66 | AH129: 6.46 | AI129: 10.93 | AJ129: 7.46 | AK129: 2.73 | AL129: 8.38 | AM129: 7.65 | AN129: 5.47 | AP129: 8.86 | AQ129: 4.69 | AR129: 2.6 | AS129: 7.64
A130: %,FACCOUNT,TGL_FERC_ACCT,XDYYNNY01,N500-509_EXC_501 | C130: Steam Power Operations | F130: 1111224.15 | G130: 1173387.05 | H130: -62162.9 | I130: -0.05297731895 | K130: 5430182.14 | L130: 4494721.476 | M130: 935460.664 | N130: 0.2081242784 | Q130: 3951571.27 | R130: 2994568.406 | S130: 957002.864 | T130: 0.3195795635 | V130: 15774193.41 | W130: 15460742.07 | X130: 313451.344 | Y130: 0.02027401677 | AA130: 1360103.4 | AC130: 1500153.07 | AD130: 951500.876 | AE130: 869680.48 | AF130: 1173387.05 | AG130: 976415.77 | AH130: 1107570.14 | AI130: 1574463.19 | AJ130: 1224951.9 | AK130: 820468.688 | AL130: 1445030.332 | AM130: 1329377.2 | AN130: 1865734.05 | AP130: 1478610.87 | AQ130: 1529122.72 | AR130: 1311224.4 | AS130: 1111224.15
A132: %,FACCOUNT,TGL_FERC_ACCT,XDYYNNY01,N517-525 | C132: Nuclear Power Operations | F132: 0 | G132: 0 | H132: =+F132-G132 -> 0 | I132: =IF(G132<0,IF(H132=0,0,IF(OR(G132=0,F132=0),"N.M.",IF(ABS(H132/G132)>=10,"N.M.",H132/(-G132)))),IF(H132=0,0,IF(OR(G132=0,F132=0),"N.M.",IF(ABS(H132/G132)>=10,"N.M.",H132/G132)))) -> 0 | K132: 0 | L132: 0 | M132: =+K132-L132 -> 0 | N132: =IF(L132<0,IF(M132=0,0,IF(OR(L132=0,K132=0),"N.M.",IF(ABS(M132/L132)>=10,"N.M.",M132/(-L132)))),IF(M132=0,0,IF(OR(L132=0,K132=0),"N.M.",IF(ABS(M132/L132)>=10,"N.M.",M132/L132)))) -> 0 | Q132: 0 | R132: 0 | S132: =+Q132-R132 -> 0 | T132: =IF(R132<0,IF(S132=0,0,IF(OR(R132=0,Q132=0),"N.M.",IF(ABS(S132/R132)>=10,"N.M.",S132/(-R132)))),IF(S132=0,0,IF(OR(R132=0,Q132=0),"N.M.",IF(ABS(S132/R132)>=10,"N.M.",S132/R132)))) -> 0 | V132: 0 | W132: 0 | X132: =+V132-W132 -> 0 | Y132: =IF(W132<0,IF(X132=0,0,IF(OR(W132=0,V132=0),"N.M.",IF(ABS(X132/W132)>=10,"N.M.",X132/(-W132)))),IF(X132=0,0,IF(OR(W132=0,V132=0),"N.M.",IF(ABS(X132/W132)>=10,"N.M.",X132/W132)))) -> 0 | AA132: 0 | AC132: 0 | AD132: 0 | AE132: 0 | AF132: 0 | AG132: 0 | AH132: 0 | AI132: 0 | AJ132: 0 | AK132: 0 | AL132: 0 | AM132: 0 | AN132: 0 | AP132: 0 | AQ132: 0 | AR132: 0 | AS132: 0
A134: %,FACCOUNT,TGL_FERC_ACCT,XDYYNNY01,N535-540 | C134: Hydraulic Power Operations | F134: 0 | G134: 0 | H134: =+F134-G134 -> 0 | I134: =IF(G134<0,IF(H134=0,0,IF(OR(G134=0,F134=0),"N.M.",IF(ABS(H134/G134)>=10,"N.M.",H134/(-G134)))),IF(H134=0,0,IF(OR(G134=0,F134=0),"N.M.",IF(ABS(H134/G134)>=10,"N.M.",H134/G134)))) -> 0 | K134: 0 | L134: 0 | M134: =+K134-L134 -> 0 | N134: =IF(L134<0,IF(M134=0,0,IF(OR(L134=0,K134=0),"N.M.",IF(ABS(M134/L134)>=10,"N.M.",M134/(-L134)))),IF(M134=0,0,IF(OR(L134=0,K134=0),"N.M.",IF(ABS(M134/L134)>=10,"N.M.",M134/L134)))) -> 0 | Q134: 0 | R134: 0 | S134: =+Q134-R134 -> 0 | T134: =IF(R134<0,IF(S134=0,0,IF(OR(R134=0,Q134=0),"N.M.",IF(ABS(S134/R134)>=10,"N.M.",S134/(-R134)))),IF(S134=0,0,IF(OR(R134=0,Q134=0),"N.M.",IF(ABS(S134/R134)>=10,"N.M.",S134/R134)))) -> 0 | V134: 0 | W134: 0 | X134: =+V134-W134 -> 0 | Y134: =IF(W134<0,IF(X134=0,0,IF(OR(W134=0,V134=0),"N.M.",IF(ABS(X134/W134)>=10,"N.M.",X134/(-W134)))),IF(X134=0,0,IF(OR(W134=0,V134=0),"N.M.",IF(ABS(X134/W134)>=10,"N.M.",X134/W134)))) -> 0 | AA134: 0 | AC134: 0 | AD134: 0 | AE134: 0 | AF134: 0 | AG134: 0 | AH134: 0 | AI134: 0 | AJ134: 0 | AK134: 0 | AL134: 0 | AM134: 0 | AN134: 0 | AP134: 0 | AQ134: 0 | AR134: 0 | AS134: 0
A136: %,V5490000 | B136: 5490000 | C136: Misc Other Pwer Generation Exp | F136: 0 | G136: 0 | H136: =+F136-G136 -> 0 | I136: =IF(G136<0,IF(H136=0,0,IF(OR(G136=0,F136=0),"N.M.",IF(ABS(H136/G136)>=10,"N.M.",H136/(-G136)))),IF(H136=0,0,IF(OR(G136=0,F136=0),"N.M.",IF(ABS(H136/G136)>=10,"N.M.",H136/G136)))) -> 0 | K136: 0 | L136: 0 | M136: =+K136-L136 -> 0 | N136: =IF(L136<0,IF(M136=0,0,IF(OR(L136=0,K136=0),"N.M.",IF(ABS(M136/L136)>=10,"N.M.",M136/(-L136)))),IF(M136=0,0,IF(OR(L136=0,K136=0),"N.M.",IF(ABS(M136/L136)>=10,"N.M.",M136/L136)))) -> 0 | Q136: 0 | R136: 0 | S136: =+Q136-R136 -> 0 | T136: =IF(R136<0,IF(S136=0,0,IF(OR(R136=0,Q136=0),"N.M.",IF(ABS(S136/R136)>=10,"N.M.",S136/(-R136)))),IF(S136=0,0,IF(OR(R136=0,Q136=0),"N.M.",IF(ABS(S136/R136)>=10,"N.M.",S136/R136)))) -> 0 | V136: 0.01 | W136: 0 | X136: =+V136-W136 -> 0.01 | Y136: =IF(W136<0,IF(X136=0,0,IF(OR(W136=0,V136=0),"N.M.",IF(ABS(X136/W136)>=10,"N.M.",X136/(-W136)))),IF(X136=0,0,IF(OR(W136=0,V136=0),"N.M.",IF(ABS(X136/W136)>=10,"N.M.",X136/W136)))) -> N.M. | AA136: 0 | AC136: 0 | AD136: 0 | AE136: 0 | AF136: 0 | AG136: 0 | AH136: 0 | AI136: 0 | AJ136: 0 | AK136: 0.01 | AL136: 0 | AM136: 0 | AN136: 0 | AP136: 0 | AQ136: 0 | AR136: 0 | AS136: 0
A137: %,V8140000 | B137: 8140000 | C137: Underground Storage Expenses | F137: 0 | G137: 0 | H137: =+F137-G137 -> 0 | I137: =IF(G137<0,IF(H137=0,0,IF(OR(G137=0,F137=0),"N.M.",IF(ABS(H137/G137)>=10,"N.M.",H137/(-G137)))),IF(H137=0,0,IF(OR(G137=0,F137=0),"N.M.",IF(ABS(H137/G137)>=10,"N.M.",H137/G137)))) -> 0 | K137: 0 | L137: 0 | M137: =+K137-L137 -> 0 | N137: =IF(L137<0,IF(M137=0,0,IF(OR(L137=0,K137=0),"N.M.",IF(ABS(M137/L137)>=10,"N.M.",M137/(-L137)))),IF(M137=0,0,IF(OR(L137=0,K137=0),"N.M.",IF(ABS(M137/L137)>=10,"N.M.",M137/L137)))) -> 0 | Q137: 0 | R137: 0 | S137: =+Q137-R137 -> 0 | T137: =IF(R137<0,IF(S137=0,0,IF(OR(R137=0,Q137=0),"N.M.",IF(ABS(S137/R137)>=10,"N.M.",S137/(-R137)))),IF(S137=0,0,IF(OR(R137=0,Q137=0),"N.M.",IF(ABS(S137/R137)>=10,"N.M.",S137/R137)))) -> 0 | V137: 0 | W137: 0 | X137: =+V137-W137 -> 0 | Y137: =IF(W137<0,IF(X137=0,0,IF(OR(W137=0,V137=0),"N.M.",IF(ABS(X137/W137)>=10,"N.M.",X137/(-W137)))),IF(X137=0,0,IF(OR(W137=0,V137=0),"N.M.",IF(ABS(X137/W137)>=10,"N.M.",X137/W137)))) -> 0 | AA137: -1637.46 | AC137: 0 | AD137: 0 | AE137: 0 | AF137: 0 | AG137: 0 | AH137: 0 | AI137: 0 | AJ137: 0 | AK137: 0 | AL137: 0 | AM137: 0 | AN137: 0 | AP137: 0 | AQ137: 0 | AR137: 0 | AS137: 0
A138: %,FACCOUNT,TGL_FERC_ACCT,XDYYNNY01,N546-550 | C138: Other Power Operations | F138: 0 | G138: 0 | H138: =+F138-G138 -> 0 | I138: =IF(G138<0,IF(H138=0,0,IF(OR(G138=0,F138=0),"N.M.",IF(ABS(H138/G138)>=10,"N.M.",H138/(-G138)))),IF(H138=0,0,IF(OR(G138=0,F138=0),"N.M.",IF(ABS(H138/G138)>=10,"N.M.",H138/G138)))) -> 0 | K138: 0 | L138: 0 | M138: =+K138-L138 -> 0 | N138: =IF(L138<0,IF(M138=0,0,IF(OR(L138=0,K138=0),"N.M.",IF(ABS(M138/L138)>=10,"N.M.",M138/(-L138)))),IF(M138=0,0,IF(OR(L138=0,K138=0),"N.M.",IF(ABS(M138/L138)>=10,"N.M.",M138/L138)))) -> 0 | Q138: 0 | R138: 0 | S138: =+Q138-R138 -> 0 | T138: =IF(R138<0,IF(S138=0,0,IF(OR(R138=0,Q138=0),"N.M.",IF(ABS(S138/R138)>=10,"N.M.",S138/(-R138)))),IF(S138=0,0,IF(OR(R138=0,Q138=0),"N.M.",IF(ABS(S138/R138)>=10,"N.M.",S138/R138)))) -> 0 | V138: 0.01 | W138: 0 | X138: =+V138-W138 -> 0.01 | Y138: =IF(W138<0,IF(X138=0,0,IF(OR(W138=0,V138=0),"N.M.",IF(ABS(X138/W138)>=10,"N.M.",X138/(-W138)))),IF(X138=0,0,IF(OR(W138=0,V138=0),"N.M.",IF(ABS(X138/W138)>=10,"N.M.",X138/W138)))) -> N.M. | AA138: -1637.46 | AC138: 0 | AD138: 0 | AE138: 0 | AF138: 0 | AG138: 0 | AH138: 0 | AI138: 0 | AJ138: 0 | AK138: 0.01 | AL138: 0 | AM138: 0 | AN138: 0 | AP138: 0 | AQ138: 0 | AR138: 0 | AS138: 0
A140: %,V5550001 | B140: 5550001 | C140: Purch Pwr-NonTrading-Nonassoc | F140: 11977818.9 | G140: 7405117.81 | H140: =+F140-G140 -> 4572701.09 | I140: =IF(G140<0,IF(H140=0,0,IF(OR(G140=0,F140=0),"N.M.",IF(ABS(H140/G140)>=10,"N.M.",H140/(-G140)))),IF(H140=0,0,IF(OR(G140=0,F140=0),"N.M.",IF(ABS(H140/G140)>=10,"N.M.",H140/G140)))) -> 0.6175055154 | K140: 49601439.54 | L140: 51420548.58 | M140: =+K140-L140 -> -1819109.04 | N140: =IF(L140<0,IF(M140=0,0,IF(OR(L140=0,K140=0),"N.M.",IF(ABS(M140/L140)>=10,"N.M.",M140/(-L140)))),IF(M140=0,0,IF(OR(L140=0,K140=0),"N.M.",IF(ABS(M140/L140)>=10,"N.M.",M140/L140)))) -> -0.03537708349 | Q140: 28687667.05 | R140: 36215045.92 | S140: =+Q140-R140 -> -7527378.87 | T140: =IF(R140<0,IF(S140=0,0,IF(OR(R140=0,Q140=0),"N.M.",IF(ABS(S140/R140)>=10,"N.M.",S140/(-R140)))),IF(S140=0,0,IF(OR(R140=0,Q140=0),"N.M.",IF(ABS(S140/R140)>=10,"N.M.",S140/R140)))) -> -0.2078522525 | V140: 111217196.2 | W140: 106456225.7 | X140: =+V140-W140 -> 4760970.54 | Y140: =IF(W140<0,IF(X140=0,0,IF(OR(W140=0,V140=0),"N.M.",IF(ABS(X140/W140)>=10,"N.M.",X140/(-W140)))),IF(X140=0,0,IF(OR(W140=0,V140=0),"N.M.",IF(ABS(X140/W140)>=10,"N.M.",X140/W140)))) -> 0.0447223308 | AA140: 6910226.45 | AC140: 15205502.66 | AD140: 14508733.28 | AE140: 14301194.83 | AF140: 7405117.81 | AG140: 10541889.76 | AH140: 6715935.28 | AI140: 7717470.3 | AJ140: 3967199.65 | AK140: 10258070.89 | AL140: 8213710.37 | AM140: 5071677.35 | AN140: 9129803.07 | AP140: 20913772.49 | AQ140: 7530380.71 | AR140: 9179467.44 | AS140: 11977818.9
A141: %,V5550004 | B141: 5550004 | C141: Purchased Power-Pool Capacity | F141: 31536.54 | G141: 0 | H141: 31536.54 | I141: N.M. | K141: 126146.14 | L141: 0 | M141: 126146.14 | N141: N.M. | Q141: 93558.39 | R141: 0 | S141: 93558.39 | T141: N.M. | V141: 351106.76 | W141: 76088.34 | X141: 275018.42 | Y141: 3.614462084 | AA141: 0 | AC141: 0 | AD141: 0 | AE141: 0 | AF141: 0 | AG141: 0 | AH141: 0 | AI141: 64124.29 | AJ141: 32587.75 | AK141: 31536.54 | AL141: 32587.75 | AM141: 31536.54 | AN141: 32587.75 | AP141: 32587.75 | AQ141: 29434.1 | AR141: 32587.75 | AS141: 31536.54
A142: %,V5550023 | B142: 5550023 | C142: Purch Power Capacity -NA | F142: 0 | G142: 201548.44 | H142: -201548.44 | I142: N.M. | K142: 0 | L142: 806193.76 | M142: -806193.76 | N142: N.M. | Q142: 0 | R142: 604645.32 | S142: -604645.32 | T142: N.M. | V142: 1045958.93 | W142: 2225450.65 | X142: -1179491.72 | Y142: -0.5300012921 | AA142: 201548.44 | AC142: 201548.44 | AD142: 201548.44 | AE142: 201548.44 | AF142: 201548.44 | AG142: 1043329.69 | AH142: 483018.55 | AI142: 0 | AJ142: -448262.49 | AK142: 0 | AL142: -32126.82 | AM142: 0 | AN142: 0 | AP142: 0 | AQ142: 0 | AR142: 0 | AS142: 0
A143: %,V5550029 | B143: 5550029 | C143: Purch Power-Assoc-Trnsfr Price | F143: 0 | G143: 0 | H143: 0 | I143: 0 | K143: 0 | L143: 0 | M143: 0 | N143: 0 | Q143: 0 | R143: 0 | S143: 0 | T143: 0 | V143: 0 | W143: 0 | X143: 0 | Y143: 0 | AA143: 0 | AC143: 0 | AD143: 0 | AE143: 0 | AF143: 0 | AG143: 0 | AH143: 0 | AI143: 0 | AJ143: 0 | AK143: 0 | AL143: 0 | AM143: 0 | AN143: 0 | AP143: 0 | AQ143: 0 | AR143: 0 | AS143: 0
A144: %,V5550039 | B144: 5550039 | C144: PJM Inadvertent Mtr Res-OSS | F144: 1359.86 | G144: -477.24 | H144: 1837.1 | I144: 3.849425865 | K144: 4850.31 | L144: -1616.71 | M144: 6467.02 | N144: 4.000111337 | Q144: 2151.72 | R144: -1109.5 | S144: 3261.22 | T144: 2.939360072 | V144: 2802.29 | W144: 3522.93 | X144: -720.64 | Y144: -0.2045570023 | AA144: -640.23 | AC144: -507.21 | AD144: -183.3 | AE144: -448.96 | AF144: -477.24 | AG144: -806.03 | AH144: 891.5 | AI144: -75.47 | AJ144: 666.12 | AK144: -278.4 | AL144: -993.12 | AM144: -55.37 | AN144: -1397.25 | AP144: 2698.59 | AQ144: 1435.45 | AR144: -643.59 | AS144: 1359.86
A145: %,V5550040 | B145: 5550040 | C145: PJM Inadvertent Mtr Res-LSE | F145: 20513.57 | G145: -8456.78 | H145: 28970.35 | I145: 3.425695123 | K145: 84401.59 | L145: -24998.69 | M145: 109400.28 | N145: 4.376240515 | Q145: 60579.22 | R145: -21473.98 | S145: 82053.2 | T145: 3.821052269 | V145: 46691.25 | W145: 23634.98 | X145: 23056.27 | Y145: 0.9755146821 | AA145: -4170.81 | AC145: -3524.71 | AD145: -5794.71 | AE145: -7222.49 | AF145: -8456.78 | AG145: -9252.3 | AH145: -4019.14 | AI145: -2432.77 | AJ145: 3370.29 | AK145: -4706.82 | AL145: -8561.5 | AM145: -5256.76 | AN145: -6851.34 | AP145: 23822.37 | AQ145: 24505 | AR145: 15560.65 | AS145: 20513.57
A146: %,V5550074 | B146: 5550074 | C146: PJM Reactive-Charge | F146: 259550.69 | G146: 273005.67 | H146: -13454.98 | I146: -0.04928461742 | K146: 1008209.33 | L146: 1103817.96 | M146: -95608.63 | N146: -0.0866163022 | Q146: 754610.02 | R146: 817150.53 | S146: -62540.51 | T146: -0.07653487051 | V146: 3122193.25 | W146: 3467650.49 | X146: -345457.24 | Y146: -0.09962285444 | AA146: 290161.54 | AC146: 286667.43 | AD146: 273119.37 | AE146: 271025.49 | AF146: 273005.67 | AG146: 274383.7 | AH146: 271549.29 | AI146: 266154.98 | AJ146: 268149.33 | AK146: 266645.7 | AL146: 262768.6 | AM146: 244671.13 | AN146: 259661.19 | AP146: 253599.31 | AQ146: 255056.58 | AR146: 240002.75 | AS146: 259550.69
A147: %,V5550075 | B147: 5550075 | C147: PJM Reactive-Credit | F147: -119573 | G147: -119573 | H147: 0 | I147: 0 | K147: -478292 | L147: -478292 | M147: 0 | N147: 0 | Q147: -358719 | R147: -358719 | S147: 0 | T147: 0 | V147: -1434876 | W147: -1434876 | X147: 0 | Y147: 0 | AA147: -119573 | AC147: -119573 | AD147: -119573 | AE147: -119573 | AF147: -119573 | AG147: -119573 | AH147: -119573 | AI147: -119573 | AJ147: -119573 | AK147: -119573 | AL147: -119573 | AM147: -119573 | AN147: -119573 | AP147: -119573 | AQ147: -119573 | AR147: -119573 | AS147: -119573
A148: %,V5550076 | B148: 5550076 | C148: PJM Black Start-Charge | F148: 42639.46 | G148: 46811.54 | H148: -4172.08 | I148: -0.08912503199 | K148: 117265.38 | L148: 144250.37 | M148: -26984.99 | N148: -0.187070508 | Q148: 149887.47 | R148: 140866.62 | S148: 9020.85 | T148: 0.06403823702 | V148: 436247.63 | W148: 900095.47 | X148: -463847.84 | Y148: -0.5153318236 | AA148: 94990.6 | AC148: 3383.75 | AD148: 46795.03 | AE148: 47260.05 | AF148: 46811.54 | AG148: 37522.05 | AH148: 26888.6 | AI148: 26837.71 | AJ148: 58868.57 | AK148: 37065.79 | AL148: 46995.64 | AM148: 42721.44 | AN148: 42082.45 | AP148: -32622.09 | AQ148: 33933.29 | AR148: 73314.72 | AS148: 42639.46
A149: %,V5550078 | B149: 5550078 | C149: PJM Regulation-Charge | F149: 80208.09 | G149: 72784.06 | H149: 7424.03 | I149: 0.1020007678 | K149: 892380.8 | L149: 349917.7 | M149: 542463.1 | N149: 1.550259104 | Q149: 504063.2 | R149: 222280.68 | S149: 281782.52 | T149: 1.267687862 | V149: 1821698.8 | W149: 747374.47 | X149: 1074324.33 | Y149: 1.437464582 | AA149: 43038.27 | AC149: 127637.02 | AD149: 72549.02 | AE149: 76947.6 | AF149: 72784.06 | AG149: 47347.26 | AH149: 108302.07 | AI149: 74426.03 | AJ149: 49743.75 | AK149: 59902.75 | AL149: 395562.56 | AM149: -100532.22 | AN149: 294565.8 | AP149: 388317.6 | AQ149: 783895.78 | AR149: -360040.67 | AS149: 80208.09
A150: %,V5550079 | B150: 5550079 | C150: PJM Regulation-Credit | F150: -11576.11 | G150: -274.49 | H150: -11301.62 | I150: N.M. | K150: -174084.37 | L150: 212643.47 | M150: -386727.84 | N150: -1.818667839 | Q150: -202596.49 | R150: -3291.34 | S150: -199305.15 | T150: N.M. | V150: 106554.44 | W150: -19218.68 | X150: 125773.12 | Y150: 6.544316259 | AA150: -226210.47 | AC150: 215934.81 | AD150: -1993.79 | AE150: -1023.06 | AF150: -274.49 | AG150: -585.84 | AH150: -961.09 | AI150: -3196.69 | AJ150: -2761.37 | AK150: -1224.51 | AL150: -384669.63 | AM150: 842964.84 | AN150: -168926.9 | AP150: 28512.12 | AQ150: -1144539.79 | AR150: 953519.41 | AS150: -11576.11
A151: %,V5550080 | B151: 5550080 | C151: PJM Hourly Net Purch.-FERC | F151: 480323.59 | G151: 784752.9 | H151: -304429.31 | I151: -0.3879301497 | K151: 7180353.34 | L151: 2124034.33 | M151: 5056319.01 | N151: 2.380526029 | Q151: 2844395.39 | R151: 1340551.73 | S151: 1503843.66 | T151: 1.121809496 | V151: 24506285.36 | W151: 10603108.85 | X151: 13903176.51 | Y151: 1.311235856 | AA151: 715522.54 | AC151: 783482.6 | AD151: 147910.84 | AE151: 407887.99 | AF151: 784752.9 | AG151: 754909.63 | AH151: 3619595.03 | AI151: 1838939.89 | AJ151: 1322426.52 | AK151: 914313.81 | AL151: 2318897.42 | AM151: 4789574.69 | AN151: 1767275.03 | AP151: 4335957.95 | AQ151: 2034767.41 | AR151: 329304.39 | AS151: 480323.59
A152: %,V5550083 | B152: 5550083 | C152: PJM Sync & Non Sync-Charge | F152: 52755.81 | G152: 111429.76 | H152: -58673.95 | I152: -0.5265554732 | K152: 443450.44 | L152: 385734.32 | M152: 57716.12 | N152: 0.1496266135 | Q152: 330157.37 | R152: 283295.61 | S152: 46861.76 | T152: 0.1654164708 | V152: 1127854.82 | W152: 748354.97 | X152: 379499.85 | Y152: 0.5071120861 | AA152: 22069.79 | AC152: 102438.71 | AD152: 38724.19 | AE152: 133141.66 | AF152: 111429.76 | AG152: 63425.69 | AH152: 95618.73 | AI152: 140539.29 | AJ152: 107907.97 | AK152: 54373.06 | AL152: 77606.97 | AM152: 43229.24 | AN152: 101703.43 | AP152: 113293.07 | AQ152: 169541.07 | AR152: 107860.49 | AS152: 52755.81
A153: %,V5550084 | B153: 5550084 | C153: PJM Sync & Non Sync-Credit | F153: -500.37 | G153: -28724.06 | H153: 28223.69 | I153: 0.9825801088 | K153: -36610.58 | L153: -71663.19 | M153: 35052.61 | N153: 0.4891299145 | Q153: -44279.27 | R153: -62793.96 | S153: 18514.69 | T153: 0.2948482625 | V153: -133572.54 | W153: -120165.03 | X153: -13407.51 | Y153: -0.1115758054 | AA153: 3460 | AC153: -8869.23 | AD153: 786.63 | AE153: -34856.53 | AF153: -28724.06 | AG153: -21726.2 | AH153: -5237.44 | AI153: -13288.33 | AJ153: -9614.59 | AK153: -2078.36 | AL153: -27942.9 | AM153: 9214.05 | AN153: -26288.19 | AP153: 7668.69 | AQ153: -23560.27 | AR153: -20218.63 | AS153: -500.37
A154: %,V5550094 | B154: 5550094 | C154: Purchased Power - Fuel | F154: 0 | G154: 0 | H154: 0 | I154: 0 | K154: 0 | L154: 0 | M154: 0 | N154: 0 | Q154: 0 | R154: 0 | S154: 0 | T154: 0 | V154: 0 | W154: 0 | X154: 0 | Y154: 0 | AA154: 0 | AC154: 0 | AD154: 0 | AE154: 0 | AF154: 0 | AG154: 0 | AH154: 0 | AI154: 0 | AJ154: 0 | AK154: 0 | AL154: 0 | AM154: 0 | AN154: 0 | AP154: 0 | AQ154: 0 | AR154: 0 | AS154: 0
A155: %,V5550123 | B155: 5550123 | C155: PJM OpRes-LSE-Charge | F155: 135804.52 | G155: 195018.63 | H155: -59214.11 | I155: -0.3036330939 | K155: 6401205.54 | L155: 3508099.05 | M155: 2893106.49 | N155: 0.8246935017 | Q155: 2776051.18 | R155: 551350.32 | S155: 2224700.86 | T155: 4.035004206 | V155: 7481321.5 | W155: 4275854.87 | X155: 3205466.63 | Y155: 0.749666845 | AA155: 122718.14 | AC155: 2956748.73 | AD155: 184745.69 | AE155: 171586 | AF155: 195018.63 | AG155: 131393.69 | AH155: 115041.68 | AI155: 165760.06 | AJ155: 79512.82 | AK155: 41149.68 | AL155: 229398.45 | AM155: 116805.13 | AN155: 201054.45 | AP155: 3625154.36 | AQ155: 2233913.08 | AR155: 406333.58 | AS155: 135804.52
A156: %,V5550124 | B156: 5550124 | C156: PJM Implicit Congestion-LSE | F156: 793181.23 | G156: 638168.13 | H156: 155013.1 | I156: 0.2429032299 | K156: 12831415.54 | L156: 3103402.56 | M156: 9728012.98 | N156: 3.134628135 | Q156: 7600579.26 | R156: 1848967.69 | S156: 5751611.57 | T156: 3.110715023 | V156: 15010547.89 | W156: 8708462.56 | X156: 6302085.33 | Y156: 0.7236737009 | AA156: 837583.09 | AC156: 1254434.87 | AD156: 539257.41 | AE156: 671542.15 | AF156: 638168.13 | AG156: -356477.75 | AH156: 652934.32 | AI156: -639690.3 | AJ156: 176273.08 | AK156: 507553.42 | AL156: 352130.73 | AM156: 477418.13 | AN156: 1008990.72 | AP156: 5230836.28 | AQ156: 5548209.68 | AR156: 1259188.35 | AS156: 793181.23
A157: %,V5550132 | B157: 5550132 | C157: PJM FTR Revenue-LSE | F157: -1221027.41 | G157: -617167.97 | H157: -603859.44 | I157: -0.9784361298 | K157: -16328562.31 | L157: -5395322.86 | M157: -10933239.45 | N157: -2.026429138 | Q157: -9622054.37 | R157: -1315228.4 | S157: -8306825.97 | T157: -6.31588093 | V157: -21080465.36 | W157: -10596671.94 | X157: -10483793.42 | Y157: -0.9893477386 | AA157: -564350.74 | AC157: -4080094.46 | AD157: -461599.88 | AE157: -236460.55 | AF157: -617167.97 | AG157: -647292.26 | AH157: -77097.56 | AI157: -229459.49 | AJ157: 96096.39 | AK157: -640803.33 | AL157: -933982.99 | AM157: -792207.81 | AN157: -1527156 | AP157: -6706507.94 | AQ157: -7222076.95 | AR157: -1178950.01 | AS157: -1221027.41
A158: %,V5550137 | B158: 5550137 | C158: PJM OpRes-LSE-Credit | F158: -113252.29 | G158: -2498.53 | H158: -110753.76 | I158: N.M. | K158: -135746.7 | L158: -18585.8 | M158: -117160.9 | N158: -6.303785686 | Q158: -167193.14 | R158: -7369.37 | S158: -159823.77 | T158: N.M. | V158: -252363.93 | W158: -70367.8 | X158: -181996.13 | Y158: -2.586355265 | AA158: -4175.88 | AC158: -11216.43 | AD158: -2505.76 | AE158: -2365.08 | AF158: -2498.53 | AG158: -18184.94 | AH158: -356.27 | AI158: -12729.52 | AJ158: -9779.79 | AK158: -18699.27 | AL158: -53378.42 | AM158: 1335 | AN158: -4824.02 | AP158: 31446.44 | AQ158: -28016.66 | AR158: -25924.19 | AS158: -113252.29
A159: %,V5550139 | B159: 5550139 | C159: Generation Deactivation expens | F159: 30541.58 | G159: 0 | H159: 30541.58 | I159: N.M. | K159: -95639.89 | L159: 0 | M159: -95639.89 | N159: N.M. | Q159: -123558.98 | R159: 0 | S159: -123558.98 | T159: N.M. | V159: 29362.18 | W159: 0 | X159: 29362.18 | Y159: N.M. | AA159: 0 | AC159: 0 | AD159: 0 | AE159: 0 | AF159: 0 | AG159: 0 | AH159: 0 | AI159: -285.27 | AJ159: 0 | AK159: 15770.18 | AL159: 48466.54 | AM159: 28569.17 | AN159: 32481.45 | AP159: 27919.09 | AQ159: -97608.9 | AR159: -56491.66 | AS159: 30541.58
A160: %,V5550326 | B160: 5550326 | C160: PJM Transm Loss Charges - LSE | F160: 54124.45 | G160: 428411.6 | H160: -374287.15 | I160: -0.8736625012 | K160: 4878402.81 | L160: 2772872.34 | M160: 2105530.47 | N160: 0.7593319172 | Q160: 1923552.57 | R160: 1197578.5 | S160: 725974.07 | T160: 0.6062016561 | V160: 9017914.47 | W160: 6435692.21 | X160: 2582222.26 | Y160: 0.4012345799 | AA160: 589842.22 | AC160: 1575293.84 | AD160: 603005.29 | AE160: 166161.61 | AF160: 428411.6 | AG160: 203143.94 | AH160: 547423.21 | AI160: 1107461.48 | AJ160: 794704.73 | AK160: 314638.01 | AL160: 169132.19 | AM160: 360837.89 | AN160: 642170.21 | AP160: 2954850.24 | AQ160: 1625981.86 | AR160: 243446.26 | AS160: 54124.45
A161: %,V5550327 | B161: 5550327 | C161: PJM Transm Loss Credits-LSE | F161: -229343.14 | G161: -212977.36 | H161: -16365.78 | I161: -0.07684281559 | K161: -2681849.97 | L161: -1431326.27 | M161: -1250523.7 | N161: -0.8736817916 | Q161: -1403499.27 | R161: -711013.5 | S161: -692485.77 | T161: -0.9739418028 | V161: -4993645.35 | W161: -3095348.09 | X161: -1898297.26 | Y161: -0.6132742441 | AA161: -294026.04 | AC161: -720312.77 | AD161: -267904.83 | AE161: -230131.31 | AF161: -212977.36 | AG161: -178636.44 | AH161: -279161.09 | AI161: -425874.15 | AJ161: -239304.5 | AK161: -198265.14 | AL161: -249617.73 | AM161: -245826.45 | AN161: -495109.88 | AP161: -1278350.7 | AQ161: -962847.84 | AR161: -211308.29 | AS161: -229343.14
A162: %,V5550328 | B162: 5550328 | C162: PJM FC Penalty Credit | F162: 0 | G162: -371.77 | H162: 371.77 | I162: N.M. | K162: -96.53 | L162: -1968.92 | M162: 1872.39 | N162: 0.9509731223 | Q162: -96.53 | R162: -1034.27 | S162: 937.74 | T162: 0.9066684715 | V162: -848.38 | W162: -2934.89 | X162: 2086.51 | Y162: 0.7109329481 | AA162: -12.81 | AC162: -934.65 | AD162: -419.65 | AE162: -242.85 | AF162: -371.77 | AG162: 0 | AH162: -288.03 | AI162: 0 | AJ162: 0 | AK162: -327.29 | AL162: 0 | AM162: -69.54 | AN162: -66.99 | AP162: 0 | AQ162: -60.66 | AR162: -35.87 | AS162: 0
A163: %,V5550335 | B163: 5550335 | C163: Purchased Power-PPA Rider | F163: -4120303.94 | G163: 0 | H163: -4120303.94 | I163: N.M. | K163: -4120303.94 | L163: 0 | M163: -4120303.94 | N163: N.M. | Q163: -4120303.94 | R163: 0 | S163: -4120303.94 | T163: N.M. | V163: -4120303.94 | W163: 0 | X163: -4120303.94 | Y163: N.M. | AA163: 0 | AC163: 0 | AD163: 0 | AE163: 0 | AF163: 0 | AG163: 0 | AH163: 0 | AI163: 0 | AJ163: 0 | AK163: 0 | AL163: 0 | AM163: 0 | AN163: 0 | AP163: 0 | AQ163: 0 | AR163: 0 | AS163: -4120303.94
A164: %,V5560000 | B164: 5560000 | C164: Sys Control & Load Dispatching | F164: 4871.28 | G164: 3967.26 | H164: 904.02 | I164: 0.2278701169 | K164: 18423.98 | L164: 17196.46 | M164: 1227.52 | N164: 0.0713821333 | Q164: 12457.34 | R164: 11837.12 | S164: 620.22 | T164: 0.05239619097 | V164: 55310.3 | W164: 65230.31 | X164: -9920.01 | Y164: -0.1520766956 | AA164: 6355.16 | AC164: 5359.34 | AD164: 4293.06 | AE164: 3576.8 | AF164: 3967.26 | AG164: 2782.06 | AH164: 3584.03 | AI164: 5757.33 | AJ164: 3313.8 | AK164: 4948.2 | AL164: 4293.59 | AM164: 4707.01 | AN164: 7500.3 | AP164: 5966.64 | AQ164: 3905.85 | AR164: 3680.21 | AS164: 4871.28
A165: %,V5570000 | B165: 5570000 | C165: Other Expenses | F165: 96217.66 | G165: 59972.58 | H165: 36245.08 | I165: 0.6043608596 | K165: 283113.63 | L165: 252424.71 | M165: 30688.92 | N165: 0.1215765287 | Q165: 208951.61 | R165: 186796.88 | S165: 22154.73 | T165: 0.1186033193 | V165: 841875.03 | W165: 796329.31 | X165: 45545.72 | Y165: 0.05719457946 | AA165: 51339.46 | AC165: 65627.83 | AD165: 64770.11 | AE165: 62054.19 | AF165: 59972.58 | AG165: 62901.43 | AH165: 61090.1 | AI165: 82871.34 | AJ165: 64405.17 | AK165: 63767.86 | AL165: 68234.29 | AM165: 64761.3 | AN165: 90729.91 | AP165: 74162.02 | AQ165: 56675.78 | AR165: 56058.17 | AS165: 96217.66
A166: %,V5570007 | B166: 5570007 | C166: Other Pwr Exp - Wholesale RECs | F166: 0 | G166: 0 | H166: 0 | I166: 0 | K166: 231.75 | L166: 243.15 | M166: -11.4 | N166: -0.04688463911 | Q166: 0 | R166: 0 | S166: 0 | T166: 0 | V166: 231.75 | W166: 243.15 | X166: -11.4 | Y166: -0.04688463911 | AA166: 0 | AC166: 243.15 | AD166: 0 | AE166: 0 | AF166: 0 | AG166: 0 | AH166: 0 | AI166: 0 | AJ166: 0 | AK166: 0 | AL166: 0 | AM166: 0 | AN166: 0 | AP166: 231.75 | AQ166: 0 | AR166: 0 | AS166: 0
A167: %,V5570009 | B167: 5570009 | C167: Other Pwr Exp- REC's - RETAIL | F167: 0 | G167: 0 | H167: 0 | I167: 0 | K167: 0 | L167: 0 | M167: 0 | N167: 0 | Q167: 0 | R167: 0 | S167: 0 | T167: 0 | V167: 0 | W167: 446.4 | X167: -446.4 | Y167: N.M. | AA167: 0 | AC167: 0 | AD167: 0 | AE167: 0 | AF167: 0 | AG167: 0 | AH167: 0 | AI167: 0 | AJ167: 0 | AK167: 0 | AL167: 0 | AM167: 0 | AN167: 0 | AP167: 0 | AQ167: 0 | AR167: 0 | AS167: 0
A168: %,V5570010 | B168: 5570010 | C168: OH Auction Exp - Incremental | F168: 0 | G168: 0 | H168: 0 | I168: 0 | K168: 0 | L168: 0 | M168: 0 | N168: 0 | Q168: 0 | R168: 0 | S168: 0 | T168: 0 | V168: 0 | W168: 5.79 | X168: -5.79 | Y168: N.M. | AA168: 0 | AC168: 0 | AD168: 0 | AE168: 0 | AF168: 0 | AG168: 0 | AH168: 0 | AI168: 0 | AJ168: 0 | AK168: 0 | AL168: 0 | AM168: 0 | AN168: 0 | AP168: 0 | AQ168: 0 | AR168: 0 | AS168: 0
A169: %,V5570025 | B169: 5570025 | C169: MATL-SAFETY | F169: 0 | G169: 0.93 | H169: -0.93 | I169: N.M. | K169: 0 | L169: 0.93 | M169: -0.93 | N169: N.M. | Q169: 0 | R169: 0.93 | S169: -0.93 | T169: N.M. | V169: 0 | W169: 0.93 | X169: -0.93 | Y169: N.M. | AA169: 0 | AC169: 0 | AD169: 0 | AE169: 0 | AF169: 0.93 | AG169: 0 | AH169: 0 | AI169: 0 | AJ169: 0 | AK169: 0 | AL169: 0 | AM169: 0 | AN169: 0 | AP169: 0 | AQ169: 0 | AR169: 0 | AS169: 0
A170: %,FACCOUNT,TGL_FERC_ACCT,XDYYNNY01,N555-557 | C170: Purchased Power | F170: 8245870.97 | G170: 9230468.11 | H170: -984597.14 | I170: -0.1066681698 | K170: 59820103.83 | L170: 58777605.25 | M170: 1042498.58 | N170: 0.0177363228 | Q170: 29906360.8 | R170: 40938334.53 | S170: -11031973.73 | T170: -0.2694778343 | V170: 144205077.4 | W170: 130194189.9 | X170: 14010887.44 | Y170: 0.1076153049 | AA170: 8675695.72 | AC170: 17839270.72 | AD170: 15826263.44 | AE170: 15881602.98 | AF170: 9230468.11 | AG170: 11810494.14 | AH170: 12215178.77 | AI170: 10043737.71 | AJ170: 6195930.2 | AK170: 11583779.77 | AL170: 10408938.99 | AM170: 10866501.76 | AN170: 11260412.19 | AP170: 29913743.03 | AQ170: 10733351.57 | AR170: 10927138.26 | AS170: 8245870.97
A172: %,V5581000 | B172: 5581000 | C172: Oper Supervision & Engineering | F172: 383.23 | G172: 25.32 | H172: =+F172-G172 -> 357.91 | I172: =IF(G172<0,IF(H172=0,0,IF(OR(G172=0,F172=0),"N.M.",IF(ABS(H172/G172)>=10,"N.M.",H172/(-G172)))),IF(H172=0,0,IF(OR(G172=0,F172=0),"N.M.",IF(ABS(H172/G172)>=10,"N.M.",H172/G172)))) -> N.M. | K172: 684.48 | L172: 25.32 | M172: =+K172-L172 -> 659.16 | N172: =IF(L172<0,IF(M172=0,0,IF(OR(L172=0,K172=0),"N.M.",IF(ABS(M172/L172)>=10,"N.M.",M172/(-L172)))),IF(M172=0,0,IF(OR(L172=0,K172=0),"N.M.",IF(ABS(M172/L172)>=10,"N.M.",M172/L172)))) -> N.M. | Q172: 466.87 | R172: 25.32 | S172: =+Q172-R172 -> 441.55 | V172: 2063.93 | W172: 25.32 | X172: =+V172-W172 -> 2038.61 | Y172: =IF(W172<0,IF(X172=0,0,IF(OR(W172=0,V172=0),"N.M.",IF(ABS(X172/W172)>=10,"N.M.",X172/(-W172)))),IF(X172=0,0,IF(OR(W172=0,V172=0),"N.M.",IF(ABS(X172/W172)>=10,"N.M.",X172/W172)))) -> N.M. | AA172: 0 | AC172: 0 | AD172: 0 | AE172: 0 | AF172: 25.32 | AG172: 120.97 | AH172: 78.59 | AI172: 243.12 | AJ172: 249.48 | AK172: 153.79 | AL172: 122.28 | AM172: 149.61 | AN172: 261.61 | AP172: 217.61 | AQ172: 22.22 | AR172: 61.42 | AS172: 383.23
A173: %,V5581300 | B173: 5581300 | C173: Oper Supervision & Engineering | F173: 571.57 | G173: -136.13 | H173: 707.7 | I173: 5.198707118 | K173: 2983.67 | L173: 235.61 | M173: 2748.06 | N173: N.M. | Q173: 1622.88 | R173: 235.61 | S173: 1387.27 | V173: 12261.29 | W173: 235.61 | X173: 12025.68 | Y173: N.M. | AA173: 0 | AC173: 0 | AD173: 154.41 | AE173: 217.33 | AF173: -136.13 | AG173: 2099.44 | AH173: 1636.25 | AI173: 775.81 | AJ173: 616.48 | AK173: 631.95 | AL173: 751.76 | AM173: 1007.55 | AN173: 1758.38 | AP173: 1360.79 | AQ173: 647.48 | AR173: 403.83 | AS173: 571.57
A174: %,V5581400 | B174: 5581400 | C174: Wind Turb Gen&Oth Plnt Op-Mjr | F174: 263.24 | G174: 167.23 | H174: 96.01 | I174: 0.5741194762 | K174: 605.65 | L174: 1199.31 | M174: -593.66 | N174: -0.4950012924 | Q174: -96.07 | R174: 786.44 | S174: -882.51 | V174: -79.81 | W174: 1199.31 | X174: -1279.12 | Y174: -1.066546598 | AA174: 0 | AC174: 412.87 | AD174: -14.26 | AE174: 633.47 | AF174: 167.23 | AG174: -788.53 | AH174: 103.28 | AI174: 81.96 | AJ174: 171.49 | AK174: 306.93 | AL174: -645.16 | AM174: -46.48 | AN174: 131.05 | AP174: 701.72 | AQ174: -172.11 | AR174: -187.2 | AS174: 263.24
A175: %,V5581601 | B175: 5581601 | C175: Wind - Variable Production Exp | F175: -15.06 | G175: 0 | H175: -15.06 | I175: N.M. | K175: 45.71 | L175: 0 | M175: 45.71 | N175: N.M. | Q175: -20.9 | R175: 0 | S175: -20.9 | V175: 69.77 | W175: 0 | X175: 69.77 | Y175: N.M. | AA175: 0 | AC175: 0 | AD175: 0 | AE175: 0 | AF175: 0 | AG175: 0 | AH175: 53.61 | AI175: 53.07 | AJ175: -9.42 | AK175: 11.93 | AL175: -62.92 | AM175: -27.79 | AN175: 5.58 | AP175: 66.61 | AQ175: -68.54 | AR175: 62.7 | AS175: -15.06
A176: %,V5582000 | B176: 5582000 | C176: Solar Panel Gen&Oth Plt Op-Mjr | F176: 4.71 | G176: -8.32 | H176: 13.03 | I176: 1.566105769 | K176: 4.71 | L176: 2.07 | M176: 2.64 | N176: 1.275362319 | Q176: -6.61 | R176: 2.07 | S176: -8.68 | V176: 4.71 | W176: 2.07 | X176: 2.64 | Y176: 1.275362319 | AA176: 0 | AC176: 0 | AD176: 2.07 | AE176: 8.32 | AF176: -8.32 | AG176: 0 | AH176: 0 | AI176: 0 | AJ176: 0 | AK176: 0 | AL176: 0 | AM176: 2.26 | AN176: -2.26 | AP176: 11.32 | AQ176: -8.24 | AR176: -3.08 | AS176: 4.71
A177: %,FACCOUNT,TGL_FERC_ACCT,XDYYNNY01,N5580 | C177: Solar and Wind Operations Expenses | F177: 1207.69 | G177: 48.1 | H177: 1159.59 | I177: N.M. | K177: 4324.22 | L177: 1462.31 | M177: 2861.91 | N177: 1.957115796 | Q177: 1966.17 | R177: 1049.44 | S177: 916.73 | V177: 14319.89 | W177: 1462.31 | X177: 12857.58 | Y177: 8.792649985 | AA177: 0 | AC177: 412.87 | AD177: 142.22 | AE177: 859.12 | AF177: 48.1 | AG177: 1431.88 | AH177: 1871.73 | AI177: 1153.96 | AJ177: 1028.03 | AK177: 1104.6 | AL177: 165.96 | AM177: 1085.15 | AN177: 2154.36 | AP177: 2358.05 | AQ177: 420.81 | AR177: 337.67 | AS177: 1207.69
A179: %,FACCOUNT,TGL_FERC_ACCT,XDYYNNY01,N5590 | C179: Other Renewables Operations Expense | F179: 0 | G179: 0 | H179: =+F179-G179 -> 0 | I179: =IF(G179<0,IF(H179=0,0,IF(OR(G179=0,F179=0),"N.M.",IF(ABS(H179/G179)>=10,"N.M.",H179/(-G179)))),IF(H179=0,0,IF(OR(G179=0,F179=0),"N.M.",IF(ABS(H179/G179)>=10,"N.M.",H179/G179)))) -> 0 | K179: 0 | L179: 0 | M179: =+K179-L179 -> 0 | N179: =IF(L179<0,IF(M179=0,0,IF(OR(L179=0,K179=0),"N.M.",IF(ABS(M179/L179)>=10,"N.M.",M179/(-L179)))),IF(M179=0,0,IF(OR(L179=0,K179=0),"N.M.",IF(ABS(M179/L179)>=10,"N.M.",M179/L179)))) -> 0 | Q179: 0 | R179: 0 | S179: =+Q179-R179 -> 0 | V179: 0 | W179: 0 | X179: =+V179-W179 -> 0 | Y179: =IF(W179<0,IF(X179=0,0,IF(OR(W179=0,V179=0),"N.M.",IF(ABS(X179/W179)>=10,"N.M.",X179/(-W179)))),IF(X179=0,0,IF(OR(W179=0,V179=0),"N.M.",IF(ABS(X179/W179)>=10,"N.M.",X179/W179)))) -> 0 | AA179: 0 | AC179: 0 | AD179: 0 | AE179: 0 | AF179: 0 | AG179: 0 | AH179: 0 | AI179: 0 | AJ179: 0 | AK179: 0 | AL179: 0 | AM179: 0 | AN179: 0 | AP179: 0 | AQ179: 0 | AR179: 0 | AS179: 0
A181: %,FACCOUNT,TGL_FERC_ACCT,XDYYNNY01,N401_OPERATION | C181: 401 Operation Expense | F181: 0 | G181: 0 | H181: =+F181-G181 -> 0 | I181: =IF(G181<0,IF(H181=0,0,IF(OR(G181=0,F181=0),"N.M.",IF(ABS(H181/G181)>=10,"N.M.",H181/(-G181)))),IF(H181=0,0,IF(OR(G181=0,F181=0),"N.M.",IF(ABS(H181/G181)>=10,"N.M.",H181/G181)))) -> 0 | K181: 0 | L181: 0 | M181: =+K181-L181 -> 0 | N181: =IF(L181<0,IF(M181=0,0,IF(OR(L181=0,K181=0),"N.M.",IF(ABS(M181/L181)>=10,"N.M.",M181/(-L181)))),IF(M181=0,0,IF(OR(L181=0,K181=0),"N.M.",IF(ABS(M181/L181)>=10,"N.M.",M181/L181)))) -> 0 | Q181: 0 | R181: 0 | S181: =+Q181-R181 -> 0 | T181: =IF(R181<0,IF(S181=0,0,IF(OR(R181=0,Q181=0),"N.M.",IF(ABS(S181/R181)>=10,"N.M.",S181/(-R181)))),IF(S181=0,0,IF(OR(R181=0,Q181=0),"N.M.",IF(ABS(S181/R181)>=10,"N.M.",S181/R181)))) -> 0 | V181: 0 | W181: 0 | X181: =+V181-W181 -> 0 | Y181: =IF(W181<0,IF(X181=0,0,IF(OR(W181=0,V181=0),"N.M.",IF(ABS(X181/W181)>=10,"N.M.",X181/(-W181)))),IF(X181=0,0,IF(OR(W181=0,V181=0),"N.M.",IF(ABS(X181/W181)>=10,"N.M.",X181/W181)))) -> 0 | AA181: 0 | AC181: 0 | AD181: 0 | AE181: 0 | AF181: 0 | AG181: 0 | AH181: 0 | AI181: 0 | AJ181: 0 | AK181: 0 | AL181: 0 | AM181: 0 | AN181: 0 | AP181: 0 | AQ181: 0 | AR181: 0 | AS181: 0
A183: %,V5600000 | B183: 5600000 | C183: Oper Supervision & Engineering | F183: 270303.55 | G183: 185380.88 | H183: =+F183-G183 -> 84922.67 | I183: =IF(G183<0,IF(H183=0,0,IF(OR(G183=0,F183=0),"N.M.",IF(ABS(H183/G183)>=10,"N.M.",H183/(-G183)))),IF(H183=0,0,IF(OR(G183=0,F183=0),"N.M.",IF(ABS(H183/G183)>=10,"N.M.",H183/G183)))) -> 0.4580983217 | K183: 1146744.7 | L183: 778972.92 | M183: =+K183-L183 -> 367771.78 | N183: =IF(L183<0,IF(M183=0,0,IF(OR(L183=0,K183=0),"N.M.",IF(ABS(M183/L183)>=10,"N.M.",M183/(-L183)))),IF(M183=0,0,IF(OR(L183=0,K183=0),"N.M.",IF(ABS(M183/L183)>=10,"N.M.",M183/L183)))) -> 0.4721239604 | Q183: 731141.57 | R183: 550417.1 | S183: =+Q183-R183 -> 180724.47 | T183: =IF(R183<0,IF(S183=0,0,IF(OR(R183=0,Q183=0),"N.M.",IF(ABS(S183/R183)>=10,"N.M.",S183/(-R183)))),IF(S183=0,0,IF(OR(R183=0,Q183=0),"N.M.",IF(ABS(S183/R183)>=10,"N.M.",S183/R183)))) -> 0.3283409436 | V183: 2912496.14 | W183: 2074114.48 | X183: =+V183-W183 -> 838381.66 | Y183: =IF(W183<0,IF(X183=0,0,IF(OR(W183=0,V183=0),"N.M.",IF(ABS(X183/W183)>=10,"N.M.",X183/(-W183)))),IF(X183=0,0,IF(OR(W183=0,V183=0),"N.M.",IF(ABS(X183/W183)>=10,"N.M.",X183/W183)))) -> 0.4042118543 | AA183: 96098.04 | AC183: 228555.82 | AD183: 190482.01 | AE183: 174554.21 | AF183: 185380.88 | AG183: 127650.46 | AH183: 212175.87 | AI183: 258645.99 | AJ183: 189783.07 | AK183: 226452.98 | AL183: 201931.02 | AM183: 225901.82 | AN183: 323210.23 | AP183: 415603.13 | AQ183: 226145.75 | AR183: 234692.27 | AS183: 270303.55
A184: %,V5612000 | B184: 5612000 | C184: Load Dispatch-Mntr&Op TransSys | F184: 77847.04 | G184: 103888.42 | H184: -26041.38 | I184: -0.2506668212 | K184: 313849.82 | L184: 212074.41 | M184: 101775.41 | N184: 0.4799042468 | Q184: 221140.07 | R184: 172716.29 | S184: 48423.78 | T184: 0.2803660269 | V184: 796846.33 | W184: 469988.03 | X184: 326858.3 | Y184: 0.6954609035 | AA184: 32795.81 | AC184: 39358.12 | AD184: 35577.94 | AE184: 33249.93 | AF184: 103888.42 | AG184: 48131.09 | AH184: 54208.05 | AI184: 64520.68 | AJ184: 55995.37 | AK184: 60235.59 | AL184: 63095.82 | AM184: 59808.9 | AN184: 77001.01 | AP184: 92709.75 | AQ184: 72986.69 | AR184: 70306.34 | AS184: 77847.04
A185: %,V5613000 | B185: 5613000 | C185: Load Dispatch-Trans Srvc&Sched | F185: -90.37 | G185: -66.9 | H185: -23.47 | I185: -0.3508221226 | K185: -20.86 | L185: 107.44 | M185: -128.3 | N185: -1.194154877 | Q185: -77.07 | R185: -84.84 | S185: 7.77 | T185: 0.09158415842 | V185: -237.49 | W185: 237.49 | X185: -474.98 | Y185: -2 | AA185: 130.05 | AC185: 192.28 | AD185: 52.16 | AE185: -70.1 | AF185: -66.9 | AG185: -162.4 | AH185: 80.16 | AI185: 79.49 | AJ185: 60.99 | AK185: 81.3 | AL185: -105.54 | AM185: -209.83 | AN185: -40.8 | AP185: 56.21 | AQ185: 1.11 | AR185: 12.19 | AS185: -90.37
A186: %,V5614000 | B186: 5614000 | C186: PJM Admin-SSC&DS-OSS | F186: 6593.17 | G186: 7351.26 | H186: -758.09 | I186: -0.1031238182 | K186: 35475.33 | L186: 25112.95 | M186: 10362.38 | N186: 0.4126309334 | Q186: 25019.03 | R186: 18531.79 | S186: 6487.24 | T186: 0.3500600859 | V186: 123277.65 | W186: 80647.56 | X186: 42630.09 | Y186: 0.5285973934 | AA186: 9339.5 | AC186: 6581.16 | AD186: 7185.07 | AE186: 3995.46 | AF186: 7351.26 | AG186: 7077.3 | AH186: 12356.26 | AI186: 8280.97 | AJ186: 12482.78 | AK186: 5608.58 | AL186: 9864.81 | AM186: 7907.19 | AN186: 24224.43 | AP186: 10456.3 | AQ186: 12792.42 | AR186: 5633.44 | AS186: 6593.17
A187: %,V5614001 | B187: 5614001 | C187: PJM Admin-SSC&DS-Internal | F187: 107525.82 | G187: 146971.6 | H187: -39445.78 | I187: -0.2683904918 | K187: 502491.37 | L187: 526778.81 | M187: -24287.44 | N187: -0.04610557513 | Q187: 363152.28 | R187: 381778.95 | S187: -18626.67 | T187: -0.0487891488 | V187: 1274068.91 | W187: 1326254.78 | X187: -52185.87 | Y187: -0.03934829928 | AA187: 110241.52 | AC187: 144999.86 | AD187: 133517.82 | AE187: 101289.53 | AF187: 146971.6 | AG187: 103893.98 | AH187: 101015.23 | AI187: 74683.55 | AJ187: 101237.23 | AK187: 86644.62 | AL187: 86514.87 | AM187: 104475.85 | AN187: 113112.21 | AP187: 139339.09 | AQ187: 140811.16 | AR187: 114815.3 | AS187: 107525.82
A188: %,V5615000 | B188: 5615000 | C188: Reliability,Plng&Stds Develop | F188: 24825.86 | G188: 17798.1 | H188: 7027.76 | I188: 0.3948601255 | K188: 39224.21 | L188: 32145.04 | M188: 7079.17 | N188: 0.2202258887 | Q188: 33932.54 | R188: 26907.97 | S188: 7024.57 | T188: 0.261059084 | V188: 114752.48 | W188: 84733.59 | X188: 30018.89 | Y188: 0.3542737892 | AA188: 4572.76 | AC188: 5237.07 | AD188: 5257.11 | AE188: 3852.76 | AF188: 17798.1 | AG188: 16125.02 | AH188: 2751.74 | AI188: 3325.84 | AJ188: 2540.7 | AK188: 3553.13 | AL188: 20632.64 | AM188: 10177.36 | AN188: 16421.84 | AP188: 5291.67 | AQ188: 2963.11 | AR188: 6143.57 | AS188: 24825.86
A189: %,V5616000 | B189: 5616000 | C189: Transmission Service Studies | F189: 0 | G189: 0 | H189: 0 | I189: 0 | K189: 0 | L189: 0 | M189: 0 | N189: 0 | Q189: 0 | R189: 0 | S189: 0 | T189: 0 | V189: 5.36 | W189: 0 | X189: 5.36 | Y189: N.M. | AA189: 0 | AC189: 0 | AD189: 0 | AE189: 0 | AF189: 0 | AG189: 0 | AH189: 0 | AI189: 0 | AJ189: 0 | AK189: 0 | AL189: 0 | AM189: 5.36 | AN189: 0 | AP189: 0 | AQ189: 0 | AR189: 0 | AS189: 0
A190: %,V5618000 | B190: 5618000 | C190: PJM Admin-RP&SDS-OSS | F190: 463.29 | G190: 1730.27 | H190: -1266.98 | I190: -0.7322441006 | K190: 9241.04 | L190: 8337.73 | M190: 903.31 | N190: 0.1083400398 | Q190: 5879.63 | R190: 5001.07 | S190: 878.56 | T190: 0.1756744057 | V190: 33796.71 | W190: 25708.08 | X190: 8088.63 | Y190: 0.3146337649 | AA190: 2638.2 | AC190: 3336.66 | AD190: 2383.17 | AE190: 887.63 | AF190: 1730.27 | AG190: 1108.19 | AH190: 3382.46 | AI190: 953.49 | AJ190: 6494.27 | AK190: 1510.57 | AL190: 2987.97 | AM190: 2038.39 | AN190: 6080.33 | AP190: 3361.41 | AQ190: 4261.91 | AR190: 1154.43 | AS190: 463.29
A191: %,V5618001 | B191: 5618001 | C191: PJM Admin-RP&SDS- Internal | F191: 28082.29 | G191: 34095.87 | H191: -6013.58 | I191: -0.1763726809 | K191: 168723.09 | L191: 162510.22 | M191: 6212.87 | N191: 0.03823064174 | Q191: 103147.85 | R191: 103161.11 | S191: -13.26 | T191: -0.00012853681 | V191: 382196.13 | W191: 405526.26 | X191: -23330.13 | Y191: -0.0575305037 | AA191: 30769.11 | AC191: 59349.11 | AD191: 44773.07 | AE191: 24292.17 | AF191: 34095.87 | AG191: 14289.28 | AH191: 31652.36 | AI191: 7187.72 | AJ191: 55073.63 | AK191: 24232.84 | AL191: 26155.4 | AM191: 28725 | AN191: 26156.81 | AP191: 65575.24 | AQ191: 47339.99 | AR191: 27725.57 | AS191: 28082.29
A192: %,V5620001 | B192: 5620001 | C192: Station Expenses - Nonassoc | F192: 30873.21 | G192: 31279.02 | H192: -405.81 | I192: -0.01297387194 | K192: 108051.08 | L192: 102245.06 | M192: 5806.02 | N192: 0.05678533515 | Q192: 98761.14 | R192: 76700.86 | S192: 22060.28 | T192: 0.2876145065 | V192: 365097.73 | W192: 239290.69 | X192: 125807.04 | Y192: 0.5257498317 | AA192: 141.55 | AC192: 25544.2 | AD192: 17002.71 | AE192: 28419.13 | AF192: 31279.02 | AG192: 28896.07 | AH192: 28263.51 | AI192: 30018.81 | AJ192: 25540.66 | AK192: 18115.65 | AL192: 29046.67 | AM192: 59458.43 | AN192: 37706.85 | AP192: 9289.94 | AQ192: 35405.56 | AR192: 32482.37 | AS192: 30873.21
A193: %,V5630000 | B193: 5630000 | C193: Overhead Line Expenses | F193: 1689.72 | G193: 904.92 | H193: 784.8 | I193: 0.8672589842 | K193: 5497.36 | L193: 4194.69 | M193: 1302.67 | N193: 0.3105521505 | Q193: 4174.23 | R193: 3329.81 | S193: 844.42 | T193: 0.2535940489 | V193: 32720.66 | W193: 25163.11 | X193: 7557.55 | Y193: 0.3003424457 | AA193: 680.9 | AC193: 864.88 | AD193: 732.27 | AE193: 1692.62 | AF193: 904.92 | AG193: 2268.44 | AH193: 3344.88 | AI193: 3243.07 | AJ193: 1857.34 | AK193: 3281.45 | AL193: 881.04 | AM193: 9156.21 | AN193: 3190.87 | AP193: 1323.13 | AQ193: 2198.46 | AR193: 286.05 | AS193: 1689.72
A194: %,V5640000 | B194: 5640000 | C194: Underground Line Expenses | F194: 0 | G194: 0 | H194: 0 | I194: 0 | K194: 0 | L194: 0 | M194: 0 | N194: 0 | Q194: 0 | R194: 0 | S194: 0 | T194: 0 | V194: 0 | W194: 15.85 | X194: -15.85 | Y194: N.M. | AA194: 0 | AC194: 0 | AD194: 0 | AE194: 0 | AF194: 0 | AG194: 0 | AH194: 0 | AI194: 0 | AJ194: 0 | AK194: 0 | AL194: 0 | AM194: 0 | AN194: 0 | AP194: 0 | AQ194: 0 | AR194: 0 | AS194: 0
A195: %,V5650002 | B195: 5650002 | C195: Transmssn Elec by Others-NAC | F195: 7807.5 | G195: 6552 | H195: 1255.5 | I195: 0.1916208791 | K195: 39121.5 | L195: 38631 | M195: 490.5 | N195: 0.01269705677 | Q195: 26298 | R195: 23556 | S195: 2742 | T195: 0.1164034641 | V195: 103396.5 | W195: 99256.5 | X195: 4140 | Y195: 0.0417101147 | AA195: 8956.5 | AC195: 15075 | AD195: 9775.5 | AE195: 7228.5 | AF195: 6552 | AG195: 6016.5 | AH195: 7993.5 | AI195: 9369 | AJ195: 8422.5 | AK195: 7107 | AL195: 6253.5 | AM195: 6985.5 | AN195: 12127.5 | AP195: 12823.5 | AQ195: 11709 | AR195: 6781.5 | AS195: 7807.5
A196: %,V5650007 | B196: 5650007 | C196: Tran Elec by Oth-Aff-Trn Price | F196: 0 | G196: 0 | H196: 0 | I196: 0 | K196: 0 | L196: 0 | M196: 0 | N196: 0 | Q196: 0 | R196: 0 | S196: 0 | T196: 0 | V196: 0 | W196: 0 | X196: 0 | Y196: 0 | AA196: 0 | AC196: 0 | AD196: 0 | AE196: 0 | AF196: 0 | AG196: 0 | AH196: 0 | AI196: 0 | AJ196: 0 | AK196: 0 | AL196: 0 | AM196: 0 | AN196: 0 | AP196: 0 | AQ196: 0 | AR196: 0 | AS196: 0
A197: %,V5650012 | B197: 5650012 | C197: PJM Trans Enhancement Charge | F197: 232520.02 | G197: 173806.15 | H197: 58713.87 | I197: 0.3378123847 | K197: 930223.77 | L197: 689452.07 | M197: 240771.7 | N197: 0.3492218103 | Q197: 697829.73 | R197: 521551.61 | S197: 176278.12 | T197: 0.3379878743 | V197: 2260721.24 | W197: 2056904.18 | X197: 203817.06 | Y197: 0.09908923419 | AA197: 170438.3 | AC197: 167900.46 | AD197: 178658.29 | AE197: 169087.17 | AF197: 173806.15 | AG197: 173770.52 | AH197: 173337.14 | AI197: 172514.6 | AJ197: 168427.8 | AK197: 172514.58 | AL197: 172514.55 | AM197: 117768.74 | AN197: 179649.54 | AP197: 232394.04 | AQ197: 232597.11 | AR197: 232712.6 | AS197: 232520.02
A198: %,V5650015 | B198: 5650015 | C198: PJM TO Serv Exp - Aff | F198: 11801.42 | G198: 12070.45 | H198: -269.03 | I198: -0.02228831568 | K198: 58623.23 | L198: 59572.6 | M198: -949.37 | N198: -0.01593635329 | Q198: 40497.72 | R198: 40356.33 | S198: 141.39 | T198: 0.003503539593 | V198: 165136.27 | W198: 168397.39 | X198: -3261.12 | Y198: -0.01936562081 | AA198: 15917.14 | AC198: 19216.27 | AD198: 14587.66 | AE198: 13698.22 | AF198: 12070.45 | AG198: 11519.97 | AH198: 13654.09 | AI198: 15493.06 | AJ198: 13760.82 | AK198: 11522.91 | AL198: 11322.4 | AM198: 13050.18 | AN198: 16189.61 | AP198: 18125.51 | AQ198: 15613.34 | AR198: 13082.96 | AS198: 11801.42
A199: %,V5650016 | B199: 5650016 | C199: PJM NITS Expense - Affiliated | F199: 6745995.99 | G199: 6290829.34 | H199: 455166.65 | I199: 0.07235399745 | K199: 26983983.95 | L199: 25163317.35 | M199: 1820666.6 | N199: 0.07235399747 | Q199: 20012174.56 | R199: 18661784.14 | S199: 1350390.42 | T199: 0.07236127103 | V199: 78364936.77 | W199: 75134645.13 | X199: 3230291.64 | Y199: 0.04299337056 | AA199: 6323263.11 | AC199: 6501533.21 | AD199: 5869421.59 | AE199: 6501533.21 | AF199: 6290829.34 | AG199: 6501533.21 | AH199: 6290829.34 | AI199: 6501533.21 | AJ199: 6501533.21 | AK199: 6290829.34 | AL199: 6501533.21 | AM199: 6291358.93 | AN199: 6501802.37 | AP199: 6971809.39 | AQ199: 6294369.18 | AR199: 6971809.39 | AS199: 6745995.99
A200: %,V5650019 | B200: 5650019 | C200: Affil PJM Trans Enhncement Exp | F200: 366366.24 | G200: 398850.65 | H200: -32484.41 | I200: -0.08144504716 | K200: 1465464.94 | L200: 1595402.6 | M200: -129937.66 | N200: -0.0814450597 | Q200: 1099098.7 | R200: 1196551.95 | S200: -97453.25 | T200: -0.08144506388 | V200: 4656695.87 | W200: 5261395.53 | X200: -604699.66 | Y200: -0.1149314201 | AA200: 458249.12 | AC200: 398850.65 | AD200: 398850.64 | AE200: 398850.66 | AF200: 398850.65 | AG200: 398850.65 | AH200: 398850.65 | AI200: 398850.65 | AJ200: 398850.65 | AK200: 398850.65 | AL200: 398850.65 | AM200: 398883.66 | AN200: 399243.37 | AP200: 366366.24 | AQ200: 366366.23 | AR200: 366366.23 | AS200: 366366.24
A201: %,V5650020 | B201: 5650020 | C201: PROVISION RTO Affl Tran Expnse | F201: 16537 | G201: -117156 | H201: 133693 | I201: 1.141153675 | K201: -139849 | L201: -471041 | M201: 331192 | N201: 0.7031065236 | Q201: -9655 | R201: -323412 | S201: 313757 | T201: 0.9701464386 | V201: 7770471 | W201: -4889310 | X201: 12659781 | Y201: 2.589277628 | AA201: -1164502 | AC201: -147629 | AD201: -86875 | AE201: -119381 | AF201: -117156 | AG201: -117469 | AH201: 8170676 | AI201: 171641 | AJ201: 235247 | AK201: 306708 | AL201: 240243 | AM201: 243540 | AN201: -1340266 | AP201: -130194 | AQ201: 18192 | AR201: -44384 | AS201: 16537
A202: %,V5650021 | B202: 5650021 | C202: PJM NITS Expense - Non-Affilia | F202: 88347.25 | G202: 90871.65 | H202: -2524.4 | I202: -0.02777984113 | K202: 353388.57 | L202: 376914.9 | M202: -23526.33 | N202: -0.06241814797 | Q202: 264591.34 | R202: 292371.78 | S202: -27780.44 | T202: -0.09501751503 | V202: 1081902.26 | W202: 961926.2 | X202: 119976.06 | Y202: 0.1247248074 | AA202: 78947.76 | AC202: 84543.12 | AD202: 74451.6 | AE202: 127048.53 | AF202: 90871.65 | AG202: 91257.49 | AH202: 90871.66 | AI202: 91257.45 | AJ202: 91143.26 | AK202: 90757.44 | AL202: 91200.32 | AM202: 90822.04 | AN202: 91204.03 | AP202: 88797.23 | AQ202: 87446.53 | AR202: 88797.56 | AS202: 88347.25
A203: %,V5650023 | B203: 5650023 | C203: Amort of PROVISION RTO Expense | F203: 109942.26 | G203: 793952 | H203: -684009.74 | I203: -0.8615253063 | K203: 439769.04 | L203: 3175808 | M203: -2736038.96 | N203: -0.8615253063 | Q203: 329826.78 | R203: 2381856 | S203: -2052029.22 | T203: -0.8615253063 | V203: 5546763.04 | W203: 3212346.08 | X203: 2334416.96 | Y203: 0.7267015763 | AA203: 4565.51 | AC203: 793952 | AD203: 793952 | AE203: 793952 | AF203: 793952 | AG203: 793952 | AH203: 793952 | AI203: 586515 | AJ203: 586515 | AK203: 586515 | AL203: 586515 | AM203: 586515 | AN203: 586515 | AP203: 109942.26 | AQ203: 109942.26 | AR203: 109942.26 | AS203: 109942.26
A204: %,V5650062 | B204: 5650062 | C204: Deferral of Provision RTO Exp | F204: 685317 | G204: 0 | H204: 685317 | I204: N.M. | K204: 3202260.18 | L204: 0 | M204: 3202260.18 | N204: N.M. | Q204: 2544267.29 | R204: 0 | S204: 2544267.29 | T204: N.M. | V204: -10649545.73 | W204: 0 | X204: -10649545.73 | Y204: N.M. | AA204: 0 | AC204: 0 | AD204: 0 | AE204: 0 | AF204: 0 | AG204: 0 | AH204: 0 | AI204: 0 | AJ204: 0 | AK204: -15726307 | AL204: 0 | AM204: 875308.06 | AN204: 999193.03 | AP204: 657992.89 | AQ204: 1550982.49 | AR204: 307967.8 | AS204: 685317
A205: %,V5660000 | B205: 5660000 | C205: Misc Transmission Expenses | F205: 64820.64 | G205: 76585.19 | H205: -11764.55 | I205: -0.1536139037 | K205: 302939.42 | L205: 246639.65 | M205: 56299.77 | N205: 0.2282673123 | Q205: 323744.03 | R205: 203351.94 | S205: 120392.09 | T205: 0.5920380696 | V205: 1172494.56 | W205: 1109678.47 | X205: 62816.09 | Y205: 0.05660746937 | AA205: 113415.74 | AC205: 43287.71 | AD205: 68253.07 | AE205: 58513.68 | AF205: 76585.19 | AG205: 44850.23 | AH205: 250785.13 | AI205: -52578.14 | AJ205: 104293.39 | AK205: 87683.25 | AL205: 93127.41 | AM205: 63225.14 | AN205: 278168.73 | AP205: -20804.61 | AQ205: 100874.68 | AR205: 158048.71 | AS205: 64820.64
A206: %,V5660011 | B206: 5660011 | C206: Misc Transm Exp - Affiliate | F206: 172.23 | G206: 277.29 | H206: -105.06 | I206: -0.3788813156 | K206: 1110.52 | L206: 1187.23 | M206: -76.71 | N206: -0.0646125856 | Q206: 851.02 | R206: 918.9 | S206: -67.88 | T206: -0.07387093264 | V206: 3293.05 | W206: 3431.76 | X206: -138.71 | Y206: -0.0404194932 | AA206: 405.62 | AC206: 268.33 | AD206: 363.53 | AE206: 278.08 | AF206: 277.29 | AG206: 277.29 | AH206: 355.43 | AI206: 252.07 | AJ206: 257.31 | AK206: 251.06 | AL206: 264.04 | AM206: 276.21 | AN206: 249.12 | AP206: 259.5 | AQ206: 319.44 | AR206: 359.35 | AS206: 172.23
A207: %,V5670001 | B207: 5670001 | C207: Rents - Nonassociated | F207: 0 | G207: 0 | H207: 0 | I207: 0 | K207: 272.93 | L207: 250 | M207: 22.93 | N207: 0.09172 | Q207: 272.93 | R207: 250 | S207: 22.93 | T207: 0.09172 | V207: 2058.05 | W207: 250 | X207: 1808.05 | Y207: 7.2322 | AA207: 0 | AC207: 0 | AD207: 0 | AE207: 250 | AF207: 0 | AG207: 0 | AH207: 0 | AI207: 0 | AJ207: 0 | AK207: 1630.19 | AL207: 0 | AM207: 100 | AN207: 54.93 | AP207: 0 | AQ207: 0 | AR207: 272.93 | AS207: 0
A208: %,V5670002 | B208: 5670002 | C208: Rents - Associated | F208: 78785.28 | G208: 0 | H208: 78785.28 | I208: N.M. | K208: 78785.28 | L208: 0 | M208: 78785.28 | N208: N.M. | Q208: 78785.28 | R208: 0 | S208: 78785.28 | T208: N.M. | V208: 78785.28 | W208: 0 | X208: 78785.28 | Y208: N.M. | AA208: 0 | AC208: 0 | AD208: 0 | AE208: 0 | AF208: 0 | AG208: 0 | AH208: 0 | AI208: 0 | AJ208: 0 | AK208: 0 | AL208: 0 | AM208: 0 | AN208: 0 | AP208: 0 | AQ208: 0 | AR208: 0 | AS208: 78785.28
A209: %,FACCOUNT,TGL_FERC_ACCT,XDYYNNY01,N560-567 | C209: Transmission Operations | F209: 8956526.41 | G209: 8255972.16 | H209: 700554.25 | I209: 0.08485424084 | K209: 36045371.47 | L209: 32728613.67 | M209: 3316757.8 | N209: 0.1013412249 | Q209: 26994853.65 | R209: 24337596.76 | S209: 2657256.89 | T209: 0.109183208 | V209: 96592128.77 | W209: 87850601.16 | X209: 8741527.61 | Y209: 0.09950447117 | AA209: 6297064.24 | AC209: 8391016.91 | AD209: 7758402.21 | AE209: 8323222.39 | AF209: 8255972.16 | AG209: 8253836.29 | AH209: 16640535.46 | AI209: 8345787.51 | AJ209: 8559516.98 | AK209: -7342220.87 | AL209: 8542828.78 | AM209: 9195278.14 | AN209: 8351195.01 | AP209: 9050517.82 | AQ209: 9333318.42 | AR209: 8705008.82 | AS209: 8956526.41
A211: %,V5757000 | B211: 5757000 | C211: PJM Admin-MAM&SC- OSS | F211: 1307.78 | G211: 4530.45 | H211: =+F211-G211 -> -3222.67 | I211: =IF(G211<0,IF(H211=0,0,IF(OR(G211=0,F211=0),"N.M.",IF(ABS(H211/G211)>=10,"N.M.",H211/(-G211)))),IF(H211=0,0,IF(OR(G211=0,F211=0),"N.M.",IF(ABS(H211/G211)>=10,"N.M.",H211/G211)))) -> -0.7113355185 | K211: 23176.75 | L211: 20558.15 | M211: =+K211-L211 -> 2618.6 | N211: =IF(L211<0,IF(M211=0,0,IF(OR(L211=0,K211=0),"N.M.",IF(ABS(M211/L211)>=10,"N.M.",M211/(-L211)))),IF(M211=0,0,IF(OR(L211=0,K211=0),"N.M.",IF(ABS(M211/L211)>=10,"N.M.",M211/L211)))) -> 0.1273752745 | Q211: 14108.23 | R211: 13796.96 | S211: =+Q211-R211 -> 311.27 | T211: =IF(R211<0,IF(S211=0,0,IF(OR(R211=0,Q211=0),"N.M.",IF(ABS(S211/R211)>=10,"N.M.",S211/(-R211)))),IF(S211=0,0,IF(OR(R211=0,Q211=0),"N.M.",IF(ABS(S211/R211)>=10,"N.M.",S211/R211)))) -> 0.02256076701 | V211: 99408.24 | W211: 72844.91 | X211: =+V211-W211 -> 26563.33 | Y211: =IF(W211<0,IF(X211=0,0,IF(OR(W211=0,V211=0),"N.M.",IF(ABS(X211/W211)>=10,"N.M.",X211/(-W211)))),IF(X211=0,0,IF(OR(W211=0,V211=0),"N.M.",IF(ABS(X211/W211)>=10,"N.M.",X211/W211)))) -> 0.3646559519 | AA211: 7812.63 | AC211: 6761.19 | AD211: 7074.43 | AE211: 2192.08 | AF211: 4530.45 | AG211: 5431 | AH211: 7744.23 | AI211: 4983.45 | AJ211: 18902.24 | AK211: 5308.89 | AL211: 7096.63 | AM211: 6734.4 | AN211: 20030.65 | AP211: 9068.52 | AQ211: 8793.69 | AR211: 4006.76 | AS211: 1307.78
A212: %,V5757001 | B212: 5757001 | C212: PJM Admin-MAM&SC- Internal | F212: 76319.37 | G212: 101728.7 | H212: =+F212-G212 -> -25409.33 | I212: =IF(G212<0,IF(H212=0,0,IF(OR(G212=0,F212=0),"N.M.",IF(ABS(H212/G212)>=10,"N.M.",H212/(-G212)))),IF(H212=0,0,IF(OR(G212=0,F212=0),"N.M.",IF(ABS(H212/G212)>=10,"N.M.",H212/G212)))) -> -0.2497754321 | K212: 445678.63 | L212: 490512.06 | M212: =+K212-L212 -> -44833.43 | N212: =IF(L212<0,IF(M212=0,0,IF(OR(L212=0,K212=0),"N.M.",IF(ABS(M212/L212)>=10,"N.M.",M212/(-L212)))),IF(M212=0,0,IF(OR(L212=0,K212=0),"N.M.",IF(ABS(M212/L212)>=10,"N.M.",M212/L212)))) -> -0.09140127972 | Q212: 298086.5 | R212: 332238.61 | S212: =+Q212-R212 -> -34152.11 | T212: =IF(R212<0,IF(S212=0,0,IF(OR(R212=0,Q212=0),"N.M.",IF(ABS(S212/R212)>=10,"N.M.",S212/(-R212)))),IF(S212=0,0,IF(OR(R212=0,Q212=0),"N.M.",IF(ABS(S212/R212)>=10,"N.M.",S212/R212)))) -> -0.1027939227 | V212: 1250796.14 | W212: 1312227.4 | X212: =+V212-W212 -> -61431.26 | Y212: =IF(W212<0,IF(X212=0,0,IF(OR(W212=0,V212=0),"N.M.",IF(ABS(X212/W212)>=10,"N.M.",X212/(-W212)))),IF(X212=0,0,IF(OR(W212=0,V212=0),"N.M.",IF(ABS(X212/W212)>=10,"N.M.",X212/W212)))) -> -0.04681449267 | AA212: 109004.36 | AC212: 158273.45 | AD212: 149555.78 | AE212: 80954.13 | AF212: 101728.7 | AG212: 94620.05 | AH212: 81406.89 | AI212: 53996.14 | AJ212: 162453.75 | AK212: 104306.15 | AL212: 77560.36 | AM212: 120547.96 | AN212: 110226.21 | AP212: 147592.13 | AQ212: 122402.25 | AR212: 99364.88 | AS212: 76319.37
A213: %,FACCOUNT,TGL_FERC_ACCT,XDYYNNY01,N575-576 | C213: Regional Market Expense | F213: 77627.15 | G213: 106259.15 | H213: =+F213-G213 -> -28632 | I213: =IF(G213<0,IF(H213=0,0,IF(OR(G213=0,F213=0),"N.M.",IF(ABS(H213/G213)>=10,"N.M.",H213/(-G213)))),IF(H213=0,0,IF(OR(G213=0,F213=0),"N.M.",IF(ABS(H213/G213)>=10,"N.M.",H213/G213)))) -> -0.2694544423 | K213: 468855.38 | L213: 511070.21 | M213: =+K213-L213 -> -42214.83 | N213: =IF(L213<0,IF(M213=0,0,IF(OR(L213=0,K213=0),"N.M.",IF(ABS(M213/L213)>=10,"N.M.",M213/(-L213)))),IF(M213=0,0,IF(OR(L213=0,K213=0),"N.M.",IF(ABS(M213/L213)>=10,"N.M.",M213/L213)))) -> -0.08260084265 | Q213: 312194.73 | R213: 346035.57 | S213: =+Q213-R213 -> -33840.84 | T213: =IF(R213<0,IF(S213=0,0,IF(OR(R213=0,Q213=0),"N.M.",IF(ABS(S213/R213)>=10,"N.M.",S213/(-R213)))),IF(S213=0,0,IF(OR(R213=0,Q213=0),"N.M.",IF(ABS(S213/R213)>=10,"N.M.",S213/R213)))) -> -0.0977958422 | V213: 1350204.38 | W213: 1385072.31 | X213: =+V213-W213 -> -34867.93 | Y213: =IF(W213<0,IF(X213=0,0,IF(OR(W213=0,V213=0),"N.M.",IF(ABS(X213/W213)>=10,"N.M.",X213/(-W213)))),IF(X213=0,0,IF(OR(W213=0,V213=0),"N.M.",IF(ABS(X213/W213)>=10,"N.M.",X213/W213)))) -> -0.0251740864 | AA213: 116816.99 | AC213: 165034.64 | AD213: 156630.21 | AE213: 83146.21 | AF213: 106259.15 | AG213: 100051.05 | AH213: 89151.12 | AI213: 58979.59 | AJ213: 181355.99 | AK213: 109615.04 | AL213: 84656.99 | AM213: 127282.36 | AN213: 130256.86 | AP213: 156660.65 | AQ213: 131195.94 | AR213: 103371.64 | AS213: 77627.15
A215: %,V5772000 | B215: 5772000 | C215: Oper-Energy Storage Eqp-Majr | F215: 0 | G215: 0 | H215: =+F215-G215 -> 0 | I215: =IF(G215<0,IF(H215=0,0,IF(OR(G215=0,F215=0),"N.M.",IF(ABS(H215/G215)>=10,"N.M.",H215/(-G215)))),IF(H215=0,0,IF(OR(G215=0,F215=0),"N.M.",IF(ABS(H215/G215)>=10,"N.M.",H215/G215)))) -> 0 | K215: 0 | L215: 0 | M215: =+K215-L215 -> 0 | N215: =IF(L215<0,IF(M215=0,0,IF(OR(L215=0,K215=0),"N.M.",IF(ABS(M215/L215)>=10,"N.M.",M215/(-L215)))),IF(M215=0,0,IF(OR(L215=0,K215=0),"N.M.",IF(ABS(M215/L215)>=10,"N.M.",M215/L215)))) -> 0 | Q215: 0 | R215: 0 | S215: =+Q215-R215 -> 0 | V215: 0 | W215: 0 | X215: =+V215-W215 -> 0 | Y215: =IF(W215<0,IF(X215=0,0,IF(OR(W215=0,V215=0),"N.M.",IF(ABS(X215/W215)>=10,"N.M.",X215/(-W215)))),IF(X215=0,0,IF(OR(W215=0,V215=0),"N.M.",IF(ABS(X215/W215)>=10,"N.M.",X215/W215)))) -> 0 | AA215: 0 | AC215: 0 | AD215: 0 | AE215: 0 | AF215: 0 | AG215: 0 | AH215: 0 | AI215: 0 | AJ215: 0 | AK215: 0 | AL215: 1.83 | AM215: -1.83 | AN215: 0 | AP215: 0 | AQ215: 0 | AR215: 0 | AS215: 0
A216: %,V5775000 | B216: 5775000 | C216: Oper Supplies and Expense NMjr | F216: 0 | G216: 12.84 | H216: =+F216-G216 -> -12.84 | I216: =IF(G216<0,IF(H216=0,0,IF(OR(G216=0,F216=0),"N.M.",IF(ABS(H216/G216)>=10,"N.M.",H216/(-G216)))),IF(H216=0,0,IF(OR(G216=0,F216=0),"N.M.",IF(ABS(H216/G216)>=10,"N.M.",H216/G216)))) -> N.M. | K216: 0 | L216: 12.84 | M216: =+K216-L216 -> -12.84 | N216: =IF(L216<0,IF(M216=0,0,IF(OR(L216=0,K216=0),"N.M.",IF(ABS(M216/L216)>=10,"N.M.",M216/(-L216)))),IF(M216=0,0,IF(OR(L216=0,K216=0),"N.M.",IF(ABS(M216/L216)>=10,"N.M.",M216/L216)))) -> N.M. | Q216: 0 | R216: 12.84 | S216: =+Q216-R216 -> -12.84 | V216: -12.84 | W216: 12.84 | X216: =+V216-W216 -> -25.68 | Y216: =IF(W216<0,IF(X216=0,0,IF(OR(W216=0,V216=0),"N.M.",IF(ABS(X216/W216)>=10,"N.M.",X216/(-W216)))),IF(X216=0,0,IF(OR(W216=0,V216=0),"N.M.",IF(ABS(X216/W216)>=10,"N.M.",X216/W216)))) -> -2 | AA216: 0 | AC216: 0 | AD216: 0 | AE216: 0 | AF216: 12.84 | AG216: -12.84 | AH216: 3.77 | AI216: 0.33 | AJ216: -4.1 | AK216: 0 | AL216: 0 | AM216: 0 | AN216: 0 | AP216: 0 | AQ216: 0 | AR216: 0 | AS216: 0
A217: %,FACCOUNT,TGL_FERC_ACCT,XDYYNNY01,N5771-5775 | C217: Energy Storage Operation Expense | F217: 0 | G217: 12.84 | H217: =+F217-G217 -> -12.84 | I217: =IF(G217<0,IF(H217=0,0,IF(OR(G217=0,F217=0),"N.M.",IF(ABS(H217/G217)>=10,"N.M.",H217/(-G217)))),IF(H217=0,0,IF(OR(G217=0,F217=0),"N.M.",IF(ABS(H217/G217)>=10,"N.M.",H217/G217)))) -> N.M. | K217: 0 | L217: 12.84 | M217: =+K217-L217 -> -12.84 | N217: =IF(L217<0,IF(M217=0,0,IF(OR(L217=0,K217=0),"N.M.",IF(ABS(M217/L217)>=10,"N.M.",M217/(-L217)))),IF(M217=0,0,IF(OR(L217=0,K217=0),"N.M.",IF(ABS(M217/L217)>=10,"N.M.",M217/L217)))) -> N.M. | Q217: 0 | R217: 12.84 | S217: =+Q217-R217 -> -12.84 | V217: -12.84 | W217: 12.84 | X217: =+V217-W217 -> -25.68 | Y217: =IF(W217<0,IF(X217=0,0,IF(OR(W217=0,V217=0),"N.M.",IF(ABS(X217/W217)>=10,"N.M.",X217/(-W217)))),IF(X217=0,0,IF(OR(W217=0,V217=0),"N.M.",IF(ABS(X217/W217)>=10,"N.M.",X217/W217)))) -> -2 | AA217: 0 | AC217: 0 | AD217: 0 | AE217: 0 | AF217: 12.84 | AG217: -12.84 | AH217: 3.77 | AI217: 0.33 | AJ217: -4.1 | AK217: 0 | AL217: 1.83 | AM217: -1.83 | AN217: 0 | AP217: 0 | AQ217: 0 | AR217: 0 | AS217: 0
A219: %,V5800000 | B219: 5800000 | C219: Oper Supervision & Engineering | F219: 80717.15 | G219: 85589.78 | H219: =+F219-G219 -> -4872.63 | I219: =IF(G219<0,IF(H219=0,0,IF(OR(G219=0,F219=0),"N.M.",IF(ABS(H219/G219)>=10,"N.M.",H219/(-G219)))),IF(H219=0,0,IF(OR(G219=0,F219=0),"N.M.",IF(ABS(H219/G219)>=10,"N.M.",H219/G219)))) -> -0.05693004469 | K219: 246800.07 | L219: 568102.85 | M219: =+K219-L219 -> -321302.78 | N219: =IF(L219<0,IF(M219=0,0,IF(OR(L219=0,K219=0),"N.M.",IF(ABS(M219/L219)>=10,"N.M.",M219/(-L219)))),IF(M219=0,0,IF(OR(L219=0,K219=0),"N.M.",IF(ABS(M219/L219)>=10,"N.M.",M219/L219)))) -> -0.5655714982 | Q219: 268390.1 | R219: 595962.13 | S219: =+Q219-R219 -> -327572.03 | T219: =IF(R219<0,IF(S219=0,0,IF(OR(R219=0,Q219=0),"N.M.",IF(ABS(S219/R219)>=10,"N.M.",S219/(-R219)))),IF(S219=0,0,IF(OR(R219=0,Q219=0),"N.M.",IF(ABS(S219/R219)>=10,"N.M.",S219/R219)))) -> -0.5496524251 | V219: 113182.45 | W219: 1544000.72 | X219: =+V219-W219 -> -1430818.27 | Y219: =IF(W219<0,IF(X219=0,0,IF(OR(W219=0,V219=0),"N.M.",IF(ABS(X219/W219)>=10,"N.M.",X219/(-W219)))),IF(X219=0,0,IF(OR(W219=0,V219=0),"N.M.",IF(ABS(X219/W219)>=10,"N.M.",X219/W219)))) -> -0.9266953386 | AA219: 228073.75 | AC219: -27859.28 | AD219: 259916.83 | AE219: 250455.52 | AF219: 85589.78 | AG219: 204283.14 | AH219: 188720.03 | AI219: -153811.89 | AJ219: -4457.35 | AK219: -673.2 | AL219: -56595.32 | AM219: -389632.91 | AN219: 78549.88 | AP219: -21590.03 | AQ219: 44323.1 | AR219: 143349.85 | AS219: 80717.15
... 417 more rows

Sheet Modification History (hidden)
A2: BU_Name | C2: Scope-based
A3: Contact Person | C3: Neal Hartley
A4: Department Owner | C4: Financial Reporting
A5: Account Tree | C5: GL_FERC_ACCT
A6: Business Unit Tree | C6: Scope-based
A7: Sunset Date
A8: Report Statement Type | C8: Reporting Package
A9: Report Description | C9: IS, BS, O&M, and Trial Bal
A10: Title (Builtin) | C10: FERC Comparative Statements
A11: Author (Builtin) | C11: Financial Reporting / Neal Hartley
A12: Comments (Builtin) | C12: Acct: GL_FERC_ACCT BU: Scope-based
A13: Subject (Builtin)
A14: Category (Builtin)
A15: Keywords (Builtin)
A18: 2016-08-01 | C18: Neal Hartley | E18: Created this new report from GLR3000V
A19: 2018-09-05 | C19: Neal Hartley | E19: Change Effective tax rate on lines 93 & 166 from 35% to 21%

Sheet O&M
A1: %,LACTUALS,SBAL | B1: %,ATF,FACCOUNT | C1: %,ATT,FDESCR,UDESCR | F1: %,LACTUALS,SPER | G1: %,LACTUALS,SPER-1YR | H1: %,C | I1: %,C | K1: %,LACTUALS,SYTD | L1: %,LACTUALS,SYTD-1YR | M1: %,C | N1: %,C | Q1: %,LACTUALS,SQTR | R1: %,LACTUALS,SQTR-1YR | S1: %,C | T1: %,C | V1: %,LACTUALS,SROLLING12 | W1: %,LACTUALS,SROLNG12-1Y | X1: %,C | Y1: %,C
C2: Kentucky Power Corp Consol | G2: Kentucky Power Corp Consol | L2: Kentucky Power Corp Consol | R2: Kentucky Power Corp Consol | W2: Kentucky Power Corp Consol
C3: April 2026 | G3: As of: Apr 2026 | L3: As of: Apr 2026 | R3: As of: Apr 2026 | W3: As of: Apr 2026
B4: Run Date: 05/08/2026 06:47 AM
B5: GLR6283P | C5: Rpt ID: FERC_IS1 Layout: FERC_IS1 | F5: ONE MONTH ENDED | H5: Variance | K5: YEAR TO DATE | M5: Variance | Q5: THREE MONTHS ENDED | S5: Variance | V5: TWELVE MONTHS ENDED | X5: Variance
B6: KYP_CORP_CONSOL | C6: V2099-01-01 Acct: GL_FERC_ACCT BU: GL_PRPT_CONS | F6: 2026 | G6: 2025 | H6: $ | I6: % | K6: 2026 | L6: 2025 | M6: $ | N6: % | O6: Explanation | Q6: 2026 | R6: 2025 | S6: $ | T6: % | V6: 2026 | W6: 2025 | X6: $ | Y6: %
C8: OPERATING AND MAINTENANCE DETAIL
C9: FERC Page 320
B10: Line 1 | C10: 1. POWER PRODUCTION EXPENSES
B11: Line 2 | C11: A. STEAM POWER GENERATION
B12: Line 3 | C12: Operation
A13: %,V5000000 | B13: 5000000 | C13: Oper Supervision & Engineering | F13: 336128.68 | G13: 318921.29 | H13: =+F13-G13 -> 17207.39 | I13: =IF(G13<0,IF(H13=0,0,IF(OR(G13=0,F13=0),"N.M.",IF(ABS(H13/G13)>=10,"N.M.",H13/(-G13)))),IF(H13=0,0,IF(OR(G13=0,F13=0),"N.M.",IF(ABS(H13/G13)>=10,"N.M.",H13/G13)))) -> 0.05395497428 | K13: 1527687.01 | L13: 1306410.01 | M13: =+K13-L13 -> 221277 | N13: =IF(L13<0,IF(M13=0,0,IF(OR(L13=0,K13=0),"N.M.",IF(ABS(M13/L13)>=10,"N.M.",M13/(-L13)))),IF(M13=0,0,IF(OR(L13=0,K13=0),"N.M.",IF(ABS(M13/L13)>=10,"N.M.",M13/L13)))) -> 0.1693779122 | Q13: 1151946.84 | R13: 969869.68 | S13: =+Q13-R13 -> 182077.16 | T13: =IF(R13<0,IF(S13=0,0,IF(OR(R13=0,Q13=0),"N.M.",IF(ABS(S13/R13)>=10,"N.M.",S13/(-R13)))),IF(S13=0,0,IF(OR(R13=0,Q13=0),"N.M.",IF(ABS(S13/R13)>=10,"N.M.",S13/R13)))) -> 0.1877336345 | V13: 4724349.59 | W13: 4190481.68 | X13: =+V13-W13 -> 533867.91 | Y13: =IF(W13<0,IF(X13=0,0,IF(OR(W13=0,V13=0),"N.M.",IF(ABS(X13/W13)>=10,"N.M.",X13/(-W13)))),IF(X13=0,0,IF(OR(W13=0,V13=0),"N.M.",IF(ABS(X13/W13)>=10,"N.M.",X13/W13)))) -> 0.1274001298
A14: %,V5000002 | B14: 5000002 | C14: Dresden Oper Supervision & Eng | F14: 0 | G14: 0 | H14: 0 | I14: 0 | K14: 0 | L14: 0 | M14: 0 | N14: 0 | Q14: 0 | R14: 0 | S14: 0 | T14: 0 | V14: -33.12 | W14: 0 | X14: -33.12 | Y14: N.M.
A15: %,V5000003 | B15: 5000003 | C15: Cnstr Srchrge Op Sup & Eng Exp | F15: 0 | G15: 0 | H15: 0 | I15: 0 | K15: 0 | L15: 0 | M15: 0 | N15: 0 | Q15: 0 | R15: 0 | S15: 0 | T15: 0 | V15: 64.34 | W15: 0 | X15: 64.34 | Y15: N.M.
A16: %,V5000005 | B16: 5000005 | C16: Deferred OM - 20% Non FMR | F16: 0 | G16: 0 | H16: 0 | I16: 0 | K16: 0 | L16: 0 | M16: 0 | N16: 0 | Q16: 0 | R16: 0 | S16: 0 | T16: 0 | V16: 0 | W16: -17.08 | X16: 17.08 | Y16: N.M.
A17: %,FACCOUNT,X,TGL_FERC_ACCT,N5000 | B17: Line 4 | C17: (500) Operation Supervision and Engineering | F17: 336128.68 | G17: 318921.29 | H17: 17207.39 | I17: 0.05395497428 | K17: 1527687.01 | L17: 1306410.01 | M17: 221277 | N17: 0.1693779122 | Q17: 1151946.84 | R17: 969869.68 | S17: 182077.16 | T17: 0.1877336345 | V17: 4724380.81 | W17: 4190464.6 | X17: 533916.21 | Y17: 0.1274121753
A18: %,V5010000 | B18: 5010000 | C18: Fuel | F18: 589775.53 | G18: 422235.9 | H18: 167539.63 | I18: 0.3967915329 | K18: 2031788.09 | L18: 3124507.2 | M18: -1092719.11 | N18: -0.3497252655 | Q18: 1676392.4 | R18: 2506208.94 | S18: -829816.54 | T18: -0.3311042933 | V18: 6657746.4 | W18: 7282807.98 | X18: -625061.58 | Y18: -0.08582700268
A19: %,V5010001 | B19: 5010001 | C19: Fuel Consumed | F19: 3523402.44 | G19: 5166295.41 | H19: -1642892.97 | I19: -0.3180021349 | K19: 23114816.98 | L19: 22161229.33 | M19: 953587.65 | N19: 0.04302954659 | Q19: 13762909.64 | R19: 9870836.04 | S19: 3892073.6 | T19: 0.3943002988 | V19: 75263327.59 | W19: 77978435.31 | X19: -2715107.72 | Y19: -0.03481869967
A20: %,V5010003 | B20: 5010003 | C20: Fuel - Procure Unload & Handle | F20: 204531.57 | G20: 309300.95 | H20: -104769.38 | I20: -0.3387295771 | K20: 1222274.23 | L20: 1167878.59 | M20: 54395.64 | N20: 0.04657645107 | Q20: 747074.92 | R20: 550493.27 | S20: 196581.65 | T20: 0.3571009142 | V20: 4126027.77 | W20: 3775840.6 | X20: 350187.17 | Y20: 0.09274416139
A21: %,V5010005 | B21: 5010005 | C21: Fuel - Deferred | F21: 1602469.104 | G21: 1044760.324 | H21: 557708.78 | I21: 0.5338150456 | K21: -8290210.398 | L21: 478065.715 | M21: -8768276.113 | N21: N.M. | Q21: 9722244.975 | R21: 5601384.615 | S21: 4120860.36 | T21: 0.7356860211 | V21: -3631129.28 | W21: -921670.525 | X21: -2709458.755 | Y21: -2.939725945
A22: %,V5010012 | B22: 5010012 | C22: Ash Sales Proceeds | F22: 424.81 | G22: -1356.98 | H22: 1781.79 | I22: 1.313055461 | K22: 2221.3 | L22: 1977.98 | M22: 243.32 | N22: 0.1230143884 | Q22: 1269.85 | R22: 985.03 | S22: 284.82 | T22: 0.2891485539 | V22: 7518.26 | W22: 18336.55 | X22: -10818.29 | Y22: -0.5899850299
A23: %,V5010013 | B23: 5010013 | C23: Fuel Survey Activity | F23: 0 | G23: 0 | H23: 0 | I23: 0 | K23: 0 | L23: 0 | M23: 0 | N23: 0 | Q23: 0 | R23: 0 | S23: 0 | T23: 0 | V23: 3906533.13 | W23: 49281.13 | X23: 3857252 | Y23: N.M.
A24: %,V5010019 | B24: 5010019 | C24: Fuel Oil Consumed | F24: 289928.46 | G24: 96647.53 | H24: 193280.93 | I24: 1.999853799 | K24: 1129597.64 | L24: 1202645.55 | M24: -73047.91 | N24: -0.06073935084 | Q24: 788798.91 | R24: 1032588.18 | S24: -243789.27 | T24: -0.2360953522 | V24: 4065280.17 | W24: 3809517.62 | X24: 255762.55 | Y24: 0.06713777846
A25: %,V5010020 | B25: 5010020 | C25: Nat Gas Consumed Steam | F25: 1416565.56 | G25: 1956384.15 | H25: -539818.59 | I25: -0.2759266834 | K25: 21846847.67 | L25: 14869388.61 | M25: 6977459.06 | N25: 0.4692498961 | Q25: 14585122.53 | R25: 10053840.98 | S25: 4531281.55 | T25: 0.4507015338 | V25: 45853654.99 | W25: 30601272.22 | X25: 15252382.77 | Y25: 0.498423159
A26: %,V5010021 | B26: 5010021 | C26: Transp Gas Consumed Steam | F26: 51176.2 | G26: 44452.54 | H26: 6723.66 | I26: 0.1512547989 | K26: 228309.81 | L26: 153497.93 | M26: 74811.88 | N26: 0.4873803836 | Q26: 157847.66 | R26: 126483.83 | S26: 31363.83 | T26: 0.2479671117 | V26: 575584.17 | W26: 287356.56 | X26: 288227.61 | Y26: 1.003031251
A27: %,V5010027 | B27: 5010027 | C27: Gypsum handling/disposal costs | F27: 134774.73 | G27: 106262.46 | H27: 28512.27 | I27: 0.2683193105 | K27: 562461.09 | L27: 473925.43 | M27: 88535.66 | N27: 0.1868134825 | Q27: 482647.14 | R27: 407956.74 | S27: 74690.4 | T27: 0.1830841182 | V27: 1480883.31 | W27: 1562267.35 | X27: -81384.04 | Y27: -0.05209354212
A28: %,V5010028 | B28: 5010028 | C28: Gypsum Sales Proceeds | F28: -69247.85 | G28: -55250.53 | H28: -13997.32 | I28: -0.2533427281 | K28: -427297.51 | L28: -454696.12 | M28: 27398.61 | N28: 0.06025696898 | Q28: -342155.18 | R28: -212608.95 | S28: -129546.23 | T28: -0.6093169173 | V28: -1195043.56 | W28: -1200101.73 | X28: 5058.17 | Y28: 0.004214784358
A29: %,V5010033 | B29: 5010033 | C29: Coal Procurement Sales Net-NA | F29: 150302.14 | G29: 0 | H29: 150302.14 | I29: N.M. | K29: 281689.3 | L29: 0 | M29: 281689.3 | N29: N.M. | Q29: 281689.3 | R29: 0 | S29: 281689.3 | T29: N.M. | V29: 281689.3 | W29: 0 | X29: 281689.3 | Y29: N.M.
A30: %,V5010034 | B30: 5010034 | C30: Gas Transp Res Fees-Steam | F30: 489451.68 | G30: 537775.2 | H30: -48323.52 | I30: -0.08985821585 | K30: 1958467.68 | L30: 2153339.28 | M30: -194871.6 | N30: -0.09049739714 | Q30: 1453963.68 | R30: 1598925.6 | S30: -144961.92 | T30: -0.09066207959 | V30: 5908334.46 | W30: 6369158.36 | X30: -460823.9 | Y30: -0.07235240105
A31: %,V5010040 | B31: 5010040 | C31: Gas Procuremnt Sales Net | F31: 150274.98 | G31: -219487.01 | H31: 369761.99 | I31: 1.684664573 | K31: 150275.11 | L31: 233801.18 | M31: -83526.07 | N31: -0.3572525596 | Q31: 150275.09 | R31: 110822.264 | S31: 39452.826 | T31: 0.3560009025 | V31: 540765.83 | W31: 1873294.21 | X31: -1332528.38 | Y31: -0.7113289375
A32: %,FACCOUNT,X,TGL_FERC_ACCT,N5010 | B32: Line 5 | C32: (501) Fuel | F32: 8533829.354 | G32: 9408019.944 | H32: -874190.59 | I32: -0.09291972117 | K32: 43811240.99 | L32: 45565560.67 | M32: -1754319.683 | N32: -0.03850100069 | Q32: 43468080.91 | R32: 31647916.54 | S32: 11820164.38 | T32: 0.3734894953 | V32: 143841172.5 | W32: 131485795.6 | X32: 12355376.91 | Y32: 0.09396738899
A33: %,V5020000 | B33: 5020000 | C33: Steam Expenses | F33: 143316.68 | G33: 183480.07 | H33: -40163.39 | I33: -0.2188978345 | K33: 677081.43 | L33: 679055.93 | M33: -1974.5 | N33: -0.00290771336 | Q33: 526739.36 | R33: 415303.89 | S33: 111435.47 | T33: 0.2683227215 | V33: 2014462.83 | W33: 1685337.29 | X33: 329125.54 | Y33: 0.1952876388
A34: %,V5020002 | B34: 5020002 | C34: Urea Expense | F34: 53168.22 | G34: 73029.31 | H34: -19861.09 | I34: -0.271960532 | K34: 349954.83 | L34: 306265.27 | M34: 43689.56 | N34: 0.1426526749 | Q34: 209612.26 | R34: 127452.74 | S34: 82159.52 | T34: 0.644627334 | V34: 958179.14 | W34: 1137502.43 | X34: -179323.29 | Y34: -0.1576465116
A35: %,V5020004 | B35: 5020004 | C35: Lime-Related Expenses | F35: 112931.6 | G35: 201531.73 | H35: -88600.13 | I35: -0.4396336497 | K35: 795716.66 | L35: 631585.79 | M35: 164130.87 | N35: 0.259871062 | Q35: 473806.44 | R35: 337911.78 | S35: 135894.66 | T35: 0.4021601733 | V35: 2574164.17 | W35: 2355834.24 | X35: 218329.93 | Y35: 0.09267626996
A36: %,FACCOUNT,X,TGL_FERC_ACCT,N5020 | B36: Line 6 | C36: (502) Steam Expenses | F36: 309416.5 | G36: 458041.11 | H36: -148624.61 | I36: -0.3244787569 | K36: 1822752.92 | L36: 1616906.99 | M36: 205845.93 | N36: 0.1273084545 | Q36: 1210158.06 | R36: 880668.41 | S36: 329489.65 | T36: 0.3741358794 | V36: 5546806.14 | W36: 5178673.96 | X36: 368132.18 | Y36: 0.07108618593
A37: %,FACCOUNT,X,TGL_FERC_ACCT,N5030 | B37: Line 7 | C37: (503) Steam from Other Sources | F37: 0 | G37: 0 | H37: 0 | I37: 0 | K37: 0 | L37: 0 | M37: 0 | N37: 0 | Q37: 0 | R37: 0 | S37: 0 | T37: 0 | V37: 0 | W37: 0 | X37: 0 | Y37: 0
A38: %,R,FACCOUNT,X,TGL_FERC_ACCT,N5040 | B38: Line 8 | C38: (Less) (504) Steam Transferred-Cr. | F38: 0 | G38: 0 | H38: 0 | I38: 0 | K38: 0 | L38: 0 | M38: 0 | N38: 0 | Q38: 0 | R38: 0 | S38: 0 | T38: 0 | V38: 0 | W38: 0 | X38: 0 | Y38: 0
A39: %,V5050000 | B39: 5050000 | C39: Electric Expenses | F39: 14860.84 | G39: 16578.74 | H39: -1717.9 | I39: -0.1036206612 | K39: 29573.97 | L39: 19390.82 | M39: 10183.15 | N39: 0.5251531395 | Q39: 23432.14 | R39: 17946.44 | S39: 5485.7 | T39: 0.3056706511 | V39: 85226.54 | W39: 51815.25 | X39: 33411.29 | Y39: 0.6448157637
A40: %,FACCOUNT,X,TGL_FERC_ACCT,N5050 | B40: Line 9 | C40: (505) Electric Expenses | F40: 14860.84 | G40: 16578.74 | H40: -1717.9 | I40: -0.1036206612 | K40: 29573.97 | L40: 19390.82 | M40: 10183.15 | N40: 0.5251531395 | Q40: 23432.14 | R40: 17946.44 | S40: 5485.7 | T40: 0.3056706511 | V40: 85226.54 | W40: 51815.25 | X40: 33411.29 | Y40: 0.6448157637
A41: %,V5060000 | B41: 5060000 | C41: Misc Steam Power Expenses | F41: 438281.02 | G41: 374041.75 | H41: 64239.27 | I41: 0.1717435821 | K41: 2019061.84 | L41: 1525965.076 | M41: 493096.764 | N41: 0.323137647 | Q41: 1541766.76 | R41: 1108123.566 | S41: 433643.194 | T41: 0.3913310819 | V41: 5502768.19 | W41: 5904605.516 | X41: -401837.326 | Y41: -0.06805489798
A42: %,V5060002 | B42: 5060002 | C42: Misc Steam Power Exp-Assoc | F42: 4687.48 | G42: 4662.2 | H42: 25.28 | I42: 0.005422332804 | K42: 19564.02 | L42: 19046.43 | M42: 517.59 | N42: 0.02717517141 | Q42: 14661.24 | R42: 14079.02 | S42: 582.22 | T42: 0.04135373059 | V42: 48516.9 | W42: 53508.64 | X42: -4991.74 | Y42: -0.09328848575
A43: %,V5060011 | B43: 5060011 | C43: BSRR O/U Recovery-Oper Costs | F43: 6157.14 | G43: 0 | H43: 6157.14 | I43: N.M. | K43: 6157.14 | L43: 0 | M43: 6157.14 | N43: N.M. | Q43: 6157.14 | R43: 0 | S43: 6157.14 | T43: N.M. | V43: 6157.14 | W43: 213.85 | X43: 5943.29 | Y43: N.M.
A44: %,FACCOUNT,X,TGL_FERC_ACCT,N5060,N5080 | B44: Line 10 | C44: (506) Miscellaneous Steam Power Expenses | F44: 449125.64 | G44: 378703.95 | H44: 70421.69 | I44: 0.1859544639 | K44: 2044783 | L44: 1545011.506 | M44: 499771.494 | N44: 0.3234742862 | Q44: 1562585.14 | R44: 1122202.586 | S44: 440382.554 | T44: 0.3924269642 | V44: 5557442.23 | W44: 5958328.006 | X44: -400885.776 | Y44: -0.067281589
A45: %,V5070006 | B45: 5070006 | C45: Rents - Associated | F45: 127.56 | G45: 193.17 | H45: =+F45-G45 -> -65.61 | I45: =IF(G45<0,IF(H45=0,0,IF(OR(G45=0,F45=0),"N.M.",IF(ABS(H45/G45)>=10,"N.M.",H45/(-G45)))),IF(H45=0,0,IF(OR(G45=0,F45=0),"N.M.",IF(ABS(H45/G45)>=10,"N.M.",H45/G45)))) -> -0.3396490138 | K45: 510.23 | L45: 772.68 | M45: =+K45-L45 -> -262.45 | N45: =IF(L45<0,IF(M45=0,0,IF(OR(L45=0,K45=0),"N.M.",IF(ABS(M45/L45)>=10,"N.M.",M45/(-L45)))),IF(M45=0,0,IF(OR(L45=0,K45=0),"N.M.",IF(ABS(M45/L45)>=10,"N.M.",M45/L45)))) -> -0.3396619558 | Q45: 387.98 | R45: 579.51 | S45: =+Q45-R45 -> -191.53 | T45: =IF(R45<0,IF(S45=0,0,IF(OR(R45=0,Q45=0),"N.M.",IF(ABS(S45/R45)>=10,"N.M.",S45/(-R45)))),IF(S45=0,0,IF(OR(R45=0,Q45=0),"N.M.",IF(ABS(S45/R45)>=10,"N.M.",S45/R45)))) -> -0.3305033563 | V45: 2055.59 | W45: 772.68 | X45: =+V45-W45 -> 1282.91 | Y45: =IF(W45<0,IF(X45=0,0,IF(OR(W45=0,V45=0),"N.M.",IF(ABS(X45/W45)>=10,"N.M.",X45/(-W45)))),IF(X45=0,0,IF(OR(W45=0,V45=0),"N.M.",IF(ABS(X45/W45)>=10,"N.M.",X45/W45)))) -> 1.660338044
A46: %,FACCOUNT,X,TGL_FERC_ACCT,N5070 | B46: Line 11 | C46: (507) Rents | F46: 127.56 | G46: 193.17 | H46: -65.61 | I46: -0.3396490138 | K46: 510.23 | L46: 772.68 | M46: -262.45 | N46: -0.3396619558 | Q46: 387.98 | R46: 579.51 | S46: -191.53 | T46: -0.3305033563 | V46: 2055.59 | W46: 772.68 | X46: 1282.91 | Y46: 1.660338044
A47: %,V5090000 | B47: 5090000 | C47: Allow Consum Title IV SO2 | F47: 1557.29 | G47: 944.17 | H47: 613.12 | I47: 0.649374583 | K47: 4851.22 | L47: 6199.19 | M47: -1347.97 | N47: -0.217442924 | Q47: 3046.18 | R47: 3285.72 | S47: -239.54 | T47: -0.07290335147 | V47: 15350.43 | W47: 37649.41 | X47: -22298.98 | Y47: -0.5922796665
A48: %,V5090001 | B48: 5090001 | C48: Allowance Consumption - NOx | F48: 0 | G48: 0 | H48: 0 | I48: 0 | K48: 0 | L48: 0 | M48: 0 | N48: 0 | Q48: 0 | R48: 0 | S48: 0 | T48: 0 | V48: -157142.86 | W48: 42857.15 | X48: -200000.01 | Y48: -4.666666122
A49: %,V5090009 | B49: 5090009 | C49: Allow Consumpt CSAPR SO2 | F49: 7.64 | G49: 4.62 | H49: 3.02 | I49: 0.6536796537 | K49: 23.79 | L49: 30.28 | M49: -6.49 | N49: -0.214332893 | Q49: 14.93 | R49: 16.06 | S49: -1.13 | T49: -0.0703611457 | V49: 74.53 | W49: 181.01 | X49: -106.48 | Y49: -0.5882547926
A50: %,FACCOUNT,X,TGL_FERC_ACCT,N5090 | B50: Line 12 | C50: (509) Allowances | F50: 1564.93 | G50: 948.79 | H50: 616.14 | I50: 0.6493955459 | K50: 4875.01 | L50: 6229.47 | M50: -1354.46 | N50: -0.2174278069 | Q50: 3061.11 | R50: 3301.78 | S50: -240.67 | T50: -0.07289098607 | V50: -141717.9 | W50: 80687.57 | X50: -222405.47 | Y50: -2.756378337
A51: %,V5000000 | B51: 5000000 | C51: Oper Supervision & Engineering | F51: 336128.68 | G51: 318921.29 | H51: 17207.39 | I51: 0.05395497428 | K51: 1527687.01 | L51: 1306410.01 | M51: 221277 | N51: 0.1693779122 | Q51: 1151946.84 | R51: 969869.68 | S51: 182077.16 | T51: 0.1877336345 | V51: 4724349.59 | W51: 4190481.68 | X51: 533867.91 | Y51: 0.1274001298
A52: %,V5000002 | B52: 5000002 | C52: Dresden Oper Supervision & Eng | F52: 0 | G52: 0 | H52: 0 | I52: 0 | K52: 0 | L52: 0 | M52: 0 | N52: 0 | Q52: 0 | R52: 0 | S52: 0 | T52: 0 | V52: -33.12 | W52: 0 | X52: -33.12 | Y52: N.M.
A53: %,V5000003 | B53: 5000003 | C53: Cnstr Srchrge Op Sup & Eng Exp | F53: 0 | G53: 0 | H53: 0 | I53: 0 | K53: 0 | L53: 0 | M53: 0 | N53: 0 | Q53: 0 | R53: 0 | S53: 0 | T53: 0 | V53: 64.34 | W53: 0 | X53: 64.34 | Y53: N.M.
A54: %,V5000005 | B54: 5000005 | C54: Deferred OM - 20% Non FMR | F54: 0 | G54: 0 | H54: 0 | I54: 0 | K54: 0 | L54: 0 | M54: 0 | N54: 0 | Q54: 0 | R54: 0 | S54: 0 | T54: 0 | V54: 0 | W54: -17.08 | X54: 17.08 | Y54: N.M.
A55: %,V5010000 | B55: 5010000 | C55: Fuel | F55: 589775.53 | G55: 422235.9 | H55: 167539.63 | I55: 0.3967915329 | K55: 2031788.09 | L55: 3124507.2 | M55: -1092719.11 | N55: -0.3497252655 | Q55: 1676392.4 | R55: 2506208.94 | S55: -829816.54 | T55: -0.3311042933 | V55: 6657746.4 | W55: 7282807.98 | X55: -625061.58 | Y55: -0.08582700268
A56: %,V5010001 | B56: 5010001 | C56: Fuel Consumed | F56: 3523402.44 | G56: 5166295.41 | H56: -1642892.97 | I56: -0.3180021349 | K56: 23114816.98 | L56: 22161229.33 | M56: 953587.65 | N56: 0.04302954659 | Q56: 13762909.64 | R56: 9870836.04 | S56: 3892073.6 | T56: 0.3943002988 | V56: 75263327.59 | W56: 77978435.31 | X56: -2715107.72 | Y56: -0.03481869967
A57: %,V5010003 | B57: 5010003 | C57: Fuel - Procure Unload & Handle | F57: 204531.57 | G57: 309300.95 | H57: -104769.38 | I57: -0.3387295771 | K57: 1222274.23 | L57: 1167878.59 | M57: 54395.64 | N57: 0.04657645107 | Q57: 747074.92 | R57: 550493.27 | S57: 196581.65 | T57: 0.3571009142 | V57: 4126027.77 | W57: 3775840.6 | X57: 350187.17 | Y57: 0.09274416139
A58: %,V5010005 | B58: 5010005 | C58: Fuel - Deferred | F58: 1602469.104 | G58: 1044760.324 | H58: 557708.78 | I58: 0.5338150456 | K58: -8290210.398 | L58: 478065.715 | M58: -8768276.113 | N58: N.M. | Q58: 9722244.975 | R58: 5601384.615 | S58: 4120860.36 | T58: 0.7356860211 | V58: -3631129.28 | W58: -921670.525 | X58: -2709458.755 | Y58: -2.939725945
A59: %,V5010012 | B59: 5010012 | C59: Ash Sales Proceeds | F59: 424.81 | G59: -1356.98 | H59: 1781.79 | I59: 1.313055461 | K59: 2221.3 | L59: 1977.98 | M59: 243.32 | N59: 0.1230143884 | Q59: 1269.85 | R59: 985.03 | S59: 284.82 | T59: 0.2891485539 | V59: 7518.26 | W59: 18336.55 | X59: -10818.29 | Y59: -0.5899850299
A60: %,V5010013 | B60: 5010013 | C60: Fuel Survey Activity | F60: 0 | G60: 0 | H60: 0 | I60: 0 | K60: 0 | L60: 0 | M60: 0 | N60: 0 | Q60: 0 | R60: 0 | S60: 0 | T60: 0 | V60: 3906533.13 | W60: 49281.13 | X60: 3857252 | Y60: N.M.
A61: %,V5010019 | B61: 5010019 | C61: Fuel Oil Consumed | F61: 289928.46 | G61: 96647.53 | H61: 193280.93 | I61: 1.999853799 | K61: 1129597.64 | L61: 1202645.55 | M61: -73047.91 | N61: -0.06073935084 | Q61: 788798.91 | R61: 1032588.18 | S61: -243789.27 | T61: -0.2360953522 | V61: 4065280.17 | W61: 3809517.62 | X61: 255762.55 | Y61: 0.06713777846
A62: %,V5010020 | B62: 5010020 | C62: Nat Gas Consumed Steam | F62: 1416565.56 | G62: 1956384.15 | H62: -539818.59 | I62: -0.2759266834 | K62: 21846847.67 | L62: 14869388.61 | M62: 6977459.06 | N62: 0.4692498961 | Q62: 14585122.53 | R62: 10053840.98 | S62: 4531281.55 | T62: 0.4507015338 | V62: 45853654.99 | W62: 30601272.22 | X62: 15252382.77 | Y62: 0.498423159
A63: %,V5010021 | B63: 5010021 | C63: Transp Gas Consumed Steam | F63: 51176.2 | G63: 44452.54 | H63: 6723.66 | I63: 0.1512547989 | K63: 228309.81 | L63: 153497.93 | M63: 74811.88 | N63: 0.4873803836 | Q63: 157847.66 | R63: 126483.83 | S63: 31363.83 | T63: 0.2479671117 | V63: 575584.17 | W63: 287356.56 | X63: 288227.61 | Y63: 1.003031251
A64: %,V5010027 | B64: 5010027 | C64: Gypsum handling/disposal costs | F64: 134774.73 | G64: 106262.46 | H64: 28512.27 | I64: 0.2683193105 | K64: 562461.09 | L64: 473925.43 | M64: 88535.66 | N64: 0.1868134825 | Q64: 482647.14 | R64: 407956.74 | S64: 74690.4 | T64: 0.1830841182 | V64: 1480883.31 | W64: 1562267.35 | X64: -81384.04 | Y64: -0.05209354212
A65: %,V5010028 | B65: 5010028 | C65: Gypsum Sales Proceeds | F65: -69247.85 | G65: -55250.53 | H65: -13997.32 | I65: -0.2533427281 | K65: -427297.51 | L65: -454696.12 | M65: 27398.61 | N65: 0.06025696898 | Q65: -342155.18 | R65: -212608.95 | S65: -129546.23 | T65: -0.6093169173 | V65: -1195043.56 | W65: -1200101.73 | X65: 5058.17 | Y65: 0.004214784358
A66: %,V5010033 | B66: 5010033 | C66: Coal Procurement Sales Net-NA | F66: 150302.14 | G66: 0 | H66: 150302.14 | I66: N.M. | K66: 281689.3 | L66: 0 | M66: 281689.3 | N66: N.M. | Q66: 281689.3 | R66: 0 | S66: 281689.3 | T66: N.M. | V66: 281689.3 | W66: 0 | X66: 281689.3 | Y66: N.M.
A67: %,V5010034 | B67: 5010034 | C67: Gas Transp Res Fees-Steam | F67: 489451.68 | G67: 537775.2 | H67: -48323.52 | I67: -0.08985821585 | K67: 1958467.68 | L67: 2153339.28 | M67: -194871.6 | N67: -0.09049739714 | Q67: 1453963.68 | R67: 1598925.6 | S67: -144961.92 | T67: -0.09066207959 | V67: 5908334.46 | W67: 6369158.36 | X67: -460823.9 | Y67: -0.07235240105
A68: %,V5010040 | B68: 5010040 | C68: Gas Procuremnt Sales Net | F68: 150274.98 | G68: -219487.01 | H68: 369761.99 | I68: 1.684664573 | K68: 150275.11 | L68: 233801.18 | M68: -83526.07 | N68: -0.3572525596 | Q68: 150275.09 | R68: 110822.264 | S68: 39452.826 | T68: 0.3560009025 | V68: 540765.83 | W68: 1873294.21 | X68: -1332528.38 | Y68: -0.7113289375
A69: %,V5020000 | B69: 5020000 | C69: Steam Expenses | F69: 143316.68 | G69: 183480.07 | H69: -40163.39 | I69: -0.2188978345 | K69: 677081.43 | L69: 679055.93 | M69: -1974.5 | N69: -0.00290771336 | Q69: 526739.36 | R69: 415303.89 | S69: 111435.47 | T69: 0.2683227215 | V69: 2014462.83 | W69: 1685337.29 | X69: 329125.54 | Y69: 0.1952876388
A70: %,V5020002 | B70: 5020002 | C70: Urea Expense | F70: 53168.22 | G70: 73029.31 | H70: -19861.09 | I70: -0.271960532 | K70: 349954.83 | L70: 306265.27 | M70: 43689.56 | N70: 0.1426526749 | Q70: 209612.26 | R70: 127452.74 | S70: 82159.52 | T70: 0.644627334 | V70: 958179.14 | W70: 1137502.43 | X70: -179323.29 | Y70: -0.1576465116
A71: %,V5020004 | B71: 5020004 | C71: Lime-Related Expenses | F71: 112931.6 | G71: 201531.73 | H71: -88600.13 | I71: -0.4396336497 | K71: 795716.66 | L71: 631585.79 | M71: 164130.87 | N71: 0.259871062 | Q71: 473806.44 | R71: 337911.78 | S71: 135894.66 | T71: 0.4021601733 | V71: 2574164.17 | W71: 2355834.24 | X71: 218329.93 | Y71: 0.09267626996
A72: %,V5050000 | B72: 5050000 | C72: Electric Expenses | F72: 14860.84 | G72: 16578.74 | H72: -1717.9 | I72: -0.1036206612 | K72: 29573.97 | L72: 19390.82 | M72: 10183.15 | N72: 0.5251531395 | Q72: 23432.14 | R72: 17946.44 | S72: 5485.7 | T72: 0.3056706511 | V72: 85226.54 | W72: 51815.25 | X72: 33411.29 | Y72: 0.6448157637
A73: %,V5060000 | B73: 5060000 | C73: Misc Steam Power Expenses | F73: 438281.02 | G73: 374041.75 | H73: 64239.27 | I73: 0.1717435821 | K73: 2019061.84 | L73: 1525965.076 | M73: 493096.764 | N73: 0.323137647 | Q73: 1541766.76 | R73: 1108123.566 | S73: 433643.194 | T73: 0.3913310819 | V73: 5502768.19 | W73: 5904605.516 | X73: -401837.326 | Y73: -0.06805489798
A74: %,V5060002 | B74: 5060002 | C74: Misc Steam Power Exp-Assoc | F74: 4687.48 | G74: 4662.2 | H74: 25.28 | I74: 0.005422332804 | K74: 19564.02 | L74: 19046.43 | M74: 517.59 | N74: 0.02717517141 | Q74: 14661.24 | R74: 14079.02 | S74: 582.22 | T74: 0.04135373059 | V74: 48516.9 | W74: 53508.64 | X74: -4991.74 | Y74: -0.09328848575
A75: %,V5060011 | B75: 5060011 | C75: BSRR O/U Recovery-Oper Costs | F75: 6157.14 | G75: 0 | H75: 6157.14 | I75: N.M. | K75: 6157.14 | L75: 0 | M75: 6157.14 | N75: N.M. | Q75: 6157.14 | R75: 0 | S75: 6157.14 | T75: N.M. | V75: 6157.14 | W75: 213.85 | X75: 5943.29 | Y75: N.M.
A76: %,V5070006 | B76: 5070006 | C76: Rents - Associated | F76: 127.56 | G76: 193.17 | H76: -65.61 | I76: -0.3396490138 | K76: 510.23 | L76: 772.68 | M76: -262.45 | N76: -0.3396619558 | Q76: 387.98 | R76: 579.51 | S76: -191.53 | T76: -0.3305033563 | V76: 2055.59 | W76: 772.68 | X76: 1282.91 | Y76: 1.660338044
A77: %,V5090000 | B77: 5090000 | C77: Allow Consum Title IV SO2 | F77: 1557.29 | G77: 944.17 | H77: =+F77-G77 -> 613.12 | I77: =IF(G77<0,IF(H77=0,0,IF(OR(G77=0,F77=0),"N.M.",IF(ABS(H77/G77)>=10,"N.M.",H77/(-G77)))),IF(H77=0,0,IF(OR(G77=0,F77=0),"N.M.",IF(ABS(H77/G77)>=10,"N.M.",H77/G77)))) -> 0.649374583 | K77: 4851.22 | L77: 6199.19 | M77: =+K77-L77 -> -1347.97 | N77: =IF(L77<0,IF(M77=0,0,IF(OR(L77=0,K77=0),"N.M.",IF(ABS(M77/L77)>=10,"N.M.",M77/(-L77)))),IF(M77=0,0,IF(OR(L77=0,K77=0),"N.M.",IF(ABS(M77/L77)>=10,"N.M.",M77/L77)))) -> -0.217442924 | Q77: 3046.18 | R77: 3285.72 | S77: =+Q77-R77 -> -239.54 | T77: =IF(R77<0,IF(S77=0,0,IF(OR(R77=0,Q77=0),"N.M.",IF(ABS(S77/R77)>=10,"N.M.",S77/(-R77)))),IF(S77=0,0,IF(OR(R77=0,Q77=0),"N.M.",IF(ABS(S77/R77)>=10,"N.M.",S77/R77)))) -> -0.07290335147 | V77: 15350.43 | W77: 37649.41 | X77: =+V77-W77 -> -22298.98 | Y77: =IF(W77<0,IF(X77=0,0,IF(OR(W77=0,V77=0),"N.M.",IF(ABS(X77/W77)>=10,"N.M.",X77/(-W77)))),IF(X77=0,0,IF(OR(W77=0,V77=0),"N.M.",IF(ABS(X77/W77)>=10,"N.M.",X77/W77)))) -> -0.5922796665
A78: %,V5090001 | B78: 5090001 | C78: Allowance Consumption - NOx | F78: 0 | G78: 0 | H78: 0 | I78: 0 | K78: 0 | L78: 0 | M78: 0 | N78: 0 | Q78: 0 | R78: 0 | S78: 0 | T78: 0 | V78: -157142.86 | W78: 42857.15 | X78: -200000.01 | Y78: -4.666666122
A79: %,V5090009 | B79: 5090009 | C79: Allow Consumpt CSAPR SO2 | F79: 7.64 | G79: 4.62 | H79: 3.02 | I79: 0.6536796537 | K79: 23.79 | L79: 30.28 | M79: -6.49 | N79: -0.214332893 | Q79: 14.93 | R79: 16.06 | S79: -1.13 | T79: -0.0703611457 | V79: 74.53 | W79: 181.01 | X79: -106.48 | Y79: -0.5882547926
A80: %,FACCOUNT,X,TGL_FERC_ACCT,N500-509 | B80: Line 13 | C80: TOTAL Operation (Enter Total of Lines 4 thru 12) | D80: o | F80: 9645053.504 | G80: 10581406.99 | H80: -936353.49 | I80: -0.08849045222 | K80: 49241423.13 | L80: 50060282.15 | M80: -818859.019 | N80: -0.01635745912 | Q80: 47419652.18 | R80: 34642484.95 | S80: 12777167.24 | T80: 0.3688294088 | V80: 159615366 | W80: 146946537.7 | X80: 12668828.25 | Y80: 0.08621386014
B81: Line 14 | C81: Maintenance
A82: %,V5100000 | B82: 5100000 | C82: Maint Supv & Engineering | F82: 93401.81 | G82: 100567.77 | H82: =+F82-G82 -> -7165.96 | I82: =IF(G82<0,IF(H82=0,0,IF(OR(G82=0,F82=0),"N.M.",IF(ABS(H82/G82)>=10,"N.M.",H82/(-G82)))),IF(H82=0,0,IF(OR(G82=0,F82=0),"N.M.",IF(ABS(H82/G82)>=10,"N.M.",H82/G82)))) -> -0.07125503529 | K82: 386914.48 | L82: 361409.29 | M82: =+K82-L82 -> 25505.19 | N82: =IF(L82<0,IF(M82=0,0,IF(OR(L82=0,K82=0),"N.M.",IF(ABS(M82/L82)>=10,"N.M.",M82/(-L82)))),IF(M82=0,0,IF(OR(L82=0,K82=0),"N.M.",IF(ABS(M82/L82)>=10,"N.M.",M82/L82)))) -> 0.0705714842 | Q82: 300414.37 | R82: 272684.38 | S82: =+Q82-R82 -> 27729.99 | T82: =IF(R82<0,IF(S82=0,0,IF(OR(R82=0,Q82=0),"N.M.",IF(ABS(S82/R82)>=10,"N.M.",S82/(-R82)))),IF(S82=0,0,IF(OR(R82=0,Q82=0),"N.M.",IF(ABS(S82/R82)>=10,"N.M.",S82/R82)))) -> 0.1016926235 | V82: 1017187.28 | W82: 1423311.11 | X82: =+V82-W82 -> -406123.83 | Y82: =IF(W82<0,IF(X82=0,0,IF(OR(W82=0,V82=0),"N.M.",IF(ABS(X82/W82)>=10,"N.M.",X82/(-W82)))),IF(X82=0,0,IF(OR(W82=0,V82=0),"N.M.",IF(ABS(X82/W82)>=10,"N.M.",X82/W82)))) -> -0.2853373568
A83: %,V5100001 | B83: 5100001 | C83: Dresden Maint Sup& Engineer | F83: 0 | G83: 0 | H83: 0 | I83: 0 | K83: -9.94 | L83: 0 | M83: -9.94 | N83: N.M. | Q83: 0 | R83: 0 | S83: 0 | T83: 0 | V83: 359.63 | W83: 0 | X83: 359.63 | Y83: N.M.
A84: %,FACCOUNT,X,TGL_FERC_ACCT,N5100 | B84: Line 15 | C84: (510) Maintenance Supervision and Engineering | F84: 93401.81 | G84: 100567.77 | H84: -7165.96 | I84: -0.07125503529 | K84: 386904.54 | L84: 361409.29 | M84: 25495.25 | N84: 0.07054398076 | Q84: 300414.37 | R84: 272684.38 | S84: 27729.99 | T84: 0.1016926235 | V84: 1017546.91 | W84: 1423311.11 | X84: -405764.2 | Y84: -0.2850846854
A85: %,V5110000 | B85: 5110000 | C85: Maintenance of Structures | F85: 185736.87 | G85: 129767.46 | H85: 55969.41 | I85: 0.431305429 | K85: 776000.97 | L85: 583223.88 | M85: 192777.09 | N85: 0.3305370315 | Q85: 568896.1 | R85: 437494.73 | S85: 131401.37 | T85: 0.3003496065 | V85: 1885656.73 | W85: 1904610.52 | X85: -18953.79 | Y85: -0.009951530668
A86: %,FACCOUNT,X,TGL_FERC_ACCT,N5110 | B86: Line 16 | C86: (511) Maintenance of Structures | F86: 185736.87 | G86: 129767.46 | H86: 55969.41 | I86: 0.431305429 | K86: 776000.97 | L86: 583223.88 | M86: 192777.09 | N86: 0.3305370315 | Q86: 568896.1 | R86: 437494.73 | S86: 131401.37 | T86: 0.3003496065 | V86: 1885656.73 | W86: 1904610.52 | X86: -18953.79 | Y86: -0.009951530668
A87: %,V5120000 | B87: 5120000 | C87: Maintenance of Boiler Plant | F87: 1928942 | G87: 2264765.64 | H87: -335823.64 | I87: -0.1482818505 | K87: 4955392.32 | L87: 6134423.25 | M87: -1179030.93 | N87: -0.1921991493 | Q87: 3933547.54 | R87: 5201853.66 | S87: -1268306.12 | T87: -0.2438181085 | V87: 11368191.01 | W87: 16329622.48 | X87: -4961431.47 | Y87: -0.3038301391
A88: %,V5120034 | B88: 5120034 | C88: BSDR O/U Recovery - Maint Cost | F88: -8811.29 | G88: -1808.74 | H88: -7002.55 | I88: -3.871507237 | K88: -11660.81 | L88: -2395.81 | M88: -9265 | N88: -3.867168098 | Q88: -11190.63 | R88: -2206.48 | S88: -8984.15 | T88: -4.071711504 | V88: -17787.42 | W88: -9478.94 | X88: -8308.48 | Y88: -0.8765199484
A89: %,V5120037 | B89: 5120037 | C89: KY Steam Maint O/U | F89: -58271.11 | G89: -58271.11 | H89: 0 | I89: 0 | K89: -233084.44 | L89: -233084.44 | M89: 0 | N89: 0 | Q89: -174813.33 | R89: -174813.33 | S89: 0 | T89: 0 | V89: -699253.32 | W89: -699253.32 | X89: 0 | Y89: 0
A90: %,FACCOUNT,X,TGL_FERC_ACCT,N5120 | B90: Line 17 | C90: (512) Maintenance of Boiler Plant | F90: 1861859.6 | G90: 2204685.79 | H90: -342826.19 | I90: -0.1554988886 | K90: 4710647.07 | L90: 5898943 | M90: -1188295.93 | N90: -0.2014421787 | Q90: 3747543.58 | R90: 5024833.85 | S90: -1277290.27 | T90: -0.2541955233 | V90: 10651150.27 | W90: 15620890.22 | X90: -4969739.95 | Y90: -0.3181470377
A91: %,V5130000 | B91: 5130000 | C91: Maintenance of Electric Plant | F91: 762571.6 | G91: 607188.98 | H91: 155382.62 | I91: 0.255904875 | K91: 1926315.94 | L91: 2100447.76 | M91: -174131.82 | N91: -0.08290223795 | Q91: 1669916.96 | R91: 1802696.82 | S91: -132779.86 | T91: -0.07365623466 | V91: 5731981.68 | W91: 4577197.57 | X91: 1154784.11 | Y91: 0.2522906412
A92: %,FACCOUNT,X,TGL_FERC_ACCT,N5130 | B92: Line 18 | C92: (513) Maintenance of Electric Plant | F92: 762571.6 | G92: 607188.98 | H92: 155382.62 | I92: 0.255904875 | K92: 1926315.94 | L92: 2100447.76 | M92: -174131.82 | N92: -0.08290223795 | Q92: 1669916.96 | R92: 1802696.82 | S92: -132779.86 | T92: -0.07365623466 | V92: 5731981.68 | W92: 4577197.57 | X92: 1154784.11 | Y92: 0.2522906412
A93: %,FACCOUNT,X,TGL_FERC_ACCT,N5131 | B93: Line 18.1 | C93: (513.1) Maintenance of Computer Hardware | D93: m | F93: 0 | G93: 0 | H93: 0 | I93: 0 | K93: 0 | L93: 0 | M93: 0 | Q93: 0 | R93: 0 | S93: 0 | V93: 0 | W93: 0 | X93: 0 | Y93: 0
A94: %,V5132000 | B94: 5132000 | C94: Maint of Computer Software-Mjr | F94: 0 | G94: 5985.15 | H94: -5985.15 | I94: N.M. | K94: 13074.2 | L94: 23152.65 | M94: -10078.45 | Q94: 12038.55 | R94: 23152.65 | S94: -11114.1 | V94: 45186.55 | W94: 23152.65 | X94: 22033.9 | Y94: 0.9516793974
A95: %,FACCOUNT,X,TGL_FERC_ACCT,N5132 | B95: Line 18.2 | C95: (513.2) Maintenance of Computer Software | D95: m | F95: 0 | G95: 5985.15 | H95: -5985.15 | I95: N.M. | K95: 13074.2 | L95: 23152.65 | M95: -10078.45 | Q95: 12038.55 | R95: 23152.65 | S95: -11114.1 | V95: 45186.55 | W95: 23152.65 | X95: 22033.9 | Y95: 0.9516793974
A96: %,V5133000 | B96: 5133000 | C96: Maint of Comm Equipmt-Mjr | F96: 413.58 | G96: 228.56 | H96: 185.02 | I96: 0.8095029751 | K96: 3369.32 | L96: 640.42 | M96: 2728.9 | Q96: 2838.6 | R96: 640.42 | S96: 2198.18 | V96: 8412.63 | W96: 640.42 | X96: 7772.21 | Y96: N.M.
A97: %,FACCOUNT,X,TGL_FERC_ACCT,N5133 | B97: Line 18.3 | C97: (513.3) Maintenance of Communication Equipment | D97: m | F97: 413.58 | G97: 228.56 | H97: 185.02 | I97: 0.8095029751 | K97: 3369.32 | L97: 640.42 | M97: 2728.9 | Q97: 2838.6 | R97: 640.42 | S97: 2198.18 | V97: 8412.63 | W97: 640.42 | X97: 7772.21 | Y97: N.M.
A98: %,V5140000 | B98: 5140000 | C98: Maintenance of Misc Steam Plt | F98: 168745.56 | G98: 181737.08 | H98: -12991.52 | I98: -0.07148524671 | K98: 655716.46 | L98: 587082.74 | M98: 68633.72 | N98: =IF(L98<0,IF(M98=0,0,IF(OR(L98=0,K98=0),"N.M.",IF(ABS(M98/L98)>=10,"N.M.",M98/(-L98)))),IF(M98=0,0,IF(OR(L98=0,K98=0),"N.M.",IF(ABS(M98/L98)>=10,"N.M.",M98/L98)))) -> 0.1169063836 | Q98: 495003.69 | R98: 477477.88 | S98: 17525.81 | T98: =IF(R98<0,IF(S98=0,0,IF(OR(R98=0,Q98=0),"N.M.",IF(ABS(S98/R98)>=10,"N.M.",S98/(-R98)))),IF(S98=0,0,IF(OR(R98=0,Q98=0),"N.M.",IF(ABS(S98/R98)>=10,"N.M.",S98/R98)))) -> 0.03670496736 | V98: 1551176.35 | W98: 1589007.45 | X98: -37831.1 | Y98: -0.02380800669
A99: %,FACCOUNT,X,TGL_FERC_ACCT,N5140 | B99: Line 19 | C99: (514) Maintenance of Miscellaneous Steam Plant | F99: 168745.56 | G99: 181737.08 | H99: -12991.52 | I99: -0.07148524671 | K99: 655716.46 | L99: 587082.74 | M99: 68633.72 | N99: 0.1169063836 | Q99: 495003.69 | R99: 477477.88 | S99: 17525.81 | T99: 0.03670496736 | V99: 1551176.35 | W99: 1589007.45 | X99: -37831.1 | Y99: -0.02380800669
A100: %,V5100000 | B100: 5100000 | C100: Maint Supv & Engineering | F100: 93401.81 | G100: 100567.77 | H100: -7165.96 | I100: -0.07125503529 | K100: 386914.48 | L100: 361409.29 | M100: 25505.19 | N100: 0.0705714842 | Q100: 300414.37 | R100: 272684.38 | S100: 27729.99 | T100: 0.1016926235 | V100: 1017187.28 | W100: 1423311.11 | X100: -406123.83 | Y100: -0.2853373568
A101: %,V5100001 | B101: 5100001 | C101: Dresden Maint Sup& Engineer | F101: 0 | G101: 0 | H101: 0 | I101: 0 | K101: -9.94 | L101: 0 | M101: -9.94 | N101: N.M. | Q101: 0 | R101: 0 | S101: 0 | T101: 0 | V101: 359.63 | W101: 0 | X101: 359.63 | Y101: N.M.
A102: %,V5110000 | B102: 5110000 | C102: Maintenance of Structures | F102: 185736.87 | G102: 129767.46 | H102: 55969.41 | I102: 0.431305429 | K102: 776000.97 | L102: 583223.88 | M102: 192777.09 | N102: 0.3305370315 | Q102: 568896.1 | R102: 437494.73 | S102: 131401.37 | T102: 0.3003496065 | V102: 1885656.73 | W102: 1904610.52 | X102: -18953.79 | Y102: -0.009951530668
A103: %,V5120000 | B103: 5120000 | C103: Maintenance of Boiler Plant | F103: 1928942 | G103: 2264765.64 | H103: -335823.64 | I103: -0.1482818505 | K103: 4955392.32 | L103: 6134423.25 | M103: -1179030.93 | N103: -0.1921991493 | Q103: 3933547.54 | R103: 5201853.66 | S103: -1268306.12 | T103: -0.2438181085 | V103: 11368191.01 | W103: 16329622.48 | X103: -4961431.47 | Y103: -0.3038301391
A104: %,V5120034 | B104: 5120034 | C104: BSDR O/U Recovery - Maint Cost | F104: -8811.29 | G104: -1808.74 | H104: -7002.55 | I104: -3.871507237 | K104: -11660.81 | L104: -2395.81 | M104: -9265 | N104: -3.867168098 | Q104: -11190.63 | R104: -2206.48 | S104: -8984.15 | T104: -4.071711504 | V104: -17787.42 | W104: -9478.94 | X104: -8308.48 | Y104: -0.8765199484
A105: %,V5120037 | B105: 5120037 | C105: KY Steam Maint O/U | F105: -58271.11 | G105: -58271.11 | H105: 0 | I105: 0 | K105: -233084.44 | L105: -233084.44 | M105: 0 | N105: 0 | Q105: -174813.33 | R105: -174813.33 | S105: 0 | T105: 0 | V105: -699253.32 | W105: -699253.32 | X105: 0 | Y105: 0
A106: %,V5130000 | B106: 5130000 | C106: Maintenance of Electric Plant | F106: 762571.6 | G106: 607188.98 | H106: 155382.62 | I106: 0.255904875 | K106: 1926315.94 | L106: 2100447.76 | M106: -174131.82 | N106: -0.08290223795 | Q106: 1669916.96 | R106: 1802696.82 | S106: -132779.86 | T106: -0.07365623466 | V106: 5731981.68 | W106: 4577197.57 | X106: 1154784.11 | Y106: 0.2522906412
A107: %,V5132000 | B107: 5132000 | C107: Maint of Computer Software-Mjr | F107: 0 | G107: 5985.15 | H107: -5985.15 | I107: N.M. | K107: 13074.2 | L107: 23152.65 | M107: -10078.45 | N107: -0.435304382 | Q107: 12038.55 | R107: 23152.65 | S107: -11114.1 | T107: -0.4800357626 | V107: 45186.55 | W107: 23152.65 | X107: 22033.9 | Y107: 0.9516793974
A108: %,V5133000 | B108: 5133000 | C108: Maint of Comm Equipmt-Mjr | F108: 413.58 | G108: 228.56 | H108: 185.02 | I108: 0.8095029751 | K108: 3369.32 | L108: 640.42 | M108: 2728.9 | N108: 4.261109897 | Q108: 2838.6 | R108: 640.42 | S108: 2198.18 | T108: 3.432403735 | V108: 8412.63 | W108: 640.42 | X108: 7772.21 | Y108: N.M.
A109: %,V5140000 | B109: 5140000 | C109: Maintenance of Misc Steam Plt | F109: 168745.56 | G109: 181737.08 | H109: -12991.52 | I109: -0.07148524671 | K109: 655716.46 | L109: 587082.74 | M109: 68633.72 | N109: 0.1169063836 | Q109: 495003.69 | R109: 477477.88 | S109: 17525.81 | T109: 0.03670496736 | V109: 1551176.35 | W109: 1589007.45 | X109: -37831.1 | Y109: -0.02380800669
A110: %,FACCOUNT,X,TGL_FERC_ACCT,N510-515 | B110: Line 20 | C110: TOTAL Maintenance (Enter Total of lines 15 thru 19) | D110: m | F110: 3072729.02 | G110: 3230160.79 | H110: -157431.77 | I110: -0.04873805988 | K110: 8472028.5 | L110: 9554899.74 | M110: -1082871.24 | N110: -0.1133315126 | Q110: 6796651.85 | R110: 8038980.73 | S110: -1242328.88 | T110: -0.154538109 | V110: 20891111.12 | W110: 25138809.94 | X110: -4247698.82 | Y110: -0.1689697655
A111: %,V5000000 | B111: 5000000 | C111: Oper Supervision & Engineering | F111: 336128.68 | G111: 318921.29 | H111: 17207.39 | I111: 0.05395497428 | K111: 1527687.01 | L111: 1306410.01 | M111: 221277 | N111: 0.1693779122 | Q111: 1151946.84 | R111: 969869.68 | S111: 182077.16 | T111: 0.1877336345 | V111: 4724349.59 | W111: 4190481.68 | X111: 533867.91 | Y111: 0.1274001298
A112: %,V5000002 | B112: 5000002 | C112: Dresden Oper Supervision & Eng | F112: 0 | G112: 0 | H112: 0 | I112: 0 | K112: 0 | L112: 0 | M112: 0 | N112: 0 | Q112: 0 | R112: 0 | S112: 0 | T112: 0 | V112: -33.12 | W112: 0 | X112: -33.12 | Y112: N.M.
A113: %,V5000003 | B113: 5000003 | C113: Cnstr Srchrge Op Sup & Eng Exp | F113: 0 | G113: 0 | H113: 0 | I113: 0 | K113: 0 | L113: 0 | M113: 0 | N113: 0 | Q113: 0 | R113: 0 | S113: 0 | T113: 0 | V113: 64.34 | W113: 0 | X113: 64.34 | Y113: N.M.
A114: %,V5000005 | B114: 5000005 | C114: Deferred OM - 20% Non FMR | F114: 0 | G114: 0 | H114: 0 | I114: 0 | K114: 0 | L114: 0 | M114: =+K114-L114 -> 0 | N114: 0 | Q114: 0 | R114: 0 | S114: =+Q114-R114 -> 0 | T114: 0 | V114: 0 | W114: -17.08 | X114: =+V114-W114 -> 17.08 | Y114: =IF(W114<0,IF(X114=0,0,IF(OR(W114=0,V114=0),"N.M.",IF(ABS(X114/W114)>=10,"N.M.",X114/(-W114)))),IF(X114=0,0,IF(OR(W114=0,V114=0),"N.M.",IF(ABS(X114/W114)>=10,"N.M.",X114/W114)))) -> N.M.
A115: %,V5010000 | B115: 5010000 | C115: Fuel | F115: 589775.53 | G115: 422235.9 | H115: 167539.63 | I115: 0.3967915329 | K115: 2031788.09 | L115: 3124507.2 | M115: -1092719.11 | N115: -0.3497252655 | Q115: 1676392.4 | R115: 2506208.94 | S115: -829816.54 | T115: -0.3311042933 | V115: 6657746.4 | W115: 7282807.98 | X115: -625061.58 | Y115: -0.08582700268
A116: %,V5010001 | B116: 5010001 | C116: Fuel Consumed | F116: 3523402.44 | G116: 5166295.41 | H116: -1642892.97 | I116: -0.3180021349 | K116: 23114816.98 | L116: 22161229.33 | M116: 953587.65 | N116: 0.04302954659 | Q116: 13762909.64 | R116: 9870836.04 | S116: 3892073.6 | T116: 0.3943002988 | V116: 75263327.59 | W116: 77978435.31 | X116: -2715107.72 | Y116: -0.03481869967
A117: %,V5010003 | B117: 5010003 | C117: Fuel - Procure Unload & Handle | F117: 204531.57 | G117: 309300.95 | H117: -104769.38 | I117: -0.3387295771 | K117: 1222274.23 | L117: 1167878.59 | M117: 54395.64 | N117: 0.04657645107 | Q117: 747074.92 | R117: 550493.27 | S117: 196581.65 | T117: 0.3571009142 | V117: 4126027.77 | W117: 3775840.6 | X117: 350187.17 | Y117: 0.09274416139
A118: %,V5010005 | B118: 5010005 | C118: Fuel - Deferred | F118: 1602469.104 | G118: 1044760.324 | H118: 557708.78 | I118: 0.5338150456 | K118: -8290210.398 | L118: 478065.715 | M118: -8768276.113 | N118: N.M. | Q118: 9722244.975 | R118: 5601384.615 | S118: 4120860.36 | T118: 0.7356860211 | V118: -3631129.28 | W118: -921670.525 | X118: -2709458.755 | Y118: -2.939725945
A119: %,V5010012 | B119: 5010012 | C119: Ash Sales Proceeds | F119: 424.81 | G119: -1356.98 | H119: 1781.79 | I119: 1.313055461 | K119: 2221.3 | L119: 1977.98 | M119: 243.32 | N119: 0.1230143884 | Q119: 1269.85 | R119: 985.03 | S119: 284.82 | T119: 0.2891485539 | V119: 7518.26 | W119: 18336.55 | X119: -10818.29 | Y119: -0.5899850299
A120: %,V5010013 | B120: 5010013 | C120: Fuel Survey Activity | F120: 0 | G120: 0 | H120: 0 | I120: 0 | K120: 0 | L120: 0 | M120: 0 | N120: 0 | Q120: 0 | R120: 0 | S120: 0 | T120: 0 | V120: 3906533.13 | W120: 49281.13 | X120: 3857252 | Y120: N.M.
A121: %,V5010019 | B121: 5010019 | C121: Fuel Oil Consumed | F121: 289928.46 | G121: 96647.53 | H121: 193280.93 | I121: 1.999853799 | K121: 1129597.64 | L121: 1202645.55 | M121: -73047.91 | N121: -0.06073935084 | Q121: 788798.91 | R121: 1032588.18 | S121: -243789.27 | T121: -0.2360953522 | V121: 4065280.17 | W121: 3809517.62 | X121: 255762.55 | Y121: 0.06713777846
A122: %,V5010020 | B122: 5010020 | C122: Nat Gas Consumed Steam | F122: 1416565.56 | G122: 1956384.15 | H122: -539818.59 | I122: -0.2759266834 | K122: 21846847.67 | L122: 14869388.61 | M122: 6977459.06 | N122: 0.4692498961 | Q122: 14585122.53 | R122: 10053840.98 | S122: 4531281.55 | T122: 0.4507015338 | V122: 45853654.99 | W122: 30601272.22 | X122: 15252382.77 | Y122: 0.498423159
A123: %,V5010021 | B123: 5010021 | C123: Transp Gas Consumed Steam | F123: 51176.2 | G123: 44452.54 | H123: 6723.66 | I123: 0.1512547989 | K123: 228309.81 | L123: 153497.93 | M123: 74811.88 | N123: 0.4873803836 | Q123: 157847.66 | R123: 126483.83 | S123: 31363.83 | T123: 0.2479671117 | V123: 575584.17 | W123: 287356.56 | X123: 288227.61 | Y123: 1.003031251
A124: %,V5010027 | B124: 5010027 | C124: Gypsum handling/disposal costs | F124: 134774.73 | G124: 106262.46 | H124: 28512.27 | I124: 0.2683193105 | K124: 562461.09 | L124: 473925.43 | M124: 88535.66 | N124: 0.1868134825 | Q124: 482647.14 | R124: 407956.74 | S124: 74690.4 | T124: 0.1830841182 | V124: 1480883.31 | W124: 1562267.35 | X124: -81384.04 | Y124: -0.05209354212
A125: %,V5010028 | B125: 5010028 | C125: Gypsum Sales Proceeds | F125: -69247.85 | G125: -55250.53 | H125: -13997.32 | I125: -0.2533427281 | K125: -427297.51 | L125: -454696.12 | M125: 27398.61 | N125: 0.06025696898 | Q125: -342155.18 | R125: -212608.95 | S125: -129546.23 | T125: -0.6093169173 | V125: -1195043.56 | W125: -1200101.73 | X125: 5058.17 | Y125: 0.004214784358
A126: %,V5010033 | B126: 5010033 | C126: Coal Procurement Sales Net-NA | F126: 150302.14 | G126: 0 | H126: 150302.14 | I126: N.M. | K126: 281689.3 | L126: 0 | M126: 281689.3 | N126: N.M. | Q126: 281689.3 | R126: 0 | S126: 281689.3 | T126: N.M. | V126: 281689.3 | W126: 0 | X126: 281689.3 | Y126: N.M.
A127: %,V5010034 | B127: 5010034 | C127: Gas Transp Res Fees-Steam | F127: 489451.68 | G127: 537775.2 | H127: -48323.52 | I127: -0.08985821585 | K127: 1958467.68 | L127: 2153339.28 | M127: -194871.6 | N127: -0.09049739714 | Q127: 1453963.68 | R127: 1598925.6 | S127: -144961.92 | T127: -0.09066207959 | V127: 5908334.46 | W127: 6369158.36 | X127: -460823.9 | Y127: -0.07235240105
A128: %,V5010040 | B128: 5010040 | C128: Gas Procuremnt Sales Net | F128: 150274.98 | G128: -219487.01 | H128: 369761.99 | I128: 1.684664573 | K128: 150275.11 | L128: 233801.18 | M128: -83526.07 | N128: -0.3572525596 | Q128: 150275.09 | R128: 110822.264 | S128: 39452.826 | T128: 0.3560009025 | V128: 540765.83 | W128: 1873294.21 | X128: -1332528.38 | Y128: -0.7113289375
A129: %,V5020000 | B129: 5020000 | C129: Steam Expenses | F129: 143316.68 | G129: 183480.07 | H129: -40163.39 | I129: -0.2188978345 | K129: 677081.43 | L129: 679055.93 | M129: -1974.5 | N129: -0.00290771336 | Q129: 526739.36 | R129: 415303.89 | S129: 111435.47 | T129: 0.2683227215 | V129: 2014462.83 | W129: 1685337.29 | X129: 329125.54 | Y129: 0.1952876388
A130: %,V5020002 | B130: 5020002 | C130: Urea Expense | F130: 53168.22 | G130: 73029.31 | H130: -19861.09 | I130: -0.271960532 | K130: 349954.83 | L130: 306265.27 | M130: 43689.56 | N130: =IF(L130<0,IF(M130=0,0,IF(OR(L130=0,K130=0),"N.M.",IF(ABS(M130/L130)>=10,"N.M.",M130/(-L130)))),IF(M130=0,0,IF(OR(L130=0,K130=0),"N.M.",IF(ABS(M130/L130)>=10,"N.M.",M130/L130)))) -> 0.1426526749 | Q130: 209612.26 | R130: 127452.74 | S130: 82159.52 | T130: =IF(R130<0,IF(S130=0,0,IF(OR(R130=0,Q130=0),"N.M.",IF(ABS(S130/R130)>=10,"N.M.",S130/(-R130)))),IF(S130=0,0,IF(OR(R130=0,Q130=0),"N.M.",IF(ABS(S130/R130)>=10,"N.M.",S130/R130)))) -> 0.644627334 | V130: 958179.14 | W130: 1137502.43 | X130: -179323.29 | Y130: -0.1576465116
A131: %,V5020004 | B131: 5020004 | C131: Lime-Related Expenses | F131: 112931.6 | G131: 201531.73 | H131: -88600.13 | I131: -0.4396336497 | K131: 795716.66 | L131: 631585.79 | M131: 164130.87 | N131: 0.259871062 | Q131: 473806.44 | R131: 337911.78 | S131: 135894.66 | T131: 0.4021601733 | V131: 2574164.17 | W131: 2355834.24 | X131: 218329.93 | Y131: 0.09267626996
A132: %,V5050000 | B132: 5050000 | C132: Electric Expenses | F132: 14860.84 | G132: 16578.74 | H132: -1717.9 | I132: -0.1036206612 | K132: 29573.97 | L132: 19390.82 | M132: 10183.15 | N132: 0.5251531395 | Q132: 23432.14 | R132: 17946.44 | S132: 5485.7 | T132: 0.3056706511 | V132: 85226.54 | W132: 51815.25 | X132: 33411.29 | Y132: 0.6448157637
A133: %,V5060000 | B133: 5060000 | C133: Misc Steam Power Expenses | F133: 438281.02 | G133: 374041.75 | H133: 64239.27 | I133: 0.1717435821 | K133: 2019061.84 | L133: 1525965.076 | M133: 493096.764 | N133: 0.323137647 | Q133: 1541766.76 | R133: 1108123.566 | S133: 433643.194 | T133: 0.3913310819 | V133: 5502768.19 | W133: 5904605.516 | X133: -401837.326 | Y133: -0.06805489798
A134: %,V5060002 | B134: 5060002 | C134: Misc Steam Power Exp-Assoc | F134: 4687.48 | G134: 4662.2 | H134: 25.28 | I134: 0.005422332804 | K134: 19564.02 | L134: 19046.43 | M134: 517.59 | N134: 0.02717517141 | Q134: 14661.24 | R134: 14079.02 | S134: 582.22 | T134: 0.04135373059 | V134: 48516.9 | W134: 53508.64 | X134: -4991.74 | Y134: -0.09328848575
A135: %,V5060011 | B135: 5060011 | C135: BSRR O/U Recovery-Oper Costs | F135: 6157.14 | G135: 0 | H135: 6157.14 | I135: N.M. | K135: 6157.14 | L135: 0 | M135: 6157.14 | N135: N.M. | Q135: 6157.14 | R135: 0 | S135: 6157.14 | T135: N.M. | V135: 6157.14 | W135: 213.85 | X135: 5943.29 | Y135: N.M.
A136: %,V5070006 | B136: 5070006 | C136: Rents - Associated | F136: 127.56 | G136: 193.17 | H136: -65.61 | I136: -0.3396490138 | K136: 510.23 | L136: 772.68 | M136: -262.45 | N136: -0.3396619558 | Q136: 387.98 | R136: 579.51 | S136: -191.53 | T136: -0.3305033563 | V136: 2055.59 | W136: 772.68 | X136: 1282.91 | Y136: 1.660338044
A137: %,V5090000 | B137: 5090000 | C137: Allow Consum Title IV SO2 | F137: 1557.29 | G137: 944.17 | H137: 613.12 | I137: 0.649374583 | K137: 4851.22 | L137: 6199.19 | M137: -1347.97 | N137: -0.217442924 | Q137: 3046.18 | R137: 3285.72 | S137: -239.54 | T137: -0.07290335147 | V137: 15350.43 | W137: 37649.41 | X137: -22298.98 | Y137: -0.5922796665
A138: %,V5090001 | B138: 5090001 | C138: Allowance Consumption - NOx | F138: 0 | G138: 0 | H138: 0 | I138: 0 | K138: 0 | L138: 0 | M138: 0 | N138: 0 | Q138: 0 | R138: 0 | S138: 0 | T138: 0 | V138: -157142.86 | W138: 42857.15 | X138: -200000.01 | Y138: -4.666666122
A139: %,V5090009 | B139: 5090009 | C139: Allow Consumpt CSAPR SO2 | F139: 7.64 | G139: 4.62 | H139: 3.02 | I139: 0.6536796537 | K139: 23.79 | L139: 30.28 | M139: -6.49 | N139: -0.214332893 | Q139: 14.93 | R139: 16.06 | S139: -1.13 | T139: -0.0703611457 | V139: 74.53 | W139: 181.01 | X139: -106.48 | Y139: -0.5882547926
A140: %,V5100000 | B140: 5100000 | C140: Maint Supv & Engineering | F140: 93401.81 | G140: 100567.77 | H140: -7165.96 | I140: -0.07125503529 | K140: 386914.48 | L140: 361409.29 | M140: 25505.19 | N140: 0.0705714842 | Q140: 300414.37 | R140: 272684.38 | S140: 27729.99 | T140: 0.1016926235 | V140: 1017187.28 | W140: 1423311.11 | X140: -406123.83 | Y140: -0.2853373568
A141: %,V5100001 | B141: 5100001 | C141: Dresden Maint Sup& Engineer | F141: 0 | G141: 0 | H141: 0 | I141: 0 | K141: -9.94 | L141: 0 | M141: -9.94 | N141: N.M. | Q141: 0 | R141: 0 | S141: 0 | T141: 0 | V141: 359.63 | W141: 0 | X141: 359.63 | Y141: N.M.
A142: %,V5110000 | B142: 5110000 | C142: Maintenance of Structures | F142: 185736.87 | G142: 129767.46 | H142: 55969.41 | I142: 0.431305429 | K142: 776000.97 | L142: 583223.88 | M142: 192777.09 | N142: 0.3305370315 | Q142: 568896.1 | R142: 437494.73 | S142: 131401.37 | T142: 0.3003496065 | V142: 1885656.73 | W142: 1904610.52 | X142: -18953.79 | Y142: -0.009951530668
A143: %,V5120000 | B143: 5120000 | C143: Maintenance of Boiler Plant | F143: 1928942 | G143: 2264765.64 | H143: -335823.64 | I143: -0.1482818505 | K143: 4955392.32 | L143: 6134423.25 | M143: -1179030.93 | N143: -0.1921991493 | Q143: 3933547.54 | R143: 5201853.66 | S143: -1268306.12 | T143: -0.2438181085 | V143: 11368191.01 | W143: 16329622.48 | X143: -4961431.47 | Y143: -0.3038301391
A144: %,V5120034 | B144: 5120034 | C144: BSDR O/U Recovery - Maint Cost | F144: -8811.29 | G144: -1808.74 | H144: -7002.55 | I144: -3.871507237 | K144: -11660.81 | L144: -2395.81 | M144: -9265 | N144: -3.867168098 | Q144: -11190.63 | R144: -2206.48 | S144: -8984.15 | T144: -4.071711504 | V144: -17787.42 | W144: -9478.94 | X144: -8308.48 | Y144: -0.8765199484
A145: %,V5120037 | B145: 5120037 | C145: KY Steam Maint O/U | F145: -58271.11 | G145: -58271.11 | H145: 0 | I145: 0 | K145: -233084.44 | L145: -233084.44 | M145: 0 | N145: 0 | Q145: -174813.33 | R145: -174813.33 | S145: 0 | T145: 0 | V145: -699253.32 | W145: -699253.32 | X145: 0 | Y145: 0
A146: %,V5130000 | B146: 5130000 | C146: Maintenance of Electric Plant | F146: 762571.6 | G146: 607188.98 | H146: =+F146-G146 -> 155382.62 | I146: =IF(G146<0,IF(H146=0,0,IF(OR(G146=0,F146=0),"N.M.",IF(ABS(H146/G146)>=10,"N.M.",H146/(-G146)))),IF(H146=0,0,IF(OR(G146=0,F146=0),"N.M.",IF(ABS(H146/G146)>=10,"N.M.",H146/G146)))) -> 0.255904875 | K146: 1926315.94 | L146: 2100447.76 | M146: =+K146-L146 -> -174131.82 | N146: -0.08290223795 | Q146: 1669916.96 | R146: 1802696.82 | S146: =+Q146-R146 -> -132779.86 | T146: -0.07365623466 | V146: 5731981.68 | W146: 4577197.57 | X146: =+V146-W146 -> 1154784.11 | Y146: =IF(W146<0,IF(X146=0,0,IF(OR(W146=0,V146=0),"N.M.",IF(ABS(X146/W146)>=10,"N.M.",X146/(-W146)))),IF(X146=0,0,IF(OR(W146=0,V146=0),"N.M.",IF(ABS(X146/W146)>=10,"N.M.",X146/W146)))) -> 0.2522906412
A147: %,V5132000 | B147: 5132000 | C147: Maint of Computer Software-Mjr | F147: 0 | G147: 5985.15 | H147: -5985.15 | I147: N.M. | K147: 13074.2 | L147: 23152.65 | M147: -10078.45 | N147: -0.435304382 | Q147: 12038.55 | R147: 23152.65 | S147: -11114.1 | T147: -0.4800357626 | V147: 45186.55 | W147: 23152.65 | X147: 22033.9 | Y147: 0.9516793974
A148: %,V5133000 | B148: 5133000 | C148: Maint of Comm Equipmt-Mjr | F148: 413.58 | G148: 228.56 | H148: 185.02 | I148: 0.8095029751 | K148: 3369.32 | L148: 640.42 | M148: 2728.9 | N148: 4.261109897 | Q148: 2838.6 | R148: 640.42 | S148: 2198.18 | T148: 3.432403735 | V148: 8412.63 | W148: 640.42 | X148: 7772.21 | Y148: N.M.
A149: %,V5140000 | B149: 5140000 | C149: Maintenance of Misc Steam Plt | F149: 168745.56 | G149: 181737.08 | H149: -12991.52 | I149: -0.07148524671 | K149: 655716.46 | L149: 587082.74 | M149: 68633.72 | N149: 0.1169063836 | Q149: 495003.69 | R149: 477477.88 | S149: 17525.81 | T149: 0.03670496736 | V149: 1551176.35 | W149: 1589007.45 | X149: -37831.1 | Y149: -0.02380800669
A150: %,FACCOUNT,X,TGL_FERC_ACCT,N510-515,N500-509 | B150: Line 21 | C150: TOTAL Power Production Expenses-Steam Power (Entr Tot lines 13 & 20) | F150: 12717782.52 | G150: 13811567.78 | H150: -1093785.26 | I150: -0.07919341795 | K150: 57713451.63 | L150: 59615181.89 | M150: -1901730.259 | N150: -0.03190009992 | Q150: 54216304.03 | R150: 42681465.68 | S150: 11534838.36 | T150: 0.270254036 | V150: 180506477.1 | W150: 172085347.6 | X150: 8421129.429 | Y150: 0.04893577254
B151: Line 22 | C151: B. Nuclear Power Generation | H151: 0 | I151: 0 | M151: 0 | N151: 0 | S151: 0 | T151: 0 | X151: 0 | Y151: 0
B152: Line 23 | C152: Operation | H152: 0 | I152: 0 | M152: 0 | N152: 0 | S152: 0 | T152: 0 | X152: 0 | Y152: 0
A153: %,FACCOUNT,X,TGL_FERC_ACCT,N5170 | B153: Line 24 | C153: (517) Operation Supervision and Engineering | F153: 0 | G153: 0 | H153: 0 | I153: 0 | K153: 0 | L153: 0 | M153: 0 | N153: 0 | Q153: 0 | R153: 0 | S153: 0 | T153: 0 | V153: 0 | W153: 0 | X153: 0 | Y153: 0
A154: %,FACCOUNT,X,TGL_FERC_ACCT,N5180 | B154: Line 25 | C154: (518) Fuel | F154: 0 | G154: 0 | H154: 0 | I154: 0 | K154: 0 | L154: 0 | M154: 0 | N154: 0 | Q154: 0 | R154: 0 | S154: 0 | T154: 0 | V154: 0 | W154: 0 | X154: 0 | Y154: 0
A155: %,FACCOUNT,X,TGL_FERC_ACCT,N5190 | B155: Line 26 | C155: (519) Coolants and Water | F155: 0 | G155: 0 | H155: 0 | I155: 0 | K155: 0 | L155: 0 | M155: 0 | N155: 0 | Q155: 0 | R155: 0 | S155: 0 | T155: 0 | V155: 0 | W155: 0 | X155: 0 | Y155: 0
A156: %,FACCOUNT,X,TGL_FERC_ACCT,N5200 | B156: Line 27 | C156: (520) Steam Expenses | F156: 0 | G156: 0 | H156: 0 | I156: 0 | K156: 0 | L156: 0 | M156: 0 | N156: 0 | Q156: 0 | R156: 0 | S156: 0 | T156: 0 | V156: 0 | W156: 0 | X156: 0 | Y156: 0
A157: %,FACCOUNT,X,TGL_FERC_ACCT,N5210 | B157: Line 28 | C157: (521) Steam from Other Sources | F157: 0 | G157: 0 | H157: 0 | I157: 0 | K157: 0 | L157: 0 | M157: 0 | N157: 0 | Q157: 0 | R157: 0 | S157: 0 | T157: 0 | V157: 0 | W157: 0 | X157: 0 | Y157: 0
B158: Line 29 | C158: (Less) (522) Steam Transferred-Cr. | H158: 0 | I158: 0 | M158: 0 | N158: 0 | S158: 0 | T158: 0 | X158: 0 | Y158: 0
A159: %,FACCOUNT,X,TGL_FERC_ACCT,N5230 | B159: Line 30 | C159: (523) Electric Expenses | F159: 0 | G159: 0 | H159: 0 | I159: 0 | K159: 0 | L159: 0 | M159: 0 | N159: 0 | Q159: 0 | R159: 0 | S159: 0 | T159: 0 | V159: 0 | W159: 0 | X159: 0 | Y159: 0
A160: %,FACCOUNT,X,TGL_FERC_ACCT,N5240 | B160: Line 31 | C160: (524) Miscellaneous Nuclear Power Expenses | F160: 0 | G160: 0 | H160: 0 | I160: 0 | K160: 0 | L160: 0 | M160: 0 | N160: 0 | Q160: 0 | R160: 0 | S160: 0 | T160: 0 | V160: 0 | W160: 0 | X160: 0 | Y160: 0
A161: %,FACCOUNT,X,TGL_FERC_ACCT,N5250 | B161: Line 32 | C161: (525) Rents | F161: 0 | G161: 0 | H161: 0 | I161: 0 | K161: 0 | L161: 0 | M161: 0 | N161: 0 | Q161: 0 | R161: 0 | S161: 0 | T161: 0 | V161: 0 | W161: 0 | X161: 0 | Y161: 0
A162: %,FACCOUNT,X,TGL_FERC_ACCT,N517-525 | B162: Line 33 | C162: TOTAL Operation (Enter Total of Lines 24 thru 32) | D162: o | F162: 0 | G162: 0 | H162: 0 | I162: 0 | K162: 0 | L162: 0 | M162: 0 | N162: =IF(L162<0,IF(M162=0,0,IF(OR(L162=0,K162=0),"N.M.",IF(ABS(M162/L162)>=10,"N.M.",M162/(-L162)))),IF(M162=0,0,IF(OR(L162=0,K162=0),"N.M.",IF(ABS(M162/L162)>=10,"N.M.",M162/L162)))) -> 0 | Q162: 0 | R162: 0 | S162: 0 | T162: =IF(R162<0,IF(S162=0,0,IF(OR(R162=0,Q162=0),"N.M.",IF(ABS(S162/R162)>=10,"N.M.",S162/(-R162)))),IF(S162=0,0,IF(OR(R162=0,Q162=0),"N.M.",IF(ABS(S162/R162)>=10,"N.M.",S162/R162)))) -> 0 | V162: 0 | W162: 0 | X162: 0 | Y162: 0
B163: Line 34 | C163: Maintenance | H163: 0 | I163: 0 | M163: 0 | N163: 0 | S163: 0 | T163: 0 | X163: 0 | Y163: 0
A164: %,FACCOUNT,X,TGL_FERC_ACCT,N5280 | B164: Line 35 | C164: (528) Maintenance Supervision and Engineering | F164: 0 | G164: 0 | H164: 0 | I164: 0 | K164: 0 | L164: 0 | M164: 0 | N164: 0 | Q164: 0 | R164: 0 | S164: 0 | T164: 0 | V164: 0 | W164: 0 | X164: 0 | Y164: 0
A165: %,FACCOUNT,X,TGL_FERC_ACCT,N5290 | B165: Line 36 | C165: (529) Maintenance of Structures | F165: 0 | G165: 0 | H165: 0 | I165: 0 | K165: 0 | L165: 0 | M165: 0 | N165: 0 | Q165: 0 | R165: 0 | S165: 0 | T165: 0 | V165: 0 | W165: 0 | X165: 0 | Y165: 0
A166: %,FACCOUNT,X,TGL_FERC_ACCT,N5300 | B166: Line 37 | C166: (530) Maintenance of Reactor Plant Equipment | F166: 0 | G166: 0 | H166: 0 | I166: 0 | K166: 0 | L166: 0 | M166: 0 | N166: 0 | Q166: 0 | R166: 0 | S166: 0 | T166: 0 | V166: 0 | W166: 0 | X166: 0 | Y166: 0
A167: %,FACCOUNT,X,TGL_FERC_ACCT,N5310 | B167: Line 38 | C167: (531) Maintenance of Electric Plant | F167: 0 | G167: 0 | H167: 0 | I167: 0 | K167: 0 | L167: 0 | M167: 0 | N167: 0 | Q167: 0 | R167: 0 | S167: 0 | T167: 0 | V167: 0 | W167: 0 | X167: 0 | Y167: 0
A168: %,V5311000 | B168: 5311000 | C168: Maint of Computer Hardware | F168: 16.37 | G168: 0 | H168: 16.37 | I168: N.M. | K168: -76.69 | L168: 0 | Q168: -142.47 | R168: 0 | V168: 0 | W168: 0
A169: %,FACCOUNT,X,TGL_FERC_ACCT,N5311 | B169: Line 38.1 | C169: (531.1) Maintenance of Computer Hardware | D169: m | F169: 16.37 | G169: 0 | H169: 16.37 | I169: N.M. | K169: -76.69 | L169: 0 | Q169: -142.47 | R169: 0 | V169: 0 | W169: 0
A170: %,V5312000 | B170: 5312000 | C170: Maint of Computer Software | F170: 0 | G170: 14.63 | H170: -14.63 | I170: N.M. | K170: 0 | L170: 14.63 | Q170: 0 | R170: 14.63 | V170: -14.44 | W170: 14.63
A171: %,FACCOUNT,X,TGL_FERC_ACCT,N5312 | B171: Line 38.2 | C171: (531.2) Maintenance of Computer Software | D171: m | F171: 0 | G171: 14.63 | H171: -14.63 | I171: N.M. | K171: 0 | L171: 14.63 | Q171: 0 | R171: 14.63 | V171: -14.44 | W171: 14.63
A172: %,FACCOUNT,X,TGL_FERC_ACCT,N5313 | B172: Line 38.3 | C172: (531.3) Maintenance of Communication Equipment | D172: m | F172: 0 | G172: 0 | H172: 0 | I172: 0 | K172: 0 | L172: 0 | Q172: 0 | R172: 0 | V172: 0 | W172: 0
A173: %,FACCOUNT,X,TGL_FERC_ACCT,N5320 | B173: Line 39 | C173: (532) Maintenance of Miscellaneous Nuclear Plant | F173: 0 | G173: 0 | H173: 0 | I173: 0 | K173: 0 | L173: 0 | M173: =+K173-L173 -> 0 | N173: =IF(L173<0,IF(M173=0,0,IF(OR(L173=0,K173=0),"N.M.",IF(ABS(M173/L173)>=10,"N.M.",M173/(-L173)))),IF(M173=0,0,IF(OR(L173=0,K173=0),"N.M.",IF(ABS(M173/L173)>=10,"N.M.",M173/L173)))) -> 0 | Q173: 0 | R173: 0 | S173: =+Q173-R173 -> 0 | T173: =IF(R173<0,IF(S173=0,0,IF(OR(R173=0,Q173=0),"N.M.",IF(ABS(S173/R173)>=10,"N.M.",S173/(-R173)))),IF(S173=0,0,IF(OR(R173=0,Q173=0),"N.M.",IF(ABS(S173/R173)>=10,"N.M.",S173/R173)))) -> 0 | V173: 0 | W173: 0 | X173: =+V173-W173 -> 0 | Y173: =IF(W173<0,IF(X173=0,0,IF(OR(W173=0,V173=0),"N.M.",IF(ABS(X173/W173)>=10,"N.M.",X173/(-W173)))),IF(X173=0,0,IF(OR(W173=0,V173=0),"N.M.",IF(ABS(X173/W173)>=10,"N.M.",X173/W173)))) -> 0
A174: %,V5311000 | B174: 5311000 | C174: Maint of Computer Hardware | F174: 16.37 | G174: 0 | H174: 16.37 | I174: N.M. | K174: -76.69 | L174: 0 | M174: -76.69 | N174: N.M. | Q174: -142.47 | R174: 0 | S174: -142.47 | T174: N.M. | V174: 0 | W174: 0 | X174: 0 | Y174: 0
A175: %,V5312000 | B175: 5312000 | C175: Maint of Computer Software | F175: 0 | G175: 14.63 | H175: -14.63 | I175: N.M. | K175: 0 | L175: 14.63 | M175: -14.63 | N175: N.M. | Q175: 0 | R175: 14.63 | S175: -14.63 | T175: N.M. | V175: -14.44 | W175: 14.63 | X175: -29.07 | Y175: -1.987012987
A176: %,FACCOUNT,X,TGL_FERC_ACCT,N528-533 | B176: Line 40 | C176: TOTAL Maintenance (Enter Total of lines 35 thru 39) | D176: m | F176: 16.37 | G176: 14.63 | H176: 1.74 | I176: 0.1189336979 | K176: -76.69 | L176: 14.63 | M176: -91.32 | N176: -6.241968558 | Q176: -142.47 | R176: 14.63 | S176: -157.1 | T176: N.M. | V176: -14.44 | W176: 14.63 | X176: -29.07 | Y176: -1.987012987
A177: %,V5311000 | B177: 5311000 | C177: Maint of Computer Hardware | F177: 16.37 | G177: 0 | H177: 16.37 | I177: N.M. | K177: -76.69 | L177: 0 | M177: -76.69 | N177: N.M. | Q177: -142.47 | R177: 0 | S177: -142.47 | T177: N.M. | V177: 0 | W177: 0 | X177: 0 | Y177: 0
A178: %,V5312000 | B178: 5312000 | C178: Maint of Computer Software | F178: 0 | G178: 14.63 | H178: -14.63 | I178: N.M. | K178: 0 | L178: 14.63 | M178: -14.63 | N178: N.M. | Q178: 0 | R178: 14.63 | S178: -14.63 | T178: N.M. | V178: -14.44 | W178: 14.63 | X178: -29.07 | Y178: -1.987012987
A179: %,FACCOUNT,X,TGL_FERC_ACCT,N517-533 | B179: Line 41 | C179: TOTAL Power Production Expenses-Nuc Power (Entr Tot lines 33 & 40) | F179: 16.37 | G179: 14.63 | H179: 1.74 | I179: 0.1189336979 | K179: -76.69 | L179: 14.63 | M179: -91.32 | N179: -6.241968558 | Q179: -142.47 | R179: 14.63 | S179: -157.1 | T179: N.M. | V179: -14.44 | W179: 14.63 | X179: -29.07 | Y179: -1.987012987
B180: Line 42 | C180: C. Hydraulic Power Generation | H180: 0 | I180: 0 | M180: 0 | N180: 0 | S180: 0 | T180: 0 | X180: 0 | Y180: 0
B181: Line 43 | C181: Operation | H181: 0 | I181: 0 | M181: 0 | N181: 0 | S181: 0 | T181: 0 | X181: 0 | Y181: 0
A182: %,FACCOUNT,X,TGL_FERC_ACCT,N5350 | B182: Line 44 | C182: (535) Operation Supervision and Engineering | F182: 0 | G182: 0 | H182: 0 | I182: 0 | K182: 0 | L182: 0 | M182: 0 | N182: 0 | Q182: 0 | R182: 0 | S182: 0 | T182: 0 | V182: 0 | W182: 0 | X182: 0 | Y182: 0
A183: %,FACCOUNT,X,TGL_FERC_ACCT,N5360 | B183: Line 45 | C183: (536) Water for Power | F183: 0 | G183: 0 | H183: 0 | I183: 0 | K183: 0 | L183: 0 | M183: 0 | N183: 0 | Q183: 0 | R183: 0 | S183: 0 | T183: 0 | V183: 0 | W183: 0 | X183: 0 | Y183: 0
A184: %,FACCOUNT,X,TGL_FERC_ACCT,N5370 | B184: Line 46 | C184: (537) Hydraulic Expenses | F184: 0 | G184: 0 | H184: 0 | I184: 0 | K184: 0 | L184: 0 | M184: 0 | N184: 0 | Q184: 0 | R184: 0 | S184: 0 | T184: 0 | V184: 0 | W184: 0 | X184: 0 | Y184: 0
A185: %,FACCOUNT,X,TGL_FERC_ACCT,N5380 | B185: Line 47 | C185: (538) Electric Expenses | F185: 0 | G185: 0 | H185: 0 | I185: 0 | K185: 0 | L185: 0 | M185: 0 | N185: 0 | Q185: 0 | R185: 0 | S185: 0 | T185: 0 | V185: 0 | W185: 0 | X185: 0 | Y185: 0
A186: %,FACCOUNT,X,TGL_FERC_ACCT,N5390 | B186: Line 48 | C186: (539) Miscellaneous Hydraulic Power Generation Expenses | F186: 0 | G186: 0 | H186: 0 | I186: 0 | K186: 0 | L186: 0 | M186: 0 | N186: 0 | Q186: 0 | R186: 0 | S186: 0 | T186: 0 | V186: 0 | W186: 0 | X186: 0 | Y186: 0
A187: %,FACCOUNT,X,TGL_FERC_ACCT,N5400 | B187: Line 49 | C187: (540) Rents | F187: 0 | G187: 0 | H187: 0 | I187: 0 | K187: 0 | L187: 0 | M187: 0 | N187: 0 | Q187: 0 | R187: 0 | S187: 0 | T187: 0 | V187: 0 | W187: 0 | X187: 0 | Y187: 0
A188: %,FACCOUNT,X,TGL_FERC_ACCT,N535-540 | B188: Line 50 | C188: TOTAL Operation (Enter Total of Lines 44 thru 49) | D188: o | F188: 0 | G188: 0 | H188: 0 | I188: 0 | K188: 0 | L188: 0 | M188: 0 | N188: 0 | Q188: 0 | R188: 0 | S188: 0 | T188: 0 | V188: 0 | W188: 0 | X188: 0 | Y188: 0
B189: Line 51 | C189: C. Hydraulic Power Generation (Continued) | H189: 0 | I189: 0 | M189: 0 | N189: 0 | S189: 0 | T189: 0 | X189: 0 | Y189: 0
B190: Line 52 | C190: Maintenance | H190: 0 | I190: 0 | M190: 0 | N190: 0 | S190: 0 | T190: 0 | X190: 0 | Y190: 0
A191: %,FACCOUNT,X,TGL_FERC_ACCT,N5410 | B191: Line 53 | C191: (541) Maintenance Supervision and Engineering | F191: 0 | G191: 0 | H191: 0 | I191: 0 | K191: 0 | L191: 0 | M191: 0 | N191: 0 | Q191: 0 | R191: 0 | S191: 0 | T191: 0 | V191: 0 | W191: 0 | X191: 0 | Y191: 0
A192: %,FACCOUNT,X,TGL_FERC_ACCT,N5420 | B192: Line 54 | C192: (542) Maintenance of Structures | F192: 0 | G192: 0 | H192: 0 | I192: 0 | K192: 0 | L192: 0 | M192: 0 | N192: 0 | Q192: 0 | R192: 0 | S192: 0 | T192: 0 | V192: 0 | W192: 0 | X192: 0 | Y192: 0
A193: %,FACCOUNT,X,TGL_FERC_ACCT,N5430 | B193: Line 55 | C193: (543) Maintenance of Reservoirs, Dams, and Waterways | F193: 0 | G193: 0 | H193: 0 | I193: 0 | K193: 0 | L193: 0 | M193: 0 | N193: 0 | Q193: 0 | R193: 0 | S193: 0 | T193: 0 | V193: 0 | W193: 0 | X193: 0 | Y193: 0
A194: %,FACCOUNT,X,TGL_FERC_ACCT,N5440 | B194: Line 56 | C194: (544) Maintenance of Electric Plant | F194: 0 | G194: 0 | H194: 0 | I194: 0 | K194: 0 | L194: 0 | M194: 0 | N194: 0 | Q194: 0 | R194: 0 | S194: 0 | T194: 0 | V194: 0 | W194: 0 | X194: 0 | Y194: 0
A195: %,FACCOUNT,X,TGL_FERC_ACCT,N5441 | B195: Line 56.1 | C195: (544.1) Maintenance of Computer Hardware | D195: m | F195: 0 | G195: 0 | H195: 0 | I195: 0 | K195: 0 | L195: 0 | Q195: 0 | R195: 0 | V195: 0 | W195: 0
A196: %,FACCOUNT,X,TGL_FERC_ACCT,N5442 | B196: Line 56.2 | C196: (544.2) Maintenance of Computer Software | D196: m | F196: 0 | G196: 0 | H196: 0 | I196: 0 | K196: 0 | L196: 0 | Q196: 0 | R196: 0 | V196: 0 | W196: 0
A197: %,FACCOUNT,X,TGL_FERC_ACCT,N5443 | B197: Line 56.3 | C197: (544.3) Maintenance of Communication Equipment | D197: m | F197: 0 | G197: 0 | H197: 0 | I197: 0 | K197: 0 | L197: 0 | Q197: 0 | R197: 0 | V197: 0 | W197: 0
A198: %,FACCOUNT,X,TGL_FERC_ACCT,N5450 | B198: Line 57 | C198: (545) Maintenance of Miscellaneous Hydraulic Plant | F198: 0 | G198: 0 | H198: 0 | I198: 0 | K198: 0 | L198: 0 | M198: =+K198-L198 -> 0 | N198: =IF(L198<0,IF(M198=0,0,IF(OR(L198=0,K198=0),"N.M.",IF(ABS(M198/L198)>=10,"N.M.",M198/(-L198)))),IF(M198=0,0,IF(OR(L198=0,K198=0),"N.M.",IF(ABS(M198/L198)>=10,"N.M.",M198/L198)))) -> 0 | Q198: 0 | R198: 0 | S198: =+Q198-R198 -> 0 | T198: =IF(R198<0,IF(S198=0,0,IF(OR(R198=0,Q198=0),"N.M.",IF(ABS(S198/R198)>=10,"N.M.",S198/(-R198)))),IF(S198=0,0,IF(OR(R198=0,Q198=0),"N.M.",IF(ABS(S198/R198)>=10,"N.M.",S198/R198)))) -> 0 | V198: 0 | W198: 0 | X198: =+V198-W198 -> 0 | Y198: =IF(W198<0,IF(X198=0,0,IF(OR(W198=0,V198=0),"N.M.",IF(ABS(X198/W198)>=10,"N.M.",X198/(-W198)))),IF(X198=0,0,IF(OR(W198=0,V198=0),"N.M.",IF(ABS(X198/W198)>=10,"N.M.",X198/W198)))) -> 0
A199: %,FACCOUNT,X,TGL_FERC_ACCT,N541-545 | B199: Line 58 | C199: TOTAL Maintenance (Total of lines 53 thru 57) | D199: m | F199: 0 | G199: 0 | H199: 0 | I199: 0 | K199: 0 | L199: 0 | M199: 0 | N199: 0 | Q199: 0 | R199: 0 | S199: 0 | T199: 0 | V199: 0 | W199: 0 | X199: 0 | Y199: 0
A200: %,FACCOUNT,X,TGL_FERC_ACCT,N535-545 | B200: Line 59 | C200: TOTAL Power Production Expenses-Hydraulic Power (Tot lines 50 & 58) | F200: 0 | G200: 0 | H200: 0 | I200: 0 | K200: 0 | L200: 0 | M200: 0 | N200: 0 | Q200: 0 | R200: 0 | S200: 0 | T200: 0 | V200: 0 | W200: 0 | X200: 0 | Y200: 0
B201: Line 60 | C201: D. Other Power Generation | H201: 0 | I201: 0 | M201: 0 | N201: 0 | S201: 0 | T201: 0 | X201: 0 | Y201: 0
... 1496 more rows

Sheet O&M QRT
A1: %,LACTUALS,SBAL | B1: %,ATF,FACCOUNT | C1: %,ATT,FDESCR,UDESCR | F1: %,LACTUALS,SPER | G1: %,LACTUALS,SPER-1YR | H1: %,C | I1: %,C | K1: %,LACTUALS,SYTD | L1: %,LACTUALS,SYTD-1YR | M1: %,C | N1: %,C | Q1: %,LACTUALS,SQTR | R1: %,LACTUALS,SQTR-1YR | S1: %,C | T1: %,C | V1: %,LACTUALS,SROLLING12 | W1: %,LACTUALS,SROLNG12-1Y | X1: %,C | Y1: %,C
C2: Kentucky Power Corp Consol | G2: Kentucky Power Corp Consol | L2: Kentucky Power Corp Consol | R2: Kentucky Power Corp Consol | W2: Kentucky Power Corp Consol
C3: April 2026 | G3: As of: Apr 2026 | L3: As of: Apr 2026 | R3: As of: Apr 2026 | W3: As of: Apr 2026
B4: Run Date: 05/08/2026 06:47 AM
B5: GLR6283P | C5: Rpt ID: FERC_IS1 Layout: FERC_IS1 | F5: ONE MONTH ENDED | H5: Variance | K5: YEAR TO DATE | M5: Variance | Q5: THREE MONTHS ENDED | S5: Variance | V5: TWELVE MONTHS ENDED | X5: Variance
B6: KYP_CORP_CONSOL | C6: V2099-01-01 Acct: GL_FERC_ACCT BU: GL_PRPT_CONS | F6: 2026 | G6: 2025 | H6: $ | I6: % | K6: 2026 | L6: 2025 | M6: $ | N6: % | O6: Explanation | Q6: 2026 | R6: 2025 | S6: $ | T6: % | V6: 2026 | W6: 2025 | X6: $ | Y6: %
C8: OPERATING AND MAINTENANCE DETAIL
C9: FERC Page 320 QUARTERLY
B10: 1 | C10: 1. POWER PRODUCTION AND OTHER POWER SUPPLYEXPENSES
A11: %,V5000000 | B11: 5000000 | C11: Oper Supervision & Engineering | F11: 336128.68 | G11: 318921.29 | H11: =+F11-G11 -> 17207.39 | I11: =IF(AND(F11=0,G11=0),"",IF(OR(F11=0,G11=0),100%,(+H11/G11))) -> 0.05395497428 | K11: 1527687.01 | L11: 1306410.01 | M11: =+K11-L11 -> 221277 | N11: =IF(AND(K11=0,L11=0),"",IF(OR(K11=0,L11=0),100%,(+M11/L11))) -> 0.1693779122 | Q11: 1151946.84 | R11: 969869.68 | S11: =+Q11-R11 -> 182077.16 | T11: =IF(AND(Q11=0,R11=0),"",IF(OR(Q11=0,R11=0),100%,(+S11/R11))) -> 0.1877336345 | V11: 4724349.59 | W11: 4190481.68 | X11: =+V11-W11 -> 533867.91 | Y11: =IF(AND(V11=0,W11=0),"",IF(OR(V11=0,W11=0),100%,(+X11/W11))) -> 0.1274001298
A12: %,V5000002 | B12: 5000002 | C12: Dresden Oper Supervision & Eng | F12: 0 | G12: 0 | H12: 0 | K12: 0 | L12: 0 | M12: 0 | Q12: 0 | R12: 0 | S12: 0 | V12: -33.12 | W12: 0 | X12: -33.12 | Y12: 1
A13: %,V5000003 | B13: 5000003 | C13: Cnstr Srchrge Op Sup & Eng Exp | F13: 0 | G13: 0 | H13: 0 | K13: 0 | L13: 0 | M13: 0 | Q13: 0 | R13: 0 | S13: 0 | V13: 64.34 | W13: 0 | X13: 64.34 | Y13: 1
A14: %,V5000005 | B14: 5000005 | C14: Deferred OM - 20% Non FMR | F14: 0 | G14: 0 | H14: 0 | K14: 0 | L14: 0 | M14: 0 | Q14: 0 | R14: 0 | S14: 0 | V14: 0 | W14: -17.08 | X14: 17.08 | Y14: 1
A15: %,V5010000 | B15: 5010000 | C15: Fuel | F15: 589775.53 | G15: 422235.9 | H15: 167539.63 | I15: 0.3967915329 | K15: 2031788.09 | L15: 3124507.2 | M15: -1092719.11 | N15: -0.3497252655 | Q15: 1676392.4 | R15: 2506208.94 | S15: -829816.54 | T15: -0.3311042933 | V15: 6657746.4 | W15: 7282807.98 | X15: -625061.58 | Y15: -0.08582700268
A16: %,V5010001 | B16: 5010001 | C16: Fuel Consumed | F16: 3523402.44 | G16: 5166295.41 | H16: -1642892.97 | I16: -0.3180021349 | K16: 23114816.98 | L16: 22161229.33 | M16: 953587.65 | N16: 0.04302954659 | Q16: 13762909.64 | R16: 9870836.04 | S16: 3892073.6 | T16: 0.3943002988 | V16: 75263327.59 | W16: 77978435.31 | X16: -2715107.72 | Y16: -0.03481869967
A17: %,V5010003 | B17: 5010003 | C17: Fuel - Procure Unload & Handle | F17: 204531.57 | G17: 309300.95 | H17: -104769.38 | I17: -0.3387295771 | K17: 1222274.23 | L17: 1167878.59 | M17: 54395.64 | N17: 0.04657645107 | Q17: 747074.92 | R17: 550493.27 | S17: 196581.65 | T17: 0.3571009142 | V17: 4126027.77 | W17: 3775840.6 | X17: 350187.17 | Y17: 0.09274416139
A18: %,V5010005 | B18: 5010005 | C18: Fuel - Deferred | F18: 1602469.104 | G18: 1044760.324 | H18: 557708.78 | I18: 0.5338150456 | K18: -8290210.398 | L18: 478065.715 | M18: -8768276.113 | N18: -18.34115235 | Q18: 9722244.975 | R18: 5601384.615 | S18: 4120860.36 | T18: 0.7356860211 | V18: -3631129.28 | W18: -921670.525 | X18: -2709458.755 | Y18: 2.939725945
A19: %,V5010012 | B19: 5010012 | C19: Ash Sales Proceeds | F19: 424.81 | G19: -1356.98 | H19: 1781.79 | I19: -1.313055461 | K19: 2221.3 | L19: 1977.98 | M19: 243.32 | N19: 0.1230143884 | Q19: 1269.85 | R19: 985.03 | S19: 284.82 | T19: 0.2891485539 | V19: 7518.26 | W19: 18336.55 | X19: -10818.29 | Y19: -0.5899850299
A20: %,V5010013 | B20: 5010013 | C20: Fuel Survey Activity | F20: 0 | G20: 0 | H20: 0 | K20: 0 | L20: 0 | M20: 0 | Q20: 0 | R20: 0 | S20: 0 | V20: 3906533.13 | W20: 49281.13 | X20: 3857252 | Y20: 78.27036434
A21: %,V5010019 | B21: 5010019 | C21: Fuel Oil Consumed | F21: 289928.46 | G21: 96647.53 | H21: 193280.93 | I21: 1.999853799 | K21: 1129597.64 | L21: 1202645.55 | M21: -73047.91 | N21: -0.06073935084 | Q21: 788798.91 | R21: 1032588.18 | S21: -243789.27 | T21: -0.2360953522 | V21: 4065280.17 | W21: 3809517.62 | X21: 255762.55 | Y21: 0.06713777846
A22: %,V5010020 | B22: 5010020 | C22: Nat Gas Consumed Steam | F22: 1416565.56 | G22: 1956384.15 | H22: -539818.59 | I22: -0.2759266834 | K22: 21846847.67 | L22: 14869388.61 | M22: 6977459.06 | N22: 0.4692498961 | Q22: 14585122.53 | R22: 10053840.98 | S22: 4531281.55 | T22: 0.4507015338 | V22: 45853654.99 | W22: 30601272.22 | X22: 15252382.77 | Y22: 0.498423159
A23: %,V5010021 | B23: 5010021 | C23: Transp Gas Consumed Steam | F23: 51176.2 | G23: 44452.54 | H23: 6723.66 | I23: 0.1512547989 | K23: 228309.81 | L23: 153497.93 | M23: 74811.88 | N23: 0.4873803836 | Q23: 157847.66 | R23: 126483.83 | S23: 31363.83 | T23: 0.2479671117 | V23: 575584.17 | W23: 287356.56 | X23: 288227.61 | Y23: 1.003031251
A24: %,V5010027 | B24: 5010027 | C24: Gypsum handling/disposal costs | F24: 134774.73 | G24: 106262.46 | H24: 28512.27 | I24: 0.2683193105 | K24: 562461.09 | L24: 473925.43 | M24: 88535.66 | N24: 0.1868134825 | Q24: 482647.14 | R24: 407956.74 | S24: 74690.4 | T24: 0.1830841182 | V24: 1480883.31 | W24: 1562267.35 | X24: -81384.04 | Y24: -0.05209354212
A25: %,V5010028 | B25: 5010028 | C25: Gypsum Sales Proceeds | F25: -69247.85 | G25: -55250.53 | H25: -13997.32 | I25: 0.2533427281 | K25: -427297.51 | L25: -454696.12 | M25: 27398.61 | N25: -0.06025696898 | Q25: -342155.18 | R25: -212608.95 | S25: -129546.23 | T25: 0.6093169173 | V25: -1195043.56 | W25: -1200101.73 | X25: 5058.17 | Y25: -0.004214784358
A26: %,V5010033 | B26: 5010033 | C26: Coal Procurement Sales Net-NA | F26: 150302.14 | G26: 0 | H26: 150302.14 | I26: 1 | K26: 281689.3 | L26: 0 | M26: 281689.3 | N26: 1 | Q26: 281689.3 | R26: 0 | S26: 281689.3 | T26: 1 | V26: 281689.3 | W26: 0 | X26: 281689.3 | Y26: 1
A27: %,V5010034 | B27: 5010034 | C27: Gas Transp Res Fees-Steam | F27: 489451.68 | G27: 537775.2 | H27: -48323.52 | I27: -0.08985821585 | K27: 1958467.68 | L27: 2153339.28 | M27: -194871.6 | N27: -0.09049739714 | Q27: 1453963.68 | R27: 1598925.6 | S27: -144961.92 | T27: -0.09066207959 | V27: 5908334.46 | W27: 6369158.36 | X27: -460823.9 | Y27: -0.07235240105
A28: %,V5010040 | B28: 5010040 | C28: Gas Procuremnt Sales Net | F28: 150274.98 | G28: -219487.01 | H28: 369761.99 | I28: -1.684664573 | K28: 150275.11 | L28: 233801.18 | M28: -83526.07 | N28: -0.3572525596 | Q28: 150275.09 | R28: 110822.264 | S28: 39452.826 | T28: 0.3560009025 | V28: 540765.83 | W28: 1873294.21 | X28: -1332528.38 | Y28: -0.7113289375
A29: %,V5020000 | B29: 5020000 | C29: Steam Expenses | F29: 143316.68 | G29: 183480.07 | H29: -40163.39 | I29: -0.2188978345 | K29: 677081.43 | L29: 679055.93 | M29: -1974.5 | N29: -0.00290771336 | Q29: 526739.36 | R29: 415303.89 | S29: 111435.47 | T29: 0.2683227215 | V29: 2014462.83 | W29: 1685337.29 | X29: 329125.54 | Y29: 0.1952876388
A30: %,V5020002 | B30: 5020002 | C30: Urea Expense | F30: 53168.22 | G30: 73029.31 | H30: -19861.09 | I30: -0.271960532 | K30: 349954.83 | L30: 306265.27 | M30: 43689.56 | N30: 0.1426526749 | Q30: 209612.26 | R30: 127452.74 | S30: 82159.52 | T30: 0.644627334 | V30: 958179.14 | W30: 1137502.43 | X30: -179323.29 | Y30: -0.1576465116
A31: %,V5020004 | B31: 5020004 | C31: Lime-Related Expenses | F31: 112931.6 | G31: 201531.73 | H31: -88600.13 | I31: -0.4396336497 | K31: 795716.66 | L31: 631585.79 | M31: 164130.87 | N31: 0.259871062 | Q31: 473806.44 | R31: 337911.78 | S31: 135894.66 | T31: 0.4021601733 | V31: 2574164.17 | W31: 2355834.24 | X31: 218329.93 | Y31: 0.09267626996
A32: %,V5050000 | B32: 5050000 | C32: Electric Expenses | F32: 14860.84 | G32: 16578.74 | H32: -1717.9 | I32: -0.1036206612 | K32: 29573.97 | L32: 19390.82 | M32: 10183.15 | N32: 0.5251531395 | Q32: 23432.14 | R32: 17946.44 | S32: 5485.7 | T32: 0.3056706511 | V32: 85226.54 | W32: 51815.25 | X32: 33411.29 | Y32: 0.6448157637
A33: %,V5060000 | B33: 5060000 | C33: Misc Steam Power Expenses | F33: 438281.02 | G33: 374041.75 | H33: 64239.27 | I33: 0.1717435821 | K33: 2019061.84 | L33: 1525965.076 | M33: 493096.764 | N33: 0.323137647 | Q33: 1541766.76 | R33: 1108123.566 | S33: 433643.194 | T33: 0.3913310819 | V33: 5502768.19 | W33: 5904605.516 | X33: -401837.326 | Y33: -0.06805489798
A34: %,V5060002 | B34: 5060002 | C34: Misc Steam Power Exp-Assoc | F34: 4687.48 | G34: 4662.2 | H34: 25.28 | I34: 0.005422332804 | K34: 19564.02 | L34: 19046.43 | M34: 517.59 | N34: 0.02717517141 | Q34: 14661.24 | R34: 14079.02 | S34: 582.22 | T34: 0.04135373059 | V34: 48516.9 | W34: 53508.64 | X34: -4991.74 | Y34: -0.09328848575
A35: %,V5060011 | B35: 5060011 | C35: BSRR O/U Recovery-Oper Costs | F35: 6157.14 | G35: 0 | H35: 6157.14 | I35: 1 | K35: 6157.14 | L35: 0 | M35: 6157.14 | N35: 1 | Q35: 6157.14 | R35: 0 | S35: 6157.14 | T35: 1 | V35: 6157.14 | W35: 213.85 | X35: 5943.29 | Y35: 27.79186346
A36: %,V5070006 | B36: 5070006 | C36: Rents - Associated | F36: 127.56 | G36: 193.17 | H36: -65.61 | I36: -0.3396490138 | K36: 510.23 | L36: 772.68 | M36: -262.45 | N36: -0.3396619558 | Q36: 387.98 | R36: 579.51 | S36: -191.53 | T36: -0.3305033563 | V36: 2055.59 | W36: 772.68 | X36: 1282.91 | Y36: 1.660338044
A37: %,V5090000 | B37: 5090000 | C37: Allow Consum Title IV SO2 | F37: 1557.29 | G37: 944.17 | H37: 613.12 | I37: 0.649374583 | K37: 4851.22 | L37: 6199.19 | M37: -1347.97 | N37: -0.217442924 | Q37: 3046.18 | R37: 3285.72 | S37: -239.54 | T37: -0.07290335147 | V37: 15350.43 | W37: 37649.41 | X37: -22298.98 | Y37: -0.5922796665
A38: %,V5090001 | B38: 5090001 | C38: Allowance Consumption - NOx | F38: 0 | G38: 0 | H38: 0 | K38: 0 | L38: 0 | M38: 0 | Q38: 0 | R38: 0 | S38: 0 | V38: -157142.86 | W38: 42857.15 | X38: -200000.01 | Y38: -4.666666122
A39: %,V5090009 | B39: 5090009 | C39: Allow Consumpt CSAPR SO2 | F39: 7.64 | G39: 4.62 | H39: 3.02 | I39: 0.6536796537 | K39: 23.79 | L39: 30.28 | M39: -6.49 | N39: -0.214332893 | Q39: 14.93 | R39: 16.06 | S39: -1.13 | T39: -0.0703611457 | V39: 74.53 | W39: 181.01 | X39: -106.48 | Y39: -0.5882547926
A40: %,FACCOUNT,X,TGL_FERC_ACCT,N500-509 | B40: 2 | C40: Steam Power Generation - Operation (500-509) | D40: o | F40: 9645053.504 | G40: 10581406.99 | H40: -936353.49 | I40: -0.08849045222 | K40: 49241423.13 | L40: 50060282.15 | M40: -818859.019 | N40: -0.01635745912 | Q40: 47419652.18 | R40: 34642484.95 | S40: 12777167.24 | T40: 0.3688294088 | V40: 159615366 | W40: 146946537.7 | X40: 12668828.25 | Y40: 0.08621386014
A41: %,V5100000 | B41: 5100000 | C41: Maint Supv & Engineering | F41: 93401.81 | G41: 100567.77 | H41: -7165.96 | I41: -0.07125503529 | K41: 386914.48 | L41: 361409.29 | M41: 25505.19 | N41: 0.0705714842 | Q41: 300414.37 | R41: 272684.38 | S41: 27729.99 | T41: 0.1016926235 | V41: 1017187.28 | W41: 1423311.11 | X41: -406123.83 | Y41: -0.2853373568
A42: %,V5100001 | B42: 5100001 | C42: Dresden Maint Sup& Engineer | F42: 0 | G42: 0 | H42: 0 | K42: -9.94 | L42: 0 | M42: -9.94 | N42: 1 | Q42: 0 | R42: 0 | S42: 0 | V42: 359.63 | W42: 0 | X42: 359.63 | Y42: 1
A43: %,V5110000 | B43: 5110000 | C43: Maintenance of Structures | F43: 185736.87 | G43: 129767.46 | H43: =+F43-G43 -> 55969.41 | I43: =IF(AND(F43=0,G43=0),"",IF(OR(F43=0,G43=0),100%,(+H43/G43))) -> 0.431305429 | K43: 776000.97 | L43: 583223.88 | M43: =+K43-L43 -> 192777.09 | N43: =IF(AND(K43=0,L43=0),"",IF(OR(K43=0,L43=0),100%,(+M43/L43))) -> 0.3305370315 | Q43: 568896.1 | R43: 437494.73 | S43: =+Q43-R43 -> 131401.37 | T43: =IF(AND(Q43=0,R43=0),"",IF(OR(Q43=0,R43=0),100%,(+S43/R43))) -> 0.3003496065 | V43: 1885656.73 | W43: 1904610.52 | X43: =+V43-W43 -> -18953.79 | Y43: =IF(AND(V43=0,W43=0),"",IF(OR(V43=0,W43=0),100%,(+X43/W43))) -> -0.009951530668
A44: %,V5120000 | B44: 5120000 | C44: Maintenance of Boiler Plant | F44: 1928942 | G44: 2264765.64 | H44: -335823.64 | I44: -0.1482818505 | K44: 4955392.32 | L44: 6134423.25 | M44: -1179030.93 | N44: -0.1921991493 | Q44: 3933547.54 | R44: 5201853.66 | S44: -1268306.12 | T44: -0.2438181085 | V44: 11368191.01 | W44: 16329622.48 | X44: -4961431.47 | Y44: -0.3038301391
A45: %,V5120034 | B45: 5120034 | C45: BSDR O/U Recovery - Maint Cost | F45: -8811.29 | G45: -1808.74 | H45: -7002.55 | I45: 3.871507237 | K45: -11660.81 | L45: -2395.81 | M45: -9265 | N45: 3.867168098 | Q45: -11190.63 | R45: -2206.48 | S45: -8984.15 | T45: 4.071711504 | V45: -17787.42 | W45: -9478.94 | X45: -8308.48 | Y45: 0.8765199484
A46: %,V5120037 | B46: 5120037 | C46: KY Steam Maint O/U | F46: -58271.11 | G46: -58271.11 | H46: 0 | I46: 0 | K46: -233084.44 | L46: -233084.44 | M46: 0 | N46: 0 | Q46: -174813.33 | R46: -174813.33 | S46: 0 | T46: 0 | V46: -699253.32 | W46: -699253.32 | X46: 0 | Y46: 0
A47: %,V5130000 | B47: 5130000 | C47: Maintenance of Electric Plant | F47: 762571.6 | G47: 607188.98 | H47: 155382.62 | I47: 0.255904875 | K47: 1926315.94 | L47: 2100447.76 | M47: -174131.82 | N47: -0.08290223795 | Q47: 1669916.96 | R47: 1802696.82 | S47: -132779.86 | T47: -0.07365623466 | V47: 5731981.68 | W47: 4577197.57 | X47: 1154784.11 | Y47: 0.2522906412
A48: %,V5132000 | B48: 5132000 | C48: Maint of Computer Software-Mjr | F48: 0 | G48: 5985.15 | H48: -5985.15 | I48: 1 | K48: 13074.2 | L48: 23152.65 | M48: -10078.45 | N48: -0.435304382 | Q48: 12038.55 | R48: 23152.65 | S48: -11114.1 | T48: -0.4800357626 | V48: 45186.55 | W48: 23152.65 | X48: 22033.9 | Y48: 0.9516793974
A49: %,V5133000 | B49: 5133000 | C49: Maint of Comm Equipmt-Mjr | F49: 413.58 | G49: 228.56 | H49: 185.02 | I49: 0.8095029751 | K49: 3369.32 | L49: 640.42 | M49: 2728.9 | N49: 4.261109897 | Q49: 2838.6 | R49: 640.42 | S49: 2198.18 | T49: 3.432403735 | V49: 8412.63 | W49: 640.42 | X49: 7772.21 | Y49: 12.1361138
A50: %,V5140000 | B50: 5140000 | C50: Maintenance of Misc Steam Plt | F50: 168745.56 | G50: 181737.08 | H50: -12991.52 | I50: -0.07148524671 | K50: 655716.46 | L50: 587082.74 | M50: 68633.72 | N50: 0.1169063836 | Q50: 495003.69 | R50: 477477.88 | S50: 17525.81 | T50: 0.03670496736 | V50: 1551176.35 | W50: 1589007.45 | X50: -37831.1 | Y50: -0.02380800669
A51: %,FACCOUNT,X,TGL_FERC_ACCT,N510-515 | B51: 3 | C51: Steam Power Generation - Maintenance (510-515) | D51: m | F51: 3072729.02 | G51: 3230160.79 | H51: -157431.77 | I51: -0.04873805988 | K51: 8472028.5 | L51: 9554899.74 | M51: -1082871.24 | N51: -0.1133315126 | Q51: 6796651.85 | R51: 8038980.73 | S51: -1242328.88 | T51: -0.154538109 | V51: 20891111.12 | W51: 25138809.94 | X51: -4247698.82 | Y51: -0.1689697655
A52: %,V5000000 | B52: 5000000 | C52: Oper Supervision & Engineering | F52: 336128.68 | G52: 318921.29 | H52: 17207.39 | I52: 0.05395497428 | K52: 1527687.01 | L52: 1306410.01 | M52: 221277 | N52: 0.1693779122 | Q52: 1151946.84 | R52: 969869.68 | S52: 182077.16 | T52: 0.1877336345 | V52: 4724349.59 | W52: 4190481.68 | X52: 533867.91 | Y52: 0.1274001298
A53: %,V5000002 | B53: 5000002 | C53: Dresden Oper Supervision & Eng | F53: 0 | G53: 0 | H53: 0 | K53: 0 | L53: 0 | M53: 0 | Q53: 0 | R53: 0 | S53: 0 | V53: -33.12 | W53: 0 | X53: -33.12 | Y53: 1
A54: %,V5000003 | B54: 5000003 | C54: Cnstr Srchrge Op Sup & Eng Exp | F54: 0 | G54: 0 | H54: 0 | K54: 0 | L54: 0 | M54: 0 | Q54: 0 | R54: 0 | S54: 0 | V54: 64.34 | W54: 0 | X54: 64.34 | Y54: 1
A55: %,V5000005 | B55: 5000005 | C55: Deferred OM - 20% Non FMR | F55: 0 | G55: 0 | H55: 0 | K55: 0 | L55: 0 | M55: 0 | Q55: 0 | R55: 0 | S55: 0 | V55: 0 | W55: -17.08 | X55: 17.08 | Y55: 1
A56: %,V5010000 | B56: 5010000 | C56: Fuel | F56: 589775.53 | G56: 422235.9 | H56: 167539.63 | I56: 0.3967915329 | K56: 2031788.09 | L56: 3124507.2 | M56: -1092719.11 | N56: -0.3497252655 | Q56: 1676392.4 | R56: 2506208.94 | S56: -829816.54 | T56: -0.3311042933 | V56: 6657746.4 | W56: 7282807.98 | X56: -625061.58 | Y56: -0.08582700268
A57: %,V5010001 | B57: 5010001 | C57: Fuel Consumed | F57: 3523402.44 | G57: 5166295.41 | H57: -1642892.97 | I57: -0.3180021349 | K57: 23114816.98 | L57: 22161229.33 | M57: 953587.65 | N57: 0.04302954659 | Q57: 13762909.64 | R57: 9870836.04 | S57: 3892073.6 | T57: 0.3943002988 | V57: 75263327.59 | W57: 77978435.31 | X57: -2715107.72 | Y57: -0.03481869967
A58: %,V5010003 | B58: 5010003 | C58: Fuel - Procure Unload & Handle | F58: 204531.57 | G58: 309300.95 | H58: -104769.38 | I58: -0.3387295771 | K58: 1222274.23 | L58: 1167878.59 | M58: 54395.64 | N58: 0.04657645107 | Q58: 747074.92 | R58: 550493.27 | S58: 196581.65 | T58: 0.3571009142 | V58: 4126027.77 | W58: 3775840.6 | X58: 350187.17 | Y58: 0.09274416139
A59: %,V5010005 | B59: 5010005 | C59: Fuel - Deferred | F59: 1602469.104 | G59: 1044760.324 | H59: 557708.78 | I59: 0.5338150456 | K59: -8290210.398 | L59: 478065.715 | M59: -8768276.113 | N59: -18.34115235 | Q59: 9722244.975 | R59: 5601384.615 | S59: 4120860.36 | T59: 0.7356860211 | V59: -3631129.28 | W59: -921670.525 | X59: -2709458.755 | Y59: 2.939725945
A60: %,V5010012 | B60: 5010012 | C60: Ash Sales Proceeds | F60: 424.81 | G60: -1356.98 | H60: 1781.79 | I60: -1.313055461 | K60: 2221.3 | L60: 1977.98 | M60: 243.32 | N60: 0.1230143884 | Q60: 1269.85 | R60: 985.03 | S60: 284.82 | T60: 0.2891485539 | V60: 7518.26 | W60: 18336.55 | X60: -10818.29 | Y60: -0.5899850299
A61: %,V5010013 | B61: 5010013 | C61: Fuel Survey Activity | F61: 0 | G61: 0 | H61: 0 | K61: 0 | L61: 0 | M61: 0 | Q61: 0 | R61: 0 | S61: 0 | V61: 3906533.13 | W61: 49281.13 | X61: 3857252 | Y61: 78.27036434
A62: %,V5010019 | B62: 5010019 | C62: Fuel Oil Consumed | F62: 289928.46 | G62: 96647.53 | H62: 193280.93 | I62: 1.999853799 | K62: 1129597.64 | L62: 1202645.55 | M62: -73047.91 | N62: -0.06073935084 | Q62: 788798.91 | R62: 1032588.18 | S62: -243789.27 | T62: -0.2360953522 | V62: 4065280.17 | W62: 3809517.62 | X62: 255762.55 | Y62: 0.06713777846
A63: %,V5010020 | B63: 5010020 | C63: Nat Gas Consumed Steam | F63: 1416565.56 | G63: 1956384.15 | H63: -539818.59 | I63: -0.2759266834 | K63: 21846847.67 | L63: 14869388.61 | M63: 6977459.06 | N63: 0.4692498961 | Q63: 14585122.53 | R63: 10053840.98 | S63: 4531281.55 | T63: 0.4507015338 | V63: 45853654.99 | W63: 30601272.22 | X63: 15252382.77 | Y63: 0.498423159
A64: %,V5010021 | B64: 5010021 | C64: Transp Gas Consumed Steam | F64: 51176.2 | G64: 44452.54 | H64: 6723.66 | I64: 0.1512547989 | K64: 228309.81 | L64: 153497.93 | M64: 74811.88 | N64: 0.4873803836 | Q64: 157847.66 | R64: 126483.83 | S64: 31363.83 | T64: 0.2479671117 | V64: 575584.17 | W64: 287356.56 | X64: 288227.61 | Y64: 1.003031251
A65: %,V5010027 | B65: 5010027 | C65: Gypsum handling/disposal costs | F65: 134774.73 | G65: 106262.46 | H65: 28512.27 | I65: 0.2683193105 | K65: 562461.09 | L65: 473925.43 | M65: 88535.66 | N65: 0.1868134825 | Q65: 482647.14 | R65: 407956.74 | S65: 74690.4 | T65: 0.1830841182 | V65: 1480883.31 | W65: 1562267.35 | X65: -81384.04 | Y65: -0.05209354212
A66: %,V5010028 | B66: 5010028 | C66: Gypsum Sales Proceeds | F66: -69247.85 | G66: -55250.53 | H66: -13997.32 | I66: 0.2533427281 | K66: -427297.51 | L66: -454696.12 | M66: 27398.61 | N66: -0.06025696898 | Q66: -342155.18 | R66: -212608.95 | S66: -129546.23 | T66: 0.6093169173 | V66: -1195043.56 | W66: -1200101.73 | X66: 5058.17 | Y66: -0.004214784358
A67: %,V5010033 | B67: 5010033 | C67: Coal Procurement Sales Net-NA | F67: 150302.14 | G67: 0 | H67: 150302.14 | I67: 1 | K67: 281689.3 | L67: 0 | M67: 281689.3 | N67: 1 | Q67: 281689.3 | R67: 0 | S67: 281689.3 | T67: 1 | V67: 281689.3 | W67: 0 | X67: 281689.3 | Y67: 1
A68: %,V5010034 | B68: 5010034 | C68: Gas Transp Res Fees-Steam | F68: 489451.68 | G68: 537775.2 | H68: -48323.52 | I68: -0.08985821585 | K68: 1958467.68 | L68: 2153339.28 | M68: -194871.6 | N68: -0.09049739714 | Q68: 1453963.68 | R68: 1598925.6 | S68: -144961.92 | T68: -0.09066207959 | V68: 5908334.46 | W68: 6369158.36 | X68: -460823.9 | Y68: -0.07235240105
A69: %,V5010040 | B69: 5010040 | C69: Gas Procuremnt Sales Net | F69: 150274.98 | G69: -219487.01 | H69: 369761.99 | I69: -1.684664573 | K69: 150275.11 | L69: 233801.18 | M69: -83526.07 | N69: -0.3572525596 | Q69: 150275.09 | R69: 110822.264 | S69: 39452.826 | T69: 0.3560009025 | V69: 540765.83 | W69: 1873294.21 | X69: -1332528.38 | Y69: -0.7113289375
A70: %,V5020000 | B70: 5020000 | C70: Steam Expenses | F70: 143316.68 | G70: 183480.07 | H70: -40163.39 | I70: -0.2188978345 | K70: 677081.43 | L70: 679055.93 | M70: -1974.5 | N70: -0.00290771336 | Q70: 526739.36 | R70: 415303.89 | S70: 111435.47 | T70: 0.2683227215 | V70: 2014462.83 | W70: 1685337.29 | X70: 329125.54 | Y70: 0.1952876388
A71: %,V5020002 | B71: 5020002 | C71: Urea Expense | F71: 53168.22 | G71: 73029.31 | H71: -19861.09 | I71: -0.271960532 | K71: 349954.83 | L71: 306265.27 | M71: 43689.56 | N71: 0.1426526749 | Q71: 209612.26 | R71: 127452.74 | S71: 82159.52 | T71: 0.644627334 | V71: 958179.14 | W71: 1137502.43 | X71: -179323.29 | Y71: -0.1576465116
A72: %,V5020004 | B72: 5020004 | C72: Lime-Related Expenses | F72: 112931.6 | G72: 201531.73 | H72: -88600.13 | I72: -0.4396336497 | K72: 795716.66 | L72: 631585.79 | M72: 164130.87 | N72: 0.259871062 | Q72: 473806.44 | R72: 337911.78 | S72: 135894.66 | T72: 0.4021601733 | V72: 2574164.17 | W72: 2355834.24 | X72: 218329.93 | Y72: 0.09267626996
A73: %,V5050000 | B73: 5050000 | C73: Electric Expenses | F73: 14860.84 | G73: 16578.74 | H73: -1717.9 | I73: -0.1036206612 | K73: 29573.97 | L73: 19390.82 | M73: 10183.15 | N73: 0.5251531395 | Q73: 23432.14 | R73: 17946.44 | S73: 5485.7 | T73: 0.3056706511 | V73: 85226.54 | W73: 51815.25 | X73: 33411.29 | Y73: 0.6448157637
A74: %,V5060000 | B74: 5060000 | C74: Misc Steam Power Expenses | F74: 438281.02 | G74: 374041.75 | H74: 64239.27 | I74: 0.1717435821 | K74: 2019061.84 | L74: 1525965.076 | M74: 493096.764 | N74: 0.323137647 | Q74: 1541766.76 | R74: 1108123.566 | S74: 433643.194 | T74: 0.3913310819 | V74: 5502768.19 | W74: 5904605.516 | X74: -401837.326 | Y74: -0.06805489798
A75: %,V5060002 | B75: 5060002 | C75: Misc Steam Power Exp-Assoc | F75: 4687.48 | G75: 4662.2 | H75: =+F75-G75 -> 25.28 | I75: =IF(AND(F75=0,G75=0),"",IF(OR(F75=0,G75=0),100%,(+H75/G75))) -> 0.005422332804 | K75: 19564.02 | L75: 19046.43 | M75: =+K75-L75 -> 517.59 | N75: =IF(AND(K75=0,L75=0),"",IF(OR(K75=0,L75=0),100%,(+M75/L75))) -> 0.02717517141 | Q75: 14661.24 | R75: 14079.02 | S75: =+Q75-R75 -> 582.22 | T75: =IF(AND(Q75=0,R75=0),"",IF(OR(Q75=0,R75=0),100%,(+S75/R75))) -> 0.04135373059 | V75: 48516.9 | W75: 53508.64 | X75: =+V75-W75 -> -4991.74 | Y75: =IF(AND(V75=0,W75=0),"",IF(OR(V75=0,W75=0),100%,(+X75/W75))) -> -0.09328848575
A76: %,V5060011 | B76: 5060011 | C76: BSRR O/U Recovery-Oper Costs | F76: 6157.14 | G76: 0 | H76: 6157.14 | I76: 1 | K76: 6157.14 | L76: 0 | M76: 6157.14 | N76: 1 | Q76: 6157.14 | R76: 0 | S76: 6157.14 | T76: 1 | V76: 6157.14 | W76: 213.85 | X76: 5943.29 | Y76: 27.79186346
A77: %,V5070006 | B77: 5070006 | C77: Rents - Associated | F77: 127.56 | G77: 193.17 | H77: -65.61 | I77: -0.3396490138 | K77: 510.23 | L77: 772.68 | M77: -262.45 | N77: -0.3396619558 | Q77: 387.98 | R77: 579.51 | S77: -191.53 | T77: -0.3305033563 | V77: 2055.59 | W77: 772.68 | X77: 1282.91 | Y77: 1.660338044
A78: %,V5090000 | B78: 5090000 | C78: Allow Consum Title IV SO2 | F78: 1557.29 | G78: 944.17 | H78: 613.12 | I78: 0.649374583 | K78: 4851.22 | L78: 6199.19 | M78: -1347.97 | N78: -0.217442924 | Q78: 3046.18 | R78: 3285.72 | S78: -239.54 | T78: -0.07290335147 | V78: 15350.43 | W78: 37649.41 | X78: -22298.98 | Y78: -0.5922796665
A79: %,V5090001 | B79: 5090001 | C79: Allowance Consumption - NOx | F79: 0 | G79: 0 | H79: 0 | K79: 0 | L79: 0 | M79: 0 | Q79: 0 | R79: 0 | S79: 0 | V79: -157142.86 | W79: 42857.15 | X79: -200000.01 | Y79: -4.666666122
A80: %,V5090009 | B80: 5090009 | C80: Allow Consumpt CSAPR SO2 | F80: 7.64 | G80: 4.62 | H80: 3.02 | I80: 0.6536796537 | K80: 23.79 | L80: 30.28 | M80: -6.49 | N80: -0.214332893 | Q80: 14.93 | R80: 16.06 | S80: -1.13 | T80: -0.0703611457 | V80: 74.53 | W80: 181.01 | X80: -106.48 | Y80: -0.5882547926
A81: %,V5100000 | B81: 5100000 | C81: Maint Supv & Engineering | F81: 93401.81 | G81: 100567.77 | H81: -7165.96 | I81: -0.07125503529 | K81: 386914.48 | L81: 361409.29 | M81: 25505.19 | N81: 0.0705714842 | Q81: 300414.37 | R81: 272684.38 | S81: 27729.99 | T81: 0.1016926235 | V81: 1017187.28 | W81: 1423311.11 | X81: -406123.83 | Y81: -0.2853373568
A82: %,V5100001 | B82: 5100001 | C82: Dresden Maint Sup& Engineer | F82: 0 | G82: 0 | H82: 0 | K82: -9.94 | L82: 0 | M82: -9.94 | N82: 1 | Q82: 0 | R82: 0 | S82: 0 | V82: 359.63 | W82: 0 | X82: 359.63 | Y82: 1
A83: %,V5110000 | B83: 5110000 | C83: Maintenance of Structures | F83: 185736.87 | G83: 129767.46 | H83: 55969.41 | I83: 0.431305429 | K83: 776000.97 | L83: 583223.88 | M83: 192777.09 | N83: 0.3305370315 | Q83: 568896.1 | R83: 437494.73 | S83: 131401.37 | T83: 0.3003496065 | V83: 1885656.73 | W83: 1904610.52 | X83: -18953.79 | Y83: -0.009951530668
A84: %,V5120000 | B84: 5120000 | C84: Maintenance of Boiler Plant | F84: 1928942 | G84: 2264765.64 | H84: -335823.64 | I84: -0.1482818505 | K84: 4955392.32 | L84: 6134423.25 | M84: -1179030.93 | N84: -0.1921991493 | Q84: 3933547.54 | R84: 5201853.66 | S84: -1268306.12 | T84: -0.2438181085 | V84: 11368191.01 | W84: 16329622.48 | X84: -4961431.47 | Y84: -0.3038301391
A85: %,V5120034 | B85: 5120034 | C85: BSDR O/U Recovery - Maint Cost | F85: -8811.29 | G85: -1808.74 | H85: -7002.55 | I85: 3.871507237 | K85: -11660.81 | L85: -2395.81 | M85: -9265 | N85: 3.867168098 | Q85: -11190.63 | R85: -2206.48 | S85: -8984.15 | T85: 4.071711504 | V85: -17787.42 | W85: -9478.94 | X85: -8308.48 | Y85: 0.8765199484
A86: %,V5120037 | B86: 5120037 | C86: KY Steam Maint O/U | F86: -58271.11 | G86: -58271.11 | H86: 0 | I86: 0 | K86: -233084.44 | L86: -233084.44 | M86: 0 | N86: 0 | Q86: -174813.33 | R86: -174813.33 | S86: 0 | T86: 0 | V86: -699253.32 | W86: -699253.32 | X86: 0 | Y86: 0
A87: %,V5130000 | B87: 5130000 | C87: Maintenance of Electric Plant | F87: 762571.6 | G87: 607188.98 | H87: 155382.62 | I87: 0.255904875 | K87: 1926315.94 | L87: 2100447.76 | M87: -174131.82 | N87: -0.08290223795 | Q87: 1669916.96 | R87: 1802696.82 | S87: -132779.86 | T87: -0.07365623466 | V87: 5731981.68 | W87: 4577197.57 | X87: 1154784.11 | Y87: 0.2522906412
A88: %,V5132000 | B88: 5132000 | C88: Maint of Computer Software-Mjr | F88: 0 | G88: 5985.15 | H88: -5985.15 | I88: 1 | K88: 13074.2 | L88: 23152.65 | M88: -10078.45 | N88: -0.435304382 | Q88: 12038.55 | R88: 23152.65 | S88: -11114.1 | T88: -0.4800357626 | V88: 45186.55 | W88: 23152.65 | X88: 22033.9 | Y88: 0.9516793974
A89: %,V5133000 | B89: 5133000 | C89: Maint of Comm Equipmt-Mjr | F89: 413.58 | G89: 228.56 | H89: 185.02 | I89: 0.8095029751 | K89: 3369.32 | L89: 640.42 | M89: 2728.9 | N89: 4.261109897 | Q89: 2838.6 | R89: 640.42 | S89: 2198.18 | T89: 3.432403735 | V89: 8412.63 | W89: 640.42 | X89: 7772.21 | Y89: 12.1361138
A90: %,V5140000 | B90: 5140000 | C90: Maintenance of Misc Steam Plt | F90: 168745.56 | G90: 181737.08 | H90: -12991.52 | I90: -0.07148524671 | K90: 655716.46 | L90: 587082.74 | M90: 68633.72 | N90: 0.1169063836 | Q90: 495003.69 | R90: 477477.88 | S90: 17525.81 | T90: 0.03670496736 | V90: 1551176.35 | W90: 1589007.45 | X90: -37831.1 | Y90: -0.02380800669
A91: %,FACCOUNT,X,TGL_FERC_ACCT,N500-515 | B91: 4 | C91: Total Power Production Expenses - Steam Power | F91: 12717782.52 | G91: 13811567.78 | H91: -1093785.26 | I91: -0.07919341795 | K91: 57713451.63 | L91: 59615181.89 | M91: -1901730.259 | N91: -0.03190009992 | Q91: 54216304.03 | R91: 42681465.68 | S91: 11534838.36 | T91: 0.270254036 | V91: 180506477.1 | W91: 172085347.6 | X91: 8421129.429 | Y91: 0.04893577254
A92: %,FACCOUNT,X,TGL_FERC_ACCT,N517-525 | B92: 5 | C92: Nuclear Power Generation - Operation (517-525) | D92: o | F92: 0 | G92: 0 | H92: 0 | K92: 0 | L92: 0 | M92: 0 | Q92: 0 | R92: 0 | S92: 0 | V92: 0 | W92: 0 | X92: 0
A93: %,V5311000 | B93: 5311000 | C93: Maint of Computer Hardware | F93: 16.37 | G93: 0 | H93: 16.37 | I93: 1 | K93: -76.69 | L93: 0 | M93: -76.69 | N93: 1 | Q93: -142.47 | R93: 0 | S93: -142.47 | T93: 1 | V93: 0 | W93: 0 | X93: 0
A94: %,V5312000 | B94: 5312000 | C94: Maint of Computer Software | F94: 0 | G94: 14.63 | H94: -14.63 | I94: 1 | K94: 0 | L94: 14.63 | M94: -14.63 | N94: 1 | Q94: 0 | R94: 14.63 | S94: -14.63 | T94: 1 | V94: -14.44 | W94: 14.63 | X94: -29.07 | Y94: -1.987012987
A95: %,FACCOUNT,X,TGL_FERC_ACCT,N528-533 | B95: 6 | C95: Nuclear Power Generation - Maintenance (528-532) | D95: m | F95: 16.37 | G95: 14.63 | H95: 1.74 | I95: 0.1189336979 | K95: -76.69 | L95: 14.63 | M95: -91.32 | N95: -6.241968558 | Q95: -142.47 | R95: 14.63 | S95: -157.1 | T95: -10.73820916 | V95: -14.44 | W95: 14.63 | X95: -29.07 | Y95: -1.987012987
A96: %,V5311000 | B96: 5311000 | C96: Maint of Computer Hardware | F96: 16.37 | G96: 0 | H96: 16.37 | I96: 1 | K96: -76.69 | L96: 0 | M96: -76.69 | N96: 1 | Q96: -142.47 | R96: 0 | S96: -142.47 | T96: 1 | V96: 0 | W96: 0 | X96: 0
A97: %,V5312000 | B97: 5312000 | C97: Maint of Computer Software | F97: 0 | G97: 14.63 | H97: -14.63 | I97: 1 | K97: 0 | L97: 14.63 | M97: -14.63 | N97: 1 | Q97: 0 | R97: 14.63 | S97: -14.63 | T97: 1 | V97: -14.44 | W97: 14.63 | X97: -29.07 | Y97: -1.987012987
A98: %,FACCOUNT,X,TGL_FERC_ACCT,N517-533 | B98: 7 | C98: Total Power Production Expenses - Nuclear Power | F98: 16.37 | G98: 14.63 | H98: 1.74 | I98: 0.1189336979 | K98: -76.69 | L98: 14.63 | M98: -91.32 | N98: -6.241968558 | Q98: -142.47 | R98: 14.63 | S98: -157.1 | T98: -10.73820916 | V98: -14.44 | W98: 14.63 | X98: -29.07 | Y98: -1.987012987
A99: %,FACCOUNT,X,TGL_FERC_ACCT,N535-540 | B99: 8 | C99: Hydraulic Power Generation - Operation (535-540.1) | D99: o | F99: 0 | G99: 0 | H99: 0 | K99: 0 | L99: 0 | M99: 0 | Q99: 0 | R99: 0 | S99: 0 | V99: 0 | W99: 0 | X99: 0
A100: %,FACCOUNT,X,TGL_FERC_ACCT,N541-545 | B100: 9 | C100: Hydraulic Power Generation - Maintenance (541-545.1) | D100: m | F100: 0 | G100: 0 | H100: 0 | K100: 0 | L100: 0 | M100: 0 | Q100: 0 | R100: 0 | S100: 0 | V100: 0 | W100: 0 | X100: 0
A101: %,FACCOUNT,X,TGL_FERC_ACCT,N535-545 | B101: 10 | C101: Total Power Production Expenses - Hydraulic Power | F101: 0 | G101: 0 | H101: 0 | K101: 0 | L101: 0 | M101: 0 | Q101: 0 | R101: 0 | S101: 0 | V101: 0 | W101: 0 | X101: 0
A102: %,V5581000 | B102: 5581000 | C102: Oper Supervision & Engineering | F102: 383.23 | G102: 25.32 | K102: 684.48 | L102: 25.32 | Q102: 466.87 | R102: 25.32 | V102: 2063.93 | W102: 25.32
A103: %,V5582000 | B103: 5582000 | C103: Solar Panel Gen&Oth Plt Op-Mjr | F103: 4.71 | G103: -8.32 | K103: 4.71 | L103: 2.07 | Q103: -6.61 | R103: 2.07 | V103: 4.71 | W103: 2.07
A104: %,FACCOUNT,X,TGL_FERC_ACCT,N5581,N5582,N5584,N5585 | B104: 10.1 | C104: Solar Generation – Operation (558.1-558.5) | D104: o | F104: 387.94 | G104: 17 | K104: 689.19 | L104: 27.39 | Q104: 460.26 | R104: 27.39 | V104: 2068.64 | W104: 27.39
A105: %,V5587000 | B105: 5587000 | C105: Maint Solar Pnl Strct & Eq-Mjr | F105: -4.76 | G105: -32.91 | K105: 2.05 | L105: 8.3 | Q105: 5.12 | R105: 7.55 | V105: -3.18 | W105: 8.3
A106: %,FACCOUNT,X,TGL_FERC_ACCT,N5586,N5587,N5588,N5589,N55810,N55811,N55812 | B106: 10.2 | C106: Solar Generation – Maintenance (558.6-558.12) | D106: m | F106: -4.76 | G106: -32.91 | K106: 2.05 | L106: 8.3 | Q106: 5.12 | R106: 7.55 | V106: -3.18 | W106: 8.3
B107: 10.3 | C107: Total Power Production Expenses – Solar | F107: =F104+F106 -> 383.18
A108: %,V5581300 | B108: 5581300 | C108: Oper Supervision & Engineering | F108: 571.57 | G108: -136.13 | K108: 2983.67 | L108: 235.61 | Q108: 1622.88 | R108: 235.61 | V108: 12261.29 | W108: 235.61
A109: %,V5581400 | B109: 5581400 | C109: Wind Turb Gen&Oth Plnt Op-Mjr | F109: 263.24 | G109: 167.23 | K109: 605.65 | L109: 1199.31 | Q109: -96.07 | R109: 786.44 | V109: -79.81 | W109: 1199.31
A110: %,V5581601 | B110: 5581601 | C110: Wind - Variable Production Exp | F110: -15.06 | G110: 0 | K110: 45.71 | L110: 0 | Q110: -20.9 | R110: 0 | V110: 69.77 | W110: 0
A111: %,FACCOUNT,X,TGL_FERC_ACCT,N55813,N55814,N55816,N55817 | B111: 10.4 | C111: Wind Generation – Operation (558.13-558.17) | D111: o | F111: 819.75 | G111: 31.1 | K111: 3635.03 | L111: 1434.92 | Q111: 1505.91 | R111: 1022.05 | V111: 12251.25 | W111: 1434.92
A112: %,V5581900 | B112: 5581900 | C112: Maint Wind Turb Struct&Eq-Mjr | F112: 0 | G112: 0 | K112: 0 | L112: 0 | Q112: 0 | R112: -1.79 | V112: 0 | W112: 0
A113: %,FACCOUNT,X,TGL_FERC_ACCT,N55818,N55819,N55820,N55821,N55822,N55823,N55824 | B113: 10.5 | C113: Wind Generation – Maintenance (558.18-558.24) | D113: m | F113: 0 | G113: 0 | K113: 0 | L113: 0 | Q113: 0 | R113: -1.79 | V113: 0 | W113: 0
B114: 10.6 | C114: Total Power Production Expenses – Wind | F114: =F111+F113 -> 819.75
A115: %,FACCOUNT,X,TGL_FERC_ACCT,N5590 | B115: 10.7 | C115: Other Renewable Generation – Operation (559.1-559.5) | D115: o | F115: 0 | G115: 0 | K115: 0 | L115: 0 | Q115: 0 | R115: 0 | V115: 0 | W115: 0
A116: %,FACCOUNT,X,TGL_FERC_ACCT,N559 | B116: 10.8 | C116: Other Renewable Generation – Maintenance (559.6-559.16) | D116: m | F116: 0 | G116: 0 | K116: 0 | L116: 0 | Q116: 0 | R116: 0 | V116: 0 | W116: 0
B117: 10.9 | C117: Total Power Production Expenses – Other Renewable | F117: =F115+F116 -> 0
A118: %,V5490000 | B118: 5490000 | C118: Misc Other Pwer Generation Exp | F118: 0 | G118: 0 | H118: =+F118-G118 -> 0 | I118: =IF(AND(F118=0,G118=0),"",IF(OR(F118=0,G118=0),100%,(+H118/G118))) ->  | K118: 0 | L118: 0 | M118: =+K118-L118 -> 0 | N118: =IF(AND(K118=0,L118=0),"",IF(OR(K118=0,L118=0),100%,(+M118/L118))) ->  | Q118: 0 | R118: 0 | S118: =+Q118-R118 -> 0 | T118: =IF(AND(Q118=0,R118=0),"",IF(OR(Q118=0,R118=0),100%,(+S118/R118))) ->  | V118: 0.01 | W118: 0 | X118: =+V118-W118 -> 0.01 | Y118: =IF(AND(V118=0,W118=0),"",IF(OR(V118=0,W118=0),100%,(+X118/W118))) -> 1
A119: %,V8140000 | B119: 8140000 | C119: Underground Storage Expenses | F119: 0 | G119: 0 | H119: 0 | K119: 0 | L119: 0 | M119: 0 | Q119: 0 | R119: 0 | S119: 0 | V119: 0 | W119: 0 | X119: 0
A120: %,FACCOUNT,X,TGL_FERC_ACCT,N546-550 | B120: 11 | C120: Other Power Generation - Operation (546-550.1) | D120: o | F120: 0 | G120: 0 | H120: 0 | K120: 0 | L120: 0 | M120: 0 | Q120: 0 | R120: 0 | S120: 0 | V120: 0.01 | W120: 0 | X120: 0.01 | Y120: 1
A121: %,FACCOUNT,X,TGL_FERC_ACCT,N551-554 | B121: 12 | C121: Other Power Generation - Maintenance (551-554.1) | D121: m | F121: 0 | G121: 0 | H121: 0 | K121: 0 | L121: 0 | M121: 0 | Q121: 0 | R121: 0 | S121: 0 | V121: 0 | W121: 0 | X121: 0
A122: %,V5490000 | B122: 5490000 | C122: Misc Other Pwer Generation Exp | F122: 0 | G122: 0 | H122: 0 | K122: 0 | L122: 0 | M122: 0 | Q122: 0 | R122: 0 | S122: 0 | V122: 0.01 | W122: 0 | X122: 0.01 | Y122: 1
A123: %,V8140000 | B123: 8140000 | C123: Underground Storage Expenses | F123: 0 | G123: 0 | H123: 0 | K123: 0 | L123: 0 | M123: 0 | Q123: 0 | R123: 0 | S123: 0 | V123: 0 | W123: 0 | X123: 0
A124: %,FACCOUNT,X,TGL_FERC_ACCT,N546-554 | B124: 13 | C124: Total Power Production Expenses - Other Power | F124: 0 | G124: 0 | H124: 0 | K124: 0 | L124: 0 | M124: 0 | Q124: 0 | R124: 0 | S124: 0 | V124: 0.01 | W124: 0 | X124: 0.01 | Y124: 1
B125: 14 | C125: Other Power Supply Expenses | H125: 0 | M125: 0 | S125: 0 | X125: 0
A126: %,V5550001 | B126: 5550001 | C126: Purch Pwr-NonTrading-Nonassoc | F126: 11977818.9 | G126: 7405117.81 | H126: 4572701.09 | I126: 0.6175055154 | K126: 49601439.54 | L126: 51420548.58 | M126: -1819109.04 | N126: -0.03537708349 | Q126: 28687667.05 | R126: 36215045.92 | S126: -7527378.87 | T126: -0.2078522525 | V126: 111217196.2 | W126: 106456225.7 | X126: 4760970.54 | Y126: 0.0447223308
A127: %,V5550004 | B127: 5550004 | C127: Purchased Power-Pool Capacity | F127: 31536.54 | G127: 0 | H127: 31536.54 | I127: 1 | K127: 126146.14 | L127: 0 | M127: 126146.14 | N127: 1 | Q127: 93558.39 | R127: 0 | S127: 93558.39 | T127: 1 | V127: 351106.76 | W127: 76088.34 | X127: 275018.42 | Y127: 3.614462084
A128: %,V5550023 | B128: 5550023 | C128: Purch Power Capacity -NA | F128: 0 | G128: 201548.44 | H128: -201548.44 | I128: 1 | K128: 0 | L128: 806193.76 | M128: -806193.76 | N128: 1 | Q128: 0 | R128: 604645.32 | S128: -604645.32 | T128: 1 | V128: 1045958.93 | W128: 2225450.65 | X128: -1179491.72 | Y128: -0.5300012921
A129: %,V5550029 | B129: 5550029 | C129: Purch Power-Assoc-Trnsfr Price | F129: 0 | G129: 0 | H129: 0 | K129: 0 | L129: 0 | M129: 0 | Q129: 0 | R129: 0 | S129: 0 | V129: 0 | W129: 0 | X129: 0
A130: %,V5550039 | B130: 5550039 | C130: PJM Inadvertent Mtr Res-OSS | F130: 1359.86 | G130: -477.24 | H130: 1837.1 | I130: -3.849425865 | K130: 4850.31 | L130: -1616.71 | M130: 6467.02 | N130: -4.000111337 | Q130: 2151.72 | R130: -1109.5 | S130: 3261.22 | T130: -2.939360072 | V130: 2802.29 | W130: 3522.93 | X130: -720.64 | Y130: -0.2045570023
A131: %,V5550040 | B131: 5550040 | C131: PJM Inadvertent Mtr Res-LSE | F131: 20513.57 | G131: -8456.78 | H131: 28970.35 | I131: -3.425695123 | K131: 84401.59 | L131: -24998.69 | M131: 109400.28 | N131: -4.376240515 | Q131: 60579.22 | R131: -21473.98 | S131: 82053.2 | T131: -3.821052269 | V131: 46691.25 | W131: 23634.98 | X131: 23056.27 | Y131: 0.9755146821
A132: %,V5550074 | B132: 5550074 | C132: PJM Reactive-Charge | F132: 259550.69 | G132: 273005.67 | H132: -13454.98 | I132: -0.04928461742 | K132: 1008209.33 | L132: 1103817.96 | M132: -95608.63 | N132: -0.0866163022 | Q132: 754610.02 | R132: 817150.53 | S132: -62540.51 | T132: -0.07653487051 | V132: 3122193.25 | W132: 3467650.49 | X132: -345457.24 | Y132: -0.09962285444
A133: %,V5550075 | B133: 5550075 | C133: PJM Reactive-Credit | F133: -119573 | G133: -119573 | H133: 0 | I133: 0 | K133: -478292 | L133: -478292 | M133: 0 | N133: 0 | Q133: -358719 | R133: -358719 | S133: 0 | T133: 0 | V133: -1434876 | W133: -1434876 | X133: 0 | Y133: 0
A134: %,V5550076 | B134: 5550076 | C134: PJM Black Start-Charge | F134: 42639.46 | G134: 46811.54 | H134: -4172.08 | I134: -0.08912503199 | K134: 117265.38 | L134: 144250.37 | M134: -26984.99 | N134: -0.187070508 | Q134: 149887.47 | R134: 140866.62 | S134: 9020.85 | T134: 0.06403823702 | V134: 436247.63 | W134: 900095.47 | X134: -463847.84 | Y134: -0.5153318236
A135: %,V5550078 | B135: 5550078 | C135: PJM Regulation-Charge | F135: 80208.09 | G135: 72784.06 | H135: 7424.03 | I135: 0.1020007678 | K135: 892380.8 | L135: 349917.7 | M135: 542463.1 | N135: 1.550259104 | Q135: 504063.2 | R135: 222280.68 | S135: 281782.52 | T135: 1.267687862 | V135: 1821698.8 | W135: 747374.47 | X135: 1074324.33 | Y135: 1.437464582
A136: %,V5550079 | B136: 5550079 | C136: PJM Regulation-Credit | F136: -11576.11 | G136: -274.49 | H136: -11301.62 | I136: 41.17315749 | K136: -174084.37 | L136: 212643.47 | M136: -386727.84 | N136: -1.818667839 | Q136: -202596.49 | R136: -3291.34 | S136: -199305.15 | T136: 60.55440945 | V136: 106554.44 | W136: -19218.68 | X136: 125773.12 | Y136: -6.544316259
A137: %,V5550080 | B137: 5550080 | C137: PJM Hourly Net Purch.-FERC | F137: 480323.59 | G137: 784752.9 | H137: -304429.31 | I137: -0.3879301497 | K137: 7180353.34 | L137: 2124034.33 | M137: 5056319.01 | N137: 2.380526029 | Q137: 2844395.39 | R137: 1340551.73 | S137: 1503843.66 | T137: 1.121809496 | V137: 24506285.36 | W137: 10603108.85 | X137: 13903176.51 | Y137: 1.311235856
A138: %,V5550083 | B138: 5550083 | C138: PJM Sync & Non Sync-Charge | F138: 52755.81 | G138: 111429.76 | H138: -58673.95 | I138: -0.5265554732 | K138: 443450.44 | L138: 385734.32 | M138: 57716.12 | N138: 0.1496266135 | Q138: 330157.37 | R138: 283295.61 | S138: 46861.76 | T138: 0.1654164708 | V138: 1127854.82 | W138: 748354.97 | X138: 379499.85 | Y138: 0.5071120861
A139: %,V5550084 | B139: 5550084 | C139: PJM Sync & Non Sync-Credit | F139: -500.37 | G139: -28724.06 | H139: 28223.69 | I139: -0.9825801088 | K139: -36610.58 | L139: -71663.19 | M139: 35052.61 | N139: -0.4891299145 | Q139: -44279.27 | R139: -62793.96 | S139: 18514.69 | T139: -0.2948482625 | V139: -133572.54 | W139: -120165.03 | X139: -13407.51 | Y139: 0.1115758054
A140: %,V5550094 | B140: 5550094 | C140: Purchased Power - Fuel | F140: 0 | G140: 0 | H140: 0 | K140: 0 | L140: 0 | M140: 0 | Q140: 0 | R140: 0 | S140: 0 | V140: 0 | W140: 0 | X140: 0
A141: %,V5550123 | B141: 5550123 | C141: PJM OpRes-LSE-Charge | F141: 135804.52 | G141: 195018.63 | H141: -59214.11 | I141: -0.3036330939 | K141: 6401205.54 | L141: 3508099.05 | M141: 2893106.49 | N141: 0.8246935017 | Q141: 2776051.18 | R141: 551350.32 | S141: 2224700.86 | T141: 4.035004206 | V141: 7481321.5 | W141: 4275854.87 | X141: 3205466.63 | Y141: 0.749666845
A142: %,V5550124 | B142: 5550124 | C142: PJM Implicit Congestion-LSE | F142: 793181.23 | G142: 638168.13 | H142: 155013.1 | I142: 0.2429032299 | K142: 12831415.54 | L142: 3103402.56 | M142: 9728012.98 | N142: 3.134628135 | Q142: 7600579.26 | R142: 1848967.69 | S142: 5751611.57 | T142: 3.110715023 | V142: 15010547.89 | W142: 8708462.56 | X142: 6302085.33 | Y142: 0.7236737009
A143: %,V5550132 | B143: 5550132 | C143: PJM FTR Revenue-LSE | F143: -1221027.41 | G143: -617167.97 | H143: -603859.44 | I143: 0.9784361298 | K143: -16328562.31 | L143: -5395322.86 | M143: -10933239.45 | N143: 2.026429138 | Q143: -9622054.37 | R143: -1315228.4 | S143: -8306825.97 | T143: 6.31588093 | V143: -21080465.36 | W143: -10596671.94 | X143: -10483793.42 | Y143: 0.9893477386
A144: %,V5550137 | B144: 5550137 | C144: PJM OpRes-LSE-Credit | F144: -113252.29 | G144: -2498.53 | H144: -110753.76 | I144: 44.32756861 | K144: -135746.7 | L144: -18585.8 | M144: -117160.9 | N144: 6.303785686 | Q144: -167193.14 | R144: -7369.37 | S144: -159823.77 | T144: 21.68757574 | V144: -252363.93 | W144: -70367.8 | X144: -181996.13 | Y144: 2.586355265
A145: %,V5550139 | B145: 5550139 | C145: Generation Deactivation expens | F145: 30541.58 | G145: 0 | H145: 30541.58 | I145: 1 | K145: -95639.89 | L145: 0 | M145: -95639.89 | N145: 1 | Q145: -123558.98 | R145: 0 | S145: -123558.98 | T145: 1 | V145: 29362.18 | W145: 0 | X145: 29362.18 | Y145: 1
A146: %,V5550326 | B146: 5550326 | C146: PJM Transm Loss Charges - LSE | F146: 54124.45 | G146: 428411.6 | H146: -374287.15 | I146: -0.8736625012 | K146: 4878402.81 | L146: 2772872.34 | M146: 2105530.47 | N146: 0.7593319172 | Q146: 1923552.57 | R146: 1197578.5 | S146: 725974.07 | T146: 0.6062016561 | V146: 9017914.47 | W146: 6435692.21 | X146: 2582222.26 | Y146: 0.4012345799
A147: %,V5550327 | B147: 5550327 | C147: PJM Transm Loss Credits-LSE | F147: -229343.14 | G147: -212977.36 | H147: -16365.78 | I147: 0.07684281559 | K147: -2681849.97 | L147: -1431326.27 | M147: -1250523.7 | N147: 0.8736817916 | Q147: -1403499.27 | R147: -711013.5 | S147: -692485.77 | T147: 0.9739418028 | V147: -4993645.35 | W147: -3095348.09 | X147: -1898297.26 | Y147: 0.6132742441
A148: %,V5550328 | B148: 5550328 | C148: PJM FC Penalty Credit | F148: 0 | G148: -371.77 | H148: 371.77 | I148: 1 | K148: -96.53 | L148: -1968.92 | M148: 1872.39 | N148: -0.9509731223 | Q148: -96.53 | R148: -1034.27 | S148: 937.74 | T148: -0.9066684715 | V148: -848.38 | W148: -2934.89 | X148: 2086.51 | Y148: -0.7109329481
A149: %,V5550335 | B149: 5550335 | C149: Purchased Power-PPA Rider | F149: -4120303.94 | G149: 0 | H149: -4120303.94 | I149: 1 | K149: -4120303.94 | L149: 0 | M149: -4120303.94 | N149: 1 | Q149: -4120303.94 | R149: 0 | S149: -4120303.94 | T149: 1 | V149: -4120303.94 | W149: 0 | X149: -4120303.94 | Y149: 1
A150: %,FACCOUNT,X,TGL_FERC_ACCT,N5550 | B150: 15 | C150: Purchased Power (555) | F150: 8144782.03 | G150: 9166527.34 | H150: -1021745.31 | I150: -0.1114648189 | K150: 59518334.47 | L150: 58507740 | M150: 1010594.47 | N150: 0.01727283382 | Q150: 29684951.85 | R150: 40739699.6 | S150: -11054747.75 | T150: -0.2713507429 | V150: 143307660.3 | W150: 129331934 | X150: 13975726.25 | Y150: 0.1080609082
B151: 15.1 | C151: Power Purchased for Storage Operations (555.1)
A152: %,FACCOUNT,X,TGL_FERC_ACCT,N5552 | B152: 15.2 | C152: Bundled Environmental Credits (555.2) | F152: 0 | G152: 0 | K152: 0 | L152: 0 | Q152: 0 | R152: 0 | V152: 0 | W152: 0
A153: %,FACCOUNT,X,TGL_FERC_ACCT,N5553 | B153: 15.3 | C153: Unbundled Environmental Credits (555.3) | F153: 0 | G153: 0 | K153: 0 | L153: 0 | Q153: 0 | R153: 0 | V153: 0 | W153: 0
A154: %,V5560000 | B154: 5560000 | C154: Sys Control & Load Dispatching | F154: 4871.28 | G154: 3967.26 | H154: =+F154-G154 -> 904.02 | I154: =IF(AND(F154=0,G154=0),"",IF(OR(F154=0,G154=0),100%,(+H154/G154))) -> 0.2278701169 | K154: 18423.98 | L154: 17196.46 | M154: =+K154-L154 -> 1227.52 | N154: =IF(AND(K154=0,L154=0),"",IF(OR(K154=0,L154=0),100%,(+M154/L154))) -> 0.0713821333 | Q154: 12457.34 | R154: 11837.12 | S154: =+Q154-R154 -> 620.22 | T154: =IF(AND(Q154=0,R154=0),"",IF(OR(Q154=0,R154=0),100%,(+S154/R154))) -> 0.05239619097 | V154: 55310.3 | W154: 65230.31 | X154: =+V154-W154 -> -9920.01 | Y154: =IF(AND(V154=0,W154=0),"",IF(OR(V154=0,W154=0),100%,(+X154/W154))) -> -0.1520766956
A155: %,FACCOUNT,X,TGL_FERC_ACCT,N5560 | B155: 16 | C155: System Control and Load Dispatching (556) | F155: 4871.28 | G155: 3967.26 | H155: 904.02 | I155: 0.2278701169 | K155: 18423.98 | L155: 17196.46 | M155: 1227.52 | N155: 0.0713821333 | Q155: 12457.34 | R155: 11837.12 | S155: 620.22 | T155: 0.05239619097 | V155: 55310.3 | W155: 65230.31 | X155: -9920.01 | Y155: -0.1520766956
A156: %,V5570000 | B156: 5570000 | C156: Other Expenses | F156: 96217.66 | G156: 59972.58 | H156: 36245.08 | I156: 0.6043608596 | K156: 283113.63 | L156: 252424.71 | M156: 30688.92 | N156: 0.1215765287 | Q156: 208951.61 | R156: 186796.88 | S156: 22154.73 | T156: 0.1186033193 | V156: 841875.03 | W156: 796329.31 | X156: 45545.72 | Y156: 0.05719457946
A157: %,V5570007 | B157: 5570007 | C157: Other Pwr Exp - Wholesale RECs | F157: 0 | G157: 0 | H157: 0 | K157: 231.75 | L157: 243.15 | M157: -11.4 | N157: -0.04688463911 | Q157: 0 | R157: 0 | S157: 0 | V157: 231.75 | W157: 243.15 | X157: -11.4 | Y157: -0.04688463911
A158: %,V5570009 | B158: 5570009 | C158: Other Pwr Exp- REC's - RETAIL | F158: 0 | G158: 0 | H158: 0 | K158: 0 | L158: 0 | M158: 0 | Q158: 0 | R158: 0 | S158: 0 | V158: 0 | W158: 446.4 | X158: -446.4 | Y158: 1
A159: %,V5570010 | B159: 5570010 | C159: OH Auction Exp - Incremental | F159: 0 | G159: 0 | H159: 0 | K159: 0 | L159: 0 | M159: 0 | Q159: 0 | R159: 0 | S159: 0 | V159: 0 | W159: 5.79 | X159: -5.79 | Y159: 1
A160: %,V5570025 | B160: 5570025 | C160: MATL-SAFETY | F160: 0 | G160: 0.93 | H160: -0.93 | I160: 1 | K160: 0 | L160: 0.93 | M160: -0.93 | N160: 1 | Q160: 0 | R160: 0.93 | S160: -0.93 | T160: 1 | V160: 0 | W160: 0.93 | X160: -0.93 | Y160: 1
A161: %,FACCOUNT,X,TGL_FERC_ACCT,N5570 | B161: 17 | C161: Other Expenses (557) | F161: 96217.66 | G161: 59973.51 | H161: 36244.15 | I161: 0.604335981 | K161: 283345.38 | L161: 252668.79 | M161: 30676.59 | N161: 0.1214102858 | Q161: 208951.61 | R161: 186797.81 | S161: 22153.8 | T161: 0.1185977502 | V161: 842106.78 | W161: 797025.58 | X161: 45081.2 | Y161: 0.05656179818
A162: %,V5550001 | B162: 5550001 | C162: Purch Pwr-NonTrading-Nonassoc | F162: 11977818.9 | G162: 7405117.81 | H162: 4572701.09 | I162: 0.6175055154 | K162: 49601439.54 | L162: 51420548.58 | M162: -1819109.04 | N162: -0.03537708349 | Q162: 28687667.05 | R162: 36215045.92 | S162: -7527378.87 | T162: -0.2078522525 | V162: 111217196.2 | W162: 106456225.7 | X162: 4760970.54 | Y162: 0.0447223308
A163: %,V5550004 | B163: 5550004 | C163: Purchased Power-Pool Capacity | F163: 31536.54 | G163: 0 | H163: 31536.54 | I163: 1 | K163: 126146.14 | L163: 0 | M163: 126146.14 | N163: 1 | Q163: 93558.39 | R163: 0 | S163: 93558.39 | T163: 1 | V163: 351106.76 | W163: 76088.34 | X163: 275018.42 | Y163: 3.614462084
A164: %,V5550023 | B164: 5550023 | C164: Purch Power Capacity -NA | F164: 0 | G164: 201548.44 | H164: -201548.44 | I164: 1 | K164: 0 | L164: 806193.76 | M164: -806193.76 | N164: 1 | Q164: 0 | R164: 604645.32 | S164: -604645.32 | T164: 1 | V164: 1045958.93 | W164: 2225450.65 | X164: -1179491.72 | Y164: -0.5300012921
A165: %,V5550029 | B165: 5550029 | C165: Purch Power-Assoc-Trnsfr Price | F165: 0 | G165: 0 | H165: 0 | K165: 0 | L165: 0 | M165: 0 | Q165: 0 | R165: 0 | S165: 0 | V165: 0 | W165: 0 | X165: 0
A166: %,V5550039 | B166: 5550039 | C166: PJM Inadvertent Mtr Res-OSS | F166: 1359.86 | G166: -477.24 | H166: 1837.1 | I166: -3.849425865 | K166: 4850.31 | L166: -1616.71 | M166: 6467.02 | N166: -4.000111337 | Q166: 2151.72 | R166: -1109.5 | S166: 3261.22 | T166: -2.939360072 | V166: 2802.29 | W166: 3522.93 | X166: -720.64 | Y166: -0.2045570023
A167: %,V5550040 | B167: 5550040 | C167: PJM Inadvertent Mtr Res-LSE | F167: 20513.57 | G167: -8456.78 | H167: 28970.35 | I167: -3.425695123 | K167: 84401.59 | L167: -24998.69 | M167: 109400.28 | N167: -4.376240515 | Q167: 60579.22 | R167: -21473.98 | S167: 82053.2 | T167: -3.821052269 | V167: 46691.25 | W167: 23634.98 | X167: 23056.27 | Y167: 0.9755146821
A168: %,V5550074 | B168: 5550074 | C168: PJM Reactive-Charge | F168: 259550.69 | G168: 273005.67 | H168: -13454.98 | I168: -0.04928461742 | K168: 1008209.33 | L168: 1103817.96 | M168: -95608.63 | N168: -0.0866163022 | Q168: 754610.02 | R168: 817150.53 | S168: -62540.51 | T168: -0.07653487051 | V168: 3122193.25 | W168: 3467650.49 | X168: -345457.24 | Y168: -0.09962285444
A169: %,V5550075 | B169: 5550075 | C169: PJM Reactive-Credit | F169: -119573 | G169: -119573 | H169: 0 | I169: 0 | K169: -478292 | L169: -478292 | M169: 0 | N169: 0 | Q169: -358719 | R169: -358719 | S169: 0 | T169: 0 | V169: -1434876 | W169: -1434876 | X169: 0 | Y169: 0
A170: %,V5550076 | B170: 5550076 | C170: PJM Black Start-Charge | F170: 42639.46 | G170: 46811.54 | H170: -4172.08 | I170: -0.08912503199 | K170: 117265.38 | L170: 144250.37 | M170: -26984.99 | N170: -0.187070508 | Q170: 149887.47 | R170: 140866.62 | S170: 9020.85 | T170: 0.06403823702 | V170: 436247.63 | W170: 900095.47 | X170: -463847.84 | Y170: -0.5153318236
A171: %,V5550078 | B171: 5550078 | C171: PJM Regulation-Charge | F171: 80208.09 | G171: 72784.06 | H171: 7424.03 | I171: 0.1020007678 | K171: 892380.8 | L171: 349917.7 | M171: 542463.1 | N171: 1.550259104 | Q171: 504063.2 | R171: 222280.68 | S171: 281782.52 | T171: 1.267687862 | V171: 1821698.8 | W171: 747374.47 | X171: 1074324.33 | Y171: 1.437464582
A172: %,V5550079 | B172: 5550079 | C172: PJM Regulation-Credit | F172: -11576.11 | G172: -274.49 | H172: -11301.62 | I172: 41.17315749 | K172: -174084.37 | L172: 212643.47 | M172: -386727.84 | N172: -1.818667839 | Q172: -202596.49 | R172: -3291.34 | S172: -199305.15 | T172: 60.55440945 | V172: 106554.44 | W172: -19218.68 | X172: 125773.12 | Y172: -6.544316259
A173: %,V5550080 | B173: 5550080 | C173: PJM Hourly Net Purch.-FERC | F173: 480323.59 | G173: 784752.9 | H173: -304429.31 | I173: -0.3879301497 | K173: 7180353.34 | L173: 2124034.33 | M173: 5056319.01 | N173: 2.380526029 | Q173: 2844395.39 | R173: 1340551.73 | S173: 1503843.66 | T173: 1.121809496 | V173: 24506285.36 | W173: 10603108.85 | X173: 13903176.51 | Y173: 1.311235856
A174: %,V5550083 | B174: 5550083 | C174: PJM Sync & Non Sync-Charge | F174: 52755.81 | G174: 111429.76 | H174: -58673.95 | I174: -0.5265554732 | K174: 443450.44 | L174: 385734.32 | M174: 57716.12 | N174: 0.1496266135 | Q174: 330157.37 | R174: 283295.61 | S174: 46861.76 | T174: 0.1654164708 | V174: 1127854.82 | W174: 748354.97 | X174: 379499.85 | Y174: 0.5071120861
A175: %,V5550084 | B175: 5550084 | C175: PJM Sync & Non Sync-Credit | F175: -500.37 | G175: -28724.06 | H175: 28223.69 | I175: -0.9825801088 | K175: -36610.58 | L175: -71663.19 | M175: 35052.61 | N175: -0.4891299145 | Q175: -44279.27 | R175: -62793.96 | S175: 18514.69 | T175: -0.2948482625 | V175: -133572.54 | W175: -120165.03 | X175: -13407.51 | Y175: 0.1115758054
A176: %,V5550094 | B176: 5550094 | C176: Purchased Power - Fuel | F176: 0 | G176: 0 | H176: 0 | K176: 0 | L176: 0 | M176: 0 | Q176: 0 | R176: 0 | S176: 0 | V176: 0 | W176: 0 | X176: 0
A177: %,V5550123 | B177: 5550123 | C177: PJM OpRes-LSE-Charge | F177: 135804.52 | G177: 195018.63 | H177: -59214.11 | I177: -0.3036330939 | K177: 6401205.54 | L177: 3508099.05 | M177: 2893106.49 | N177: 0.8246935017 | Q177: 2776051.18 | R177: 551350.32 | S177: 2224700.86 | T177: 4.035004206 | V177: 7481321.5 | W177: 4275854.87 | X177: 3205466.63 | Y177: 0.749666845
A178: %,V5550124 | B178: 5550124 | C178: PJM Implicit Congestion-LSE | F178: 793181.23 | G178: 638168.13 | H178: 155013.1 | I178: 0.2429032299 | K178: 12831415.54 | L178: 3103402.56 | M178: 9728012.98 | N178: 3.134628135 | Q178: 7600579.26 | R178: 1848967.69 | S178: 5751611.57 | T178: 3.110715023 | V178: 15010547.89 | W178: 8708462.56 | X178: 6302085.33 | Y178: 0.7236737009
A179: %,V5550132 | B179: 5550132 | C179: PJM FTR Revenue-LSE | F179: -1221027.41 | G179: -617167.97 | H179: -603859.44 | I179: 0.9784361298 | K179: -16328562.31 | L179: -5395322.86 | M179: -10933239.45 | N179: 2.026429138 | Q179: -9622054.37 | R179: -1315228.4 | S179: -8306825.97 | T179: 6.31588093 | V179: -21080465.36 | W179: -10596671.94 | X179: -10483793.42 | Y179: 0.9893477386
A180: %,V5550137 | B180: 5550137 | C180: PJM OpRes-LSE-Credit | F180: -113252.29 | G180: -2498.53 | H180: -110753.76 | I180: 44.32756861 | K180: -135746.7 | L180: -18585.8 | M180: -117160.9 | N180: 6.303785686 | Q180: -167193.14 | R180: -7369.37 | S180: -159823.77 | T180: 21.68757574 | V180: -252363.93 | W180: -70367.8 | X180: -181996.13 | Y180: 2.586355265
A181: %,V5550139 | B181: 5550139 | C181: Generation Deactivation expens | F181: 30541.58 | G181: 0 | H181: 30541.58 | I181: 1 | K181: -95639.89 | L181: 0 | M181: -95639.89 | N181: 1 | Q181: -123558.98 | R181: 0 | S181: -123558.98 | T181: 1 | V181: 29362.18 | W181: 0 | X181: 29362.18 | Y181: 1
A182: %,V5550326 | B182: 5550326 | C182: PJM Transm Loss Charges - LSE | F182: 54124.45 | G182: 428411.6 | H182: -374287.15 | I182: -0.8736625012 | K182: 4878402.81 | L182: 2772872.34 | M182: 2105530.47 | N182: 0.7593319172 | Q182: 1923552.57 | R182: 1197578.5 | S182: 725974.07 | T182: 0.6062016561 | V182: 9017914.47 | W182: 6435692.21 | X182: 2582222.26 | Y182: 0.4012345799
A183: %,V5550327 | B183: 5550327 | C183: PJM Transm Loss Credits-LSE | F183: -229343.14 | G183: -212977.36 | H183: -16365.78 | I183: 0.07684281559 | K183: -2681849.97 | L183: -1431326.27 | M183: -1250523.7 | N183: 0.8736817916 | Q183: -1403499.27 | R183: -711013.5 | S183: -692485.77 | T183: 0.9739418028 | V183: -4993645.35 | W183: -3095348.09 | X183: -1898297.26 | Y183: 0.6132742441
A184: %,V5550328 | B184: 5550328 | C184: PJM FC Penalty Credit | F184: 0 | G184: -371.77 | H184: 371.77 | I184: 1 | K184: -96.53 | L184: -1968.92 | M184: 1872.39 | N184: -0.9509731223 | Q184: -96.53 | R184: -1034.27 | S184: 937.74 | T184: -0.9066684715 | V184: -848.38 | W184: -2934.89 | X184: 2086.51 | Y184: -0.7109329481
A185: %,V5550335 | B185: 5550335 | C185: Purchased Power-PPA Rider | F185: -4120303.94 | G185: 0 | H185: -4120303.94 | I185: 1 | K185: -4120303.94 | L185: 0 | M185: -4120303.94 | N185: 1 | Q185: -4120303.94 | R185: 0 | S185: -4120303.94 | T185: 1 | V185: -4120303.94 | W185: 0 | X185: -4120303.94 | Y185: 1
A186: %,V5560000 | B186: 5560000 | C186: Sys Control & Load Dispatching | F186: 4871.28 | G186: 3967.26 | H186: =+F186-G186 -> 904.02 | I186: =IF(AND(F186=0,G186=0),"",IF(OR(F186=0,G186=0),100%,(+H186/G186))) -> 0.2278701169 | K186: 18423.98 | L186: 17196.46 | M186: =+K186-L186 -> 1227.52 | N186: =IF(AND(K186=0,L186=0),"",IF(OR(K186=0,L186=0),100%,(+M186/L186))) -> 0.0713821333 | Q186: 12457.34 | R186: 11837.12 | S186: =+Q186-R186 -> 620.22 | T186: =IF(AND(Q186=0,R186=0),"",IF(OR(Q186=0,R186=0),100%,(+S186/R186))) -> 0.05239619097 | V186: 55310.3 | W186: 65230.31 | X186: =+V186-W186 -> -9920.01 | Y186: =IF(AND(V186=0,W186=0),"",IF(OR(V186=0,W186=0),100%,(+X186/W186))) -> -0.1520766956
A187: %,V5570000 | B187: 5570000 | C187: Other Expenses | F187: 96217.66 | G187: 59972.58 | H187: 36245.08 | I187: 0.6043608596 | K187: 283113.63 | L187: 252424.71 | M187: 30688.92 | N187: 0.1215765287 | Q187: 208951.61 | R187: 186796.88 | S187: 22154.73 | T187: 0.1186033193 | V187: 841875.03 | W187: 796329.31 | X187: 45545.72 | Y187: 0.05719457946
A188: %,V5570007 | B188: 5570007 | C188: Other Pwr Exp - Wholesale RECs | F188: 0 | G188: 0 | H188: 0 | K188: 231.75 | L188: 243.15 | M188: -11.4 | N188: -0.04688463911 | Q188: 0 | R188: 0 | S188: 0 | V188: 231.75 | W188: 243.15 | X188: -11.4 | Y188: -0.04688463911
A189: %,V5570009 | B189: 5570009 | C189: Other Pwr Exp- REC's - RETAIL | F189: 0 | G189: 0 | H189: 0 | K189: 0 | L189: 0 | M189: 0 | Q189: 0 | R189: 0 | S189: 0 | V189: 0 | W189: 446.4 | X189: -446.4 | Y189: 1
A190: %,V5570010 | B190: 5570010 | C190: OH Auction Exp - Incremental | F190: 0 | G190: 0 | H190: 0 | K190: 0 | L190: 0 | M190: 0 | Q190: 0 | R190: 0 | S190: 0 | V190: 0 | W190: 5.79 | X190: -5.79 | Y190: 1
A191: %,V5570025 | B191: 5570025 | C191: MATL-SAFETY | F191: 0 | G191: 0.93 | H191: -0.93 | I191: 1 | K191: 0 | L191: 0.93 | M191: -0.93 | N191: 1 | Q191: 0 | R191: 0.93 | S191: -0.93 | T191: 1 | V191: 0 | W191: 0.93 | X191: -0.93 | Y191: 1
A192: %,FACCOUNT,X,TGL_FERC_ACCT,N555-557 | B192: 18 | C192: Total Other Power Supply Expenses (line 15-17) | D192: o | F192: 8245870.97 | G192: 9230468.11 | H192: -984597.14 | I192: -0.1066681698 | K192: 59820103.83 | L192: 58777605.25 | M192: 1042498.58 | N192: 0.0177363228 | Q192: 29906360.8 | R192: 40938334.53 | S192: -11031973.73 | T192: -0.2694778343 | V192: 144205077.4 | W192: 130194189.9 | X192: 14010887.44 | Y192: 0.1076153049
A193: %,V5000000 | B193: 5000000 | C193: Oper Supervision & Engineering | F193: 336128.68 | G193: 318921.29 | H193: 17207.39 | I193: 0.05395497428 | K193: 1527687.01 | L193: 1306410.01 | M193: 221277 | N193: 0.1693779122 | Q193: 1151946.84 | R193: 969869.68 | S193: 182077.16 | T193: 0.1877336345 | V193: 4724349.59 | W193: 4190481.68 | X193: 533867.91 | Y193: 0.1274001298
A194: %,V5000002 | B194: 5000002 | C194: Dresden Oper Supervision & Eng | F194: 0 | G194: 0 | H194: 0 | K194: 0 | L194: 0 | M194: 0 | Q194: 0 | R194: 0 | S194: 0 | V194: -33.12 | W194: 0 | X194: -33.12 | Y194: 1
A195: %,V5000003 | B195: 5000003 | C195: Cnstr Srchrge Op Sup & Eng Exp | F195: 0 | G195: 0 | H195: 0 | K195: 0 | L195: 0 | M195: 0 | Q195: 0 | R195: 0 | S195: 0 | V195: 64.34 | W195: 0 | X195: 64.34 | Y195: 1
A196: %,V5000005 | B196: 5000005 | C196: Deferred OM - 20% Non FMR | F196: 0 | G196: 0 | H196: 0 | K196: 0 | L196: 0 | M196: 0 | Q196: 0 | R196: 0 | S196: 0 | V196: 0 | W196: -17.08 | X196: 17.08 | Y196: 1
A197: %,V5010000 | B197: 5010000 | C197: Fuel | F197: 589775.53 | G197: 422235.9 | H197: 167539.63 | I197: 0.3967915329 | K197: 2031788.09 | L197: 3124507.2 | M197: -1092719.11 | N197: -0.3497252655 | Q197: 1676392.4 | R197: 2506208.94 | S197: -829816.54 | T197: -0.3311042933 | V197: 6657746.4 | W197: 7282807.98 | X197: -625061.58 | Y197: -0.08582700268
A198: %,V5010001 | B198: 5010001 | C198: Fuel Consumed | F198: 3523402.44 | G198: 5166295.41 | H198: -1642892.97 | I198: -0.3180021349 | K198: 23114816.98 | L198: 22161229.33 | M198: 953587.65 | N198: 0.04302954659 | Q198: 13762909.64 | R198: 9870836.04 | S198: 3892073.6 | T198: 0.3943002988 | V198: 75263327.59 | W198: 77978435.31 | X198: -2715107.72 | Y198: -0.03481869967
A199: %,V5010003 | B199: 5010003 | C199: Fuel - Procure Unload & Handle | F199: 204531.57 | G199: 309300.95 | H199: -104769.38 | I199: -0.3387295771 | K199: 1222274.23 | L199: 1167878.59 | M199: 54395.64 | N199: 0.04657645107 | Q199: 747074.92 | R199: 550493.27 | S199: 196581.65 | T199: 0.3571009142 | V199: 4126027.77 | W199: 3775840.6 | X199: 350187.17 | Y199: 0.09274416139
A200: %,V5010005 | B200: 5010005 | C200: Fuel - Deferred | F200: 1602469.104 | G200: 1044760.324 | H200: 557708.78 | I200: 0.5338150456 | K200: -8290210.398 | L200: 478065.715 | M200: -8768276.113 | N200: -18.34115235 | Q200: 9722244.975 | R200: 5601384.615 | S200: 4120860.36 | T200: 0.7356860211 | V200: -3631129.28 | W200: -921670.525 | X200: -2709458.755 | Y200: 2.939725945
A201: %,V5010012 | B201: 5010012 | C201: Ash Sales Proceeds | F201: 424.81 | G201: -1356.98 | H201: 1781.79 | I201: -1.313055461 | K201: 2221.3 | L201: 1977.98 | M201: 243.32 | N201: 0.1230143884 | Q201: 1269.85 | R201: 985.03 | S201: 284.82 | T201: 0.2891485539 | V201: 7518.26 | W201: 18336.55 | X201: -10818.29 | Y201: -0.5899850299
... 653 more rows

Sheet KWH
A1: %,LACTUALS,SBAL | B1: %,ATF,FACCOUNT | C1: %,ATT,FDESCR,UDESCR | F1: %,LACTUALS,SPER,R | G1: %,LACTUALS,SPER-1YR,R | H1: %,C | I1: %,C | K1: %,LACTUALS,SPER,R,FCURRENCY_CD,V,FSTATISTICS_CODE,VKWH | L1: %,LACTUALS,SPER-1YR,R,FCURRENCY_CD,V,FSTATISTICS_CODE,VKWH | M1: %,C | N1: %,C | P1: %,LACTUALS,SPER,FCURRENCY_CD,V,FSTATISTICS_CODE,VCUS | Q1: %,LACTUALS,SPER-1YR,FCURRENCY_CD,V,FSTATISTICS_CODE,VCUS | R1: %,C | S1: %,C | T1: %,LACTUALS,SYTD,R | U1: %,LACTUALS,SYTD-1YR,R | V1: %,C | W1: %,C | Y1: %,LACTUALS,SYTD,R,FCURRENCY_CD,V,FSTATISTICS_CODE,VKWH | Z1: %,LACTUALS,SYTD-1YR,R,FCURRENCY_CD,V,FSTATISTICS_CODE,VKWH | AA1: %,C | AB1: %,C | AD1: %,C | AE1: %,LACTUALS,SYTD,FCURRENCY_CD,V,FSTATISTICS_CODE,VCUS | AF1: %,C | AG1: %,LACTUALS,SYTD-1YR,FCURRENCY_CD,V,FSTATISTICS_CODE,VCUS | AH1: %,C | AJ1: %,LACTUALS,SQTR,R | AK1: %,LACTUALS,SQTR-1YR,R | AL1: %,C | AM1: %,C | AO1: %,LACTUALS,SQTR,R,FCURRENCY_CD,V,FSTATISTICS_CODE,VKWH | AP1: %,LACTUALS,SQTR-1YR,R,FCURRENCY_CD,V,FSTATISTICS_CODE,VKWH | AQ1: %,C | AR1: %,C | AT1: %,C | AU1: %,LACTUALS,SQTR,FCURRENCY_CD,V,FSTATISTICS_CODE,VCUS | AV1: %,C | AW1: %,LACTUALS,SQTR-1YR,FCURRENCY_CD,V,FSTATISTICS_CODE,VCUS | AX1: %,C | AZ1: %,LACTUALS,SROLLING12,R | BA1: %,LACTUALS,SROLNG12-1Y,R | BB1: %,C | BC1: %,C | BE1: %,LACTUALS,SROLLING12,R,FCURRENCY_CD,V,FSTATISTICS_CODE,VKWH | BF1: %,LACTUALS,SROLNG12-1Y,R,FCURRENCY_CD,V,FSTATISTICS_CODE,VKWH | BG1: %,C | BH1: %,C | BJ1: %,C | BK1: %,LACTUALS,SROLLING12,FCURRENCY_CD,V,FSTATISTICS_CODE,VCUS | BL1: %,C | BM1: %,LACTUALS,SROLNG12-1Y,FCURRENCY_CD,V,FSTATISTICS_CODE,VCUS | BN1: %,C
C2: Kentucky Power Corp Consol
C3: April 2026 | F3: OPERATING REVENUES | K3: KILOWATT-HOUR SALES | P3: CUSTOMERS | T3: OPERATING REVENUES | Y3: KILOWATT-HOUR SALES | AD3: CUSTOMERS | AJ3: OPERATING REVENUES | AO3: KILOWATT-HOUR SALES | AT3: CUSTOMERS | AZ3: OPERATING REVENUES | BE3: KILOWATT-HOUR SALES | BJ3: CUSTOMERS
B4: Run Date: 05/08/2026 06:47 AM | F4: ONE MONTH ENDED | K4: ONE MONTH ENDED | P4: ONE MONTH ENDED | T4: YEAR TO DATE | Y4: YEAR TO DATE | AD4: YEAR TO DATE | AJ4: 3 Month Ending | AO4: 3 Month Ending | AT4: 3 Month Ending | AZ4: 12 Month Rolling | BE4: 12 Month Rolling | BJ4: 12 Month Rolling
B5: GLR6283P | C5: Rpt ID: FERC_IS1 Layout: FERC_IS1
B6: KYP_CORP_CONSOL | C6: V2099-01-01 Acct: GL_FERC_ACCT BU: GL_PRPT_CONS | F6: 2026 | G6: 2025 | H6: Variance | I6: % | K6: 2026 | L6: 2025 | M6: Variance | N6: % | P6: 2026 | Q6: 2025 | R6: Variance | T6: 2026 | U6: 2025 | V6: Variance | W6: % | Y6: 2026 | Z6: 2025 | AA6: Variance | AB6: % | AD6: 2026 | AF6: 2025 | AH6: Variance | AJ6: 2026 | AK6: 2025 | AL6: Variance | AM6: % | AO6: 2026 | AP6: 2025 | AQ6: Variance | AR6: % | AT6: 2026 | AV6: 2025 | AX6: Variance | AZ6: 2026 | BA6: 2025 | BB6: Variance | BC6: % | BE6: 2026 | BF6: 2025 | BG6: Variance | BH6: % | BJ6: 2026 | BL6: 2025 | BN6: Variance
B8: Page 300 | C8: SALES OF ELECTRICITY
A9: %,V4400001 | B9: 4400001 | C9: Residential Sales-W/Space Htg | F9: 10286745.71 | G9: 10394968.61 | H9: =+F9-G9 -> -108222.899 | I9: =IF(AND(F9=0,G9=0),"",IF(OR(F9=0,G9=0),100%,(+H9/G9))) -> -0.01041108473 | K9: 65328987 | L9: 73029577 | M9: =+K9-L9 -> -7700590 | N9: =IF(AND(K9=0,L9=0),"",IF(OR(K9=0,L9=0),100%,(+M9/L9))) -> -0.1054448118 | P9: 81885 | Q9: 82605 | R9: =+P9-Q9 -> -720 | T9: 62161861.67 | U9: 63973663.15 | V9: =+T9-U9 -> -1811801.475 | W9: =IF(AND(T9=0,U9=0),"",IF(OR(T9=0,U9=0),100%,(+V9/U9))) -> -0.02832105254 | Y9: 522134792 | Z9: 562205097 | AA9: =+Y9-Z9 -> -40070305 | AB9: =IF(AND(Y9=0,Z9=0),"",IF(OR(Y9=0,Z9=0),100%,(+AA9/Z9))) -> -0.07127346446 | AD9: =ROUND(ABS(AE9)/MONTH(FERC_IS1!$C$697),0) -> 82110 | AE9: 328440 | AF9: =ROUND(ABS(AG9)/MONTH(FERC_IS1!$C$697),0) -> 82829 | AG9: 331314 | AH9: =+AD9-AF9 -> -719 | AJ9: 42243838.01 | AK9: 42074541.59 | AL9: =+AJ9-AK9 -> 169296.419 | AM9: =IF(AND(AJ9=0,AK9=0),"",IF(OR(AJ9=0,AK9=0),100%,(+AL9/AK9))) -> 0.004023725811 | AO9: 340102970 | AP9: 349890743 | AQ9: =+AO9-AP9 -> -9787773 | AR9: =IF(AND(AO9=0,AP9=0),"",IF(OR(AO9=0,AP9=0),100%,(+AQ9/AP9))) -> -0.0279737981 | AT9: =ROUND(ABS(AU9)/3,0) -> 82060 | AU9: 246180 | AV9: =ROUND(ABS(AW9)/3,0) -> 82783 | AW9: 248348 | AX9: =+AT9-AV9 -> -723 | AZ9: 155038057.9 | BA9: 156558959.9 | BB9: =+AZ9-BA9 -> -1520902.029 | BC9: =IF(AND(AZ9=0,BA9=0),"",IF(OR(AZ9=0,BA9=0),100%,(+BB9/BA9))) -> -0.009714563956 | BE9: 1305984856 | BF9: 1343774938 | BG9: =+BE9-BF9 -> -37790082 | BH9: =IF(AND(BE9=0,BF9=0),"",IF(OR(BE9=0,BF9=0),100%,(+BG9/BF9))) -> -0.02812232981 | BJ9: =ROUND(ABS(BK9)/12,0) -> 82173 | BK9: 986075 | BL9: =ROUND(ABS(BM9)/12,0) -> 82851 | BM9: 994207 | BN9: =+BJ9-BL9 -> -678
A10: %,V4400002 | B10: 4400002 | C10: Residential Sales-W/O Space Ht | F10: 5259274.674 | G10: 4806574.39 | H10: 452700.284 | I10: 0.09418355928 | K10: 31459882 | L10: 32796820 | M10: -1336938 | N10: -0.04076425702 | P10: 47873 | Q10: 47905 | R10: -32 | T10: 24919862.71 | U10: 24333065.26 | V10: 586797.446 | W10: 0.0241152292 | Y10: 193207398 | Z10: 203579981 | AA10: -10372583 | AB10: -0.05095089875 | AD10: =ROUND(ABS(AE10)/MONTH(FERC_IS1!$C$697),0) -> 47966 | AE10: 191863 | AF10: =ROUND(ABS(AG10)/MONTH(FERC_IS1!$C$697),0) -> 47994 | AG10: 191974 | AH10: -28 | AJ10: 17956622.32 | AK10: 16534251.53 | AL10: 1422370.785 | AM10: 0.0860257135 | AO10: 128269022 | AP10: 130341428 | AQ10: -2072406 | AR10: -0.0158998258 | AT10: 47950 | AU10: 143850 | AV10: 47974 | AW10: 143921 | AX10: -24 | AZ10: 72243201.46 | BA10: 69049926.82 | BB10: 3193274.638 | BC10: 0.04624588012 | BE10: 574825253 | BF10: 584065657 | BG10: -9240404 | BH10: -0.01582083091 | BJ10: 47901 | BK10: 574809 | BL10: 47938 | BM10: 575257 | BN10: -37
A11: %,V4400005 | B11: 4400005 | C11: Residential Fuel Rev | F11: 4100083.22 | G11: 3185157.45 | H11: 914925.77 | I11: 0.2872466383 | K11: 0 | L11: 0 | M11: 0 | P11: 0 | Q11: 0 | R11: 0 | T11: 30164070.63 | U11: 27832992.22 | V11: 2331078.41 | W11: 0.08375234655 | Y11: 0 | Z11: 0 | AA11: 0 | AD11: =ROUND(ABS(AE11)/MONTH(FERC_IS1!$C$697),0) -> 0 | AE11: 0 | AF11: =ROUND(ABS(AG11)/MONTH(FERC_IS1!$C$697),0) -> 0 | AG11: 0 | AH11: 0 | AJ11: 20384509.97 | AK11: 16383040.5 | AL11: 4001469.47 | AM11: 0.2442446181 | AO11: 0 | AP11: 0 | AQ11: 0 | AT11: 0 | AU11: 0 | AV11: 0 | AW11: 0 | AX11: 0 | AZ11: 81893384.72 | BA11: 71293142.21 | BB11: 10600242.51 | BC11: 0.1486853038 | BE11: 0 | BF11: 0 | BG11: 0 | BJ11: 0 | BK11: 0 | BL11: 0 | BM11: 0 | BN11: 0
A12: %,FACCOUNT,X,TGL_FERC_ACCT,N4400 | B12: Line 1 | C12: (440) Residential Sales | F12: 19646103.6 | G12: 18386700.45 | H12: 1259403.155 | I12: 0.06849533218 | K12: 96788869 | L12: 105826397 | M12: -9037528 | N12: -0.08539956246 | P12: 129758 | Q12: 130510 | R12: -752 | T12: 117245795 | U12: 116139720.6 | V12: 1106074.381 | W12: 0.009523652847 | Y12: 715342190 | Z12: 765785078 | AA12: -50442888 | AB12: -0.06587081604 | AD12: =ROUND(ABS(AE12)/MONTH(FERC_IS1!$C$697),0) -> 130076 | AE12: 520303 | AF12: =ROUND(ABS(AG12)/MONTH(FERC_IS1!$C$697),0) -> 130822 | AG12: 523288 | AH12: -746 | AJ12: 80584970.29 | AK12: 74991833.62 | AL12: 5593136.674 | AM12: 0.07458327666 | AO12: 468371992 | AP12: 480232171 | AQ12: -11860179 | AR12: -0.02469676068 | AT12: 130010 | AU12: 390030 | AV12: 130756 | AW12: 392269 | AX12: -746 | AZ12: 309174644.1 | BA12: 296902029 | BB12: 12272615.12 | BC12: 0.04133557175 | BE12: 1880810109 | BF12: 1927840595 | BG12: -47030486 | BH12: -0.02439542259 | BJ12: 130074 | BK12: 1560884 | BL12: 130789 | BM12: 1569464 | BN12: -715
B13: Line 3 | C13: (442) Commercial and Industrial Sales | H13: 0 | M13: 0 | R13: 0 | V13: 0 | AA13: 0 | AD13: =ROUND(ABS(AE13)/MONTH(FERC_IS1!$C$697),0) -> 0 | AF13: =ROUND(ABS(AG13)/MONTH(FERC_IS1!$C$697),0) -> 0 | AH13: 0 | AL13: 0 | AQ13: 0 | AT13: 0 | AV13: 0 | AX13: 0 | BB13: 0 | BG13: 0 | BJ13: 0 | BL13: 0 | BN13: 0
A14: %,V4420001 | B14: 4420001 | C14: Commercial Sales | F14: 8701658.36 | G14: 7636183.85 | H14: 1065474.51 | I14: 0.1395297089 | K14: 80468335 | L14: 79260732 | M14: 1207603 | N14: 0.01523582952 | P14: 26242 | Q14: 26364 | R14: -122 | T14: 32185987.11 | U14: 34391063.95 | V14: -2205076.836 | W14: -0.0641177266 | Y14: 344086633 | Z14: 364757055 | AA14: -20670422 | AB14: -0.0566690122 | AD14: =ROUND(ABS(AE14)/MONTH(FERC_IS1!$C$697),0) -> 26459 | AE14: 105834 | AF14: =ROUND(ABS(AG14)/MONTH(FERC_IS1!$C$697),0) -> 26351 | AG14: 105404 | AH14: 108 | AJ14: 23623512.66 | AK14: 24634731.97 | AL14: -1011219.315 | AM14: -0.0410485211 | AO14: 238524213 | AP14: 251646511 | AQ14: -13122298 | AR14: -0.05214575775 | AT14: 26248 | AU14: 78743 | AV14: 26346 | AW14: 79039 | AX14: -98 | AZ14: 98574171.27 | BA14: 103738511.8 | BB14: -5164340.565 | BC14: -0.04978228889 | BE14: 1081043787 | BF14: 1126602041 | BG14: -45558254 | BH14: -0.04043863968 | BJ14: 26321 | BK14: 315846 | BL14: 26388 | BM14: 316659 | BN14: -67
A15: %,V4420006 | B15: 4420006 | C15: Sales to Pub Auth - Schools | F15: 1318953.092 | G15: 1297881.81 | H15: 21071.282 | I15: 0.01623513161 | K15: 9003942 | L15: 9498721 | M15: -494779 | N15: -0.05208901283 | P15: 693 | Q15: 695 | R15: -2 | T15: 5336744.12 | U15: 5822316.79 | V15: -485572.67 | W15: -0.08339853146 | Y15: 45090322 | Z15: 47032114 | AA15: -1941792 | AB15: -0.0412865133 | AD15: =ROUND(ABS(AE15)/MONTH(FERC_IS1!$C$697),0) -> 704 | AE15: 2816 | AF15: =ROUND(ABS(AG15)/MONTH(FERC_IS1!$C$697),0) -> 698 | AG15: 2792 | AH15: 6 | AJ15: 3852964.221 | AK15: 4213387.93 | AL15: -360423.709 | AM15: -0.08554249335 | AO15: 31611514 | AP15: 32722498 | AQ15: -1110984 | AR15: -0.0339516867 | AT15: 695 | AU15: 2086 | AV15: 701 | AW15: 2103 | AX15: -6 | AZ15: 15868561.59 | BA15: 16564228.02 | BB15: -695666.432 | BC15: -0.04199811975 | BE15: 134770879 | BF15: 135978798 | BG15: -1207919 | BH15: -0.008883142209 | BJ15: 694 | BK15: 8325 | BL15: 695 | BM15: 8343 | BN15: -1
A16: %,V4420007 | B16: 4420007 | C16: Sales to Pub Auth - Ex Schools | F16: 1740066.857 | G16: 1578642.63 | H16: 161424.227 | I16: 0.1022550791 | K16: 13705640 | L16: 13167107 | M16: 538533 | N16: 0.04089987269 | P16: 3401 | Q16: 3331 | R16: 70 | T16: 6531199.671 | U16: 6818903.61 | V16: -287703.939 | W16: -0.04219211114 | Y16: 59003834 | Z16: 59997029 | AA16: -993195 | AB16: -0.0165540697 | AD16: =ROUND(ABS(AE16)/MONTH(FERC_IS1!$C$697),0) -> 3394 | AE16: 13575 | AF16: =ROUND(ABS(AG16)/MONTH(FERC_IS1!$C$697),0) -> 3334 | AG16: 13335 | AH16: 60 | AJ16: 4713111.263 | AK16: 4863838.38 | AL16: -150727.117 | AM16: -0.03098933501 | AO16: 40922158 | AP16: 41385408 | AQ16: -463250 | AR16: -0.01119355885 | AT16: 3370 | AU16: 10111 | AV16: 3330 | AW16: 9989 | AX16: 40 | AZ16: 19543701.55 | BA16: 20712338.72 | BB16: -1168637.173 | BC16: -0.05642227026 | BE16: 182215844 | BF16: 182879710 | BG16: -663866 | BH16: -0.003630069186 | BJ16: 3348 | BK16: 40176 | BL16: 3318 | BM16: 39814 | BN16: 30
A17: %,V4420013 | B17: 4420013 | C17: Commercial Fuel Rev | F17: 4480640.15 | G17: 3232459.78 | H17: 1248180.37 | I17: 0.3861394897 | K17: 0 | L17: 0 | M17: 0 | P17: 0 | Q17: 0 | R17: 0 | T17: 19683213.31 | U17: 17235577.47 | V17: 2447635.84 | W17: 0.1420106663 | Y17: 0 | Z17: 0 | AA17: 0 | AD17: =ROUND(ABS(AE17)/MONTH(FERC_IS1!$C$697),0) -> 0 | AE17: 0 | AF17: =ROUND(ABS(AG17)/MONTH(FERC_IS1!$C$697),0) -> 0 | AG17: 0 | AH17: 0 | AJ17: 13988253.58 | AK17: 11372634.49 | AL17: 2615619.09 | AM17: 0.2299923639 | AO17: 0 | AP17: 0 | AQ17: 0 | AT17: 0 | AU17: 0 | AV17: 0 | AW17: 0 | AX17: 0 | AZ17: 61132767.54 | BA17: 53728319.3 | BB17: 7404448.24 | BC17: 0.137812765 | BE17: 0 | BF17: 0 | BG17: 0 | BJ17: 0 | BK17: 0 | BL17: 0 | BM17: 0 | BN17: 0
A18: %,FACCOUNT,X,TGL_FERC_ACCT,N442_COMMERCIAL | B18: Line 4 | C18: (442) Small (or Commercial) | F18: 16241318.46 | G18: 13745168.07 | H18: 2496150.389 | I18: 0.1816020274 | K18: 103177917 | L18: 101926560 | M18: 1251357 | N18: 0.01227704536 | P18: 30336 | Q18: 30390 | R18: -54 | T18: 63737144.22 | U18: 64267861.82 | V18: -530717.605 | W18: -0.008257900449 | Y18: 448180789 | Z18: 471786198 | AA18: -23605409 | AB18: -0.05003412372 | AD18: =ROUND(ABS(AE18)/MONTH(FERC_IS1!$C$697),0) -> 30556 | AE18: 122225 | AF18: =ROUND(ABS(AG18)/MONTH(FERC_IS1!$C$697),0) -> 30383 | AG18: 121531 | AH18: 173 | AJ18: 46177841.72 | AK18: 45084592.77 | AL18: 1093248.949 | AM18: 0.02424883717 | AO18: 311057885 | AP18: 325754417 | AQ18: -14696532 | AR18: -0.04511537291 | AT18: 30313 | AU18: 90940 | AV18: 30377 | AW18: 91131 | AX18: -64 | AZ18: 195119201.9 | BA18: 194743397.9 | BB18: 375804.07 | BC18: 0.00192973972 | BE18: 1398030510 | BF18: 1445460549 | BG18: -47430039 | BH18: -0.03281309824 | BJ18: 30362 | BK18: 364347 | BL18: 30401 | BM18: 364816 | BN18: -39
A19: %,V4420002 | B19: 4420002 | C19: Industrial Sales (Excl Mines) | F19: 5130336.107 | G19: 6439848.92 | H19: -1309512.813 | I19: -0.2033452693 | K19: 141779959 | L19: 152003239 | M19: -10223280 | N19: -0.06725698786 | P19: 782 | Q19: 766 | R19: 16 | T19: 26429703.91 | U19: 25768179.15 | V19: 661524.765 | W19: 0.02567215794 | Y19: 542663571 | Z19: 581191410 | AA19: -38527839 | AB19: -0.06629113634 | AD19: =ROUND(ABS(AE19)/MONTH(FERC_IS1!$C$697),0) -> 777 | AE19: 3106 | AF19: =ROUND(ABS(AG19)/MONTH(FERC_IS1!$C$697),0) -> 767 | AG19: 3067 | AH19: 10 | AJ19: 16895780.5 | AK19: 19782761.28 | AL19: -2886980.775 | AM19: -0.1459341663 | AO19: 394901719 | AP19: 430675350 | AQ19: -35773631 | AR19: -0.08306403187 | AT19: 770 | AU19: 2309 | AV19: 767 | AW19: 2301 | AX19: 3 | AZ19: 66611390.54 | BA19: 77239230.66 | BB19: -10627840.12 | BC19: -0.1375964005 | BE19: 1724106199 | BF19: 1813068338 | BG19: -88962139 | BH19: -0.04906717366 | BJ19: 768 | BK19: 9215 | BL19: 774 | BM19: 9283 | BN19: -6
A20: %,V4420004 | B20: 4420004 | C20: Ind Sales-NonAffil(Incl Mines) | F20: 1153784.238 | G20: 1412047.01 | H20: -258262.772 | I20: -0.1828995566 | K20: 10861445 | L20: 13751577 | M20: -2890132 | N20: -0.2101673139 | P20: 145 | Q20: 166 | R20: -21 | T20: 4467383.358 | U20: 5826863.63 | V20: -1359480.272 | W20: -0.233312526 | Y20: 46824907 | Z20: 59752648 | AA20: -12927741 | AB20: -0.2163542777 | AD20: =ROUND(ABS(AE20)/MONTH(FERC_IS1!$C$697),0) -> 154 | AE20: 617 | AF20: =ROUND(ABS(AG20)/MONTH(FERC_IS1!$C$697),0) -> 169 | AG20: 675 | AH20: -15 | AJ20: 3131427.621 | AK20: 4278673.37 | AL20: -1147245.749 | AM20: -0.2681311822 | AO20: 32430086 | AP20: 43138877 | AQ20: -10708791 | AR20: -0.2482399113 | AT20: 150 | AU20: 449 | AV20: 168 | AW20: 505 | AX20: -18 | AZ20: 13563601.18 | BA20: 17323351.51 | BB20: -3759750.328 | BC20: -0.2170336569 | BE20: 141461231 | BF20: 182242599 | BG20: -40781368 | BH20: -0.2237751669 | BJ20: 158 | BK20: 1894 | BL20: 174 | BM20: 2083 | BN20: -16
A21: %,V4420016 | B21: 4420016 | C21: Industrial Fuel Rev | F21: 6968017.7 | G21: 5314347.11 | H21: 1653670.59 | I21: 0.3111709784 | K21: 0 | L21: 0 | M21: 0 | P21: 0 | Q21: 0 | R21: 0 | T21: 22076238.26 | U21: 22971738.95 | V21: -895500.69 | W21: -0.03898271228 | Y21: 0 | Z21: 0 | AA21: 0 | AD21: =ROUND(ABS(AE21)/MONTH(FERC_IS1!$C$697),0) -> 0 | AE21: 0 | AF21: =ROUND(ABS(AG21)/MONTH(FERC_IS1!$C$697),0) -> 0 | AG21: 0 | AH21: 0 | AJ21: 19059936.2 | AK21: 16410331.73 | AL21: 2649604.47 | AM21: 0.1614595313 | AO21: 0 | AP21: 0 | AQ21: 0 | AT21: 0 | AU21: 0 | AV21: 0 | AW21: 0 | AX21: 0 | AZ21: 80160943.1 | BA21: 73121168.83 | BB21: 7039774.27 | BC21: 0.09627546144 | BE21: 0 | BF21: 0 | BG21: 0 | BJ21: 0 | BK21: 0 | BL21: 0 | BM21: 0 | BN21: 0
A22: %,FACCOUNT,X,TGL_FERC_ACCT,N442_INDUSTRIAL | B22: Line 5 | C22: (442) Large (or Industrial) | F22: 13252138.04 | G22: 13166243.04 | H22: 85895.005 | I22: 0.006523881166 | K22: 152641404 | L22: 165754816 | M22: -13113412 | N22: -0.07911330914 | P22: 927 | Q22: 932 | R22: -5 | T22: 52973325.53 | U22: 54566781.73 | V22: -1593456.197 | W22: -0.0292019457 | Y22: 589488478 | Z22: 640944058 | AA22: -51455580 | AB22: -0.08028092211 | AD22: =ROUND(ABS(AE22)/MONTH(FERC_IS1!$C$697),0) -> 931 | AE22: 3723 | AF22: =ROUND(ABS(AG22)/MONTH(FERC_IS1!$C$697),0) -> 936 | AG22: 3742 | AH22: -5 | AJ22: 39087144.33 | AK22: 40471766.38 | AL22: -1384622.054 | AM22: -0.03421204899 | AO22: 427331805 | AP22: 473814227 | AQ22: -46482422 | AR22: -0.09810263042 | AT22: 919 | AU22: 2758 | AV22: 935 | AW22: 2806 | AX22: -16 | AZ22: 160335934.8 | BA22: 167683751 | BB22: -7347816.177 | BC22: -0.04381948837 | BE22: 1865567430 | BF22: 1995310937 | BG22: -129743507 | BH22: -0.0650242048 | BJ22: 926 | BK22: 11109 | BL22: 947 | BM22: 11366 | BN22: -21
A23: %,V4440000 | B23: 4440000 | C23: Public Street/Highway Lighting | F23: 169345.181 | G23: 156242.37 | H23: 13102.811 | I23: 0.08386208555 | K23: 622622 | L23: 636528 | M23: -13906 | N23: -0.02184664304 | P23: 298 | Q23: 299 | R23: -1 | T23: 765036.649 | U23: 627480.66 | V23: 137555.989 | W23: 0.219219488 | Y23: 3665124 | Z23: 3063269 | AA23: 601855 | AB23: 0.1964747464 | AD23: =ROUND(ABS(AE23)/MONTH(FERC_IS1!$C$697),0) -> 310 | AE23: 1239 | AF23: =ROUND(ABS(AG23)/MONTH(FERC_IS1!$C$697),0) -> 299 | AG23: 1196 | AH23: 11 | AJ23: 477285.65 | AK23: 469002.71 | AL23: 8282.94 | AM23: 0.01766075083 | AO23: 2021925 | AP23: 2145394 | AQ23: -123469 | AR23: -0.05755073427 | AT23: 296 | AU23: 888 | AV23: 299 | AW23: 897 | AX23: -3 | AZ23: 1849275.505 | BA23: 1838879.12 | BB23: 10396.385 | BC23: 0.005653653297 | BE23: 8294112 | BF23: 8709029 | BG23: -414917 | BH23: -0.04764216539 | BJ23: 297 | BK23: 3567 | BL23: 302 | BM23: 3629 | BN23: -5
A24: %,V4440002 | B24: 4440002 | C24: Public St & Hwy Light Fuel Rev | F24: 27025.04 | G24: 17960.67 | H24: 9064.37 | I24: 0.5046788344 | K24: 0 | L24: 0 | M24: 0 | P24: 0 | Q24: 0 | R24: 0 | T24: 143661.61 | U24: 107121.88 | V24: 36539.73 | W24: 0.3411042637 | Y24: 0 | Z24: 0 | AA24: 0 | AD24: =ROUND(ABS(AE24)/MONTH(FERC_IS1!$C$697),0) -> 0 | AE24: 0 | AF24: =ROUND(ABS(AG24)/MONTH(FERC_IS1!$C$697),0) -> 0 | AG24: 0 | AH24: 0 | AJ24: 88792.34 | AK24: 70529.33 | AL24: 18263.01 | AM24: 0.25894206 | AO24: 0 | AP24: 0 | AQ24: 0 | AT24: 0 | AU24: 0 | AV24: 0 | AW24: 0 | AX24: 0 | AZ24: 353540.06 | BA24: 321151.07 | BB24: 32388.99 | BC24: 0.1008528167 | BE24: 0 | BF24: 0 | BG24: 0 | BJ24: 0 | BK24: 0 | BL24: 0 | BM24: 0 | BN24: 0
A25: %,FACCOUNT,X,TGL_FERC_ACCT,N4440 | B25: Line 6 | C25: (444) Public Street and Highway Lighting | F25: 196370.221 | G25: 174203.04 | H25: 22167.181 | I25: 0.1272491054 | K25: 622622 | L25: 636528 | M25: -13906 | N25: -0.02184664304 | P25: 298 | Q25: 299 | R25: -1 | T25: 908698.259 | U25: 734602.54 | V25: 174095.719 | W25: 0.2369930806 | Y25: 3665124 | Z25: 3063269 | AA25: 601855 | AB25: 0.1964747464 | AD25: =ROUND(ABS(AE25)/MONTH(FERC_IS1!$C$697),0) -> 310 | AE25: 1239 | AF25: =ROUND(ABS(AG25)/MONTH(FERC_IS1!$C$697),0) -> 299 | AG25: 1196 | AH25: 11 | AJ25: 566077.99 | AK25: 539532.04 | AL25: 26545.95 | AM25: 0.04920180459 | AO25: 2021925 | AP25: 2145394 | AQ25: -123469 | AR25: -0.05755073427 | AT25: 296 | AU25: 888 | AV25: 299 | AW25: 897 | AX25: -3 | AZ25: 2202815.565 | BA25: 2160030.19 | BB25: 42785.375 | BC25: 0.01980776713 | BE25: 8294112 | BF25: 8709029 | BG25: -414917 | BH25: -0.04764216539 | BJ25: 297 | BK25: 3567 | BL25: 302 | BM25: 3629 | BN25: -5
A26: %,FACCOUNT,X,TGL_FERC_ACCT,N4450 | B26: Line 7 | C26: (445) Other Sales to Public Authorities | F26: 0 | G26: 0 | H26: 0 | K26: 0 | L26: 0 | M26: 0 | P26: 0 | Q26: 0 | R26: 0 | T26: 0 | U26: 0 | V26: 0 | Y26: 0 | Z26: 0 | AA26: 0 | AD26: =ROUND(ABS(AE26)/MONTH(FERC_IS1!$C$697),0) -> 0 | AE26: 0 | AF26: =ROUND(ABS(AG26)/MONTH(FERC_IS1!$C$697),0) -> 0 | AG26: 0 | AH26: 0 | AJ26: 0 | AK26: 0 | AL26: 0 | AO26: 0 | AP26: 0 | AQ26: 0 | AT26: 0 | AU26: 0 | AV26: 0 | AW26: 0 | AX26: 0 | AZ26: 0 | BA26: 0 | BB26: 0 | BE26: 0 | BF26: 0 | BG26: 0 | BJ26: 0 | BK26: 0 | BL26: 0 | BM26: 0 | BN26: 0
A27: %,FACCOUNT,X,TGL_FERC_ACCT,N4460 | B27: Line 8 | C27: (446) Sales to Railroads and Railways | F27: 0 | G27: 0 | H27: 0 | K27: 0 | L27: 0 | M27: 0 | P27: 0 | Q27: 0 | R27: 0 | T27: 0 | U27: 0 | V27: 0 | Y27: 0 | Z27: 0 | AA27: 0 | AD27: =ROUND(ABS(AE27)/MONTH(FERC_IS1!$C$697),0) -> 0 | AE27: 0 | AF27: =ROUND(ABS(AG27)/MONTH(FERC_IS1!$C$697),0) -> 0 | AG27: 0 | AH27: 0 | AJ27: 0 | AK27: 0 | AL27: 0 | AO27: 0 | AP27: 0 | AQ27: 0 | AT27: 0 | AU27: 0 | AV27: 0 | AW27: 0 | AX27: 0 | AZ27: 0 | BA27: 0 | BB27: 0 | BE27: 0 | BF27: 0 | BG27: 0 | BJ27: 0 | BK27: 0 | BL27: 0 | BM27: 0 | BN27: 0
A28: %,FACCOUNT,X,TGL_FERC_ACCT,N4480 | B28: Line 9 | C28: (448) Interdepartmental Sales | F28: 0 | G28: 0 | H28: 0 | K28: 0 | L28: 0 | M28: 0 | P28: 0 | Q28: 0 | R28: 0 | T28: 0 | U28: 0 | V28: 0 | Y28: 0 | Z28: 0 | AA28: 0 | AD28: =ROUND(ABS(AE28)/MONTH(FERC_IS1!$C$697),0) -> 0 | AE28: 0 | AF28: =ROUND(ABS(AG28)/MONTH(FERC_IS1!$C$697),0) -> 0 | AG28: 0 | AH28: 0 | AJ28: 0 | AK28: 0 | AL28: 0 | AO28: 0 | AP28: 0 | AQ28: 0 | AT28: 0 | AU28: 0 | AV28: 0 | AW28: 0 | AX28: 0 | AZ28: 0 | BA28: 0 | BB28: 0 | BE28: 0 | BF28: 0 | BG28: 0 | BJ28: 0 | BK28: 0 | BL28: 0 | BM28: 0 | BN28: 0
A29: %,FACCOUNT,TGL_FERC_ACCT,NELEC_SALES_ULT_CUST | B29: Line 10 | C29: TOTAL Sales to Ultimate Customers | F29: 49335930.33 | G29: 45472314.6 | H29: 3863615.73 | I29: 0.08496633092 | K29: 353230812 | L29: 374144301 | M29: -20913489 | N29: -0.05589685302 | P29: 161319 | Q29: 162131 | R29: -812 | T29: 234864963 | U29: 235708966.7 | V29: -844003.702 | W29: -0.003580702566 | Y29: 1756676581 | Z29: 1881578603 | AA29: -124902022 | AB29: -0.06638150636 | AD29: =ROUND(ABS(AE29)/MONTH(FERC_IS1!$C$697),0) -> 161873 | AE29: 647490 | AF29: =ROUND(ABS(AG29)/MONTH(FERC_IS1!$C$697),0) -> 162439 | AG29: 649757 | AH29: -566 | AJ29: 166416034.3 | AK29: 161087724.8 | AL29: 5328309.519 | AM29: 0.03307706733 | AO29: 1208783607 | AP29: 1281946209 | AQ29: -73162602 | AR29: -0.05707150697 | AT29: 161539 | AU29: 484616 | AV29: 162368 | AW29: 487103 | AX29: -829 | AZ29: 666832596.4 | BA29: 661489208 | BB29: 5343388.387 | BC29: 0.008077816421 | BE29: 5152702161 | BF29: 5377321110 | BG29: -224618949 | BH29: -0.04177153352 | BJ29: 161659 | BK29: 1939907 | BL29: 162440 | BM29: 1949275 | BN29: -781
A30: %,V4470006 | B30: 4470006 | C30: Sales for Resale-Bookout Sales | F30: 0 | G30: 0 | H30: 0 | K30: 0 | L30: 0 | M30: 0 | P30: 0 | Q30: 0 | R30: 0 | T30: 0 | U30: 0 | V30: 0 | Y30: 0 | Z30: 0 | AA30: 0 | AD30: =ROUND(ABS(AE30)/MONTH(FERC_IS1!$C$697),0) -> 0 | AE30: 0 | AF30: =ROUND(ABS(AG30)/MONTH(FERC_IS1!$C$697),0) -> 0 | AG30: 0 | AH30: 0 | AJ30: 0 | AK30: 0 | AL30: 0 | AO30: 0 | AP30: 0 | AQ30: 0 | AT30: 0 | AU30: 0 | AV30: 0 | AW30: 0 | AX30: 0 | AZ30: 0.2 | BA30: 0 | BB30: 0.2 | BC30: 1 | BE30: 0 | BF30: 0 | BG30: 0 | BJ30: 0 | BK30: 0 | BL30: 0 | BM30: 0 | BN30: 0
A31: %,V4470010 | B31: 4470010 | C31: Sales for Resale-Bookout Purch | F31: 0 | G31: 0 | H31: 0 | K31: 0 | L31: 0 | M31: 0 | P31: 0 | Q31: 0 | R31: 0 | T31: -12.02 | U31: 0 | V31: -12.02 | W31: 1 | Y31: 0 | Z31: 0 | AA31: 0 | AD31: =ROUND(ABS(AE31)/MONTH(FERC_IS1!$C$697),0) -> 0 | AE31: 0 | AF31: =ROUND(ABS(AG31)/MONTH(FERC_IS1!$C$697),0) -> 0 | AG31: 0 | AH31: 0 | AJ31: 12.18 | AK31: 0 | AL31: 12.18 | AM31: 1 | AO31: 0 | AP31: 0 | AQ31: 0 | AT31: 0 | AU31: 0 | AV31: 0 | AW31: 0 | AX31: 0 | AZ31: 34.63 | BA31: 6.84 | BB31: 27.79 | BC31: 4.062865497 | BE31: 0 | BF31: 0 | BG31: 0 | BJ31: 0 | BK31: 0 | BL31: 0 | BM31: 0 | BN31: 0
A32: %,V4470027 | B32: 4470027 | C32: Whsal/Muni/Pb Ath Fuel Rev | F32: 0 | G32: 301957.53 | H32: -301957.53 | I32: 1 | K32: 0 | L32: 5036700 | M32: -5036700 | N32: 1 | P32: 0 | Q32: 0 | R32: 0 | T32: 0 | U32: 1224389.47 | V32: -1224389.47 | W32: 1 | Y32: 0 | Z32: 26944626 | AA32: -26944626 | AB32: 1 | AD32: =ROUND(ABS(AE32)/MONTH(FERC_IS1!$C$697),0) -> 0 | AE32: 0 | AF32: =ROUND(ABS(AG32)/MONTH(FERC_IS1!$C$697),0) -> 0 | AG32: 0 | AH32: 0 | AJ32: 0 | AK32: 846618.36 | AL32: -846618.36 | AM32: 1 | AO32: 0 | AP32: 17868400 | AQ32: -17868400 | AR32: 1 | AT32: 0 | AU32: 0 | AV32: 0 | AW32: 0 | AX32: 0 | AZ32: 337179.19 | BA32: 2842812.06 | BB32: -2505632.87 | BC32: -0.8813923739 | BE32: 5196616 | BF32: 75727977 | BG32: -70531361 | BH32: -0.9313778579 | BJ32: 0 | BK32: 0 | BL32: 0 | BM32: 0 | BN32: 0
A33: %,V4470033 | B33: 4470033 | C33: Whsal/Muni/Pub Auth Base Rev | F33: 0 | G33: 153614.26 | H33: -153614.26 | I33: 1 | K33: 0 | L33: 0 | M33: 0 | P33: 0 | Q33: 0 | R33: 0 | T33: 0 | U33: 808800.71 | V33: -808800.71 | W33: 1 | Y33: 0 | Z33: 0 | AA33: 0 | AD33: =ROUND(ABS(AE33)/MONTH(FERC_IS1!$C$697),0) -> 0 | AE33: 0 | AF33: =ROUND(ABS(AG33)/MONTH(FERC_IS1!$C$697),0) -> 0 | AG33: 0 | AH33: 0 | AJ33: 0 | AK33: 538292.99 | AL33: -538292.99 | AM33: 1 | AO33: 0 | AP33: 0 | AQ33: 0 | AT33: 0 | AU33: 0 | AV33: 0 | AW33: 0 | AX33: 0 | AZ33: 516253.98 | BA33: 1808905.14 | BB33: -1292651.16 | BC33: -0.7146041721 | BE33: 0 | BF33: 0 | BG33: 0 | BJ33: 0 | BK33: 0 | BL33: 0 | BM33: 0 | BN33: 0
A34: %,V4470074 | B34: 4470074 | C34: Sale for Resale-Aff-Trnf Price | F34: 0 | G34: 0 | H34: 0 | K34: 0 | L34: 0 | M34: 0 | P34: 0 | Q34: 0 | R34: 0 | T34: 0 | U34: 0 | V34: 0 | Y34: 0 | Z34: 0 | AA34: 0 | AD34: =ROUND(ABS(AE34)/MONTH(FERC_IS1!$C$697),0) -> 0 | AE34: 0 | AF34: =ROUND(ABS(AG34)/MONTH(FERC_IS1!$C$697),0) -> 0 | AG34: 0 | AH34: 0 | AJ34: 0 | AK34: 0 | AL34: 0 | AO34: 0 | AP34: 0 | AQ34: 0 | AT34: 0 | AU34: 0 | AV34: 0 | AW34: 0 | AX34: 0 | AZ34: 0 | BA34: 0 | BB34: 0 | BE34: 0 | BF34: 0 | BG34: 0 | BJ34: 0 | BK34: 0 | BL34: 0 | BM34: 0 | BN34: 0
A35: %,V4470082 | B35: 4470082 | C35: Financial Electric Realized | F35: -268.47 | G35: -498.85 | H35: 230.38 | I35: -0.461822191 | K35: 0 | L35: 0 | M35: 0 | P35: 0 | Q35: 0 | R35: 0 | T35: -645.65 | U35: -1867.8 | V35: 1222.15 | W35: -0.654325945 | Y35: 0 | Z35: 0 | AA35: 0 | AD35: =ROUND(ABS(AE35)/MONTH(FERC_IS1!$C$697),0) -> 0 | AE35: 0 | AF35: =ROUND(ABS(AG35)/MONTH(FERC_IS1!$C$697),0) -> 0 | AG35: 0 | AH35: 0 | AJ35: -400.03 | AK35: -1667.27 | AL35: 1267.24 | AM35: -0.7600688551 | AO35: 0 | AP35: 0 | AQ35: 0 | AT35: 0 | AU35: 0 | AV35: 0 | AW35: 0 | AX35: 0 | AZ35: -2483.2 | BA35: -7112.59 | BB35: 4629.39 | BC35: -0.6508726076 | BE35: 0 | BF35: 0 | BG35: 0 | BJ35: 0 | BK35: 0 | BL35: 0 | BM35: 0 | BN35: 0
A36: %,V4470089 | B36: 4470089 | C36: PJM Energy Sales Margin | F36: -63234.03 | G36: -25948.59 | H36: -37285.44 | I36: 1.436896571 | K36: 0 | L36: 0 | M36: 0 | P36: 0 | Q36: 0 | R36: 0 | T36: 1274391.04 | U36: 261852.64 | V36: 1012538.4 | W36: 3.866825249 | Y36: 0 | Z36: 0 | AA36: 0 | AD36: =ROUND(ABS(AE36)/MONTH(FERC_IS1!$C$697),0) -> 0 | AE36: 0 | AF36: =ROUND(ABS(AG36)/MONTH(FERC_IS1!$C$697),0) -> 0 | AG36: 0 | AH36: 0 | AJ36: -480291.75 | AK36: 46795.45 | AL36: -527087.2 | AM36: -11.26364208 | AO36: 0 | AP36: 0 | AQ36: 0 | AT36: 0 | AU36: 0 | AV36: 0 | AW36: 0 | AX36: 0 | AZ36: 3452575.02 | BA36: 277192.33 | BB36: 3175382.69 | BC36: 11.45552148 | BE36: 0 | BF36: 0 | BG36: 0 | BJ36: 0 | BK36: 0 | BL36: 0 | BM36: 0 | BN36: 0
A37: %,V4470098 | B37: 4470098 | C37: PJM Oper.Reserve Rev-OSS | F37: -1991.94 | G37: -6103.18 | H37: 4111.24 | I37: -0.6736226033 | K37: 0 | L37: 0 | M37: 0 | P37: 0 | Q37: 0 | R37: 0 | T37: -443215.59 | U37: -25915.5 | V37: -417300.09 | W37: 16.10233605 | Y37: 0 | Z37: 0 | AA37: 0 | AD37: =ROUND(ABS(AE37)/MONTH(FERC_IS1!$C$697),0) -> 0 | AE37: 0 | AF37: =ROUND(ABS(AG37)/MONTH(FERC_IS1!$C$697),0) -> 0 | AG37: 0 | AH37: 0 | AJ37: -390814.39 | AK37: -18971.86 | AL37: -371842.53 | AM37: 19.59968764 | AO37: 0 | AP37: 0 | AQ37: 0 | AT37: 0 | AU37: 0 | AV37: 0 | AW37: 0 | AX37: 0 | AZ37: -516408.77 | BA37: -70411.75 | BB37: -445997.02 | BC37: 6.334127756 | BE37: 0 | BF37: 0 | BG37: 0 | BJ37: 0 | BK37: 0 | BL37: 0 | BM37: 0 | BN37: 0
A38: %,V4470099 | B38: 4470099 | C38: Capacity Cr. Net Sales | F38: 0 | G38: -10108.8 | H38: 10108.8 | I38: 1 | K38: 0 | L38: 0 | M38: 0 | P38: 0 | Q38: 0 | R38: 0 | T38: 0 | U38: -40435.23 | V38: 40435.23 | W38: 1 | Y38: 0 | Z38: 0 | AA38: 0 | AD38: =ROUND(ABS(AE38)/MONTH(FERC_IS1!$C$697),0) -> 0 | AE38: 0 | AF38: =ROUND(ABS(AG38)/MONTH(FERC_IS1!$C$697),0) -> 0 | AG38: 0 | AH38: 0 | AJ38: 0 | AK38: -29989.44 | AL38: 29989.44 | AM38: 1 | AO38: 0 | AP38: 0 | AQ38: 0 | AT38: 0 | AU38: 0 | AV38: 0 | AW38: 0 | AX38: 0 | AZ38: -10445.76 | BA38: -112476.35 | BB38: 102030.59 | BC38: -0.9071292765 | BE38: 0 | BF38: 0 | BG38: 0 | BJ38: 0 | BK38: 0 | BL38: 0 | BM38: 0 | BN38: 0
A39: %,V4470100 | B39: 4470100 | C39: PJM FTR Revenue-OSS | F39: 26906.68 | G39: 10033.5 | H39: 16873.18 | I39: 1.681684357 | K39: 0 | L39: 0 | M39: 0 | P39: 0 | Q39: 0 | R39: 0 | T39: 301578.46 | U39: 47047.48 | V39: 254530.98 | W39: 5.410087427 | Y39: 0 | Z39: 0 | AA39: 0 | AD39: =ROUND(ABS(AE39)/MONTH(FERC_IS1!$C$697),0) -> 0 | AE39: 0 | AF39: =ROUND(ABS(AG39)/MONTH(FERC_IS1!$C$697),0) -> 0 | AG39: 0 | AH39: 0 | AJ39: 137328.47 | AK39: 22167.69 | AL39: 115160.78 | AM39: 5.194983329 | AO39: 0 | AP39: 0 | AQ39: 0 | AT39: 0 | AU39: 0 | AV39: 0 | AW39: 0 | AX39: 0 | AZ39: 475479.35 | BA39: 241706.15 | BB39: 233773.2 | BC39: 0.9671793622 | BE39: 0 | BF39: 0 | BG39: 0 | BJ39: 0 | BK39: 0 | BL39: 0 | BM39: 0 | BN39: 0
A40: %,V4470103 | B40: 4470103 | C40: PJM Energy Sales Cost | F40: 1068207.76 | G40: 1081945.58 | H40: -13737.82 | I40: -0.01269732993 | K40: 26728445 | L40: 25076540 | M40: 1651905 | N40: 0.06587451857 | P40: 0 | Q40: 0 | R40: 0 | T40: 10756276.15 | U40: 4062882.97 | V40: 6693393.18 | W40: 1.647449171 | Y40: 151027397 | Z40: 93018458 | AA40: 58008939 | AB40: 0.6236282588 | AD40: =ROUND(ABS(AE40)/MONTH(FERC_IS1!$C$697),0) -> 0 | AE40: 0 | AF40: =ROUND(ABS(AG40)/MONTH(FERC_IS1!$C$697),0) -> 0 | AG40: 0 | AH40: 0 | AJ40: 5513696.94 | AK40: 2768470.05 | AL40: 2745226.89 | AM40: 0.9916043303 | AO40: 99789102 | AP40: 66118186 | AQ40: 33670916 | AR40: 0.5092534753 | AT40: 0 | AU40: 0 | AV40: 0 | AW40: 0 | AX40: 0 | AZ40: 34385278.62 | BA40: 16710695.73 | BB40: 17674582.89 | BC40: 1.057680852 | BE40: 635332950 | BF40: 435776504 | BG40: 199556446 | BH40: 0.4579330096 | BJ40: 0 | BK40: 0 | BL40: 0 | BM40: 0 | BN40: 0
A41: %,V4470115 | B41: 4470115 | C41: PJM Meter Corrections-OSS | F41: 25.8 | G41: -107.51 | H41: =+F41-G41 -> 133.31 | I41: -1.239977676 | K41: 0 | L41: 0 | M41: =+K41-L41 -> 0 | N41: =IF(AND(K41=0,L41=0),"",IF(OR(K41=0,L41=0),100%,(+M41/L41))) ->  | P41: 0 | Q41: 0 | R41: =+P41-Q41 -> 0 | T41: -2316.09 | U41: -9969.69 | V41: =+T41-U41 -> 7653.6 | W41: =IF(AND(T41=0,U41=0),"",IF(OR(T41=0,U41=0),100%,(+V41/U41))) -> -0.7676868589 | Y41: 0 | Z41: 0 | AA41: =+Y41-Z41 -> 0 | AB41: =IF(AND(Y41=0,Z41=0),"",IF(OR(Y41=0,Z41=0),100%,(+AA41/Z41))) ->  | AD41: =ROUND(ABS(AE41)/MONTH(FERC_IS1!$C$697),0) -> 0 | AE41: 0 | AF41: =ROUND(ABS(AG41)/MONTH(FERC_IS1!$C$697),0) -> 0 | AG41: 0 | AH41: =+AD41-AF41 -> 0 | AJ41: -1107.85 | AK41: -9044.04 | AL41: =+AJ41-AK41 -> 7936.19 | AM41: =IF(AND(AJ41=0,AK41=0),"",IF(OR(AJ41=0,AK41=0),100%,(+AL41/AK41))) -> -0.8775049646 | AO41: 0 | AP41: 0 | AQ41: =+AO41-AP41 -> 0 | AR41: =IF(AND(AO41=0,AP41=0),"",IF(OR(AO41=0,AP41=0),100%,(+AQ41/AP41))) ->  | AT41: =ROUND(ABS(AU41)/3,0) -> 0 | AU41: 0 | AV41: =ROUND(ABS(AW41)/3,0) -> 0 | AW41: 0 | AX41: =+AT41-AV41 -> 0 | AZ41: -276548.76 | BA41: 34651.49 | BB41: =+AZ41-BA41 -> -311200.25 | BC41: =IF(AND(AZ41=0,BA41=0),"",IF(OR(AZ41=0,BA41=0),100%,(+BB41/BA41))) -> -8.980862006 | BE41: 0 | BF41: 0 | BG41: =+BE41-BF41 -> 0 | BH41: =IF(AND(BE41=0,BF41=0),"",IF(OR(BE41=0,BF41=0),100%,(+BG41/BF41))) ->  | BJ41: =ROUND(ABS(BK41)/12,0) -> 0 | BK41: 0 | BL41: =ROUND(ABS(BM41)/12,0) -> 0 | BM41: 0 | BN41: =+BJ41-BL41 -> 0
A42: %,V4470116 | B42: 4470116 | C42: PJM Meter Corrections-LSE | F42: 124289.46 | G42: -17930.13 | H42: 142219.59 | I42: -7.931877237 | K42: 0 | L42: 0 | M42: 0 | P42: 0 | Q42: 0 | R42: 0 | T42: 101868.24 | U42: -166313.32 | V42: 268181.56 | W42: -1.612508006 | Y42: 0 | Z42: 0 | AA42: 0 | AD42: =ROUND(ABS(AE42)/MONTH(FERC_IS1!$C$697),0) -> 0 | AE42: 0 | AF42: =ROUND(ABS(AG42)/MONTH(FERC_IS1!$C$697),0) -> 0 | AG42: 0 | AH42: 0 | AJ42: 130440.4 | AK42: -149193.6 | AL42: 279634 | AM42: -1.874302919 | AO42: 0 | AP42: 0 | AQ42: 0 | AT42: 0 | AU42: 0 | AV42: 0 | AW42: 0 | AX42: 0 | AZ42: -1330215.39 | BA42: 199927.85 | BB42: -1530143.24 | BC42: -7.653477192 | BE42: 0 | BF42: 0 | BG42: 0 | BJ42: 0 | BK42: 0 | BL42: 0 | BM42: 0 | BN42: 0
A43: %,V4470126 | B43: 4470126 | C43: PJM Incremental Imp Cong-OSS | F43: 25733.11 | G43: -228.34 | H43: 25961.45 | I43: -113.6964614 | K43: 0 | L43: 0 | M43: 0 | P43: 0 | Q43: 0 | R43: 0 | T43: -364219.85 | U43: -42504.7 | V43: -321715.15 | W43: 7.568931201 | Y43: 0 | Z43: 0 | AA43: 0 | AD43: =ROUND(ABS(AE43)/MONTH(FERC_IS1!$C$697),0) -> 0 | AE43: 0 | AF43: =ROUND(ABS(AG43)/MONTH(FERC_IS1!$C$697),0) -> 0 | AG43: 0 | AH43: 0 | AJ43: -78628.66 | AK43: -29369.38 | AL43: -49259.28 | AM43: 1.677232546 | AO43: 0 | AP43: 0 | AQ43: 0 | AT43: 0 | AU43: 0 | AV43: 0 | AW43: 0 | AX43: 0 | AZ43: -969727.99 | BA43: -345082.32 | BB43: -624645.67 | BC43: 1.810135245 | BE43: 0 | BF43: 0 | BG43: 0 | BJ43: 0 | BK43: 0 | BL43: 0 | BM43: 0 | BN43: 0
A44: %,V4470150 | B44: 4470150 | C44: Transm. Rev.-Dedic. Whlsl/Muni | F44: -3816 | G44: -1157.1 | H44: -2658.9 | I44: 2.297899922 | K44: 0 | L44: 0 | M44: 0 | P44: 0 | Q44: 0 | R44: 0 | T44: -15259 | U44: -6964.34 | V44: -8294.66 | W44: 1.191018819 | Y44: 0 | Z44: 0 | AA44: 0 | AD44: =ROUND(ABS(AE44)/MONTH(FERC_IS1!$C$697),0) -> 0 | AE44: 0 | AF44: =ROUND(ABS(AG44)/MONTH(FERC_IS1!$C$697),0) -> 0 | AG44: 0 | AH44: 0 | AJ44: -11445 | AK44: -4486.94 | AL44: -6958.06 | AM44: 1.550736136 | AO44: 0 | AP44: 0 | AQ44: 0 | AT44: 0 | AU44: 0 | AV44: 0 | AW44: 0 | AX44: 0 | AZ44: -65175.65 | BA44: 151881.01 | BB44: -217056.66 | BC44: -1.429123101 | BE44: 0 | BF44: 0 | BG44: 0 | BJ44: 0 | BK44: 0 | BL44: 0 | BM44: 0 | BN44: 0
A45: %,V4470175 | B45: 4470175 | C45: OSS Sharing Reclass - Retail | F45: 549579.47 | G45: 559141.1 | H45: -9561.63 | I45: -0.01710056728 | K45: 0 | L45: 0 | M45: 0 | P45: 0 | Q45: 0 | R45: 0 | T45: 1993651.89 | U45: 2170713.79 | V45: -177061.9 | W45: -0.08156851484 | Y45: 0 | Z45: 0 | AA45: 0 | AD45: =ROUND(ABS(AE45)/MONTH(FERC_IS1!$C$697),0) -> 0 | AE45: 0 | AF45: =ROUND(ABS(AG45)/MONTH(FERC_IS1!$C$697),0) -> 0 | AG45: 0 | AH45: 0 | AJ45: 374768.58 | AK45: 2770052.37 | AL45: -2395283.79 | AM45: -0.8647070416 | AO45: 0 | AP45: 0 | AQ45: 0 | AT45: 0 | AU45: 0 | AV45: 0 | AW45: 0 | AX45: 0 | AZ45: 5270845.11 | BA45: 5283483.71 | BB45: -12638.6 | BC45: -0.002392095953 | BE45: 0 | BF45: 0 | BG45: 0 | BJ45: 0 | BK45: 0 | BL45: 0 | BM45: 0 | BN45: 0
A46: %,V4470176 | B46: 4470176 | C46: OSS Sharing Reclass-Reduction | F46: -549579.47 | G46: -559141.1 | H46: 9561.63 | I46: -0.01710056728 | K46: 0 | L46: 0 | M46: 0 | P46: 0 | Q46: 0 | R46: 0 | T46: -1993651.89 | U46: -2170713.79 | V46: 177061.9 | W46: -0.08156851484 | Y46: 0 | Z46: 0 | AA46: 0 | AD46: =ROUND(ABS(AE46)/MONTH(FERC_IS1!$C$697),0) -> 0 | AE46: 0 | AF46: =ROUND(ABS(AG46)/MONTH(FERC_IS1!$C$697),0) -> 0 | AG46: 0 | AH46: 0 | AJ46: -374768.58 | AK46: -2770052.37 | AL46: 2395283.79 | AM46: -0.8647070416 | AO46: 0 | AP46: 0 | AQ46: 0 | AT46: 0 | AU46: 0 | AV46: 0 | AW46: 0 | AX46: 0 | AZ46: -5270845.11 | BA46: -5283483.71 | BB46: 12638.6 | BC46: -0.002392095953 | BE46: 0 | BF46: 0 | BG46: 0 | BJ46: 0 | BK46: 0 | BL46: 0 | BM46: 0 | BN46: 0
A47: %,V4470206 | B47: 4470206 | C47: PJM Trans loss credits-OSS | F47: 11999.13 | G47: 3139.08 | H47: 8860.05 | I47: 2.822498949 | K47: 0 | L47: 0 | M47: 0 | P47: 0 | Q47: 0 | R47: 0 | T47: 130685.67 | U47: 46274.04 | V47: 84411.63 | W47: 1.824168151 | Y47: 0 | Z47: 0 | AA47: 0 | AD47: =ROUND(ABS(AE47)/MONTH(FERC_IS1!$C$697),0) -> 0 | AE47: 0 | AF47: =ROUND(ABS(AG47)/MONTH(FERC_IS1!$C$697),0) -> 0 | AG47: 0 | AH47: 0 | AJ47: 82718.61 | AK47: 35730.97 | AL47: 46987.64 | AM47: 1.315039586 | AO47: 0 | AP47: 0 | AQ47: 0 | AT47: 0 | AU47: 0 | AV47: 0 | AW47: 0 | AX47: 0 | AZ47: 295402.69 | BA47: 116578.68 | BB47: 178824.01 | BC47: 1.533934078 | BE47: 0 | BF47: 0 | BG47: 0 | BJ47: 0 | BK47: 0 | BL47: 0 | BM47: 0 | BN47: 0
A48: %,V4470209 | B48: 4470209 | C48: PJM transm loss charges-OSS | F48: -17554.99 | G48: -5500.54 | H48: -12054.45 | I48: 2.191503016 | K48: 0 | L48: 0 | M48: 0 | P48: 0 | Q48: 0 | R48: 0 | T48: -254214.81 | U48: -72252.52 | V48: -181962.29 | W48: 2.518421364 | Y48: 0 | Z48: 0 | AA48: 0 | AD48: =ROUND(ABS(AE48)/MONTH(FERC_IS1!$C$697),0) -> 0 | AE48: 0 | AF48: =ROUND(ABS(AG48)/MONTH(FERC_IS1!$C$697),0) -> 0 | AG48: 0 | AH48: 0 | AJ48: -142993.6 | AK48: -53639.13 | AL48: -89354.47 | AM48: 1.665844879 | AO48: 0 | AP48: 0 | AQ48: 0 | AT48: 0 | AU48: 0 | AV48: 0 | AW48: 0 | AX48: 0 | AZ48: -616225.64 | BA48: -245410.07 | BB48: -370815.57 | BC48: 1.511003888 | BE48: 0 | BF48: 0 | BG48: 0 | BJ48: 0 | BK48: 0 | BL48: 0 | BM48: 0 | BN48: 0
A49: %,V4470220 | B49: 4470220 | C49: PJM Regulation - OSS | F49: 554322.2 | G49: 586031.62 | H49: -31709.42 | I49: -0.05410871857 | K49: 0 | L49: 0 | M49: 0 | P49: 0 | Q49: 0 | R49: 0 | T49: 1253537.03 | U49: 1987479.74 | V49: -733942.71 | W49: -0.3692831153 | Y49: 0 | Z49: 0 | AA49: 0 | AD49: =ROUND(ABS(AE49)/MONTH(FERC_IS1!$C$697),0) -> 0 | AE49: 0 | AF49: =ROUND(ABS(AG49)/MONTH(FERC_IS1!$C$697),0) -> 0 | AG49: 0 | AH49: 0 | AJ49: 1182451.58 | AK49: 1360353.16 | AL49: -177901.58 | AM49: -0.1307760258 | AO49: 0 | AP49: 0 | AQ49: 0 | AT49: 0 | AU49: 0 | AV49: 0 | AW49: 0 | AX49: 0 | AZ49: 3183056.81 | BA49: 5347567.19 | BB49: -2164510.38 | BC49: -0.4047654388 | BE49: 0 | BF49: 0 | BG49: 0 | BJ49: 0 | BK49: 0 | BL49: 0 | BM49: 0 | BN49: 0
A50: %,V4470221 | B50: 4470221 | C50: PJM Spinning Reserve - OSS | F50: 15001.84 | G50: 13366.32 | H50: 1635.52 | I50: 0.1223612782 | K50: 0 | L50: 0 | M50: 0 | P50: 0 | Q50: 0 | R50: 0 | T50: 102934.01 | U50: 42057.96 | V50: 60876.05 | W50: 1.447432305 | Y50: 0 | Z50: 0 | AA50: 0 | AD50: =ROUND(ABS(AE50)/MONTH(FERC_IS1!$C$697),0) -> 0 | AE50: 0 | AF50: =ROUND(ABS(AG50)/MONTH(FERC_IS1!$C$697),0) -> 0 | AG50: 0 | AH50: 0 | AJ50: 68645.74 | AK50: 33238.93 | AL50: 35406.81 | AM50: 1.065221113 | AO50: 0 | AP50: 0 | AQ50: 0 | AT50: 0 | AU50: 0 | AV50: 0 | AW50: 0 | AX50: 0 | AZ50: 264096.35 | BA50: 105105.62 | BB50: 158990.73 | BC50: 1.512675821 | BE50: 0 | BF50: 0 | BG50: 0 | BJ50: 0 | BK50: 0 | BL50: 0 | BM50: 0 | BN50: 0
A51: %,FACCOUNT,X,TGL_FERC_ACCT,N4470 | B51: Line 11 | C51: (447) Sales for Resale | F51: 1739620.55 | G51: 2082504.85 | H51: -342884.3 | I51: -0.1646499407 | K51: 26728445 | L51: 30113240 | M51: -3384795 | N51: -0.1124022191 | P51: 0 | Q51: 0 | R51: 0 | T51: 12841387.59 | U51: 8114561.91 | V51: 4726825.68 | W51: 0.5825115062 | Y51: 151027397 | Z51: 119963084 | AA51: 31064313 | AB51: 0.2589489363 | AD51: =ROUND(ABS(AE51)/MONTH(FERC_IS1!$C$697),0) -> 0 | AE51: 0 | AF51: =ROUND(ABS(AG51)/MONTH(FERC_IS1!$C$697),0) -> 0 | AG51: 0 | AH51: 0 | AJ51: 6009612.64 | AK51: 5355305.94 | AL51: 654306.7 | AM51: 0.1221791448 | AO51: 99789102 | AP51: 83986586 | AQ51: 15802516 | AR51: 0.1881552371 | AT51: 0 | AU51: 0 | AV51: 0 | AW51: 0 | AX51: 0 | AZ51: 39122125.68 | BA51: 27056537.01 | BB51: 12065588.67 | BC51: 0.4459398727 | BE51: 640529566 | BF51: 511504481 | BG51: 129025085 | BH51: 0.2522462457 | BJ51: 0 | BK51: 0 | BL51: 0 | BM51: 0 | BN51: 0
